Workbook

Sheet SetUp
C1: ="Test Analysis Spreadsheet Setup (Version 04/29/21)" -> Test Analysis Spreadsheet Setup (Version 04/29/21)
B2: Scale max | C2: 9
B3: Questions | C3: =MATCH("Overall Average",QuestionTitles,0)-MATCH("Overall Total",QuestionTitles,0)-1 -> 4 | E3: =RawScores!B1 -> Title
B4: Raters | C4: =IF(C3>1,ROUNDDOWN((COUNTA(QuestionTitles)-COUNTIF(QuestionTitles,"")-$C$3-5)/$C$3,0),ROUNDDOWN(MATCH("Overall Total",QuestionTitles,0)/2,0)) -> 3 | E4: =RawScores!B3 -> Exam Total
A5: Raw scores arranged by | C5: Questions | E5: ="Announced on "&MONTH(RawScores!B2)&"/"&DAY(RawScores!B2)&"/"&YEAR(RawScores!B2) -> Announced on 12/14/2009
A6: Item | B6: =TRIM(INDEX(RawScores!5:5,1,WiscJobsOffset+4+COLUMN())) -> Item # 1 Question Summary -(1) | C6: =TRIM(INDEX(RawScores!5:5,1,WiscJobsOffset+4+COLUMN())) -> Item # 1 Question Summary -(2) | D6: =TRIM(INDEX(RawScores!5:5,1,WiscJobsOffset+4+COLUMN())) -> Item # 1 Question Summary - (3) | E6: =TRIM(INDEX(RawScores!5:5,1,WiscJobsOffset+4+COLUMN())) -> Item # 2 Item Summary - (1) | F6: =TRIM(INDEX(RawScores!5:5,1,WiscJobsOffset+4+COLUMN())) -> Item # 2 Item Summary - (2) | G6: =TRIM(INDEX(RawScores!5:5,1,WiscJobsOffset+4+COLUMN())) -> Item # 2 Item Summary - (3) | H6: =TRIM(INDEX(RawScores!5:5,1,WiscJobsOffset+4+COLUMN())) -> Item # 3 Question Summary - (1) | I6: =TRIM(INDEX(RawScores!5:5,1,WiscJobsOffset+4+COLUMN())) -> Item # 3 Question Summary - (2) | J6: =TRIM(INDEX(RawScores!5:5,1,WiscJobsOffset+4+COLUMN())) -> Item # 3 Question Summary - (3) | K6: =TRIM(INDEX(RawScores!5:5,1,WiscJobsOffset+4+COLUMN())) -> Item # 4 Item Summary - (1) | L6: =TRIM(INDEX(RawScores!5:5,1,WiscJobsOffset+4+COLUMN())) -> Item # 4 Item Summary - (2) | M6: =TRIM(INDEX(RawScores!5:5,1,WiscJobsOffset+4+COLUMN())) -> Item # 4 Item Summary - (3) | N6: =TRIM(INDEX(RawScores!5:5,1,WiscJobsOffset+4+COLUMN())) -> Total | O6: =TRIM(INDEX(RawScores!5:5,1,WiscJobsOffset+4+COLUMN())) -> Total | P6: =TRIM(RawScores!AC5) -> Total | Q6: =TRIM(RawScores!AD5) -> Overall Total | R6: =TRIM(RawScores!AE5) -> Item Average Question Summary | S6: =TRIM(RawScores!AF5) -> Item Average Item Summary | T6: =TRIM(RawScores!AG5) -> Item Average Question Summary | U6: =TRIM(RawScores!AH5) -> Item Average Item Summary | V6: =TRIM(RawScores!AI5) -> Overall Average | W6: =TRIM(RawScores!AJ5) -> CSS | X6: =TRIM(RawScores!AK5) -> Rank | Y6: =TRIM(RawScores!AL5) -> MDF | Z6: =TRIM(RawScores!AM5) ->  | AA6: =TRIM(RawScores!AN5) ->  | AB6: =TRIM(RawScores!AO5) ->  | AC6: =TRIM(RawScores!AP5) ->  | AD6: =TRIM(RawScores!AQ5) ->  | AE6: =TRIM(RawScores!AR5) ->  | AF6: =TRIM(RawScores!AS5) ->  | AG6: =TRIM(RawScores!AT5) ->  | AH6: =TRIM(RawScores!AU5) ->  | AI6: =TRIM(RawScores!AV5) ->  | AJ6: =TRIM(RawScores!AW5) ->  | AK6: =TRIM(RawScores!AX5) ->  | AL6: =TRIM(RawScores!AY5) ->  | AM6: =TRIM(RawScores!AZ5) ->  | AN6: =TRIM(RawScores!BA5) ->  | AO6: =TRIM(RawScores!BB5) -> 
A7: Raw Max | B7: =C2 -> 9 | C7: =IF(CELL("col",C13)-1>$C$3*$C$4,"",IF(C$12=1,$C$2,IF(C$12>$C$4,0,INDEX($B7:$Z7,1,(1+(C13-1)*$C$4))))) -> 9 | D7: =IF(CELL("col",D13)-1>$C$3*$C$4,"",IF(D$12=1,$C$2,IF(D$12>$C$4,0,INDEX($B7:$Z7,1,(1+(D13-1)*$C$4))))) -> 9 | E7: 9 | F7: 9 | G7: 9 | H7: 9 | I7: 9 | J7: 9 | K7: 9 | L7: 9 | M7: 9
A8: Raw Passing | B8: =ROUNDUP(B7/3+1,0) -> 4 | C8: =IF(CELL("col",C13)-1>$C$3*$C$4,"",IF(C$12=1,ROUND($C$2/3,0)+1,IF(C$12>$C$4,0,INDEX($B8:$Z8,1,(1+(C13-1)*$C$4))))) -> 4 | D8: =IF(CELL("col",D13)-1>$C$3*$C$4,"",IF(D$12=1,ROUND($C$2/3,0)+1,IF(D$12>$C$4,0,INDEX($B8:$Z8,1,(1+(D13-1)*$C$4))))) -> 4 | E8: 4 | F8: 4 | G8: 4 | H8: 4 | I8: 4 | J8: 4 | K8: 4 | L8: 4 | M8: 4
A9: Weight | B9: =IF(B15="Y",0,1) -> 1 | C9: =IF(CELL("col",C13)-1>$C$3*$C$4,"",IF(C15="N",IF(CELL("col",C13)-1>$C$3*$C$4,"",IF($C$5="Raters",IF(C$12=1,1,IF(C$12>$C$4,0,INDEX($B9:$Z9,1,C$13))),IF(C$13=1,1,IF(C$13>$C$3,0,INDEX($B9:$Z9,1,C$12))))),0)) -> 1 | D9: =IF(CELL("col",D13)-1>$C$3*$C$4,"",IF(D15="N",IF(CELL("col",D13)-1>$C$3*$C$4,"",IF($C$5="Raters",IF(D$12=1,1,IF(D$12>$C$4,0,INDEX($B9:$Z9,1,D$13))),IF(D$13=1,1,IF(D$13>$C$3,0,INDEX($B9:$Z9,1,D$12))))),0)) -> 1 | E9: 1 | F9: 1 | G9: 1 | H9: 1 | I9: 1 | J9: 1 | K9: 1 | L9: 1 | M9: 1
A10: wtd Max | B10: =B7*B9 -> 9 | C10: =IF(CELL("col",C13)-1>$C$3*$C$4,"",C7*C9) -> 9 | D10: 9 | E10: 9 | F10: 9 | G10: 9 | H10: 9 | I10: 9 | J10: 9 | K10: 9 | L10: 9 | M10: 9
A11: wtd Passing | B11: =B8*B9 -> 4 | C11: =IF(CELL("col",C13)-1>$C$3*$C$4,"",C8*C9) -> 4 | D11: =IF(CELL("col",D13)-1>$C$3*$C$4,"",D8*D9) -> 4 | E11: 4 | F11: 4 | G11: 4 | H11: 4 | I11: 4 | J11: 4 | K11: 4 | L11: 4 | M11: 4
A12: Rater | B12: 1 | C12: =IF(CELL("col",C13)-1>$C$3*$C$4,"",IF($C$5="raters",IF(MOD(CELL("col",C12)-1,$C$3)=1,B12+1,B12),IF(B12<$C$4,B12+1,1))) -> 2 | D12: =IF(CELL("col",D13)-1>$C$3*$C$4,"",IF($C$5="raters",IF(MOD(CELL("col",D12)-1,$C$3)=1,C12+1,C12),IF(C12<$C$4,C12+1,1))) -> 3 | E12: 1 | F12: 2 | G12: 3 | H12: 1 | I12: 2 | J12: 3 | K12: 1 | L12: 2 | M12: 3
A13: Question | B13: 1 | C13: =IF(CELL("col",C13)-1>$C$3*$C$4,"",IF($C$5="raters",IF(B13<$C$3,B13+1,1),IF(MOD(CELL("col",C13)-1,$C$4)=1,B13+1,B13))) -> 1 | D13: =IF(CELL("col",D13)-1>$C$3*$C$4,"",IF($C$5="raters",IF(C13<$C$3,C13+1,1),IF(MOD(CELL("col",D13)-1,$C$4)=1,C13+1,C13))) -> 1 | E13: 2 | F13: 2 | G13: 2 | H13: 3 | I13: 3 | J13: 3 | K13: 4 | L13: 4 | M13: 4
A14: Mandatory | B14: N | C14: =IF(CELL("col",C13)-1>$C$3*$C$4,"",IF(C$12=1,"N",IF(C$12>$C$4," ",HLOOKUP(C13,$B$13:B14,2,FALSE)))) -> N | D14: =IF(CELL("col",D13)-1>$C$3*$C$4,"",IF(D$12=1,"N",IF(D$12>$C$4," ",HLOOKUP(D13,$B$13:C14,2,FALSE)))) -> N | E14: =IF(CELL("col",E13)-1>$C$3*$C$4,"",IF(E$12=1,"N",IF(E$12>$C$4," ",HLOOKUP(E13,$B$13:D14,2,FALSE)))) -> N | F14: =IF(CELL("col",F13)-1>$C$3*$C$4,"",IF(F$12=1,"N",IF(F$12>$C$4," ",HLOOKUP(F13,$B$13:E14,2,FALSE)))) -> N | G14: =IF(CELL("col",G13)-1>$C$3*$C$4,"",IF(G$12=1,"N",IF(G$12>$C$4," ",HLOOKUP(G13,$B$13:F14,2,FALSE)))) -> N | H14: =IF(CELL("col",H13)-1>$C$3*$C$4,"",IF(H$12=1,"N",IF(H$12>$C$4," ",HLOOKUP(H13,$B$13:G14,2,FALSE)))) -> N | I14: =IF(CELL("col",I13)-1>$C$3*$C$4,"",IF(I$12=1,"N",IF(I$12>$C$4," ",HLOOKUP(I13,$B$13:H14,2,FALSE)))) -> N | J14: =IF(CELL("col",J13)-1>$C$3*$C$4,"",IF(J$12=1,"N",IF(J$12>$C$4," ",HLOOKUP(J13,$B$13:I14,2,FALSE)))) -> N | K14: =IF(CELL("col",K13)-1>$C$3*$C$4,"",IF(K$12=1,"N",IF(K$12>$C$4," ",HLOOKUP(K13,$B$13:J14,2,FALSE)))) -> N | L14: =IF(CELL("col",L13)-1>$C$3*$C$4,"",IF(L$12=1,"N",IF(L$12>$C$4," ",HLOOKUP(L13,$B$13:K14,2,FALSE)))) -> N | M14: =IF(CELL("col",M13)-1>$C$3*$C$4,"",IF(M$12=1,"N",IF(M$12>$C$4," ",HLOOKUP(M13,$B$13:L14,2,FALSE)))) -> N | N14: =IF(CELL("col",N13)-1>$C$3*$C$4,"",IF(N$12=1,"N",IF(N$12>$C$4," ",HLOOKUP(N13,$B$13:M14,2,FALSE)))) ->  | O14: =IF(CELL("col",O13)-1>$C$3*$C$4,"",IF(O$12=1,"N",IF(O$12>$C$4," ",HLOOKUP(O13,$B$13:N14,2,FALSE)))) ->  | P14: =IF(CELL("col",P13)-1>$C$3*$C$4,"",IF(P$12=1,"N",IF(P$12>$C$4," ",HLOOKUP(P13,$B$13:O14,2,FALSE)))) ->  | Q14: =IF(CELL("col",Q13)-1>$C$3*$C$4,"",IF(Q$12=1,"N",IF(Q$12>$C$4," ",HLOOKUP(Q13,$B$13:P14,2,FALSE)))) ->  | R14: =IF(CELL("col",R13)-1>$C$3*$C$4,"",IF(R$12=1,"N",IF(R$12>$C$4," ",HLOOKUP(R13,$B$13:Q14,2,FALSE)))) ->  | S14: =IF(CELL("col",S13)-1>$C$3*$C$4,"",IF(S$12=1,"N",IF(S$12>$C$4," ",HLOOKUP(S13,$B$13:R14,2,FALSE)))) ->  | T14: =IF(CELL("col",T13)-1>$C$3*$C$4,"",IF(T$12=1,"N",IF(T$12>$C$4," ",HLOOKUP(T13,$B$13:S14,2,FALSE)))) ->  | U14: =IF(CELL("col",U13)-1>$C$3*$C$4,"",IF(U$12=1,"N",IF(U$12>$C$4," ",HLOOKUP(U13,$B$13:T14,2,FALSE)))) ->  | V14: =IF(CELL("col",V13)-1>$C$3*$C$4,"",IF(V$12=1,"N",IF(V$12>$C$4," ",HLOOKUP(V13,$B$13:U14,2,FALSE)))) ->  | W14: =IF(CELL("col",W13)-1>$C$3*$C$4,"",IF(W$12=1,"N",IF(W$12>$C$4," ",HLOOKUP(W13,$B$13:V14,2,FALSE)))) ->  | X14: =IF(CELL("col",X13)-1>$C$3*$C$4,"",IF(X$12=1,"N",IF(X$12>$C$4," ",HLOOKUP(X13,$B$13:W14,2,FALSE)))) ->  | Y14: =IF(CELL("col",Y13)-1>$C$3*$C$4,"",IF(Y$12=1,"N",IF(Y$12>$C$4," ",HLOOKUP(Y13,$B$13:X14,2,FALSE)))) ->  | Z14: =IF(CELL("col",Z13)-1>$C$3*$C$4,"",IF(Z$12=1,"N",IF(Z$12>$C$4," ",HLOOKUP(Z13,$B$13:Y14,2,FALSE)))) ->  | AA14: =IF(CELL("col",AA13)-1>$C$3*$C$4,"",IF(AA$12=1,"N",IF(AA$12>$C$4," ",HLOOKUP(AA13,$B$13:Z14,2,FALSE)))) ->  | AB14: =IF(CELL("col",AB13)-1>$C$3*$C$4,"",IF(AB$12=1,"N",IF(AB$12>$C$4," ",HLOOKUP(AB13,$B$13:AA14,2,FALSE)))) ->  | AC14: =IF(CELL("col",AC13)-1>$C$3*$C$4,"",IF(AC$12=1,"N",IF(AC$12>$C$4," ",HLOOKUP(AC13,$B$13:AB14,2,FALSE)))) ->  | AD14: =IF(CELL("col",AD13)-1>$C$3*$C$4,"",IF(AD$12=1,"N",IF(AD$12>$C$4," ",HLOOKUP(AD13,$B$13:AC14,2,FALSE)))) ->  | AE14: =IF(CELL("col",AE13)-1>$C$3*$C$4,"",IF(AE$12=1,"N",IF(AE$12>$C$4," ",HLOOKUP(AE13,$B$13:AD14,2,FALSE)))) ->  | AF14: =IF(CELL("col",AF13)-1>$C$3*$C$4,"",IF(AF$12=1,"N",IF(AF$12>$C$4," ",HLOOKUP(AF13,$B$13:AE14,2,FALSE)))) ->  | AG14: =IF(CELL("col",AG13)-1>$C$3*$C$4,"",IF(AG$12=1,"N",IF(AG$12>$C$4," ",HLOOKUP(AG13,$B$13:AF14,2,FALSE)))) ->  | AH14: =IF(CELL("col",AH13)-1>$C$3*$C$4,"",IF(AH$12=1,"N",IF(AH$12>$C$4," ",HLOOKUP(AH13,$B$13:AG14,2,FALSE)))) ->  | AI14: =IF(CELL("col",AI13)-1>$C$3*$C$4,"",IF(AI$12=1,"N",IF(AI$12>$C$4," ",HLOOKUP(AI13,$B$13:AH14,2,FALSE)))) ->  | AJ14: =IF(CELL("col",AJ13)-1>$C$3*$C$4,"",IF(AJ$12=1,"N",IF(AJ$12>$C$4," ",HLOOKUP(AJ13,$B$13:AI14,2,FALSE)))) ->  | AK14: =IF(CELL("col",AK13)-1>$C$3*$C$4,"",IF(AK$12=1,"N",IF(AK$12>$C$4," ",HLOOKUP(AK13,$B$13:AJ14,2,FALSE)))) ->  | AL14: =IF(CELL("col",AL13)-1>$C$3*$C$4,"",IF(AL$12=1,"N",IF(AL$12>$C$4," ",HLOOKUP(AL13,$B$13:AK14,2,FALSE)))) ->  | AM14: =IF(CELL("col",AM13)-1>$C$3*$C$4,"",IF(AM$12=1,"N",IF(AM$12>$C$4," ",HLOOKUP(AM13,$B$13:AL14,2,FALSE)))) ->  | AN14: =IF(CELL("col",AN13)-1>$C$3*$C$4,"",IF(AN$12=1,"N",IF(AN$12>$C$4," ",HLOOKUP(AN13,$B$13:AM14,2,FALSE)))) ->  | AO14: =IF(CELL("col",AO13)-1>$C$3*$C$4,"",IF(AO$12=1,"N",IF(AO$12>$C$4," ",HLOOKUP(AO13,$B$13:AN14,2,FALSE)))) -> 
A15: Inactive Rater | B15: N | C15: =IF(COLUMN()-1>$C$4*$C$3,"",IF(OR(ISERROR(FIND("inactive",C6))=FALSE,SUM(RawScores!P6:P1000)=0),"Y","N")) -> N | D15: =IF(COLUMN()-1>$C$4*$C$3,"",IF(OR(ISERROR(FIND("inactive",D6))=FALSE,SUM(RawScores!Q6:Q1000)=0),"Y","N")) -> N | E15: =IF(COLUMN()-1>$C$4*$C$3,"",IF(OR(ISERROR(FIND("inactive",E6))=FALSE,SUM(RawScores!R6:R1000)=0),"Y","N")) -> N | F15: =IF(COLUMN()-1>$C$4*$C$3,"",IF(OR(ISERROR(FIND("inactive",F6))=FALSE,SUM(RawScores!S6:S1000)=0),"Y","N")) -> N | G15: =IF(COLUMN()-1>$C$4*$C$3,"",IF(OR(ISERROR(FIND("inactive",G6))=FALSE,SUM(RawScores!T6:T1000)=0),"Y","N")) -> N | H15: =IF(COLUMN()-1>$C$4*$C$3,"",IF(OR(ISERROR(FIND("inactive",H6))=FALSE,SUM(RawScores!U6:U1000)=0),"Y","N")) -> N | I15: =IF(COLUMN()-1>$C$4*$C$3,"",IF(OR(ISERROR(FIND("inactive",I6))=FALSE,SUM(RawScores!V6:V1000)=0),"Y","N")) -> N | J15: =IF(COLUMN()-1>$C$4*$C$3,"",IF(OR(ISERROR(FIND("inactive",J6))=FALSE,SUM(RawScores!W6:W1000)=0),"Y","N")) -> N | K15: =IF(COLUMN()-1>$C$4*$C$3,"",IF(OR(ISERROR(FIND("inactive",K6))=FALSE,SUM(RawScores!X6:X1000)=0),"Y","N")) -> N | L15: =IF(COLUMN()-1>$C$4*$C$3,"",IF(OR(ISERROR(FIND("inactive",L6))=FALSE,SUM(RawScores!Y6:Y1000)=0),"Y","N")) -> N | M15: =IF(COLUMN()-1>$C$4*$C$3,"",IF(OR(ISERROR(FIND("inactive",M6))=FALSE,SUM(RawScores!Z6:Z1000)=0),"Y","N")) -> N | N15: =IF(COLUMN()-1>$C$4*$C$3,"",IF(OR(ISERROR(FIND("inactive",N6))=FALSE,SUM(RawScores!AA6:AA1000)=0),"Y","N")) ->  | O15: =IF(COLUMN()-1>$C$4*$C$3,"",IF(OR(ISERROR(FIND("inactive",O6))=FALSE,SUM(RawScores!AB6:AB1000)=0),"Y","N")) ->  | P15: =IF(COLUMN()-1>$C$4*$C$3,"",IF(OR(ISERROR(FIND("inactive",P6))=FALSE,SUM(RawScores!AC6:AC1000)=0),"Y","N")) ->  | Q15: =IF(COLUMN()-1>$C$4*$C$3,"",IF(OR(ISERROR(FIND("inactive",Q6))=FALSE,SUM(RawScores!AD6:AD1000)=0),"Y","N")) ->  | R15: =IF(COLUMN()-1>$C$4*$C$3,"",IF(OR(ISERROR(FIND("inactive",R6))=FALSE,SUM(RawScores!AE6:AE1000)=0),"Y","N")) ->  | S15: =IF(COLUMN()-1>$C$4*$C$3,"",IF(OR(ISERROR(FIND("inactive",S6))=FALSE,SUM(RawScores!AF6:AF1000)=0),"Y","N")) ->  | T15: =IF(COLUMN()-1>$C$4*$C$3,"",IF(OR(ISERROR(FIND("inactive",T6))=FALSE,SUM(RawScores!AG6:AG1000)=0),"Y","N")) ->  | U15: =IF(COLUMN()-1>$C$4*$C$3,"",IF(OR(ISERROR(FIND("inactive",U6))=FALSE,SUM(RawScores!AH6:AH1000)=0),"Y","N")) ->  | V15: =IF(COLUMN()-1>$C$4*$C$3,"",IF(OR(ISERROR(FIND("inactive",V6))=FALSE,SUM(RawScores!AI6:AI1000)=0),"Y","N")) ->  | W15: =IF(COLUMN()-1>$C$4*$C$3,"",IF(OR(ISERROR(FIND("inactive",W6))=FALSE,SUM(RawScores!AJ6:AJ1000)=0),"Y","N")) ->  | X15: =IF(COLUMN()-1>$C$4*$C$3,"",IF(OR(ISERROR(FIND("inactive",X6))=FALSE,SUM(RawScores!AK6:AK1000)=0),"Y","N")) ->  | Y15: =IF(COLUMN()-1>$C$4*$C$3,"",IF(OR(ISERROR(FIND("inactive",Y6))=FALSE,SUM(RawScores!AL6:AL1000)=0),"Y","N")) ->  | Z15: =IF(COLUMN()-1>$C$4*$C$3,"",IF(OR(ISERROR(FIND("inactive",Z6))=FALSE,SUM(RawScores!AM6:AM1000)=0),"Y","N")) ->  | AA15: =IF(COLUMN()-1>$C$4*$C$3,"",IF(OR(ISERROR(FIND("inactive",AA6))=FALSE,SUM(RawScores!AN6:AN1000)=0),"Y","N")) ->  | AB15: =IF(COLUMN()-1>$C$4*$C$3,"",IF(OR(ISERROR(FIND("inactive",AB6))=FALSE,SUM(RawScores!AO6:AO1000)=0),"Y","N")) ->  | AC15: =IF(COLUMN()-1>$C$4*$C$3,"",IF(OR(ISERROR(FIND("inactive",AC6))=FALSE,SUM(RawScores!AP6:AP1000)=0),"Y","N")) ->  | AD15: =IF(COLUMN()-1>$C$4*$C$3,"",IF(OR(ISERROR(FIND("inactive",AD6))=FALSE,SUM(RawScores!AQ6:AQ1000)=0),"Y","N")) ->  | AE15: =IF(COLUMN()-1>$C$4*$C$3,"",IF(OR(ISERROR(FIND("inactive",AE6))=FALSE,SUM(RawScores!AR6:AR1000)=0),"Y","N")) ->  | AF15: =IF(COLUMN()-1>$C$4*$C$3,"",IF(OR(ISERROR(FIND("inactive",AF6))=FALSE,SUM(RawScores!AS6:AS1000)=0),"Y","N")) ->  | AG15: =IF(COLUMN()-1>$C$4*$C$3,"",IF(OR(ISERROR(FIND("inactive",AG6))=FALSE,SUM(RawScores!AT6:AT1000)=0),"Y","N")) ->  | AH15: =IF(COLUMN()-1>$C$4*$C$3,"",IF(OR(ISERROR(FIND("inactive",AH6))=FALSE,SUM(RawScores!AU6:AU1000)=0),"Y","N")) ->  | AI15: =IF(COLUMN()-1>$C$4*$C$3,"",IF(OR(ISERROR(FIND("inactive",AI6))=FALSE,SUM(RawScores!AV6:AV1000)=0),"Y","N")) ->  | AJ15: =IF(COLUMN()-1>$C$4*$C$3,"",IF(OR(ISERROR(FIND("inactive",AJ6))=FALSE,SUM(RawScores!AW6:AW1000)=0),"Y","N")) ->  | AK15: =IF(COLUMN()-1>$C$4*$C$3,"",IF(OR(ISERROR(FIND("inactive",AK6))=FALSE,SUM(RawScores!AX6:AX1000)=0),"Y","N")) ->  | AL15: =IF(COLUMN()-1>$C$4*$C$3,"",IF(OR(ISERROR(FIND("inactive",AL6))=FALSE,SUM(RawScores!AY6:AY1000)=0),"Y","N")) ->  | AM15: =IF(COLUMN()-1>$C$4*$C$3,"",IF(OR(ISERROR(FIND("inactive",AM6))=FALSE,SUM(RawScores!AZ6:AZ1000)=0),"Y","N")) ->  | AN15: =IF(COLUMN()-1>$C$4*$C$3,"",IF(OR(ISERROR(FIND("inactive",AN6))=FALSE,SUM(RawScores!BA6:BA1000)=0),"Y","N")) ->  | AO15: =IF(COLUMN()-1>$C$4*$C$3,"",IF(OR(ISERROR(FIND("inactive",AO6))=FALSE,SUM(RawScores!BB6:BB1000)=0),"Y","N")) -> 
A17: Hit F12 to save this spreadsheet on your system.
A18: ="This spreadsheet currently handles up to "&COUNTA(ConvScores!A1:A1000)-5&" applicants, but can be adjusted for up to 2000. After you're sure that the numbers of questions and raters are correct, click on the ""Expand"" button to adjust the spreadsheet for the number of applicants." -> This spreadsheet currently handles up to 32 applicants, but can be adjusted for up to 2000. After you're sure that the numbers of questions and raters are correct, click on the "Expand" button to adjust the spreadsheet for the number of applicants.
A20: If you need to send this file via e-mail, click on the "Compress" button before sending.
A21: If you want to skip one or more initial questions, enter the number of columns to skip here: | J21: 0
B23: Cells that have a red triangle in the upper right corner have a pop-up comment attached.

Sheet RawScores
A1: Job Announcement | B1: Title
A2: Job Announcement Date | B2: 2009-12-14
A3: Exam | B3: Exam Total
A4: Current Date | B4: 2009-12-14T12:13:00.192
A5: Applicant ID | B5: Applicant Name | C5: E-mail | D5: Address1 | E5: Address2 | F5: City | G5: State | H5: Zip | I5: Gender | J5: Race | K5: Vet Points | L5: SSN | M5: App Exam Created | N5: App Exam Last Taken Date | O5: Item # 1 Question Summary -(1) | P5: Item # 1 Question Summary -(2) | Q5: Item # 1 Question Summary - (3) | R5: Item # 2 Item Summary - (1) | S5: Item # 2 Item Summary - (2) | T5: Item # 2 Item Summary - (3) | U5: Item # 3 Question Summary - (1) | V5: Item # 3 Question Summary - (2) | W5: Item # 3 Question Summary - (3) | X5: Item # 4 Item Summary - (1) | Y5: Item # 4 Item Summary - (2) | Z5: Item # 4 Item Summary - (3) | AA5: Total | AB5: Total | AC5: Total | AD5: Overall Total | AE5: Item Average Question Summary | AF5: Item Average Item Summary | AG5: Item Average Question Summary | AH5: Item Average Item Summary | AI5: Overall Average | AJ5: CSS | AK5: Rank | AL5: MDF
A6: 9999 | B6: xxxxxxxx | I6: M | J6: 5 | K6: 0 | O6: 2 | P6: 2 | Q6: 9 | R6: 2 | S6: 7 | T6: 8 | U6: 2 | V6: 9 | W6: 7 | X6: 8 | Y6: 6 | Z6: 5 | AA6: 24 | AB6: 22 | AC6: 22 | AD6: 68 | AE6: 6 | AF6: 6 | AG6: 5.666666667 | AH6: 5 | AI6: 22.66666667 | AJ6: 80.0005 | AK6: 5 | AL6: 0
A7: 9999 | B7: xxxxxxxx | I7: F | J7: 5 | K7: 10 | O7: 4 | P7: 4 | Q7: 4 | R7: 3 | S7: 4 | T7: 4 | U7: 1 | V7: 3 | W7: 3 | X7: 1 | Y7: 2 | Z7: 2 | AA7: 9 | AB7: 13 | AC7: 13 | AD7: 35 | AE7: 4 | AF7: 3.666666667 | AG7: 2.333333333 | AH7: 1.666666667 | AI7: 11.66666667 | AJ7: 63.5005 | AK7: 20 | AL7: 0
A8: 9999 | B8: xxxxxxxx | I8: M | J8: 5 | K8: 0 | O8: 2 | P8: 3 | Q8: 3 | R8: 1 | S8: 2 | T8: 3 | U8: 1 | V8: 3 | W8: 2 | X8: 2 | Y8: 3 | Z8: 3 | AA8: 6 | AB8: 11 | AC8: 11 | AD8: 28 | AE8: 2.666666667 | AF8: 2 | AG8: 2 | AH8: 2.666666667 | AI8: 9.333333333 | AJ8: 59.9995 | AK8: 21 | AL8: 0
A9: 9999 | B9: xxxxxxxx | I9: F | J9: 1 | K9: 0 | O9: 1 | P9: 2 | Q9: 3 | R9: 1 | S9: 2 | T9: 3 | U9: 1 | V9: 2 | W9: 3 | X9: 1 | Y9: 2 | Z9: 3 | AA9: 0 | AB9: 0 | AC9: 0 | AD9: 0 | AE9: 2 | AF9: 2 | AG9: 2 | AH9: 2 | AI9: 10 | AJ9: 46 | AK9: 32 | AL9: 0
A10: 9999 | B10: xxxxxxxx | I10: F | J10: 2 | K10: 0 | O10: 5 | P10: 2 | Q10: 3 | R10: 3 | S10: 4 | T10: 4 | U10: 3 | V10: 2 | W10: 4 | X10: 3 | Y10: 3 | Z10: 4 | AA10: 14 | AB10: 11 | AC10: 15 | AD10: 40 | AE10: 3.333333333 | AF10: 3.666666667 | AG10: 3 | AH10: 3.333333333 | AI10: 13.33333333 | AJ10: 65.9995 | AK10: 18 | AL10: 0
A11: 9999 | B11: xxxxxxxx | I11: M | J11: 3 | K11: 0 | O11: 1 | P11: 2 | Q11: 3 | R11: 1 | S11: 2 | T11: 3 | U11: 1 | V11: 2 | W11: 3 | X11: 1 | Y11: 2 | Z11: 3 | AA11: 0 | AB11: 0 | AC11: 0 | AD11: 0 | AE11: 2 | AF11: 2 | AG11: 2 | AH11: 2 | AI11: 10 | AJ11: 46 | AK11: 26 | AL11: 0
A12: 9999 | B12: xxxxxxxx | I12: F | J12: 4 | K12: 0 | O12: 1 | P12: 4 | Q12: 5 | R12: 1 | S12: 5 | T12: 5 | U12: 1 | V12: 6 | W12: 5 | X12: 1 | Y12: 6 | Z12: 6 | AA12: 20 | AB12: 21 | AC12: 21 | AD12: 62 | AE12: 4.666666667 | AF12: 4.666666667 | AG12: 5.333333333 | AH12: 6 | AI12: 20.66666667 | AJ12: 77.0005 | AK12: 8 | AL12: 0

Sheet Approval
A1: TEST SCORING AND PASSING POINT APPROVAL
A2: =RawScores!B1 -> Title
A3: =RawScores!B3 -> Exam Total
A4: ="Announced on "&MONTH(RawScores!B2)&"/"&DAY(RawScores!B2)&"/"&YEAR(RawScores!B2) -> Announced on 12/14/2009
A5: Exam Type: | C5: ________________________ | G5: Recruitment Type: | I5: Open
A6: Analyst's Name: | C6: _________________________
B7: ="Overall Reliability = "&LEFT(Correlations!E5,5)&" using "&Correlations!N5&" raters and "&SetUp!C3&" question"&IF(SetUp!C3=1,".","s.") -> Overall Reliability = 0.881 using 3 raters and 4 questions.
B8: Total Candidates | E8: =COUNTA(RawScores!B6:B3000) -> 7
B9: Scored Candidates: | E9: =AppCount -> 7
B10: Passing Candidates: | E10: =PPAdvImt!B13 -> 1 | F10: Majority Passing Rate: | I10: =PPAdvImt!C9 -> 0.3333333333
B11: Mean: | E11: =AVERAGE(Rollups!N6:N2005) -> 12.57142857 | F11: Minority Passing Rate: | I11: =PPAdvImt!C14 -> 0
B12: Standard Deviation: | E12: =LEFT(STDEV(Rollups!N6:N2005),6) -> 5.1088 | F12: =IF(ISNUMBER(I11),IF(I11<I10*0.8,"Adverse impact for Minorities"," ")," ") -> Adverse impact for Minorities
B13: Standard Error of Measurement: | E13: =LEFT(STDEV(Rollups!N6:N2005)*SQRT(1-Correlations!E5),6) -> 1.7572 | F13: Male Passing Rate: | I13: =PPAdvImt!C21 -> 0.3333333333
B14: Passing point consensus: | E14: =PassingPointRel!C2 -> 0.7142857143 | F14: Female Passing Rate: | I14: =PPAdvImt!C22 -> 0
B15: Maximum Points Possible: | E15: =Rollups!N4 -> 36 | F15: =IF(ISNUMBER(I14)=TRUE,IF(I14<I13*0.8,"Adverse impact for Females"," ")," ") -> Adverse impact for Females
B16: ="Unadjusted Passing Point: " -> Unadjusted Passing Point: | E16: =SUM(SetUp!B11:AO11)/SetUp!C4 -> 16
B17: ="Adjusted Passing Point: " -> Adjusted Passing Point: | E17: =PassingPointRel!C3 -> 16 | F17: =" ("&LEFT((E16-E17)/E13,5)&" SEMs)" -> (0 SEMs)
B18: Cert Rule: ___________________________
A19: Basis for Setting and Adjusting the Passing Point:
B20: Previous administration: ____________________________________________________
B21: Planned administrations: ____________________________________________________
B22: Labor Market/Need for candidates: _______________________________________________________
B23: AA Considerations: ________________________________________________________
B24: Passing point consensus: ___________________________________________________
B25: SME judgements: ____________________________________________________________
B26: Other: ___________________________________________________________________
B27: Comments: _______________________________________________________________
B28: _________________________________________________________________________
B29: _________________________________________________________________________
B30: _________________________________________________________________________
B31: _________________________________________________________________________
B32: _________________________________________________________________________
B33: ____________________________ | G33: ___________________________
B34: Analyst's Signature and Date | E34: ="Version "&MID(SetUp!C1,42,8) -> Version 04/29/21 | G34: Approval Signature and Date

Sheet DescStats
B2: =RawScores!B1 -> Title
B3: ="Test Title: "&RawScores!B3 -> Test Title: Exam Total
B4: ="Announced on "&MONTH(RawScores!B2)&"/"&DAY(RawScores!B2)&"/"&YEAR(RawScores!B2) -> Announced on 12/14/2009
B5: Weighted Rater-Question Statistics | H5: Weighted Rater Statistics | N5: Weighted Question Statistics
B6: Item | C6: N | D6: Mean | E6: SD | F6: Min | G6: Max | H6: Rater | I6: N | J6: Mean | K6: SD | L6: Min | M6: Max | N6: Ques | O6: N | P6: Mean | Q6: SD | R6: Min | S6: Max | T6: r | U6: p
A7: F | B7: =IF(ROW()-6<(SetUp!C$3*SetUp!C$4+1),INDEX(SetUp!$B$6:$AO$6,ROW()-6),"") -> Item # 1 Question Summary -(1) | C7: =IF(B7="","",COUNT(colF)) -> 7 | D7: =IF($B7="","",AVERAGE(colF)) -> 2.285714286 | E7: =IF(B7="","",STDEV(colF)) -> 1.603567451 | F7: =IF($B7="","",MIN(colF)) -> 1 | G7: =IF($B7="","",MAX(colF)) -> 5 | H7: 1 | I7: =COUNT(Rollups!$R$6:$R$2005) -> 7 | J7: =IF($I7>0,AVERAGE(Rollups!$R$6:$R$2005),"") -> 7.857142857 | K7: =IF($I7>0,STDEV(Rollups!$R$6:$R$2005),"") -> 4.561745698 | L7: =IF($I7>0,MIN(Rollups!$R$6:$R$2005),"") -> 4 | M7: =IF($I7>0,MAX(Rollups!$R$6:$R$2005),"") -> 14 | N7: 1 | O7: =COUNT(Rollups!$Z$6:$Z$2005) -> 7 | P7: =IF($O7>0,AVERAGE(Rollups!$Z$6:$Z$2005),"") -> 9.285714286 | Q7: =IF(O7>0,STDEV(Rollups!$Z$6:$Z$2005),"") -> 2.751622898 | R7: =IF($O7>0,MIN(Rollups!$Z$6:$Z$2005),"") -> 6 | S7: =IF($O7>0,MAX(Rollups!$Z$6:$Z$2005),"") -> 13 | T7: =IF(N7>SetUp!$C$3,"",FISHERINV(SUMIF(Correlations!$D$140:$D$916,N7,Correlations!$E$140:$E$916)/Correlations!$N$5)*Correlations!$N$5/(FISHERINV(SUMIF(Correlations!$D$140:$D$916,N7,Correlations!$E$140:$E$916)/Correlations!$N$5)*(Correlations!$N$5-1)+1)) -> -0.09873731853 | U7: =IF(AND(ISNUMBER(T7),T7<1,O7>2),TDIST((ABS(T7)/SQRT(1-T7*T7))*SQRT(AppCount-2),AppCount-2,1),"") -> 0.4165971012
A8: G | B8: =IF(ROW()-6<(SetUp!C$3*SetUp!C$4+1),INDEX(SetUp!$B$6:$AO$6,ROW()-6),"") -> Item # 1 Question Summary -(2) | C8: =IF(B8="","",COUNT(colG)) -> 7 | D8: =IF($B8="","",AVERAGE(colG)) -> 2.714285714 | E8: =IF(B8="","",STDEV(colG)) -> 0.9511897312 | F8: =IF($B8="","",MIN(colG)) -> 2 | G8: =IF($B8="","",MAX(colG)) -> 4 | H8: 2 | I8: =COUNT(Rollups!$S$6:$S$2005) -> 7 | J8: =IF($I8>0,AVERAGE(Rollups!$S$6:$S$2005),"") -> 13.71428571 | K8: =IF($I8>0,STDEV(Rollups!$S$6:$S$2005),"") -> 6.317021601 | L8: =IF($I8>0,MIN(Rollups!$S$6:$S$2005),"") -> 8 | M8: =IF($I8>0,MAX(Rollups!$S$6:$S$2005),"") -> 24 | N8: 2 | O8: =COUNT(Rollups!$AA$6:$AA$2005) -> 7 | P8: =IF($O8>0,AVERAGE(Rollups!$AA$6:$AA$2005),"") -> 9.714285714 | Q8: =IF(O8>0,STDEV(Rollups!$AA$6:$AA$2005),"") -> 4.070801957 | R8: =IF($O8>0,MIN(Rollups!$AA$6:$AA$2005),"") -> 6 | S8: =IF($O8>0,MAX(Rollups!$AA$6:$AA$2005),"") -> 17 | T8: =IF(N8>SetUp!$C$3,"",FISHERINV(SUMIF(Correlations!$D$140:$D$916,N8,Correlations!$E$140:$E$916)/Correlations!$N$5)*Correlations!$N$5/(FISHERINV(SUMIF(Correlations!$D$140:$D$916,N8,Correlations!$E$140:$E$916)/Correlations!$N$5)*(Correlations!$N$5-1)+1)) -> 0.8772767882 | U8: 0.004737768709
A9: H | B9: =IF(ROW()-6<(SetUp!C$3*SetUp!C$4+1),INDEX(SetUp!$B$6:$AO$6,ROW()-6),"") -> Item # 1 Question Summary - (3) | C9: =IF(B9="","",COUNT(colH)) -> 7 | D9: =IF($B9="","",AVERAGE(colH)) -> 4.285714286 | E9: =IF(B9="","",STDEV(colH)) -> 2.214669706 | F9: =IF($B9="","",MIN(colH)) -> 3 | G9: =IF($B9="","",MAX(colH)) -> 9 | H9: 3 | I9: =COUNT(Rollups!$T$6:$T$2005) -> 7 | J9: =IF($I9>0,AVERAGE(Rollups!$T$6:$T$2005),"") -> 16.14285714 | K9: =IF($I9>0,STDEV(Rollups!$T$6:$T$2005),"") -> 6.593647737 | L9: =IF($I9>0,MIN(Rollups!$T$6:$T$2005),"") -> 11 | M9: =IF($I9>0,MAX(Rollups!$T$6:$T$2005),"") -> 29 | N9: 3 | O9: =COUNT(Rollups!$AB$6:$AB$2005) -> 7 | P9: =IF($O9>0,AVERAGE(Rollups!$AB$6:$AB$2005),"") -> 9.142857143 | Q9: =IF(O9>0,STDEV(Rollups!$AB$6:$AB$2005),"") -> 4.488079449 | R9: =IF($O9>0,MIN(Rollups!$AB$6:$AB$2005),"") -> 6 | S9: =IF($O9>0,MAX(Rollups!$AB$6:$AB$2005),"") -> 18 | T9: =IF(N9>SetUp!$C$3,"",FISHERINV(SUMIF(Correlations!$D$140:$D$916,N9,Correlations!$E$140:$E$916)/Correlations!$N$5)*Correlations!$N$5/(FISHERINV(SUMIF(Correlations!$D$140:$D$916,N9,Correlations!$E$140:$E$916)/Correlations!$N$5)*(Correlations!$N$5-1)+1)) -> 0.8056619702 | U9: 0.01435617375
A10: I | B10: =IF(ROW()-6<(SetUp!C$3*SetUp!C$4+1),INDEX(SetUp!$B$6:$AO$6,ROW()-6),"") -> Item # 2 Item Summary - (1) | C10: =IF(B10="","",COUNT(colI)) -> 7 | D10: =IF($B10="","",AVERAGE(colI)) -> 1.714285714 | E10: =IF(B10="","",STDEV(colI)) -> 0.9511897312 | F10: =IF($B10="","",MIN(colI)) -> 1 | G10: =IF($B10="","",MAX(colI)) -> 3 | H10: 4 | I10: =COUNT(Rollups!$U$6:$U$2005) -> 0 | J10: =IF($I10>0,AVERAGE(Rollups!$U$6:$U$2005),"") ->  | K10: =IF($I10>0,STDEV(Rollups!$U$6:$U$2005),"") ->  | L10: =IF($I10>0,MIN(Rollups!$U$6:$U$2005),"") ->  | M10: =IF($I10>0,MAX(Rollups!$U$6:$U$2005),"") ->  | N10: 4 | O10: =COUNT(Rollups!$AC$6:$AC$2005) -> 7 | P10: =IF($O10>0,AVERAGE(Rollups!$AC$6:$AC$2005),"") -> 9.571428571 | Q10: =IF(O10>0,STDEV(Rollups!$AC$6:$AC$2005),"") -> 4.995235826 | R10: =IF($O10>0,MIN(Rollups!$AC$6:$AC$2005),"") -> 5 | S10: =IF($O10>0,MAX(Rollups!$AC$6:$AC$2005),"") -> 19 | T10: =IF(N10>SetUp!$C$3,"",FISHERINV(SUMIF(Correlations!$D$140:$D$916,N10,Correlations!$E$140:$E$916)/Correlations!$N$5)*Correlations!$N$5/(FISHERINV(SUMIF(Correlations!$D$140:$D$916,N10,Correlations!$E$140:$E$916)/Correlations!$N$5)*(Correlations!$N$5-1)+1)) -> 0.8867522559 | U10: 0.003896079502
A11: J | B11: =IF(ROW()-6<(SetUp!C$3*SetUp!C$4+1),INDEX(SetUp!$B$6:$AO$6,ROW()-6),"") -> Item # 2 Item Summary - (2) | C11: =IF(B11="","",COUNT(colJ)) -> 7 | D11: =IF($B11="","",AVERAGE(colJ)) -> 3.714285714 | E11: =IF(B11="","",STDEV(colJ)) -> 1.889822365 | F11: =IF($B11="","",MIN(colJ)) -> 2 | G11: =IF($B11="","",MAX(colJ)) -> 7 | H11: 5 | I11: =COUNT(Rollups!$V$6:$V$2005) -> 0 | J11: =IF($I11>0,AVERAGE(Rollups!$V$6:$V$2005),"") ->  | K11: =IF($I11>0,STDEV(Rollups!$V$6:$V$2005),"") ->  | L11: =IF($I11>0,MIN(Rollups!$V$6:$V$2005),"") ->  | M11: =IF($I11>0,MAX(Rollups!$V$6:$V$2005),"") ->  | N11: 5 | O11: =COUNT(Rollups!$AD$6:$AD$2005) -> 0 | P11: =IF($O11>0,AVERAGE(Rollups!$AD$6:$AD$2005),"") ->  | Q11: =IF(O11>0,STDEV(Rollups!$AD$6:$AD$2005),"") ->  | R11: =IF($O11>0,MIN(Rollups!$AD$6:$AD$2005),"") ->  | S11: =IF($O11>0,MAX(Rollups!$AD$6:$AD$2005),"") ->  | T11: =IF(N11>SetUp!$C$3,"",FISHERINV(SUMIF(Correlations!$D$140:$D$916,N11,Correlations!$E$140:$E$916)/Correlations!$N$5)*Correlations!$N$5/(FISHERINV(SUMIF(Correlations!$D$140:$D$916,N11,Correlations!$E$140:$E$916)/Correlations!$N$5)*(Correlations!$N$5-1)+1)) -> 
A12: K | B12: =IF(ROW()-6<(SetUp!C$3*SetUp!C$4+1),INDEX(SetUp!$B$6:$AO$6,ROW()-6),"") -> Item # 2 Item Summary - (3) | C12: =IF(B12="","",COUNT(colK)) -> 7 | D12: =IF($B12="","",AVERAGE(colK)) -> 4.285714286 | E12: =IF(B12="","",STDEV(colK)) -> 1.799470822 | F12: =IF($B12="","",MIN(colK)) -> 3 | G12: =IF($B12="","",MAX(colK)) -> 8 | H12: 6 | I12: =COUNT(Rollups!$W$6:$W$2005) -> 0 | J12: =IF($I12>0,AVERAGE(Rollups!$W$6:$W$2005),"") ->  | K12: =IF($I12>0,STDEV(Rollups!$W$6:$W$2005),"") ->  | L12: =IF($I12>0,MIN(Rollups!$W$6:$W$2005),"") ->  | M12: =IF($I12>0,MAX(Rollups!$W$6:$W$2005),"") ->  | N12: 6 | O12: =COUNT(Rollups!$AE$6:$AE$2005) -> 0 | P12: =IF($O12>0,AVERAGE(Rollups!$AE$6:$AE$2005),"") ->  | Q12: =IF(O12>0,STDEV(Rollups!$AE$6:$AE$2005),"") ->  | R12: =IF($O12>0,MIN(Rollups!$AE$6:$AE$2005),"") ->  | S12: =IF($O12>0,MAX(Rollups!$AE$6:$AE$2005),"") ->  | T12: =IF(N12>SetUp!$C$3,"",FISHERINV(SUMIF(Correlations!$D$140:$D$916,N12,Correlations!$E$140:$E$916)/Correlations!$N$5)*Correlations!$N$5/(FISHERINV(SUMIF(Correlations!$D$140:$D$916,N12,Correlations!$E$140:$E$916)/Correlations!$N$5)*(Correlations!$N$5-1)+1)) -> 
A13: L | B13: =IF(ROW()-6<(SetUp!C$3*SetUp!C$4+1),INDEX(SetUp!$B$6:$AO$6,ROW()-6),"") -> Item # 3 Question Summary - (1) | C13: =IF(B13="","",COUNT(colL)) -> 7 | D13: =IF($B13="","",AVERAGE(colL)) -> 1.428571429 | E13: =IF(B13="","",STDEV(colL)) -> 0.7867957925 | F13: =IF($B13="","",MIN(colL)) -> 1 | G13: =IF($B13="","",MAX(colL)) -> 3 | H13: 7 | I13: =COUNT(Rollups!$X$6:$X$2005) -> 0 | J13: =IF($I13>0,AVERAGE(Rollups!$X$6:$X$2005),"") ->  | K13: =IF($I13>0,STDEV(Rollups!$X$6:$X$2005),"") ->  | L13: =IF($I13>0,MIN(Rollups!$X$6:$X$2005),"") ->  | M13: =IF($I13>0,MAX(Rollups!$X$6:$X$2005),"") ->  | N13: 7 | O13: =COUNT(Rollups!$AF$6:$AF$2005) -> 0 | P13: =IF($O13>0,AVERAGE(Rollups!$AF$6:$AF$2005),"") ->  | Q13: =IF(O13>0,STDEV(Rollups!$AF$6:$AF$2005),"") ->  | R13: =IF($O13>0,MIN(Rollups!$AF$6:$AF$2005),"") ->  | S13: =IF($O13>0,MAX(Rollups!$AF$6:$AF$2005),"") ->  | T13: =IF(N13>SetUp!$C$3,"",FISHERINV(SUMIF(Correlations!$D$140:$D$916,N13,Correlations!$E$140:$E$916)/Correlations!$N$5)*Correlations!$N$5/(FISHERINV(SUMIF(Correlations!$D$140:$D$916,N13,Correlations!$E$140:$E$916)/Correlations!$N$5)*(Correlations!$N$5-1)+1)) -> 
A14: M | B14: =IF(ROW()-6<(SetUp!C$3*SetUp!C$4+1),INDEX(SetUp!$B$6:$AO$6,ROW()-6),"") -> Item # 3 Question Summary - (2) | C14: =IF(B14="","",COUNT(colM)) -> 7 | D14: =IF($B14="","",AVERAGE(colM)) -> 3.857142857 | E14: =IF(B14="","",STDEV(colM)) -> 2.672612419 | F14: =IF($B14="","",MIN(colM)) -> 2 | G14: =IF($B14="","",MAX(colM)) -> 9 | H14: 8 | I14: =COUNT(Rollups!$Y$6:$Y$2005) -> 0 | J14: =IF($I14>0,AVERAGE(Rollups!$Y$6:$Y$2005),"") ->  | K14: =IF($I14>0,STDEV(Rollups!$Y$6:$Y$2005),"") ->  | L14: =IF($I14>0,MIN(Rollups!$Y$6:$Y$2005),"") ->  | M14: =IF($I14>0,MAX(Rollups!$Y$6:$Y$2005),"") ->  | N14: 8 | O14: =COUNT(Rollups!$AG$6:$AG$2005) -> 0 | P14: =IF($O14>0,AVERAGE(Rollups!$AG$6:$AG$2005),"") ->  | Q14: =IF(O14>0,STDEV(Rollups!$AG$6:$AG$2005),"") ->  | R14: =IF($O14>0,MIN(Rollups!$AG$6:$AG$2005),"") ->  | S14: =IF($O14>0,MAX(Rollups!$AG$6:$AG$2005),"") ->  | T14: =IF(N14>SetUp!$C$3,"",FISHERINV(SUMIF(Correlations!$D$140:$D$916,N14,Correlations!$E$140:$E$916)/Correlations!$N$5)*Correlations!$N$5/(FISHERINV(SUMIF(Correlations!$D$140:$D$916,N14,Correlations!$E$140:$E$916)/Correlations!$N$5)*(Correlations!$N$5-1)+1)) -> 
A15: N | B15: =IF(ROW()-6<(SetUp!C$3*SetUp!C$4+1),INDEX(SetUp!$B$6:$AO$6,ROW()-6),"") -> Item # 3 Question Summary - (3) | C15: =IF(B15="","",COUNT(colN)) -> 7 | D15: =IF($B15="","",AVERAGE(colN)) -> 3.857142857 | E15: =IF(B15="","",STDEV(colN)) -> 1.67616342 | F15: =IF($B15="","",MIN(colN)) -> 2 | G15: =IF($B15="","",MAX(colN)) -> 7 | N15: 9 | O15: =COUNT(Rollups!$AH$6:$AH$2005) -> 0 | P15: =IF($O15>0,AVERAGE(Rollups!$AH$6:$AH$2005),"") ->  | Q15: =IF(O15>0,STDEV(Rollups!$AH$6:$AH$2005),"") ->  | R15: =IF($O15>0,MIN(Rollups!$AH$6:$AH$2005),"") ->  | S15: =IF($O15>0,MAX(Rollups!$AH$6:$AH$2005),"") ->  | T15: =IF(N15>SetUp!$C$3,"",FISHERINV(SUMIF(Correlations!$D$140:$D$916,N15,Correlations!$E$140:$E$916)/Correlations!$N$5)*Correlations!$N$5/(FISHERINV(SUMIF(Correlations!$D$140:$D$916,N15,Correlations!$E$140:$E$916)/Correlations!$N$5)*(Correlations!$N$5-1)+1)) -> 
A16: O | B16: =IF(ROW()-6<(SetUp!C$3*SetUp!C$4+1),INDEX(SetUp!$B$6:$AO$6,ROW()-6),"") -> Item # 4 Item Summary - (1) | C16: =IF(B16="","",COUNT(colO)) -> 7 | D16: =IF($B16="","",AVERAGE(colO)) -> 2.428571429 | E16: =IF(B16="","",STDEV(colO)) -> 2.572750983 | F16: =IF($B16="","",MIN(colO)) -> 1 | G16: =IF($B16="","",MAX(colO)) -> 8 | N16: 10 | O16: =COUNT(Rollups!$AI$6:$AI$2005) -> 0 | P16: =IF($O16>0,AVERAGE(Rollups!$AI$6:$AI$2005),"") ->  | Q16: =IF(O16>0,STDEV(Rollups!$AI$6:$AI$2005),"") ->  | R16: =IF($O16>0,MIN(Rollups!$AI$6:$AI$2005),"") ->  | S16: =IF($O16>0,MAX(Rollups!$AI$6:$AI$2005),"") ->  | T16: =IF(N16>SetUp!$C$3,"",FISHERINV(SUMIF(Correlations!$D$140:$D$916,N16,Correlations!$E$140:$E$916)/Correlations!$N$5)*Correlations!$N$5/(FISHERINV(SUMIF(Correlations!$D$140:$D$916,N16,Correlations!$E$140:$E$916)/Correlations!$N$5)*(Correlations!$N$5-1)+1)) -> 
A17: P | B17: =IF(ROW()-6<(SetUp!C$3*SetUp!C$4+1),INDEX(SetUp!$B$6:$AO$6,ROW()-6),"") -> Item # 4 Item Summary - (2) | C17: =IF(B17="","",COUNT(colP)) -> 7 | D17: =IF($B17="","",AVERAGE(colP)) -> 3.428571429 | E17: =IF(B17="","",STDEV(colP)) -> 1.812653934 | F17: =IF($B17="","",MIN(colP)) -> 2 | G17: =IF($B17="","",MAX(colP)) -> 6 | N17: 11 | O17: =COUNT(Rollups!$AJ$6:$AJ$2005) -> 0 | P17: =IF($O17>0,AVERAGE(Rollups!$AJ$6:$AJ$2005),"") ->  | Q17: =IF(O17>0,STDEV(Rollups!$AJ$6:$AJ$2005),"") ->  | R17: =IF($O17>0,MIN(Rollups!$AJ$6:$AJ$2005),"") ->  | S17: =IF($O17>0,MAX(Rollups!$AJ$6:$AJ$2005),"") ->  | T17: =IF(N17>SetUp!$C$3,"",FISHERINV(SUMIF(Correlations!$D$140:$D$916,N17,Correlations!$E$140:$E$916)/Correlations!$N$5)*Correlations!$N$5/(FISHERINV(SUMIF(Correlations!$D$140:$D$916,N17,Correlations!$E$140:$E$916)/Correlations!$N$5)*(Correlations!$N$5-1)+1)) -> 
A18: Q | B18: =IF(ROW()-6<(SetUp!C$3*SetUp!C$4+1),INDEX(SetUp!$B$6:$AO$6,ROW()-6),"") -> Item # 4 Item Summary - (3) | C18: =IF(B18="","",COUNT(colQ)) -> 7 | D18: =IF($B18="","",AVERAGE(colQ)) -> 3.714285714 | E18: =IF(B18="","",STDEV(colQ)) -> 1.380131119 | F18: =IF($B18="","",MIN(colQ)) -> 2 | G18: =IF($B18="","",MAX(colQ)) -> 6 | N18: 12 | O18: =COUNT(Rollups!$AK$6:$AK$2005) -> 0 | P18: =IF($O18>0,AVERAGE(Rollups!$AK$6:$AK$2005),"") ->  | Q18: =IF(O18>0,STDEV(Rollups!$AK$6:$AK$2005),"") ->  | R18: =IF($O18>0,MIN(Rollups!$AK$6:$AK$2005),"") ->  | S18: =IF($O18>0,MAX(Rollups!$AK$6:$AK$2005),"") ->  | T18: =IF(N18>SetUp!$C$3,"",FISHERINV(SUMIF(Correlations!$D$140:$D$916,N18,Correlations!$E$140:$E$916)/Correlations!$N$5)*Correlations!$N$5/(FISHERINV(SUMIF(Correlations!$D$140:$D$916,N18,Correlations!$E$140:$E$916)/Correlations!$N$5)*(Correlations!$N$5-1)+1)) -> 
A19: R | B19: =IF(ROW()-6<(SetUp!C$3*SetUp!C$4+1),INDEX(SetUp!$B$6:$AO$6,ROW()-6),"") ->  | C19: =IF(B19="","",COUNT(colR)) ->  | D19: =IF($B19="","",AVERAGE(colR)) ->  | E19: =IF(B19="","",STDEV(colR)) ->  | F19: =IF($B19="","",MIN(colR)) ->  | G19: =IF($B19="","",MAX(colR)) ->  | N19: 13 | O19: =COUNT(Rollups!$AL$6:$AL$2005) -> 0 | P19: =IF($O19>0,AVERAGE(Rollups!$AL$6:$AL$2005),"") ->  | Q19: =IF(O19>0,STDEV(Rollups!$AL$6:$AL$2005),"") ->  | R19: =IF($O19>0,MIN(Rollups!$AL$6:$AL$2005),"") ->  | S19: =IF($O19>0,MAX(Rollups!$AL$6:$AL$2005),"") ->  | T19: =IF(N19>SetUp!$C$3,"",FISHERINV(SUMIF(Correlations!$D$140:$D$916,N19,Correlations!$E$140:$E$916)/Correlations!$N$5)*Correlations!$N$5/(FISHERINV(SUMIF(Correlations!$D$140:$D$916,N19,Correlations!$E$140:$E$916)/Correlations!$N$5)*(Correlations!$N$5-1)+1)) -> 
A20: S | B20: =IF(ROW()-6<(SetUp!C$3*SetUp!C$4+1),INDEX(SetUp!$B$6:$AO$6,ROW()-6),"") ->  | C20: =IF(B20="","",COUNT(colS)) ->  | D20: =IF($B20="","",AVERAGE(colS)) ->  | E20: =IF(B20="","",STDEV(colS)) ->  | F20: =IF($B20="","",MIN(colS)) ->  | G20: =IF($B20="","",MAX(colS)) ->  | N20: 14 | O20: =COUNT(Rollups!$AM$6:$AM$2005) -> 0 | P20: =IF($O20>0,AVERAGE(Rollups!$AM$6:$AM$2005),"") ->  | Q20: =IF(O20>0,STDEV(Rollups!$AM$6:$AM$2005),"") ->  | R20: =IF($O20>0,MIN(Rollups!$AM$6:$AM$2005),"") ->  | S20: =IF($O20>0,MAX(Rollups!$AM$6:$AM$2005),"") ->  | T20: =IF(N20>SetUp!$C$3,"",FISHERINV(SUMIF(Correlations!$D$140:$D$916,N20,Correlations!$E$140:$E$916)/Correlations!$N$5)*Correlations!$N$5/(FISHERINV(SUMIF(Correlations!$D$140:$D$916,N20,Correlations!$E$140:$E$916)/Correlations!$N$5)*(Correlations!$N$5-1)+1)) -> 
A21: T | B21: =IF(ROW()-6<(SetUp!C$3*SetUp!C$4+1),INDEX(SetUp!$B$6:$AO$6,ROW()-6),"") ->  | C21: =IF(B21="","",COUNT(colT)) ->  | D21: =IF($B21="","",AVERAGE(colT)) ->  | E21: =IF(B21="","",STDEV(colT)) ->  | F21: =IF($B21="","",MIN(colT)) ->  | G21: =IF($B21="","",MAX(colT)) ->  | N21: 15 | O21: =COUNT(Rollups!$AN$6:$AN$2005) -> 0 | P21: =IF($O21>0,AVERAGE(Rollups!$AN$6:$AN$2005),"") ->  | Q21: =IF(O21>0,STDEV(Rollups!$AN$6:$AN$2005),"") ->  | R21: =IF($O21>0,MIN(Rollups!$AN$6:$AN$2005),"") ->  | S21: =IF($O21>0,MAX(Rollups!$AN$6:$AN$2005),"") ->  | T21: =IF(N21>SetUp!$C$3,"",FISHERINV(SUMIF(Correlations!$D$140:$D$916,N21,Correlations!$E$140:$E$916)/Correlations!$N$5)*Correlations!$N$5/(FISHERINV(SUMIF(Correlations!$D$140:$D$916,N21,Correlations!$E$140:$E$916)/Correlations!$N$5)*(Correlations!$N$5-1)+1)) -> 
A22: U | B22: =IF(ROW()-6<(SetUp!C$3*SetUp!C$4+1),INDEX(SetUp!$B$6:$AO$6,ROW()-6),"") ->  | C22: =IF(B22="","",COUNT(ColU)) ->  | D22: =IF($B22="","",AVERAGE(ColU)) ->  | E22: =IF(B22="","",STDEV(ColU)) ->  | F22: =IF($B22="","",MIN(ColU)) ->  | G22: =IF($B22="","",MAX(ColU)) ->  | N22: 16 | O22: =COUNT(Rollups!$AO$6:$AO$2005) -> 0 | P22: =IF($O22>0,AVERAGE(Rollups!$AO$6:$AO$2005),"") ->  | Q22: =IF(O22>0,STDEV(Rollups!$AO$6:$AO$2005),"") ->  | R22: =IF($O22>0,MIN(Rollups!$AO$6:$AO$2005),"") ->  | S22: =IF($O22>0,MAX(Rollups!$AO$6:$AO$2005),"") ->  | T22: =IF(N22>SetUp!$C$3,"",FISHERINV(SUMIF(Correlations!$D$140:$D$916,N22,Correlations!$E$140:$E$916)/Correlations!$N$5)*Correlations!$N$5/(FISHERINV(SUMIF(Correlations!$D$140:$D$916,N22,Correlations!$E$140:$E$916)/Correlations!$N$5)*(Correlations!$N$5-1)+1)) -> 
A23: V | B23: =IF(ROW()-6<(SetUp!C$3*SetUp!C$4+1),INDEX(SetUp!$B$6:$AO$6,ROW()-6),"") ->  | C23: =IF(B23="","",COUNT(ColV)) ->  | D23: =IF($B23="","",AVERAGE(ColV)) ->  | E23: =IF(B23="","",STDEV(ColV)) ->  | F23: =IF($B23="","",MIN(ColV)) ->  | G23: =IF($B23="","",MAX(ColV)) ->  | N23: 17 | O23: =COUNT(Rollups!$AP$6:$AP$2005) -> 0 | P23: =IF($O23>0,AVERAGE(Rollups!$AP$6:$AP$2005),"") ->  | Q23: =IF(O23>0,STDEV(Rollups!$AP$6:$AP$2005),"") ->  | R23: =IF($O23>0,MIN(Rollups!$AP$6:$AP$2005),"") ->  | S23: =IF($O23>0,MAX(Rollups!$AP$6:$AP$2005),"") ->  | T23: =IF(N23>SetUp!$C$3,"",FISHERINV(SUMIF(Correlations!$D$140:$D$916,N23,Correlations!$E$140:$E$916)/Correlations!$N$5)*Correlations!$N$5/(FISHERINV(SUMIF(Correlations!$D$140:$D$916,N23,Correlations!$E$140:$E$916)/Correlations!$N$5)*(Correlations!$N$5-1)+1)) -> 
A24: W | B24: =IF(ROW()-6<(SetUp!C$3*SetUp!C$4+1),INDEX(SetUp!$B$6:$AO$6,ROW()-6),"") ->  | C24: =IF(B24="","",COUNT(ColW)) ->  | D24: =IF($B24="","",AVERAGE(ColW)) ->  | E24: =IF(B24="","",STDEV(ColW)) ->  | F24: =IF($B24="","",MIN(ColW)) ->  | G24: =IF($B24="","",MAX(ColW)) ->  | N24: 18 | O24: =COUNT(Rollups!$AQ$6:$AQ$2005) -> 0 | P24: =IF($O24>0,AVERAGE(Rollups!$AQ$6:$AQ$2005),"") ->  | Q24: =IF(O24>0,STDEV(Rollups!$AQ$6:$AQ$2005),"") ->  | R24: =IF($O24>0,MIN(Rollups!$AQ$6:$AQ$2005),"") ->  | S24: =IF($O24>0,MAX(Rollups!$AQ$6:$AQ$2005),"") ->  | T24: =IF(N24>SetUp!$C$3,"",FISHERINV(SUMIF(Correlations!$D$140:$D$916,N24,Correlations!$E$140:$E$916)/Correlations!$N$5)*Correlations!$N$5/(FISHERINV(SUMIF(Correlations!$D$140:$D$916,N24,Correlations!$E$140:$E$916)/Correlations!$N$5)*(Correlations!$N$5-1)+1)) -> 
A25: X | B25: =IF(ROW()-6<(SetUp!C$3*SetUp!C$4+1),INDEX(SetUp!$B$6:$AO$6,ROW()-6),"") ->  | C25: =IF(B25="","",COUNT(ColX)) ->  | D25: =IF($B25="","",AVERAGE(ColX)) ->  | E25: =IF(B25="","",STDEV(ColX)) ->  | F25: =IF($B25="","",MIN(ColX)) ->  | G25: =IF($B25="","",MAX(ColX)) ->  | N25: 19 | O25: =COUNT(Rollups!$AR$6:$AR$2005) -> 0 | P25: =IF($O25>0,AVERAGE(Rollups!$AR$6:$AR$2005),"") ->  | Q25: =IF(O25>0,STDEV(Rollups!$AR$6:$AR$2005),"") ->  | R25: =IF($O25>0,MIN(Rollups!$AR$6:$AR$2005),"") ->  | S25: =IF($O25>0,MAX(Rollups!$AR$6:$AR$2005),"") ->  | T25: =IF(N25>SetUp!$C$3,"",FISHERINV(SUMIF(Correlations!$D$140:$D$916,N25,Correlations!$E$140:$E$916)/Correlations!$N$5)*Correlations!$N$5/(FISHERINV(SUMIF(Correlations!$D$140:$D$916,N25,Correlations!$E$140:$E$916)/Correlations!$N$5)*(Correlations!$N$5-1)+1)) -> 
A26: Y | B26: =IF(ROW()-6<(SetUp!C$3*SetUp!C$4+1),INDEX(SetUp!$B$6:$AO$6,ROW()-6),"") ->  | C26: =IF(B26="","",COUNT(ColY)) ->  | D26: =IF($B26="","",AVERAGE(ColY)) ->  | E26: =IF(B26="","",STDEV(ColY)) ->  | F26: =IF($B26="","",MIN(ColY)) ->  | G26: =IF($B26="","",MAX(ColY)) ->  | N26: 20 | O26: =COUNT(Rollups!$AS$6:$AS$2005) -> 0 | P26: =IF($O26>0,AVERAGE(Rollups!$AS$6:$AS$2005),"") ->  | Q26: =IF(O26>0,STDEV(Rollups!$AS$6:$AS$2005),"") ->  | R26: =IF($O26>0,MIN(Rollups!$AS$6:$AS$2005),"") ->  | S26: =IF($O26>0,MAX(Rollups!$AS$6:$AS$2005),"") ->  | T26: =IF(N26>SetUp!$C$3,"",FISHERINV(SUMIF(Correlations!$D$140:$D$916,N26,Correlations!$E$140:$E$916)/Correlations!$N$5)*Correlations!$N$5/(FISHERINV(SUMIF(Correlations!$D$140:$D$916,N26,Correlations!$E$140:$E$916)/Correlations!$N$5)*(Correlations!$N$5-1)+1)) -> 
A27: Z | B27: =IF(ROW()-6<(SetUp!C$3*SetUp!C$4+1),INDEX(SetUp!$B$6:$AO$6,ROW()-6),"") ->  | C27: =IF(B27="","",COUNT(ColZ)) ->  | D27: =IF($B27="","",AVERAGE(ColZ)) ->  | E27: =IF(B27="","",STDEV(ColZ)) ->  | F27: =IF($B27="","",MIN(ColZ)) ->  | G27: =IF($B27="","",MAX(ColZ)) ->  | N27: 21 | O27: =COUNT(Rollups!$AT$6:$AT$2005) -> 0 | P27: =IF($O27>0,AVERAGE(Rollups!$AT$6:$AT$2005),"") ->  | Q27: =IF(O27>0,STDEV(Rollups!$AT$6:$AT$2005),"") ->  | R27: =IF($O27>0,MIN(Rollups!$AT$6:$AT$2005),"") ->  | S27: =IF($O27>0,MAX(Rollups!$AT$6:$AT$2005),"") ->  | T27: =IF(N27>SetUp!$C$3,"",FISHERINV(SUMIF(Correlations!$D$140:$D$916,N27,Correlations!$E$140:$E$916)/Correlations!$N$5)*Correlations!$N$5/(FISHERINV(SUMIF(Correlations!$D$140:$D$916,N27,Correlations!$E$140:$E$916)/Correlations!$N$5)*(Correlations!$N$5-1)+1)) -> 
A28: AA | B28: =IF(ROW()-6<(SetUp!C$3*SetUp!C$4+1),INDEX(SetUp!$B$6:$AO$6,ROW()-6),"") ->  | C28: =IF(B28="","",COUNT(ColAA)) ->  | D28: =IF($B28="","",AVERAGE(ColAA)) ->  | E28: =IF(B28="","",STDEV(ColAA)) ->  | F28: =IF($B28="","",MIN(ColAA)) ->  | G28: =IF($B28="","",MAX(ColAA)) ->  | N28: 22 | O28: =COUNT(Rollups!$AU$6:$AU$2005) -> 0 | P28: =IF($O28>0,AVERAGE(Rollups!$AU$6:$AU$2005),"") ->  | Q28: =IF(O28>0,STDEV(Rollups!$AU$6:$AU$2005),"") ->  | R28: =IF($O28>0,MIN(Rollups!$AU$6:$AU$2005),"") ->  | S28: =IF($O28>0,MAX(Rollups!$AU$6:$AU$2005),"") ->  | T28: =IF(N28>SetUp!$C$3,"",FISHERINV(SUMIF(Correlations!$D$140:$D$916,N28,Correlations!$E$140:$E$916)/Correlations!$N$5)*Correlations!$N$5/(FISHERINV(SUMIF(Correlations!$D$140:$D$916,N28,Correlations!$E$140:$E$916)/Correlations!$N$5)*(Correlations!$N$5-1)+1)) -> 
A29: AB | B29: =IF(ROW()-6<(SetUp!C$3*SetUp!C$4+1),INDEX(SetUp!$B$6:$AO$6,ROW()-6),"") ->  | C29: =IF(B29="","",COUNT(ColAB)) ->  | D29: =IF($B29="","",AVERAGE(ColAB)) ->  | E29: =IF(B29="","",STDEV(ColAB)) ->  | F29: =IF($B29="","",MIN(ColAB)) ->  | G29: =IF($B29="","",MAX(ColAB)) ->  | N29: 23 | O29: =COUNT(Rollups!$AV$6:$AV$2005) -> 0 | P29: =IF($O29>0,AVERAGE(Rollups!$AV$6:$AV$2005),"") ->  | Q29: =IF(O29>0,STDEV(Rollups!$AV$6:$AV$2005),"") ->  | R29: =IF($O29>0,MIN(Rollups!$AV$6:$AV$2005),"") ->  | S29: =IF($O29>0,MAX(Rollups!$AV$6:$AV$2005),"") ->  | T29: =IF(N29>SetUp!$C$3,"",FISHERINV(SUMIF(Correlations!$D$140:$D$916,N29,Correlations!$E$140:$E$916)/Correlations!$N$5)*Correlations!$N$5/(FISHERINV(SUMIF(Correlations!$D$140:$D$916,N29,Correlations!$E$140:$E$916)/Correlations!$N$5)*(Correlations!$N$5-1)+1)) -> 
A30: AC | B30: =IF(ROW()-6<(SetUp!C$3*SetUp!C$4+1),INDEX(SetUp!$B$6:$AO$6,ROW()-6),"") ->  | C30: =IF(B30="","",COUNT(ColAC)) ->  | D30: =IF($B30="","",AVERAGE(ColAC)) ->  | E30: =IF(B30="","",STDEV(ColAC)) ->  | F30: =IF($B30="","",MIN(ColAC)) ->  | G30: =IF($B30="","",MAX(ColAC)) ->  | N30: 24 | O30: =COUNT(Rollups!$AW$6:$AW$2005) -> 0 | P30: =IF($O30>0,AVERAGE(Rollups!$AW$6:$AW$2005),"") ->  | Q30: =IF(O30>0,STDEV(Rollups!$AW$6:$AW$2005),"") ->  | R30: =IF($O30>0,MIN(Rollups!$AW$6:$AW$2005),"") ->  | S30: =IF($O30>0,MAX(Rollups!$AW$6:$AW$2005),"") ->  | T30: =IF(N30>SetUp!$C$3,"",FISHERINV(SUMIF(Correlations!$D$140:$D$916,N30,Correlations!$E$140:$E$916)/Correlations!$N$5)*Correlations!$N$5/(FISHERINV(SUMIF(Correlations!$D$140:$D$916,N30,Correlations!$E$140:$E$916)/Correlations!$N$5)*(Correlations!$N$5-1)+1)) -> 
A31: AD | B31: =IF(ROW()-6<(SetUp!C$3*SetUp!C$4+1),INDEX(SetUp!$B$6:$AO$6,ROW()-6),"") ->  | C31: =IF(B31="","",COUNT(ColAD)) ->  | D31: =IF($B31="","",AVERAGE(ColAD)) ->  | E31: =IF(B31="","",STDEV(ColAD)) ->  | F31: =IF($B31="","",MIN(ColAD)) ->  | G31: =IF($B31="","",MAX(ColAD)) ->  | N31: 25 | O31: =COUNT(Rollups!$AX$6:$AX$2005) -> 0 | P31: =IF($O31>0,AVERAGE(Rollups!$AX$6:$AX$2005),"") ->  | Q31: =IF(O31>0,STDEV(Rollups!$AX$6:$AX$2005),"") ->  | R31: =IF($O31>0,MIN(Rollups!$AX$6:$AX$2005),"") ->  | S31: =IF($O31>0,MAX(Rollups!$AX$6:$AX$2005),"") ->  | T31: =IF(N31>SetUp!$C$3,"",FISHERINV(SUMIF(Correlations!$D$140:$D$916,N31,Correlations!$E$140:$E$916)/Correlations!$N$5)*Correlations!$N$5/(FISHERINV(SUMIF(Correlations!$D$140:$D$916,N31,Correlations!$E$140:$E$916)/Correlations!$N$5)*(Correlations!$N$5-1)+1)) -> 
A32: AE | B32: =IF(ROW()-6<(SetUp!C$3*SetUp!C$4+1),INDEX(SetUp!$B$6:$AO$6,ROW()-6),"") ->  | C32: =IF(B32="","",COUNT(ColAE)) ->  | D32: =IF($B32="","",AVERAGE(ColAE)) ->  | E32: =IF(B32="","",STDEV(ColAE)) ->  | F32: =IF($B32="","",MIN(ColAE)) ->  | G32: =IF($B32="","",MAX(ColAE)) ->  | N32: 26 | O32: =COUNT(Rollups!$AY$6:$AY$2005) -> 0 | P32: =IF($O32>0,AVERAGE(Rollups!$AY$6:$AY$2005),"") ->  | Q32: =IF(O32>0,STDEV(Rollups!$AY$6:$AY$2005),"") ->  | R32: =IF($O32>0,MIN(Rollups!$AY$6:$AY$2005),"") ->  | S32: =IF($O32>0,MAX(Rollups!$AY$6:$AY$2005),"") ->  | T32: =IF(N32>SetUp!$C$3,"",FISHERINV(SUMIF(Correlations!$D$140:$D$916,N32,Correlations!$E$140:$E$916)/Correlations!$N$5)*Correlations!$N$5/(FISHERINV(SUMIF(Correlations!$D$140:$D$916,N32,Correlations!$E$140:$E$916)/Correlations!$N$5)*(Correlations!$N$5-1)+1)) -> 
A33: AF | B33: =IF(ROW()-6<(SetUp!C$3*SetUp!C$4+1),INDEX(SetUp!$B$6:$AO$6,ROW()-6),"") ->  | C33: =IF(B33="","",COUNT(ColAF)) ->  | D33: =IF($B33="","",AVERAGE(ColAF)) ->  | E33: =IF(B33="","",STDEV(ColAF)) ->  | F33: =IF($B33="","",MIN(ColAF)) ->  | G33: =IF($B33="","",MAX(ColAF)) ->  | N33: 27 | O33: =COUNT(Rollups!$AZ$6:$AZ$2005) -> 0 | P33: =IF($O33>0,AVERAGE(Rollups!$AZ$6:$AZ$2005),"") ->  | Q33: =IF(O33>0,STDEV(Rollups!$AZ$6:$AZ$2005),"") ->  | R33: =IF($O33>0,MIN(Rollups!$AZ$6:$AZ$2005),"") ->  | S33: =IF($O33>0,MAX(Rollups!$AZ$6:$AZ$2005),"") ->  | T33: =IF(N33>SetUp!$C$3,"",FISHERINV(SUMIF(Correlations!$D$140:$D$916,N33,Correlations!$E$140:$E$916)/Correlations!$N$5)*Correlations!$N$5/(FISHERINV(SUMIF(Correlations!$D$140:$D$916,N33,Correlations!$E$140:$E$916)/Correlations!$N$5)*(Correlations!$N$5-1)+1)) -> 
A34: AG | B34: =IF(ROW()-6<(SetUp!C$3*SetUp!C$4+1),INDEX(SetUp!$B$6:$AO$6,ROW()-6),"") ->  | C34: =IF(B34="","",COUNT(ColAG)) ->  | D34: =IF($B34="","",AVERAGE(ColAG)) ->  | E34: =IF(B34="","",STDEV(ColAG)) ->  | F34: =IF($B34="","",MIN(ColAG)) ->  | G34: =IF($B34="","",MAX(ColAG)) ->  | N34: 28 | O34: =COUNT(Rollups!$BA$6:$BA$2005) -> 0 | P34: =IF($O34>0,AVERAGE(Rollups!$BA$6:$BA$2005),"") ->  | Q34: =IF(O34>0,STDEV(Rollups!$BA$6:$BA$2005),"") ->  | R34: =IF($O34>0,MIN(Rollups!$BA$6:$BA$2005),"") ->  | S34: =IF($O34>0,MAX(Rollups!$BA$6:$BA$2005),"") ->  | T34: =IF(N34>SetUp!$C$3,"",FISHERINV(SUMIF(Correlations!$D$140:$D$916,N34,Correlations!$E$140:$E$916)/Correlations!$N$5)*Correlations!$N$5/(FISHERINV(SUMIF(Correlations!$D$140:$D$916,N34,Correlations!$E$140:$E$916)/Correlations!$N$5)*(Correlations!$N$5-1)+1)) -> 
A35: AH | B35: =IF(ROW()-6<(SetUp!C$3*SetUp!C$4+1),INDEX(SetUp!$B$6:$AO$6,ROW()-6),"") ->  | C35: =IF(B35="","",COUNT(ColAH)) ->  | D35: =IF($B35="","",AVERAGE(ColAH)) ->  | E35: =IF(B35="","",STDEV(ColAH)) ->  | F35: =IF($B35="","",MIN(ColAH)) ->  | G35: =IF($B35="","",MAX(ColAH)) ->  | N35: 29 | O35: =COUNT(Rollups!$BB$6:$BB$2005) -> 0 | P35: =IF($O35>0,AVERAGE(Rollups!$BB$6:$BB$2005),"") ->  | Q35: =IF(O35>0,STDEV(Rollups!$BB$6:$BB$2005),"") ->  | R35: =IF($O35>0,MIN(Rollups!$BB$6:$BB$2005),"") ->  | S35: =IF($O35>0,MAX(Rollups!$BB$6:$BB$2005),"") ->  | T35: =IF(N35>SetUp!$C$3,"",FISHERINV(SUMIF(Correlations!$D$140:$D$916,N35,Correlations!$E$140:$E$916)/Correlations!$N$5)*Correlations!$N$5/(FISHERINV(SUMIF(Correlations!$D$140:$D$916,N35,Correlations!$E$140:$E$916)/Correlations!$N$5)*(Correlations!$N$5-1)+1)) -> 
A36: AI | B36: =IF(ROW()-6<(SetUp!C$3*SetUp!C$4+1),INDEX(SetUp!$B$6:$AO$6,ROW()-6),"") ->  | C36: =IF(B36="","",COUNT(ColAI)) ->  | D36: =IF($B36="","",AVERAGE(ColAI)) ->  | E36: =IF(B36="","",STDEV(ColAI)) ->  | F36: =IF($B36="","",MIN(ColAI)) ->  | G36: =IF($B36="","",MAX(ColAI)) ->  | N36: 30 | O36: =COUNT(Rollups!$BC$6:$BC$2005) -> 0 | P36: =IF($O36>0,AVERAGE(Rollups!$BC$6:$BC$2005),"") ->  | Q36: =IF(O36>0,STDEV(Rollups!$BC$6:$BC$2005),"") ->  | R36: =IF($O36>0,MIN(Rollups!$BC$6:$BC$2005),"") ->  | S36: =IF($O36>0,MAX(Rollups!$BC$6:$BC$2005),"") ->  | T36: =IF(N36>SetUp!$C$3,"",FISHERINV(SUMIF(Correlations!$D$140:$D$916,N36,Correlations!$E$140:$E$916)/Correlations!$N$5)*Correlations!$N$5/(FISHERINV(SUMIF(Correlations!$D$140:$D$916,N36,Correlations!$E$140:$E$916)/Correlations!$N$5)*(Correlations!$N$5-1)+1)) -> 
A37: AJ | B37: =IF(ROW()-6<(SetUp!C$3*SetUp!C$4+1),INDEX(SetUp!$B$6:$AO$6,ROW()-6),"") ->  | C37: =IF(B37="","",COUNT(ColAJ)) ->  | D37: =IF($B37="","",AVERAGE(ColAJ)) ->  | E37: =IF(B37="","",STDEV(ColAJ)) ->  | F37: =IF($B37="","",MIN(ColAJ)) ->  | G37: =IF($B37="","",MAX(ColAJ)) ->  | N37: 31 | O37: =COUNT(Rollups!$BD$6:$BD$2005) -> 0 | P37: =IF($O37>0,AVERAGE(Rollups!$BD$6:$BD$2005),"") ->  | Q37: =IF(O37>0,STDEV(Rollups!$BD$6:$BD$2005),"") ->  | R37: =IF($O37>0,MIN(Rollups!$BD$6:$BD$2005),"") ->  | S37: =IF($O37>0,MAX(Rollups!$BD$6:$BD$2005),"") ->  | T37: =IF(N37>SetUp!$C$3,"",FISHERINV(SUMIF(Correlations!$D$140:$D$916,N37,Correlations!$E$140:$E$916)/Correlations!$N$5)*Correlations!$N$5/(FISHERINV(SUMIF(Correlations!$D$140:$D$916,N37,Correlations!$E$140:$E$916)/Correlations!$N$5)*(Correlations!$N$5-1)+1)) -> 
A38: AK | B38: =IF(ROW()-6<(SetUp!C$3*SetUp!C$4+1),INDEX(SetUp!$B$6:$AO$6,ROW()-6),"") ->  | C38: =IF(B38="","",COUNT(ColAK)) ->  | D38: =IF($B38="","",AVERAGE(ColAK)) ->  | E38: =IF(B38="","",STDEV(ColAK)) ->  | F38: =IF($B38="","",MIN(ColAK)) ->  | G38: =IF($B38="","",MAX(ColAK)) ->  | N38: 32 | O38: =COUNT(Rollups!$BE$6:$BE$2005) -> 0 | P38: =IF($O38>0,AVERAGE(Rollups!$BE$6:$BE$2005),"") ->  | Q38: =IF(O38>0,STDEV(Rollups!$BE$6:$BE$2005),"") ->  | R38: =IF($O38>0,MIN(Rollups!$BE$6:$BE$2005),"") ->  | S38: =IF($O38>0,MAX(Rollups!$BE$6:$BE$2005),"") ->  | T38: =IF(N38>SetUp!$C$3,"",FISHERINV(SUMIF(Correlations!$D$140:$D$916,N38,Correlations!$E$140:$E$916)/Correlations!$N$5)*Correlations!$N$5/(FISHERINV(SUMIF(Correlations!$D$140:$D$916,N38,Correlations!$E$140:$E$916)/Correlations!$N$5)*(Correlations!$N$5-1)+1)) -> 
A39: AL | B39: =IF(ROW()-6<(SetUp!C$3*SetUp!C$4+1),INDEX(SetUp!$B$6:$AO$6,ROW()-6),"") ->  | C39: =IF(B39="","",COUNT(ColAL)) ->  | D39: =IF($B39="","",AVERAGE(ColAL)) ->  | E39: =IF(B39="","",STDEV(ColAL)) ->  | F39: =IF($B39="","",MIN(ColAL)) ->  | G39: =IF($B39="","",MAX(ColAL)) ->  | N39: 33 | O39: =COUNT(Rollups!$BF$6:$BF$2005) -> 0 | P39: =IF($O39>0,AVERAGE(Rollups!$BF$6:$BF$2005),"") ->  | Q39: =IF(O39>0,STDEV(Rollups!$BF$6:$BF$2005),"") ->  | R39: =IF($O39>0,MIN(Rollups!$BF$6:$BF$2005),"") ->  | S39: =IF($O39>0,MAX(Rollups!$BF$6:$BF$2005),"") ->  | T39: =IF(N39>SetUp!$C$3,"",FISHERINV(SUMIF(Correlations!$D$140:$D$916,N39,Correlations!$E$140:$E$916)/Correlations!$N$5)*Correlations!$N$5/(FISHERINV(SUMIF(Correlations!$D$140:$D$916,N39,Correlations!$E$140:$E$916)/Correlations!$N$5)*(Correlations!$N$5-1)+1)) -> 
A40: AM | B40: =IF(ROW()-6<(SetUp!C$3*SetUp!C$4+1),INDEX(SetUp!$B$6:$AO$6,ROW()-6),"") ->  | C40: =IF(B40="","",COUNT(ColAM)) ->  | D40: =IF($B40="","",AVERAGE(ColAM)) ->  | E40: =IF(B40="","",STDEV(ColAM)) ->  | F40: =IF($B40="","",MIN(ColAM)) ->  | G40: =IF($B40="","",MAX(ColAM)) ->  | N40: 34 | O40: =COUNT(Rollups!$BG$6:$BG$2005) -> 0 | P40: =IF($O40>0,AVERAGE(Rollups!$BG$6:$BG$2005),"") ->  | Q40: =IF(O40>0,STDEV(Rollups!$BG$6:$BG$2005),"") ->  | R40: =IF($O40>0,MIN(Rollups!$BG$6:$BG$2005),"") ->  | S40: =IF($O40>0,MAX(Rollups!$BG$6:$BG$2005),"") ->  | T40: =IF(N40>SetUp!$C$3,"",FISHERINV(SUMIF(Correlations!$D$140:$D$916,N40,Correlations!$E$140:$E$916)/Correlations!$N$5)*Correlations!$N$5/(FISHERINV(SUMIF(Correlations!$D$140:$D$916,N40,Correlations!$E$140:$E$916)/Correlations!$N$5)*(Correlations!$N$5-1)+1)) -> 
A41: AN | B41: =IF(ROW()-6<(SetUp!C$3*SetUp!C$4+1),INDEX(SetUp!$B$6:$AO$6,ROW()-6),"") ->  | C41: =IF(B41="","",COUNT(ColAN)) ->  | D41: =IF($B41="","",AVERAGE(ColAN)) ->  | E41: =IF(B41="","",STDEV(ColAN)) ->  | F41: =IF($B41="","",MIN(ColAN)) ->  | G41: =IF($B41="","",MAX(ColAN)) ->  | N41: 35 | O41: =COUNT(Rollups!$BH$6:$BH$2005) -> 0 | P41: =IF($O41>0,AVERAGE(Rollups!$BH$6:$BH$2005),"") ->  | Q41: =IF(O41>0,STDEV(Rollups!$BH$6:$BH$2005),"") ->  | R41: =IF($O41>0,MIN(Rollups!$BH$6:$BH$2005),"") ->  | S41: =IF($O41>0,MAX(Rollups!$BH$6:$BH$2005),"") ->  | T41: =IF(N41>SetUp!$C$3,"",FISHERINV(SUMIF(Correlations!$D$140:$D$916,N41,Correlations!$E$140:$E$916)/Correlations!$N$5)*Correlations!$N$5/(FISHERINV(SUMIF(Correlations!$D$140:$D$916,N41,Correlations!$E$140:$E$916)/Correlations!$N$5)*(Correlations!$N$5-1)+1)) -> 
A42: AO | B42: =IF(ROW()-6<(SetUp!C$3*SetUp!C$4+1),INDEX(SetUp!$B$6:$AO$6,ROW()-6),"") ->  | C42: =IF(B42="","",COUNT(ColAO)) ->  | D42: =IF($B42="","",AVERAGE(ColAO)) ->  | E42: =IF(B42="","",STDEV(ColAO)) ->  | F42: =IF($B42="","",MIN(ColAO)) ->  | G42: =IF($B42="","",MAX(ColAO)) ->  | N42: 36 | O42: =COUNT(Rollups!$BI$6:$BI$2005) -> 0 | P42: =IF($O42>0,AVERAGE(Rollups!$BI$6:$BI$2005),"") ->  | Q42: =IF(O42>0,STDEV(Rollups!$BI$6:$BI$2005),"") ->  | R42: =IF($O42>0,MIN(Rollups!$BI$6:$BI$2005),"") ->  | S42: =IF($O42>0,MAX(Rollups!$BI$6:$BI$2005),"") ->  | T42: =IF(N42>SetUp!$C$3,"",FISHERINV(SUMIF(Correlations!$D$140:$D$916,N42,Correlations!$E$140:$E$916)/Correlations!$N$5)*Correlations!$N$5/(FISHERINV(SUMIF(Correlations!$D$140:$D$916,N42,Correlations!$E$140:$E$916)/Correlations!$N$5)*(Correlations!$N$5-1)+1)) -> 
A43: AP | B43: =IF(ROW()-6<(SetUp!C$3*SetUp!C$4+1),INDEX(SetUp!$B$6:$AO$6,ROW()-6),"") ->  | C43: =IF(B43="","",COUNT(ColAP)) ->  | D43: =IF($B43="","",AVERAGE(ColAP)) ->  | E43: =IF(B43="","",STDEV(ColAP)) ->  | F43: =IF($B43="","",MIN(ColAP)) ->  | G43: =IF($B43="","",MAX(ColAP)) ->  | N43: 37 | O43: =COUNT(Rollups!$BJ$6:$BJ$2005) -> 0 | P43: =IF($O43>0,AVERAGE(Rollups!$BJ$6:$BJ$2005),"") ->  | Q43: =IF(O43>0,STDEV(Rollups!$BJ$6:$BJ$2005),"") ->  | R43: =IF($O43>0,MIN(Rollups!$BJ$6:$BJ$2005),"") ->  | S43: =IF($O43>0,MAX(Rollups!$BJ$6:$BJ$2005),"") ->  | T43: =IF(N43>SetUp!$C$3,"",FISHERINV(SUMIF(Correlations!$D$140:$D$916,N43,Correlations!$E$140:$E$916)/Correlations!$N$5)*Correlations!$N$5/(FISHERINV(SUMIF(Correlations!$D$140:$D$916,N43,Correlations!$E$140:$E$916)/Correlations!$N$5)*(Correlations!$N$5-1)+1)) -> 
A44: AQ | B44: =IF(ROW()-6<(SetUp!C$3*SetUp!C$4+1),INDEX(SetUp!$B$6:$AO$6,ROW()-6),"") ->  | C44: =IF(B44="","",COUNT(ColAQ)) ->  | D44: =IF($B44="","",AVERAGE(ColAQ)) ->  | E44: =IF(B44="","",STDEV(ColAQ)) ->  | F44: =IF($B44="","",MIN(ColAQ)) ->  | G44: =IF($B44="","",MAX(ColAQ)) ->  | N44: 38 | O44: =COUNT(Rollups!$BK$6:$BK$2005) -> 0 | P44: =IF($O44>0,AVERAGE(Rollups!$BK$6:$BK$2005),"") ->  | Q44: =IF(O44>0,STDEV(Rollups!$BK$6:$BK$2005),"") ->  | R44: =IF($O44>0,MIN(Rollups!$BK$6:$BK$2005),"") ->  | S44: =IF($O44>0,MAX(Rollups!$BK$6:$BK$2005),"") ->  | T44: =IF(N44>SetUp!$C$3,"",FISHERINV(SUMIF(Correlations!$D$140:$D$916,N44,Correlations!$E$140:$E$916)/Correlations!$N$5)*Correlations!$N$5/(FISHERINV(SUMIF(Correlations!$D$140:$D$916,N44,Correlations!$E$140:$E$916)/Correlations!$N$5)*(Correlations!$N$5-1)+1)) -> 
A45: AR | B45: =IF(ROW()-6<(SetUp!C$3*SetUp!C$4+1),INDEX(SetUp!$B$6:$AO$6,ROW()-6),"") ->  | C45: =IF(B45="","",COUNT(ColAR)) ->  | D45: =IF($B45="","",AVERAGE(ColAR)) ->  | E45: =IF(B45="","",STDEV(ColAR)) ->  | F45: =IF($B45="","",MIN(ColAR)) ->  | G45: =IF($B45="","",MAX(ColAR)) ->  | N45: 39 | O45: =COUNT(Rollups!$BL$6:$BL$2005) -> 0 | P45: =IF($O45>0,AVERAGE(Rollups!$BL$6:$BL$2005),"") ->  | Q45: =IF(O45>0,STDEV(Rollups!$BL$6:$BL$2005),"") ->  | R45: =IF($O45>0,MIN(Rollups!$BL$6:$BL$2005),"") ->  | S45: =IF($O45>0,MAX(Rollups!$BL$6:$BL$2005),"") ->  | T45: =IF(N45>SetUp!$C$3,"",FISHERINV(SUMIF(Correlations!$D$140:$D$916,N45,Correlations!$E$140:$E$916)/Correlations!$N$5)*Correlations!$N$5/(FISHERINV(SUMIF(Correlations!$D$140:$D$916,N45,Correlations!$E$140:$E$916)/Correlations!$N$5)*(Correlations!$N$5-1)+1)) -> 
A46: AS | B46: =IF(ROW()-6<(SetUp!C$3*SetUp!C$4+1),INDEX(SetUp!$B$6:$AO$6,ROW()-6),"") ->  | C46: =IF(B46="","",COUNT(ColAS)) ->  | D46: =IF($B46="","",AVERAGE(ColAS)) ->  | E46: =IF(B46="","",STDEV(ColAS)) ->  | F46: =IF($B46="","",MIN(ColAS)) ->  | G46: =IF($B46="","",MAX(ColAS)) ->  | N46: 40 | O46: =COUNT(Rollups!$BM$6:$BM$2005) -> 0 | P46: =IF($O46>0,AVERAGE(Rollups!$BM$6:$BM$2005),"") ->  | Q46: =IF(O46>0,STDEV(Rollups!$BM$6:$BM$2005),"") ->  | R46: =IF($O46>0,MIN(Rollups!$BM$6:$BM$2005),"") ->  | S46: =IF($O46>0,MAX(Rollups!$BM$6:$BM$2005),"") ->  | T46: =IF(N46>SetUp!$C$3,"",FISHERINV(SUMIF(Correlations!$D$140:$D$916,N46,Correlations!$E$140:$E$916)/Correlations!$N$5)*Correlations!$N$5/(FISHERINV(SUMIF(Correlations!$D$140:$D$916,N46,Correlations!$E$140:$E$916)/Correlations!$N$5)*(Correlations!$N$5-1)+1)) -> 

Sheet Correlations
D1: ="Test Reliability for "&RawScores!B1 -> Test Reliability for Title
D2: ="Test Title = "&RawScores!B3 -> Test Title = Exam Total
D3: =RawScores!B4 -> 2009-12-14T12:13:00.192 | M3: Assigned raters = | N3: =SetUp!C4 -> 3
D5: Corrected r = | E5: =IF(SetUp!$C$4>1,(H5 * N5 / (H5 * (N5 - 1) + 1)),(H5 * SetUp!$C$3 / (H5 * (SetUp!$C$3 - 1) + 1))) -> 0.881690142 | F5: Average r = | H5: =FISHERINV(K5) -> 0.712984057 | I5: Average z = | K5: =IF(SetUp!C4>1,AVERAGE(X9:X15,Y10:Y15,Z11:Z15,AA11:AA15,AB13:AB15,AC14:AC15,AD15),AVERAGE(Correlations!E94:AJ124)) -> 0.8932272133 | M5: Active raters = | N5: =ROUND(SQRT(2*(49-COUNTBLANK(X9:AD15))+1),0) -> 3 | O5: Question Reliabilities
D6: =IF(N3>N5,"NOTE: AT LEAST ONE RATER IS INACTIVE!","") ->  | O6: # | P6: Corrected r
D7: Inter Rater Total Correlations | O7: 1 | P7: =IF(O7>SetUp!$C$3,"",FISHERINV(SUMIF($D$140:$D$916,O7,$E$140:$E$916)/$N$5)*$N$5/(FISHERINV(SUMIF($D$140:$D$916,O7,$E$140:$E$916)/$N$5)*($N$5-1)+1)) -> -0.09873731853
E8: rater 1 | F8: rater 2 | G8: rater 3 | H8: rater 4 | I8: rater 5 | J8: rater 6 | K8: rater 7 | O8: 2 | P8: =IF(O8>SetUp!$C$3,"",FISHERINV(SUMIF($D$140:$D$916,O8,$E$140:$E$916)/$N$5)*$N$5/(FISHERINV(SUMIF($D$140:$D$916,O8,$E$140:$E$916)/$N$5)*($N$5-1)+1)) -> 0.8772767882 | X8: z transformation
D9: rater 2 | E9: =IF(VALUE(RIGHT(Correlations!$D9,1))>SetUp!$C$4,"",CORREL(Rollups!R$6:R$2005,Rollups!$S$6:$S$2005)) -> 0.385855022 | O9: 3 | P9: =IF(O9>SetUp!$C$3,"",FISHERINV(SUMIF($D$140:$D$916,O9,$E$140:$E$916)/$N$5)*$N$5/(FISHERINV(SUMIF($D$140:$D$916,O9,$E$140:$E$916)/$N$5)*($N$5-1)+1)) -> 0.8056619702 | X9: =IF(ISNUMBER(E9)=FALSE,"",IF(VALUE(E9)< 1,FISHER(E9),FISHER(0.999))) -> 0.4069207759
D10: rater 3 | E10: =IF(VALUE(RIGHT(Correlations!$D10,1))>SetUp!$C$4,"",CORREL(Rollups!R$6:R$2005,Rollups!$T$6:$T$2005)) -> 0.5050269751 | F10: =IF(VALUE(RIGHT(Correlations!$D10,1))>SetUp!$C$4,"",CORREL(Rollups!S$6:S$2005,Rollups!$T$6:$T$2005)) -> 0.9374680045 | O10: 4 | P10: =IF(O10>SetUp!$C$3,"",FISHERINV(SUMIF($D$140:$D$916,O10,$E$140:$E$916)/$N$5)*$N$5/(FISHERINV(SUMIF($D$140:$D$916,O10,$E$140:$E$916)/$N$5)*($N$5-1)+1)) -> 0.8867522559 | X10: 0.5560314174 | Y10: =IF(ISNUMBER(F10)=FALSE,"",IF(VALUE(F10)< 1,FISHER(F10),FISHER(0.999))) -> 1.716729447
D11: rater 4 | E11: =IF(VALUE(RIGHT(Correlations!$D11,1))>SetUp!$C$4,"",CORREL(Rollups!R$6:R$2005,Rollups!$U$6:$U$2005)) ->  | F11: =IF(VALUE(RIGHT(Correlations!$D11,1))>SetUp!$C$4,"",CORREL(Rollups!S$6:S$2005,Rollups!$U$6:$U$2005)) ->  | G11: =IF(VALUE(RIGHT(Correlations!$D11,1))>SetUp!$C$4,"",CORREL(Rollups!T$6:T$2005,Rollups!$U$6:$U$2005)) ->  | O11: 5 | P11: =IF(O11>SetUp!$C$3,"",FISHERINV(SUMIF($D$140:$D$916,O11,$E$140:$E$916)/$N$5)*$N$5/(FISHERINV(SUMIF($D$140:$D$916,O11,$E$140:$E$916)/$N$5)*($N$5-1)+1)) ->  | Z11: =IF(ISNUMBER(G11)=FALSE,"",IF(VALUE(G11)< 1,FISHER(G11),FISHER(0.999))) -> 
D12: rater 5 | E12: =IF(VALUE(RIGHT(Correlations!$D12,1))>SetUp!$C$4,"",CORREL(Rollups!R$6:R$2005,Rollups!$V$6:$V$2005)) ->  | F12: =IF(VALUE(RIGHT(Correlations!$D12,1))>SetUp!$C$4,"",CORREL(Rollups!S$6:S$2005,Rollups!$V$6:$V$2005)) ->  | G12: =IF(VALUE(RIGHT(Correlations!$D12,1))>SetUp!$C$4,"",CORREL(Rollups!T$6:T$2005,Rollups!$V$6:$V$2005)) ->  | H12: =IF(VALUE(RIGHT(Correlations!$D12,1))>SetUp!$C$4,"",CORREL(Rollups!U$6:U$2005,Rollups!$V$6:$V$2005)) ->  | O12: 6 | P12: =IF(O12>SetUp!$C$3,"",FISHERINV(SUMIF($D$140:$D$916,O12,$E$140:$E$916)/$N$5)*$N$5/(FISHERINV(SUMIF($D$140:$D$916,O12,$E$140:$E$916)/$N$5)*($N$5-1)+1)) ->  | Z12: =IF(ISNUMBER(G12)=FALSE,"",IF(VALUE(G12)< 1,FISHER(G12),FISHER(0.999))) ->  | AA12: =IF(ISNUMBER(H12)=FALSE,"",IF(VALUE(H12)< 1,FISHER(H12),FISHER(0.999))) -> 
D13: rater 6 | E13: =IF(VALUE(RIGHT(Correlations!$D13,1))>SetUp!$C$4,"",CORREL(Rollups!R$6:R$2005,Rollups!$W$6:$W$2005)) ->  | F13: =IF(VALUE(RIGHT(Correlations!$D13,1))>SetUp!$C$4,"",CORREL(Rollups!S$6:S$2005,Rollups!$W$6:$W$2005)) ->  | G13: =IF(VALUE(RIGHT(Correlations!$D13,1))>SetUp!$C$4,"",CORREL(Rollups!T$6:T$2005,Rollups!$W$6:$W$2005)) ->  | H13: =IF(VALUE(RIGHT(Correlations!$D13,1))>SetUp!$C$4,"",CORREL(Rollups!U$6:U$2005,Rollups!$W$6:$W$2005)) ->  | I13: =IF(VALUE(RIGHT(Correlations!$D13,1))>SetUp!$C$4,"",CORREL(Rollups!V$6:V$2005,Rollups!$W$6:$W$2005)) ->  | O13: 7 | P13: =IF(O13>SetUp!$C$3,"",FISHERINV(SUMIF($D$140:$D$916,O13,$E$140:$E$916)/$N$5)*$N$5/(FISHERINV(SUMIF($D$140:$D$916,O13,$E$140:$E$916)/$N$5)*($N$5-1)+1)) ->  | Z13: =IF(ISNUMBER(G13)=FALSE,"",IF(VALUE(G13)< 1,FISHER(G13),FISHER(0.999))) ->  | AA13: =IF(ISNUMBER(H13)=FALSE,"",IF(VALUE(H13)< 1,FISHER(H13),FISHER(0.999))) ->  | AB13: =IF(ISNUMBER(I13)=FALSE,"",IF(VALUE(I13)< 1,FISHER(I13),FISHER(0.999))) ->  | BB13: =SUMIF(QuestNum,2,QuestRel) -> 0
D14: rater 7 | E14: =IF(VALUE(RIGHT(Correlations!$D14,1))>SetUp!$C$4,"",CORREL(Rollups!R$6:R$2005,Rollups!$X$6:$X$2005)) ->  | F14: =IF(VALUE(RIGHT(Correlations!$D14,1))>SetUp!$C$4,"",CORREL(Rollups!S$6:S$2005,Rollups!$X$6:$X$2005)) ->  | G14: =IF(VALUE(RIGHT(Correlations!$D14,1))>SetUp!$C$4,"",CORREL(Rollups!T$6:T$2005,Rollups!$X$6:$X$2005)) ->  | H14: =IF(VALUE(RIGHT(Correlations!$D14,1))>SetUp!$C$4,"",CORREL(Rollups!U$6:U$2005,Rollups!$X$6:$X$2005)) ->  | I14: =IF(VALUE(RIGHT(Correlations!$D14,1))>SetUp!$C$4,"",CORREL(Rollups!V$6:V$2005,Rollups!$X$6:$X$2005)) ->  | J14: =IF(VALUE(RIGHT(Correlations!$D14,1))>SetUp!$C$4,"",CORREL(Rollups!W$6:W$2005,Rollups!$X$6:$X$2005)) ->  | O14: 8 | P14: =IF(O14>SetUp!$C$3,"",FISHERINV(SUMIF($D$140:$D$916,O14,$E$140:$E$916)/$N$5)*$N$5/(FISHERINV(SUMIF($D$140:$D$916,O14,$E$140:$E$916)/$N$5)*($N$5-1)+1)) ->  | Z14: =IF(ISNUMBER(G14)=FALSE,"",IF(VALUE(G14)< 1,FISHER(G14),FISHER(0.999))) ->  | AA14: =IF(ISNUMBER(H14)=FALSE,"",IF(VALUE(H14)< 1,FISHER(H14),FISHER(0.999))) ->  | AB14: =IF(ISNUMBER(I14)=FALSE,"",IF(VALUE(I14)< 1,FISHER(I14),FISHER(0.999))) ->  | AC14: =IF(ISNUMBER(J14)=FALSE,"",IF(VALUE(J14)< 1,FISHER(J14),FISHER(0.999))) ->  | BB14: =FISHERINV(AVERAGEIF(QuestNum,1,QuestRel)) -> 
D15: rater 8 | E15: =IF(VALUE(RIGHT(Correlations!$D15,1))>SetUp!$C$4,"",CORREL(Rollups!R$6:R$2005,Rollups!$Y$6:$Y$2005)) ->  | F15: =IF(VALUE(RIGHT(Correlations!$D15,1))>SetUp!$C$4,"",CORREL(Rollups!S$6:S$2005,Rollups!$Y$6:$Y$2005)) ->  | G15: =IF(VALUE(RIGHT(Correlations!$D15,1))>SetUp!$C$4,"",CORREL(Rollups!T$6:T$2005,Rollups!$Y$6:$Y$2005)) ->  | H15: =IF(VALUE(RIGHT(Correlations!$D15,1))>SetUp!$C$4,"",CORREL(Rollups!U$6:U$2005,Rollups!$Y$6:$Y$2005)) ->  | I15: =IF(VALUE(RIGHT(Correlations!$D15,1))>SetUp!$C$4,"",CORREL(Rollups!V$6:V$2005,Rollups!$Y$6:$Y$2005)) ->  | J15: =IF(VALUE(RIGHT(Correlations!$D15,1))>SetUp!$C$4,"",CORREL(Rollups!W$6:W$2005,Rollups!$Y$6:$Y$2005)) ->  | K15: =IF(VALUE(RIGHT(Correlations!$D15,1))>SetUp!$C$4,"",CORREL(Rollups!X$6:X$2005,Rollups!$Y$6:$Y$2005)) ->  | O15: 9 | P15: =IF(O15>SetUp!$C$3,"",FISHERINV(SUMIF($D$140:$D$916,O15,$E$140:$E$916)/$N$5)*$N$5/(FISHERINV(SUMIF($D$140:$D$916,O15,$E$140:$E$916)/$N$5)*($N$5-1)+1)) ->  | Z15: =IF(ISNUMBER(G15)=FALSE,"",IF(VALUE(G15)< 1,FISHER(G15),FISHER(0.999))) ->  | AA15: =IF(ISNUMBER(H15)=FALSE,"",IF(VALUE(H15)< 1,FISHER(H15),FISHER(0.999))) ->  | AB15: =IF(ISNUMBER(I15)=FALSE,"",IF(VALUE(I15)< 1,FISHER(I15),FISHER(0.999))) ->  | AC15: =IF(ISNUMBER(J15)=FALSE,"",IF(VALUE(J15)< 1,FISHER(J15),FISHER(0.999))) ->  | AD15: =IF(ISNUMBER(K15)=FALSE,"",IF(VALUE(K15)< 1,FISHER(K15),FISHER(0.999))) ->  | BB15: =FISHERINV(AVERAGEIF(QuestNum,1,QuestRel)) -> 
B16: raters: | E16: =INDEX(SetUp!$B$12:$AK$13,1,COLUMN()-4) -> 1 | F16: =INDEX(SetUp!$B$12:$AK$13,1,COLUMN()-4) -> 2 | G16: =INDEX(SetUp!$B$12:$AK$13,1,COLUMN()-4) -> 3 | H16: =INDEX(SetUp!$B$12:$AK$13,1,COLUMN()-4) -> 1 | I16: =INDEX(SetUp!$B$12:$AK$13,1,COLUMN()-4) -> 2 | J16: =INDEX(SetUp!$B$12:$AK$13,1,COLUMN()-4) -> 3 | K16: =INDEX(SetUp!$B$12:$AK$13,1,COLUMN()-4) -> 1 | L16: =INDEX(SetUp!$B$12:$AK$13,1,COLUMN()-4) -> 2 | M16: =INDEX(SetUp!$B$12:$AK$13,1,COLUMN()-4) -> 3 | N16: =INDEX(SetUp!$B$12:$AK$13,1,COLUMN()-4) -> 1 | O16: =INDEX(SetUp!$B$12:$AK$13,1,COLUMN()-4) -> 2 | P16: =INDEX(SetUp!$B$12:$AK$13,1,COLUMN()-4) -> 3 | Q16: =INDEX(SetUp!$B$12:$AK$13,1,COLUMN()-4) ->  | R16: =INDEX(SetUp!$B$12:$AK$13,1,COLUMN()-4) ->  | S16: =INDEX(SetUp!$B$12:$AK$13,1,COLUMN()-4) ->  | T16: =INDEX(SetUp!$B$12:$AK$13,1,COLUMN()-4) ->  | U16: =INDEX(SetUp!$B$12:$AK$13,1,COLUMN()-4) ->  | V16: =INDEX(SetUp!$B$12:$AK$13,1,COLUMN()-4) ->  | W16: =INDEX(SetUp!$B$12:$AK$13,1,COLUMN()-4) ->  | X16: =INDEX(SetUp!$B$12:$AK$13,1,COLUMN()-4) ->  | Y16: =INDEX(SetUp!$B$12:$AK$13,1,COLUMN()-4) ->  | Z16: =INDEX(SetUp!$B$12:$AK$13,1,COLUMN()-4) ->  | AA16: =INDEX(SetUp!$B$12:$AK$13,1,COLUMN()-4) ->  | AB16: =INDEX(SetUp!$B$12:$AK$13,1,COLUMN()-4) ->  | AC16: =INDEX(SetUp!$B$12:$AK$13,1,COLUMN()-4) ->  | AD16: =INDEX(SetUp!$B$12:$AK$13,1,COLUMN()-4) ->  | AE16: =INDEX(SetUp!$B$12:$AK$13,1,COLUMN()-4) ->  | AF16: =INDEX(SetUp!$B$12:$AK$13,1,COLUMN()-4) ->  | AG16: =INDEX(SetUp!$B$12:$AK$13,1,COLUMN()-4) ->  | AH16: =INDEX(SetUp!$B$12:$AK$13,1,COLUMN()-4) ->  | AI16: =INDEX(SetUp!$B$12:$AK$13,1,COLUMN()-4) ->  | AJ16: =INDEX(SetUp!$B$12:$AK$13,1,COLUMN()-4) ->  | AK16: =INDEX(SetUp!$B$12:$AK$13,1,COLUMN()-4) ->  | AL16: =INDEX(SetUp!$B$12:$AK$13,1,COLUMN()-4) ->  | AM16: =INDEX(SetUp!$B$12:$AK$13,1,COLUMN()-4) ->  | BB16: =FISHERINV(AVERAGEIF(QuestNum,1,QuestRel)) -> 
B17: Questions | D17: Interrater-Interquestion Correlations | E17: =INDEX(SetUp!$B$12:$AK$13,2,COLUMN()-4) -> 1 | F17: =INDEX(SetUp!$B$12:$AK$13,2,COLUMN()-4) -> 1 | G17: =INDEX(SetUp!$B$12:$AK$13,2,COLUMN()-4) -> 1 | H17: =INDEX(SetUp!$B$12:$AK$13,2,COLUMN()-4) -> 2 | I17: =INDEX(SetUp!$B$12:$AK$13,2,COLUMN()-4) -> 2 | J17: =INDEX(SetUp!$B$12:$AK$13,2,COLUMN()-4) -> 2 | K17: =INDEX(SetUp!$B$12:$AK$13,2,COLUMN()-4) -> 3 | L17: =INDEX(SetUp!$B$12:$AK$13,2,COLUMN()-4) -> 3 | M17: =INDEX(SetUp!$B$12:$AK$13,2,COLUMN()-4) -> 3 | N17: =INDEX(SetUp!$B$12:$AK$13,2,COLUMN()-4) -> 4 | O17: =INDEX(SetUp!$B$12:$AK$13,2,COLUMN()-4) -> 4 | P17: =INDEX(SetUp!$B$12:$AK$13,2,COLUMN()-4) -> 4 | Q17: =INDEX(SetUp!$B$12:$AK$13,2,COLUMN()-4) ->  | R17: =INDEX(SetUp!$B$12:$AK$13,2,COLUMN()-4) ->  | S17: =INDEX(SetUp!$B$12:$AK$13,2,COLUMN()-4) ->  | T17: =INDEX(SetUp!$B$12:$AK$13,2,COLUMN()-4) ->  | U17: =INDEX(SetUp!$B$12:$AK$13,2,COLUMN()-4) ->  | V17: =INDEX(SetUp!$B$12:$AK$13,2,COLUMN()-4) ->  | W17: =INDEX(SetUp!$B$12:$AK$13,2,COLUMN()-4) ->  | X17: =INDEX(SetUp!$B$12:$AK$13,2,COLUMN()-4) ->  | Y17: =INDEX(SetUp!$B$12:$AK$13,2,COLUMN()-4) ->  | Z17: =INDEX(SetUp!$B$12:$AK$13,2,COLUMN()-4) ->  | AA17: =INDEX(SetUp!$B$12:$AK$13,2,COLUMN()-4) ->  | AB17: =INDEX(SetUp!$B$12:$AK$13,2,COLUMN()-4) ->  | AC17: =INDEX(SetUp!$B$12:$AK$13,2,COLUMN()-4) ->  | AD17: =INDEX(SetUp!$B$12:$AK$13,2,COLUMN()-4) ->  | AE17: =INDEX(SetUp!$B$12:$AK$13,2,COLUMN()-4) ->  | AF17: =INDEX(SetUp!$B$12:$AK$13,2,COLUMN()-4) ->  | AG17: =INDEX(SetUp!$B$12:$AK$13,2,COLUMN()-4) ->  | AH17: =INDEX(SetUp!$B$12:$AK$13,2,COLUMN()-4) ->  | AI17: =INDEX(SetUp!$B$12:$AK$13,2,COLUMN()-4) ->  | AJ17: =INDEX(SetUp!$B$12:$AK$13,2,COLUMN()-4) ->  | AK17: =INDEX(SetUp!$B$12:$AK$13,2,COLUMN()-4) ->  | AL17: =INDEX(SetUp!$B$12:$AK$13,2,COLUMN()-4) ->  | AM17: =INDEX(SetUp!$B$12:$AK$13,2,COLUMN()-4) ->  | AY17: =FISHERINV(AVERAGEIF(QuestNum,1,QuestRel)) ->  | BB17: =FISHERINV(AVERAGEIF(QuestNum,1,QuestRel)) -> 
D18: Inactive rater? | E18: =SetUp!B15 -> N | F18: =SetUp!C15 -> N | G18: =SetUp!D15 -> N | H18: =SetUp!E15 -> N | I18: =SetUp!F15 -> N | J18: =SetUp!G15 -> N | K18: =SetUp!H15 -> N | L18: =SetUp!I15 -> N | M18: =SetUp!J15 -> N | N18: =SetUp!K15 -> N | O18: =SetUp!L15 -> N | P18: =SetUp!M15 -> N | Q18: =SetUp!N15 ->  | R18: =SetUp!O15 ->  | S18: =SetUp!P15 ->  | T18: =SetUp!Q15 ->  | U18: =SetUp!R15 ->  | V18: =SetUp!S15 ->  | W18: =SetUp!T15 ->  | X18: =SetUp!U15 ->  | Y18: =SetUp!V15 ->  | Z18: =SetUp!W15 ->  | AA18: =SetUp!X15 ->  | AB18: =SetUp!Y15 ->  | AC18: =SetUp!Z15 ->  | AD18: =SetUp!AA15 ->  | AE18: =SetUp!AB15 ->  | AF18: =SetUp!AC15 ->  | AG18: =SetUp!AD15 ->  | AH18: =SetUp!AE15 ->  | AI18: =SetUp!AF15 ->  | AJ18: =SetUp!AG15 ->  | AK18: =SetUp!AH15 ->  | AL18: =SetUp!AI15 ->  | AM18: =SetUp!AJ15 ->  | AN18: =SetUp!AK15 ->  | AO18: =SetUp!AL15 ->  | AP18: =SetUp!AM15 ->  | AQ18: =SetUp!AN15 ->  | AY18: =FISHERINV(SUM(E140,E141,E177)/3) -> -0.03087978162
B19: R | C19: Q | E19: =ConvScores!F5 -> Item # 1 Question Summary -(1) | F19: =ConvScores!G5 -> Item # 1 Question Summary -(2) | G19: =ConvScores!H5 -> Item # 1 Question Summary - (3) | H19: =ConvScores!I5 -> Item # 2 Item Summary - (1) | I19: =ConvScores!J5 -> Item # 2 Item Summary - (2) | J19: =ConvScores!K5 -> Item # 2 Item Summary - (3) | K19: =ConvScores!L5 -> Item # 3 Question Summary - (1) | L19: =ConvScores!M5 -> Item # 3 Question Summary - (2) | M19: =ConvScores!N5 -> Item # 3 Question Summary - (3) | N19: =ConvScores!O5 -> Item # 4 Item Summary - (1) | O19: =ConvScores!P5 -> Item # 4 Item Summary - (2) | P19: =ConvScores!Q5 -> Item # 4 Item Summary - (3) | Q19: =ConvScores!R5 ->  | R19: =ConvScores!S5 ->  | S19: =ConvScores!T5 ->  | T19: =ConvScores!U5 ->  | U19: =ConvScores!V5 ->  | V19: =ConvScores!W5 ->  | W19: =ConvScores!X5 ->  | X19: =ConvScores!Y5 ->  | Y19: =ConvScores!Z5 ->  | Z19: =ConvScores!AA5 ->  | AA19: =ConvScores!AB5 ->  | AB19: =ConvScores!AC5 ->  | AC19: =ConvScores!AD5 ->  | AD19: =ConvScores!AE5 ->  | AE19: =ConvScores!AF5 ->  | AF19: =ConvScores!AG5 ->  | AG19: =ConvScores!AH5 ->  | AH19: =ConvScores!AI5 ->  | AI19: =ConvScores!AJ5 ->  | AJ19: =ConvScores!AK5 ->  | AK19: =ConvScores!AL5 ->  | AL19: =ConvScores!AM5 ->  | AM19: =ConvScores!AN5 ->  | AN19: =ConvScores!AO5 ->  | AO19: =ConvScores!AP5 ->  | AP19: =ConvScores!AQ5 ->  | AQ19: =ConvScores!AR5 ->  | AW19: =SUM(E140:E141:E176) -> -0.05874829788 | AX19: =SUM(E177:E177:E212) -> -0.03392050959 | AY19: =SUM(#REF!:E247) ->  | AZ19: =SUM(#REF!:E281) ->  | BA19: =SUM(#REF!:E314) ->  | BB19: =SUM(#REF!:E346) ->  | BC19: =SUM(#REF!:E377) ->  | BD19: =SUM(#REF!:E407) ->  | BE19: =SUM(#REF!:E436) ->  | BF19: =SUM(#REF!:E464) ->  | BG19: =SUM(#REF!:E491) ->  | BH19: =SUM(#REF!:E517) ->  | BI19: =SUM(#REF!:E542) ->  | BJ19: =SUM(#REF!:E566) ->  | BK19: =SUM(#REF!:E589) ->  | BL19: =SUM(#REF!:E611) ->  | BM19: =SUM(#REF!:E632) ->  | BN19: =SUM(#REF!:E652) ->  | BO19: =SUM(#REF!:E671) ->  | BP19: =SUM(#REF!:E689) ->  | BQ19: =SUM(#REF!:E706) ->  | BR19: =SUM(#REF!:E722) ->  | BS19: =SUM(#REF!:E737) ->  | BT19: =SUM(#REF!:E751) ->  | BU19: =SUM(#REF!:E764) ->  | BV19: =SUM(#REF!:E776) ->  | BW19: =SUM(#REF!:E787) ->  | BX19: =SUM(#REF!:E797) ->  | BY19: =SUM(#REF!:E806) ->  | BZ19: =SUM(#REF!:E814) ->  | CA19: =SUM(#REF!:E821) ->  | CB19: =SUM(#REF!:E827) ->  | CC19: =SUM(#REF!:E832) ->  | CD19: =SUM(#REF!:E836) ->  | CE19: =SUM(#REF!:E839) ->  | CF19: =SUM(#REF!:E841) ->  | CG19: =SUM(#REF!:E842) ->  | CH19: =SUM(E843:E844:E879) -> 0 | CI19: =SUM(E880:E881:E916) -> 0
A20: =IF(ROW()-18>SetUp!$C$3*SetUp!$C$4,"Y",INDEX(SetUp!$B$15:$AO$15,ROW()-18)) -> N | B20: =INDEX(SetUp!$B$12:$AK$13,1,ROW()-18) -> 2 | C20: =INDEX(SetUp!$B$12:$AK$13,2,ROW()-18) -> 1 | D20: =F19 -> Item # 1 Question Summary -(2) | E20: =IF(OR(E$18="Y",$A20="Y"),"",CORREL(ConvScores!F$6:F$2005,ConvScores!$G$6:$G$2005)) -> 0.06243905411
A21: =IF(ROW()-18>SetUp!$C$3*SetUp!$C$4,"Y",INDEX(SetUp!$B$15:$AO$15,ROW()-18)) -> N | B21: =INDEX(SetUp!$B$12:$AK$13,1,ROW()-18) -> 3 | C21: =INDEX(SetUp!$B$12:$AK$13,2,ROW()-18) -> 1 | D21: =G19 -> Item # 1 Question Summary - (3) | E21: =IF(OR(E$18="Y",$A21="Y"),"",CORREL(ConvScores!F$6:F$2005,ConvScores!$H$6:$H$2005)) -> -0.120677698 | F21: =IF(OR(F$18="Y",$A21="Y"),"",CORREL(ConvScores!G$6:G$2005,ConvScores!$H$6:$H$2005)) -> -0.03390750592
A22: =IF(ROW()-18>SetUp!$C$3*SetUp!$C$4,"Y",INDEX(SetUp!$B$15:$AO$15,ROW()-18)) -> N | B22: =INDEX(SetUp!$B$12:$AK$13,1,ROW()-18) -> 1 | C22: =INDEX(SetUp!$B$12:$AK$13,2,ROW()-18) -> 2 | D22: =H19 -> Item # 2 Item Summary - (1) | E22: =IF(OR(E$18="Y",$A22="Y"),"",CORREL(ConvScores!F$6:F$2005,ConvScores!$I$6:$I$2005)) -> 0.9365858116 | F22: =IF(OR(F$18="Y",$A22="Y"),"",CORREL(ConvScores!G$6:G$2005,ConvScores!$I$6:$I$2005)) -> 0.07894736842 | G22: =IF(OR(G$18="Y",$A22="Y"),"",CORREL(ConvScores!H$6:H$2005,ConvScores!$I$6:$I$2005)) -> 0.1243275217
A23: =IF(ROW()-18>SetUp!$C$3*SetUp!$C$4,"Y",INDEX(SetUp!$B$15:$AO$15,ROW()-18)) -> N | B23: =INDEX(SetUp!$B$12:$AK$13,1,ROW()-18) -> 2 | C23: =INDEX(SetUp!$B$12:$AK$13,2,ROW()-18) -> 2 | D23: =I19 -> Item # 2 Item Summary - (2) | E23: =IF(OR(E$18="Y",$A23="Y"),"",CORREL(ConvScores!F$6:F$2005,ConvScores!$J$6:$J$2005)) -> 0.1964185503 | F23: =IF(OR(F$18="Y",$A23="Y"),"",CORREL(ConvScores!G$6:G$2005,ConvScores!$J$6:$J$2005)) -> 0.1324532357 | G23: =IF(OR(G$18="Y",$A23="Y"),"",CORREL(ConvScores!H$6:H$2005,ConvScores!$J$6:$J$2005)) -> 0.8988305959 | H23: =IF(OR(H$18="Y",$A23="Y"),"",CORREL(ConvScores!I$6:I$2005,ConvScores!$J$6:$J$2005)) -> 0.4106050307
A24: =IF(ROW()-18>SetUp!$C$3*SetUp!$C$4,"Y",INDEX(SetUp!$B$15:$AO$15,ROW()-18)) -> N | B24: =INDEX(SetUp!$B$12:$AK$13,1,ROW()-18) -> 3 | C24: =INDEX(SetUp!$B$12:$AK$13,2,ROW()-18) -> 2 | D24: =J19 -> Item # 2 Item Summary - (3) | E24: =IF(OR(E$18="Y",$A24="Y"),"",CORREL(ConvScores!F$6:F$2005,ConvScores!$K$6:$K$2005)) -> 0.02475368857 | F24: =IF(OR(F$18="Y",$A24="Y"),"",CORREL(ConvScores!G$6:G$2005,ConvScores!$K$6:$K$2005)) -> -0.04173111631 | G24: =IF(OR(G$18="Y",$A24="Y"),"",CORREL(ConvScores!H$6:H$2005,ConvScores!$K$6:$K$2005)) -> 0.9798075546 | H24: =IF(OR(H$18="Y",$A24="Y"),"",CORREL(ConvScores!I$6:I$2005,ConvScores!$K$6:$K$2005)) -> 0.2503866978 | I24: =IF(OR(I$18="Y",$A24="Y"),"",CORREL(ConvScores!J$6:J$2005,ConvScores!$K$6:$K$2005)) -> 0.9591918576
A25: =IF(ROW()-18>SetUp!$C$3*SetUp!$C$4,"Y",INDEX(SetUp!$B$15:$AO$15,ROW()-18)) -> N | B25: =INDEX(SetUp!$B$12:$AK$13,1,ROW()-18) -> 1 | C25: =INDEX(SetUp!$B$12:$AK$13,2,ROW()-18) -> 3 | D25: =K19 -> Item # 3 Question Summary - (1) | E25: =IF(OR(E$18="Y",$A25="Y"),"",CORREL(ConvScores!F$6:F$2005,ConvScores!$L$6:$L$2005)) -> 0.6793662205 | F25: =IF(OR(F$18="Y",$A25="Y"),"",CORREL(ConvScores!G$6:G$2005,ConvScores!$L$6:$L$2005)) -> -0.4772135722 | G25: =IF(OR(G$18="Y",$A25="Y"),"",CORREL(ConvScores!H$6:H$2005,ConvScores!$L$6:$L$2005)) -> 0.204960879 | H25: =IF(OR(H$18="Y",$A25="Y"),"",CORREL(ConvScores!I$6:I$2005,ConvScores!$L$6:$L$2005)) -> 0.636284763 | I25: =IF(OR(I$18="Y",$A25="Y"),"",CORREL(ConvScores!J$6:J$2005,ConvScores!$L$6:$L$2005)) -> 0.4323460153 | J25: =IF(OR(J$18="Y",$A25="Y"),"",CORREL(ConvScores!K$6:K$2005,ConvScores!$L$6:$L$2005)) -> 0.3699700367
A26: =IF(ROW()-18>SetUp!$C$3*SetUp!$C$4,"Y",INDEX(SetUp!$B$15:$AO$15,ROW()-18)) -> N | B26: =INDEX(SetUp!$B$12:$AK$13,1,ROW()-18) -> 2 | C26: =INDEX(SetUp!$B$12:$AK$13,2,ROW()-18) -> 3 | D26: =L19 -> Item # 3 Question Summary - (2) | E26: =IF(OR(E$18="Y",$A26="Y"),"",CORREL(ConvScores!F$6:F$2005,ConvScores!$M$6:$M$2005)) -> -0.2222222222 | F26: =IF(OR(F$18="Y",$A26="Y"),"",CORREL(ConvScores!G$6:G$2005,ConvScores!$M$6:$M$2005)) -> 0.1123902974 | G26: =IF(OR(G$18="Y",$A26="Y"),"",CORREL(ConvScores!H$6:H$2005,ConvScores!$M$6:$M$2005)) -> 0.9654215841 | H26: =IF(OR(H$18="Y",$A26="Y"),"",CORREL(ConvScores!I$6:I$2005,ConvScores!$M$6:$M$2005)) -> -0.01873171623 | I26: =IF(OR(I$18="Y",$A26="Y"),"",CORREL(ConvScores!J$6:J$2005,ConvScores!$M$6:$M$2005)) -> 0.8815264539 | J26: =IF(OR(J$18="Y",$A26="Y"),"",CORREL(ConvScores!K$6:K$2005,ConvScores!$M$6:$M$2005)) -> 0.9455909035 | K26: =IF(OR(K$18="Y",$A26="Y"),"",CORREL(ConvScores!L$6:L$2005,ConvScores!$M$6:$M$2005)) -> 0.1132277034
A27: =IF(ROW()-18>SetUp!$C$3*SetUp!$C$4,"Y",INDEX(SetUp!$B$15:$AO$15,ROW()-18)) -> N | B27: =INDEX(SetUp!$B$12:$AK$13,1,ROW()-18) -> 3 | C27: =INDEX(SetUp!$B$12:$AK$13,2,ROW()-18) -> 3 | D27: =M19 -> Item # 3 Question Summary - (3) | E27: =IF(OR(E$18="Y",$A27="Y"),"",CORREL(ConvScores!F$6:F$2005,ConvScores!$N$6:$N$2005)) -> -0.04429116695 | F27: =IF(OR(F$18="Y",$A27="Y"),"",CORREL(ConvScores!G$6:G$2005,ConvScores!$N$6:$N$2005)) -> -0.1344032305 | G27: =IF(OR(G$18="Y",$A27="Y"),"",CORREL(ConvScores!H$6:H$2005,ConvScores!$N$6:$N$2005)) -> 0.9107805143 | H27: =IF(OR(H$18="Y",$A27="Y"),"",CORREL(ConvScores!I$6:I$2005,ConvScores!$N$6:$N$2005)) -> 0.1792043073 | I27: =IF(OR(I$18="Y",$A27="Y"),"",CORREL(ConvScores!J$6:J$2005,ConvScores!$N$6:$N$2005)) -> 0.9320410747 | J27: =IF(OR(J$18="Y",$A27="Y"),"",CORREL(ConvScores!K$6:K$2005,ConvScores!$N$6:$N$2005)) -> 0.9551573292 | K27: =IF(OR(K$18="Y",$A27="Y"),"",CORREL(ConvScores!L$6:L$2005,ConvScores!$N$6:$N$2005)) -> 0.4332948868 | L27: =IF(OR(L$18="Y",$A27="Y"),"",CORREL(ConvScores!M$6:M$2005,ConvScores!$N$6:$N$2005)) -> 0.8875949858
A28: =IF(ROW()-18>SetUp!$C$3*SetUp!$C$4,"Y",INDEX(SetUp!$B$15:$AO$15,ROW()-18)) -> N | B28: =INDEX(SetUp!$B$12:$AK$13,1,ROW()-18) -> 1 | C28: =INDEX(SetUp!$B$12:$AK$13,2,ROW()-18) -> 4 | D28: =N19 -> Item # 4 Item Summary - (1) | E28: =IF(OR(E$18="Y",$A28="Y"),"",CORREL(ConvScores!F$6:F$2005,ConvScores!$O$6:$O$2005)) -> 0.1269662829 | F28: =IF(OR(F$18="Y",$A28="Y"),"",CORREL(ConvScores!G$6:G$2005,ConvScores!$O$6:$O$2005)) -> -0.4183639544 | G28: =IF(OR(G$18="Y",$A28="Y"),"",CORREL(ConvScores!H$6:H$2005,ConvScores!$O$6:$O$2005)) -> 0.8524602935 | H28: =IF(OR(H$18="Y",$A28="Y"),"",CORREL(ConvScores!I$6:I$2005,ConvScores!$O$6:$O$2005)) -> 0.2626936458 | I28: =IF(OR(I$18="Y",$A28="Y"),"",CORREL(ConvScores!J$6:J$2005,ConvScores!$O$6:$O$2005)) -> 0.7492442235 | J28: =IF(OR(J$18="Y",$A28="Y"),"",CORREL(ConvScores!K$6:K$2005,ConvScores!$O$6:$O$2005)) -> 0.8691502361 | K28: =IF(OR(K$18="Y",$A28="Y"),"",CORREL(ConvScores!L$6:L$2005,ConvScores!$O$6:$O$2005)) -> 0.5528264147 | L28: =IF(OR(L$18="Y",$A28="Y"),"",CORREL(ConvScores!M$6:M$2005,ConvScores!$O$6:$O$2005)) -> 0.7617976972 | M28: =IF(OR(M$18="Y",$A28="Y"),"",CORREL(ConvScores!N$6:N$2005,ConvScores!$O$6:$O$2005)) -> 0.7895372704
A29: =IF(ROW()-18>SetUp!$C$3*SetUp!$C$4,"Y",INDEX(SetUp!$B$15:$AO$15,ROW()-18)) -> N | B29: =INDEX(SetUp!$B$12:$AK$13,1,ROW()-18) -> 2 | C29: =INDEX(SetUp!$B$12:$AK$13,2,ROW()-18) -> 4 | D29: =O19 -> Item # 4 Item Summary - (2) | E29: =IF(OR(E$18="Y",$A29="Y"),"",CORREL(ConvScores!F$6:F$2005,ConvScores!$P$6:$P$2005)) -> -0.2211629342 | F29: =IF(OR(F$18="Y",$A29="Y"),"",CORREL(ConvScores!G$6:G$2005,ConvScores!$P$6:$P$2005)) -> 0.1795196574 | G29: =IF(OR(G$18="Y",$A29="Y"),"",CORREL(ConvScores!H$6:H$2005,ConvScores!$P$6:$P$2005)) -> 0.7947520283 | H29: =IF(OR(H$18="Y",$A29="Y"),"",CORREL(ConvScores!I$6:I$2005,ConvScores!$P$6:$P$2005)) -> -0.1104736353 | I29: =IF(OR(I$18="Y",$A29="Y"),"",CORREL(ConvScores!J$6:J$2005,ConvScores!$P$6:$P$2005)) -> 0.8201566953 | J29: =IF(OR(J$18="Y",$A29="Y"),"",CORREL(ConvScores!K$6:K$2005,ConvScores!$P$6:$P$2005)) -> 0.824839492 | K29: =IF(OR(K$18="Y",$A29="Y"),"",CORREL(ConvScores!L$6:L$2005,ConvScores!$P$6:$P$2005)) -> 0.200334169 | L29: =IF(OR(L$18="Y",$A29="Y"),"",CORREL(ConvScores!M$6:M$2005,ConvScores!$P$6:$P$2005)) -> 0.9092253963 | M29: =IF(OR(M$18="Y",$A29="Y"),"",CORREL(ConvScores!N$6:N$2005,ConvScores!$P$6:$P$2005)) -> 0.846336768 | N29: =IF(OR(N$18="Y",$A29="Y"),"",CORREL(ConvScores!O$6:O$2005,ConvScores!$P$6:$P$2005)) -> 0.5973431951
A30: =IF(ROW()-18>SetUp!$C$3*SetUp!$C$4,"Y",INDEX(SetUp!$B$15:$AO$15,ROW()-18)) -> N | B30: =INDEX(SetUp!$B$12:$AK$13,1,ROW()-18) -> 3 | C30: =INDEX(SetUp!$B$12:$AK$13,2,ROW()-18) -> 4 | D30: =P$19 -> Item # 4 Item Summary - (3) | E30: =IF(OR(E$18="Y",$A30="Y"),"",CORREL(ConvScores!F$6:F$2005,ConvScores!$Q$6:$Q$2005)) -> -0.2581988897 | F30: =IF(OR(F$18="Y",$A30="Y"),"",CORREL(ConvScores!G$6:G$2005,ConvScores!$Q$6:$Q$2005)) -> 0.05441071876 | G30: =IF(OR(G$18="Y",$A30="Y"),"",CORREL(ConvScores!H$6:H$2005,ConvScores!$Q$6:$Q$2005)) -> 0.5764386814 | H30: =IF(OR(H$18="Y",$A30="Y"),"",CORREL(ConvScores!I$6:I$2005,ConvScores!$Q$6:$Q$2005)) -> -0.1995059688 | I30: =IF(OR(I$18="Y",$A30="Y"),"",CORREL(ConvScores!J$6:J$2005,ConvScores!$Q$6:$Q$2005)) -> 0.6663957783 | J30: =IF(OR(J$18="Y",$A30="Y"),"",CORREL(ConvScores!K$6:K$2005,ConvScores!$Q$6:$Q$2005)) -> 0.6423331782 | K30: =IF(OR(K$18="Y",$A30="Y"),"",CORREL(ConvScores!L$6:L$2005,ConvScores!$Q$6:$Q$2005)) -> 0.2850438563 | L30: =IF(OR(L$18="Y",$A30="Y"),"",CORREL(ConvScores!M$6:M$2005,ConvScores!$Q$6:$Q$2005)) -> 0.7100469468 | M30: =IF(OR(M$18="Y",$A30="Y"),"",CORREL(ConvScores!N$6:N$2005,ConvScores!$Q$6:$Q$2005)) -> 0.771925284 | N30: =IF(OR(N$18="Y",$A30="Y"),"",CORREL(ConvScores!O$6:O$2005,ConvScores!$Q$6:$Q$2005)) -> 0.4157423801 | O30: =IF(OR(O$18="Y",$A30="Y"),"",CORREL(ConvScores!P$6:P$2005,ConvScores!$Q$6:$Q$2005)) -> 0.9231817225
A31: =IF(ROW()-18>SetUp!$C$3*SetUp!$C$4,"Y",INDEX(SetUp!$B$15:$AO$15,ROW()-18)) -> Y | B31: =INDEX(SetUp!$B$12:$AK$13,1,ROW()-18) ->  | C31: =INDEX(SetUp!$B$12:$AK$13,2,ROW()-18) ->  | D31: =Q$19 ->  | E31: =IF(OR(E$18="Y",$A31="Y"),"",CORREL(ConvScores!F$6:F$2005,ConvScores!$R$6:$R$2005)) ->  | F31: =IF(OR(F$18="Y",$A31="Y"),"",CORREL(ConvScores!G$6:G$2005,ConvScores!$R$6:$R$2005)) ->  | G31: =IF(OR(G$18="Y",$A31="Y"),"",CORREL(ConvScores!H$6:H$2005,ConvScores!$R$6:$R$2005)) ->  | H31: =IF(OR(H$18="Y",$A31="Y"),"",CORREL(ConvScores!I$6:I$2005,ConvScores!$R$6:$R$2005)) ->  | I31: =IF(OR(I$18="Y",$A31="Y"),"",CORREL(ConvScores!J$6:J$2005,ConvScores!$R$6:$R$2005)) ->  | J31: =IF(OR(J$18="Y",$A31="Y"),"",CORREL(ConvScores!K$6:K$2005,ConvScores!$R$6:$R$2005)) ->  | K31: =IF(OR(K$18="Y",$A31="Y"),"",CORREL(ConvScores!L$6:L$2005,ConvScores!$R$6:$R$2005)) ->  | L31: =IF(OR(L$18="Y",$A31="Y"),"",CORREL(ConvScores!M$6:M$2005,ConvScores!$R$6:$R$2005)) ->  | M31: =IF(OR(M$18="Y",$A31="Y"),"",CORREL(ConvScores!N$6:N$2005,ConvScores!$R$6:$R$2005)) ->  | N31: =IF(OR(N$18="Y",$A31="Y"),"",CORREL(ConvScores!O$6:O$2005,ConvScores!$R$6:$R$2005)) ->  | O31: =IF(OR(O$18="Y",$A31="Y"),"",CORREL(ConvScores!P$6:P$2005,ConvScores!$R$6:$R$2005)) ->  | P31: =IF(OR(P$18="Y",$A31="Y"),"",CORREL(ConvScores!Q$6:Q$2005,ConvScores!$R$6:$R$2005)) -> 
A32: =IF(ROW()-18>SetUp!$C$3*SetUp!$C$4,"Y",INDEX(SetUp!$B$15:$AO$15,ROW()-18)) -> Y | B32: =INDEX(SetUp!$B$12:$AK$13,1,ROW()-18) ->  | C32: =INDEX(SetUp!$B$12:$AK$13,2,ROW()-18) ->  | D32: =R$19 ->  | E32: =IF(OR(E$18="Y",$A32="Y"),"",CORREL(ConvScores!F$6:F$2005,ConvScores!$S$6:$S$2005)) ->  | F32: =IF(OR(F$18="Y",$A32="Y"),"",CORREL(ConvScores!G$6:G$2005,ConvScores!$S$6:$S$2005)) ->  | G32: =IF(OR(G$18="Y",$A32="Y"),"",CORREL(ConvScores!H$6:H$2005,ConvScores!$S$6:$S$2005)) ->  | H32: =IF(OR(H$18="Y",$A32="Y"),"",CORREL(ConvScores!I$6:I$2005,ConvScores!$S$6:$S$2005)) ->  | I32: =IF(OR(I$18="Y",$A32="Y"),"",CORREL(ConvScores!J$6:J$2005,ConvScores!$S$6:$S$2005)) ->  | J32: =IF(OR(J$18="Y",$A32="Y"),"",CORREL(ConvScores!K$6:K$2005,ConvScores!$S$6:$S$2005)) ->  | K32: =IF(OR(K$18="Y",$A32="Y"),"",CORREL(ConvScores!L$6:L$2005,ConvScores!$S$6:$S$2005)) ->  | L32: =IF(OR(L$18="Y",$A32="Y"),"",CORREL(ConvScores!M$6:M$2005,ConvScores!$S$6:$S$2005)) ->  | M32: =IF(OR(M$18="Y",$A32="Y"),"",CORREL(ConvScores!N$6:N$2005,ConvScores!$S$6:$S$2005)) ->  | N32: =IF(OR(N$18="Y",$A32="Y"),"",CORREL(ConvScores!O$6:O$2005,ConvScores!$S$6:$S$2005)) ->  | O32: =IF(OR(O$18="Y",$A32="Y"),"",CORREL(ConvScores!P$6:P$2005,ConvScores!$S$6:$S$2005)) ->  | P32: =IF(OR(P$18="Y",$A32="Y"),"",CORREL(ConvScores!Q$6:Q$2005,ConvScores!$S$6:$S$2005)) ->  | Q32: =IF(OR(Q$18="Y",$A32="Y"),"",CORREL(ConvScores!R$6:R$2005,ConvScores!$S$6:$S$2005)) -> 
A33: =IF(ROW()-18>SetUp!$C$3*SetUp!$C$4,"Y",INDEX(SetUp!$B$15:$AO$15,ROW()-18)) -> Y | B33: =INDEX(SetUp!$B$12:$AK$13,1,ROW()-18) ->  | C33: =INDEX(SetUp!$B$12:$AK$13,2,ROW()-18) ->  | D33: =S$19 ->  | E33: =IF(OR(E$18="Y",$A33="Y"),"",CORREL(ConvScores!F$6:F$2005,ConvScores!$T$6:$T$2005)) ->  | F33: =IF(OR(F$18="Y",$A33="Y"),"",CORREL(ConvScores!G$6:G$2005,ConvScores!$T$6:$T$2005)) ->  | G33: =IF(OR(G$18="Y",$A33="Y"),"",CORREL(ConvScores!H$6:H$2005,ConvScores!$T$6:$T$2005)) ->  | H33: =IF(OR(H$18="Y",$A33="Y"),"",CORREL(ConvScores!I$6:I$2005,ConvScores!$T$6:$T$2005)) ->  | I33: =IF(OR(I$18="Y",$A33="Y"),"",CORREL(ConvScores!J$6:J$2005,ConvScores!$T$6:$T$2005)) ->  | J33: =IF(OR(J$18="Y",$A33="Y"),"",CORREL(ConvScores!K$6:K$2005,ConvScores!$T$6:$T$2005)) ->  | K33: =IF(OR(K$18="Y",$A33="Y"),"",CORREL(ConvScores!L$6:L$2005,ConvScores!$T$6:$T$2005)) ->  | L33: =IF(OR(L$18="Y",$A33="Y"),"",CORREL(ConvScores!M$6:M$2005,ConvScores!$T$6:$T$2005)) ->  | M33: =IF(OR(M$18="Y",$A33="Y"),"",CORREL(ConvScores!N$6:N$2005,ConvScores!$T$6:$T$2005)) ->  | N33: =IF(OR(N$18="Y",$A33="Y"),"",CORREL(ConvScores!O$6:O$2005,ConvScores!$T$6:$T$2005)) ->  | O33: =IF(OR(O$18="Y",$A33="Y"),"",CORREL(ConvScores!P$6:P$2005,ConvScores!$T$6:$T$2005)) ->  | P33: =IF(OR(P$18="Y",$A33="Y"),"",CORREL(ConvScores!Q$6:Q$2005,ConvScores!$T$6:$T$2005)) ->  | Q33: =IF(OR(Q$18="Y",$A33="Y"),"",CORREL(ConvScores!R$6:R$2005,ConvScores!$T$6:$T$2005)) ->  | R33: =IF(OR(R$18="Y",$A33="Y"),"",CORREL(ConvScores!S$6:S$2005,ConvScores!$T$6:$T$2005)) -> 
A34: =IF(ROW()-18>SetUp!$C$3*SetUp!$C$4,"Y",INDEX(SetUp!$B$15:$AO$15,ROW()-18)) -> Y | B34: =INDEX(SetUp!$B$12:$AK$13,1,ROW()-18) ->  | C34: =INDEX(SetUp!$B$12:$AK$13,2,ROW()-18) ->  | D34: =T$19 ->  | E34: =IF(OR(E$18="Y",$A34="Y"),"",CORREL(ConvScores!F$6:F$2005,ConvScores!U$6:$U$2005)) ->  | F34: =IF(OR(F$18="Y",$A34="Y"),"",CORREL(ConvScores!G$6:G$2005,ConvScores!$U$6:$U$2005)) ->  | G34: =IF(OR(G$18="Y",$A34="Y"),"",CORREL(ConvScores!H$6:H$2005,ConvScores!$U$6:$U$2005)) ->  | H34: =IF(OR(H$18="Y",$A34="Y"),"",CORREL(ConvScores!I$6:I$2005,ConvScores!$U$6:$U$2005)) ->  | I34: =IF(OR(I$18="Y",$A34="Y"),"",CORREL(ConvScores!J$6:J$2005,ConvScores!$U$6:$U$2005)) ->  | J34: =IF(OR(J$18="Y",$A34="Y"),"",CORREL(ConvScores!K$6:K$2005,ConvScores!$U$6:$U$2005)) ->  | K34: =IF(OR(K$18="Y",$A34="Y"),"",CORREL(ConvScores!L$6:L$2005,ConvScores!$U$6:$U$2005)) ->  | L34: =IF(OR(L$18="Y",$A34="Y"),"",CORREL(ConvScores!M$6:M$2005,ConvScores!$U$6:$U$2005)) ->  | M34: =IF(OR(M$18="Y",$A34="Y"),"",CORREL(ConvScores!N$6:N$2005,ConvScores!$U$6:$U$2005)) ->  | N34: =IF(OR(N$18="Y",$A34="Y"),"",CORREL(ConvScores!O$6:O$2005,ConvScores!$U$6:$U$2005)) ->  | O34: =IF(OR(O$18="Y",$A34="Y"),"",CORREL(ConvScores!P$6:P$2005,ConvScores!$U$6:$U$2005)) ->  | P34: =IF(OR(P$18="Y",$A34="Y"),"",CORREL(ConvScores!Q$6:Q$2005,ConvScores!$U$6:$U$2005)) ->  | Q34: =IF(OR(Q$18="Y",$A34="Y"),"",CORREL(ConvScores!R$6:R$2005,ConvScores!$U$6:$U$2005)) ->  | R34: =IF(OR(R$18="Y",$A34="Y"),"",CORREL(ConvScores!S$6:S$2005,ConvScores!$U$6:$U$2005)) ->  | S34: =IF(OR(S$18="Y",$A34="Y"),"",CORREL(ConvScores!T$6:T$2005,ConvScores!$U$6:$U$2005)) -> 
A35: =IF(ROW()-18>SetUp!$C$3*SetUp!$C$4,"Y",INDEX(SetUp!$B$15:$AO$15,ROW()-18)) -> Y | B35: =INDEX(SetUp!$B$12:$AK$13,1,ROW()-18) ->  | C35: =INDEX(SetUp!$B$12:$AK$13,2,ROW()-18) ->  | D35: =U$19 ->  | E35: =IF(OR(E$18="Y",$A35="Y"),"",CORREL(ConvScores!F$6:F$2005,ConvScores!$V$6:$V$2005)) ->  | F35: =IF(OR(F$18="Y",$A35="Y"),"",CORREL(ConvScores!G$6:G$2005,ConvScores!$V$6:$V$2005)) ->  | G35: =IF(OR(G$18="Y",$A35="Y"),"",CORREL(ConvScores!H$6:H$2005,ConvScores!$V$6:$V$2005)) ->  | H35: =IF(OR(H$18="Y",$A35="Y"),"",CORREL(ConvScores!I$6:I$2005,ConvScores!$V$6:$V$2005)) ->  | I35: =IF(OR(I$18="Y",$A35="Y"),"",CORREL(ConvScores!J$6:J$2005,ConvScores!$V$6:$V$2005)) ->  | J35: =IF(OR(J$18="Y",$A35="Y"),"",CORREL(ConvScores!K$6:K$2005,ConvScores!$V$6:$V$2005)) ->  | K35: =IF(OR(K$18="Y",$A35="Y"),"",CORREL(ConvScores!L$6:L$2005,ConvScores!$V$6:$V$2005)) ->  | L35: =IF(OR(L$18="Y",$A35="Y"),"",CORREL(ConvScores!M$6:M$2005,ConvScores!$V$6:$V$2005)) ->  | M35: =IF(OR(M$18="Y",$A35="Y"),"",CORREL(ConvScores!N$6:N$2005,ConvScores!$V$6:$V$2005)) ->  | N35: =IF(OR(N$18="Y",$A35="Y"),"",CORREL(ConvScores!O$6:O$2005,ConvScores!$V$6:$V$2005)) ->  | O35: =IF(OR(O$18="Y",$A35="Y"),"",CORREL(ConvScores!P$6:P$2005,ConvScores!$V$6:$V$2005)) ->  | P35: =IF(OR(P$18="Y",$A35="Y"),"",CORREL(ConvScores!Q$6:Q$2005,ConvScores!$V$6:$V$2005)) ->  | Q35: =IF(OR(Q$18="Y",$A35="Y"),"",CORREL(ConvScores!R$6:R$2005,ConvScores!$V$6:$V$2005)) ->  | R35: =IF(OR(R$18="Y",$A35="Y"),"",CORREL(ConvScores!S$6:S$2005,ConvScores!$V$6:$V$2005)) ->  | S35: =IF(OR(S$18="Y",$A35="Y"),"",CORREL(ConvScores!T$6:T$2005,ConvScores!$V$6:$V$2005)) ->  | T35: =IF(OR(T$18="Y",$A35="Y"),"",CORREL(ConvScores!U$6:U$2005,ConvScores!$V$6:$V$2005)) -> 
A36: =IF(ROW()-18>SetUp!$C$3*SetUp!$C$4,"Y",INDEX(SetUp!$B$15:$AO$15,ROW()-18)) -> Y | B36: =INDEX(SetUp!$B$12:$AK$13,1,ROW()-18) ->  | C36: =INDEX(SetUp!$B$12:$AK$13,2,ROW()-18) ->  | D36: =V$19 ->  | E36: =IF(OR(E$18="Y",$A36="Y"),"",CORREL(ConvScores!F$6:F$2005,ConvScores!$W$6:$W$2005)) ->  | F36: =IF(OR(F$18="Y",$A36="Y"),"",CORREL(ConvScores!G$6:G$2005,ConvScores!$W$6:$W$2005)) ->  | G36: =IF(OR(G$18="Y",$A36="Y"),"",CORREL(ConvScores!H$6:H$2005,ConvScores!$W$6:$W$2005)) ->  | H36: =IF(OR(H$18="Y",$A36="Y"),"",CORREL(ConvScores!I$6:I$2005,ConvScores!$W$6:$W$2005)) ->  | I36: =IF(OR(I$18="Y",$A36="Y"),"",CORREL(ConvScores!J$6:J$2005,ConvScores!$W$6:$W$2005)) ->  | J36: =IF(OR(J$18="Y",$A36="Y"),"",CORREL(ConvScores!K$6:K$2005,ConvScores!$W$6:$W$2005)) ->  | K36: =IF(OR(K$18="Y",$A36="Y"),"",CORREL(ConvScores!L$6:L$2005,ConvScores!$W$6:$W$2005)) ->  | L36: =IF(OR(L$18="Y",$A36="Y"),"",CORREL(ConvScores!M$6:M$2005,ConvScores!$W$6:$W$2005)) ->  | M36: =IF(OR(M$18="Y",$A36="Y"),"",CORREL(ConvScores!N$6:N$2005,ConvScores!$W$6:$W$2005)) ->  | N36: =IF(OR(N$18="Y",$A36="Y"),"",CORREL(ConvScores!O$6:O$2005,ConvScores!$W$6:$W$2005)) ->  | O36: =IF(OR(O$18="Y",$A36="Y"),"",CORREL(ConvScores!P$6:P$2005,ConvScores!$W$6:$W$2005)) ->  | P36: =IF(OR(P$18="Y",$A36="Y"),"",CORREL(ConvScores!Q$6:Q$2005,ConvScores!$W$6:$W$2005)) ->  | Q36: =IF(OR(Q$18="Y",$A36="Y"),"",CORREL(ConvScores!R$6:R$2005,ConvScores!$W$6:$W$2005)) ->  | R36: =IF(OR(R$18="Y",$A36="Y"),"",CORREL(ConvScores!S$6:S$2005,ConvScores!$W$6:$W$2005)) ->  | S36: =IF(OR(S$18="Y",$A36="Y"),"",CORREL(ConvScores!T$6:T$2005,ConvScores!$W$6:$W$2005)) ->  | T36: =IF(OR(T$18="Y",$A36="Y"),"",CORREL(ConvScores!U$6:U$2005,ConvScores!$W$6:$W$2005)) ->  | U36: =IF(OR(U$18="Y",$A36="Y"),"",CORREL(ConvScores!V$6:V$2005,ConvScores!$W$6:$W$2005)) -> 
A37: =IF(ROW()-18>SetUp!$C$3*SetUp!$C$4,"Y",INDEX(SetUp!$B$15:$AO$15,ROW()-18)) -> Y | B37: =INDEX(SetUp!$B$12:$AK$13,1,ROW()-18) ->  | C37: =INDEX(SetUp!$B$12:$AK$13,2,ROW()-18) ->  | D37: =W$19 ->  | E37: =IF(OR(E$18="Y",$A37="Y"),"",CORREL(ConvScores!F$6:F$2005,ConvScores!$X$6:$X$2005)) ->  | F37: =IF(OR(F$18="Y",$A37="Y"),"",CORREL(ConvScores!G$6:G$2005,ConvScores!$X$6:$X$2005)) ->  | G37: =IF(OR(G$18="Y",$A37="Y"),"",CORREL(ConvScores!H$6:H$2005,ConvScores!$X$6:$X$2005)) ->  | H37: =IF(OR(H$18="Y",$A37="Y"),"",CORREL(ConvScores!I$6:I$2005,ConvScores!$X$6:$X$2005)) ->  | I37: =IF(OR(I$18="Y",$A37="Y"),"",CORREL(ConvScores!J$6:J$2005,ConvScores!$X$6:$X$2005)) ->  | J37: =IF(OR(J$18="Y",$A37="Y"),"",CORREL(ConvScores!K$6:K$2005,ConvScores!$X$6:$X$2005)) ->  | K37: =IF(OR(K$18="Y",$A37="Y"),"",CORREL(ConvScores!L$6:L$2005,ConvScores!$X$6:$X$2005)) ->  | L37: =IF(OR(L$18="Y",$A37="Y"),"",CORREL(ConvScores!M$6:M$2005,ConvScores!$X$6:$X$2005)) ->  | M37: =IF(OR(M$18="Y",$A37="Y"),"",CORREL(ConvScores!N$6:N$2005,ConvScores!$X$6:$X$2005)) ->  | N37: =IF(OR(N$18="Y",$A37="Y"),"",CORREL(ConvScores!O$6:O$2005,ConvScores!$X$6:$X$2005)) ->  | O37: =IF(OR(O$18="Y",$A37="Y"),"",CORREL(ConvScores!P$6:P$2005,ConvScores!$X$6:$X$2005)) ->  | P37: =IF(OR(P$18="Y",$A37="Y"),"",CORREL(ConvScores!Q$6:Q$2005,ConvScores!$X$6:$X$2005)) ->  | Q37: =IF(OR(Q$18="Y",$A37="Y"),"",CORREL(ConvScores!R$6:R$2005,ConvScores!$X$6:$X$2005)) ->  | R37: =IF(OR(R$18="Y",$A37="Y"),"",CORREL(ConvScores!S$6:S$2005,ConvScores!$X$6:$X$2005)) ->  | S37: =IF(OR(S$18="Y",$A37="Y"),"",CORREL(ConvScores!T$6:T$2005,ConvScores!$X$6:$X$2005)) ->  | T37: =IF(OR(T$18="Y",$A37="Y"),"",CORREL(ConvScores!U$6:U$2005,ConvScores!$X$6:$X$2005)) ->  | U37: =IF(OR(U$18="Y",$A37="Y"),"",CORREL(ConvScores!V$6:V$2005,ConvScores!$X$6:$X$2005)) ->  | V37: =IF(OR(V$18="Y",$A37="Y"),"",CORREL(ConvScores!W$6:W$2005,ConvScores!$X$6:$X$2005)) -> 
A38: =IF(ROW()-18>SetUp!$C$3*SetUp!$C$4,"Y",INDEX(SetUp!$B$15:$AO$15,ROW()-18)) -> Y | B38: =INDEX(SetUp!$B$12:$AK$13,1,ROW()-18) ->  | C38: =INDEX(SetUp!$B$12:$AK$13,2,ROW()-18) ->  | D38: =X$19 ->  | E38: =IF(OR(E$18="Y",$A38="Y"),"",CORREL(ConvScores!F$6:F$2005,ConvScores!$Y$6:$Y$2005)) ->  | F38: =IF(OR(F$18="Y",$A38="Y"),"",CORREL(ConvScores!G$6:G$2005,ConvScores!$Y$6:$Y$2005)) ->  | G38: =IF(OR(G$18="Y",$A38="Y"),"",CORREL(ConvScores!H$6:H$2005,ConvScores!$Y$6:$Y$2005)) ->  | H38: =IF(OR(H$18="Y",$A38="Y"),"",CORREL(ConvScores!I$6:I$2005,ConvScores!$Y$6:$Y$2005)) ->  | I38: =IF(OR(I$18="Y",$A38="Y"),"",CORREL(ConvScores!J$6:J$2005,ConvScores!$Y$6:$Y$2005)) ->  | J38: =IF(OR(J$18="Y",$A38="Y"),"",CORREL(ConvScores!K$6:K$2005,ConvScores!$Y$6:$Y$2005)) ->  | K38: =IF(OR(K$18="Y",$A38="Y"),"",CORREL(ConvScores!L$6:L$2005,ConvScores!$Y$6:$Y$2005)) ->  | L38: =IF(OR(L$18="Y",$A38="Y"),"",CORREL(ConvScores!M$6:M$2005,ConvScores!$Y$6:$Y$2005)) ->  | M38: =IF(OR(M$18="Y",$A38="Y"),"",CORREL(ConvScores!N$6:N$2005,ConvScores!$Y$6:$Y$2005)) ->  | N38: =IF(OR(N$18="Y",$A38="Y"),"",CORREL(ConvScores!O$6:O$2005,ConvScores!$Y$6:$Y$2005)) ->  | O38: =IF(OR(O$18="Y",$A38="Y"),"",CORREL(ConvScores!P$6:P$2005,ConvScores!$Y$6:$Y$2005)) ->  | P38: =IF(OR(P$18="Y",$A38="Y"),"",CORREL(ConvScores!Q$6:Q$2005,ConvScores!$Y$6:$Y$2005)) ->  | Q38: =IF(OR(Q$18="Y",$A38="Y"),"",CORREL(ConvScores!R$6:R$2005,ConvScores!$Y$6:$Y$2005)) ->  | R38: =IF(OR(R$18="Y",$A38="Y"),"",CORREL(ConvScores!S$6:S$2005,ConvScores!$Y$6:$Y$2005)) ->  | S38: =IF(OR(S$18="Y",$A38="Y"),"",CORREL(ConvScores!T$6:T$2005,ConvScores!$Y$6:$Y$2005)) ->  | T38: =IF(OR(T$18="Y",$A38="Y"),"",CORREL(ConvScores!U$6:U$2005,ConvScores!$Y$6:$Y$2005)) ->  | U38: =IF(OR(U$18="Y",$A38="Y"),"",CORREL(ConvScores!V$6:V$2005,ConvScores!$Y$6:$Y$2005)) ->  | V38: =IF(OR(V$18="Y",$A38="Y"),"",CORREL(ConvScores!W$6:W$2005,ConvScores!$Y$6:$Y$2005)) ->  | W38: =IF(OR(W$18="Y",$A38="Y"),"",CORREL(ConvScores!X$6:X$2005,ConvScores!$Y$6:$Y$2005)) -> 
A39: =IF(ROW()-18>SetUp!$C$3*SetUp!$C$4,"Y",INDEX(SetUp!$B$15:$AO$15,ROW()-18)) -> Y | B39: =INDEX(SetUp!$B$12:$AK$13,1,ROW()-18) ->  | C39: =INDEX(SetUp!$B$12:$AK$13,2,ROW()-18) ->  | D39: =Y$19 ->  | E39: =IF(OR(E$18="Y",$A39="Y"),"",CORREL(ConvScores!F$6:F$2005,ConvScores!$Z$6:$Z$2005)) ->  | F39: =IF(OR(F$18="Y",$A39="Y"),"",CORREL(ConvScores!G$6:G$2005,ConvScores!$Z$6:$Z$2005)) ->  | G39: =IF(OR(G$18="Y",$A39="Y"),"",CORREL(ConvScores!H$6:H$2005,ConvScores!$Z$6:$Z$2005)) ->  | H39: =IF(OR(H$18="Y",$A39="Y"),"",CORREL(ConvScores!I$6:I$2005,ConvScores!$Z$6:$Z$2005)) ->  | I39: =IF(OR(I$18="Y",$A39="Y"),"",CORREL(ConvScores!J$6:J$2005,ConvScores!$Z$6:$Z$2005)) ->  | J39: =IF(OR(J$18="Y",$A39="Y"),"",CORREL(ConvScores!K$6:K$2005,ConvScores!$Z$6:$Z$2005)) ->  | K39: =IF(OR(K$18="Y",$A39="Y"),"",CORREL(ConvScores!L$6:L$2005,ConvScores!$Z$6:$Z$2005)) ->  | L39: =IF(OR(L$18="Y",$A39="Y"),"",CORREL(ConvScores!M$6:M$2005,ConvScores!$Z$6:$Z$2005)) ->  | M39: =IF(OR(M$18="Y",$A39="Y"),"",CORREL(ConvScores!N$6:N$2005,ConvScores!$Z$6:$Z$2005)) ->  | N39: =IF(OR(N$18="Y",$A39="Y"),"",CORREL(ConvScores!O$6:O$2005,ConvScores!$Z$6:$Z$2005)) ->  | O39: =IF(OR(O$18="Y",$A39="Y"),"",CORREL(ConvScores!P$6:P$2005,ConvScores!$Z$6:$Z$2005)) ->  | P39: =IF(OR(P$18="Y",$A39="Y"),"",CORREL(ConvScores!Q$6:Q$2005,ConvScores!$Z$6:$Z$2005)) ->  | Q39: =IF(OR(Q$18="Y",$A39="Y"),"",CORREL(ConvScores!R$6:R$2005,ConvScores!$Z$6:$Z$2005)) ->  | R39: =IF(OR(R$18="Y",$A39="Y"),"",CORREL(ConvScores!S$6:S$2005,ConvScores!$Z$6:$Z$2005)) ->  | S39: =IF(OR(S$18="Y",$A39="Y"),"",CORREL(ConvScores!T$6:T$2005,ConvScores!$Z$6:$Z$2005)) ->  | T39: =IF(OR(T$18="Y",$A39="Y"),"",CORREL(ConvScores!U$6:U$2005,ConvScores!$Z$6:$Z$2005)) ->  | U39: =IF(OR(U$18="Y",$A39="Y"),"",CORREL(ConvScores!V$6:V$2005,ConvScores!$Z$6:$Z$2005)) ->  | V39: =IF(OR(V$18="Y",$A39="Y"),"",CORREL(ConvScores!W$6:W$2005,ConvScores!$Z$6:$Z$2005)) ->  | W39: =IF(OR(W$18="Y",$A39="Y"),"",CORREL(ConvScores!X$6:X$2005,ConvScores!$Z$6:$Z$2005)) ->  | X39: =IF(OR(X$18="Y",$A39="Y"),"",CORREL(ConvScores!Y$6:Y$2005,ConvScores!$Z$6:$Z$2005)) -> 
A40: =IF(ROW()-18>SetUp!$C$3*SetUp!$C$4,"Y",INDEX(SetUp!$B$15:$AO$15,ROW()-18)) -> Y | B40: =INDEX(SetUp!$B$12:$AK$13,1,ROW()-18) ->  | C40: =INDEX(SetUp!$B$12:$AK$13,2,ROW()-18) ->  | D40: =Z$19 ->  | E40: =IF(OR(E$18="Y",$A40="Y"),"",CORREL(ConvScores!F$6:F$2005,ConvScores!$AA$6:$AA$2005)) ->  | F40: =IF(OR(F$18="Y",$A40="Y"),"",CORREL(ConvScores!G$6:G$2005,ConvScores!$AA$6:$AA$2005)) ->  | G40: =IF(OR(G$18="Y",$A40="Y"),"",CORREL(ConvScores!H$6:H$2005,ConvScores!$AA$6:$AA$2005)) ->  | H40: =IF(OR(H$18="Y",$A40="Y"),"",CORREL(ConvScores!I$6:I$2005,ConvScores!$AA$6:$AA$2005)) ->  | I40: =IF(OR(I$18="Y",$A40="Y"),"",CORREL(ConvScores!J$6:J$2005,ConvScores!$AA$6:$AA$2005)) ->  | J40: =IF(OR(J$18="Y",$A40="Y"),"",CORREL(ConvScores!K$6:K$2005,ConvScores!$AA$6:$AA$2005)) ->  | K40: =IF(OR(K$18="Y",$A40="Y"),"",CORREL(ConvScores!L$6:L$2005,ConvScores!$AA$6:$AA$2005)) ->  | L40: =IF(OR(L$18="Y",$A40="Y"),"",CORREL(ConvScores!M$6:M$2005,ConvScores!$AA$6:$AA$2005)) ->  | M40: =IF(OR(M$18="Y",$A40="Y"),"",CORREL(ConvScores!N$6:N$2005,ConvScores!$AA$6:$AA$2005)) ->  | N40: =IF(OR(N$18="Y",$A40="Y"),"",CORREL(ConvScores!O$6:O$2005,ConvScores!$AA$6:$AA$2005)) ->  | O40: =IF(OR(O$18="Y",$A40="Y"),"",CORREL(ConvScores!P$6:P$2005,ConvScores!$AA$6:$AA$2005)) ->  | P40: =IF(OR(P$18="Y",$A40="Y"),"",CORREL(ConvScores!Q$6:Q$2005,ConvScores!$AA$6:$AA$2005)) ->  | Q40: =IF(OR(Q$18="Y",$A40="Y"),"",CORREL(ConvScores!R$6:R$2005,ConvScores!$AA$6:$AA$2005)) ->  | R40: =IF(OR(R$18="Y",$A40="Y"),"",CORREL(ConvScores!S$6:S$2005,ConvScores!$AA$6:$AA$2005)) ->  | S40: =IF(OR(S$18="Y",$A40="Y"),"",CORREL(ConvScores!T$6:T$2005,ConvScores!$AA$6:$AA$2005)) ->  | T40: =IF(OR(T$18="Y",$A40="Y"),"",CORREL(ConvScores!U$6:U$2005,ConvScores!$AA$6:$AA$2005)) ->  | U40: =IF(OR(U$18="Y",$A40="Y"),"",CORREL(ConvScores!V$6:V$2005,ConvScores!$AA$6:$AA$2005)) ->  | V40: =IF(OR(V$18="Y",$A40="Y"),"",CORREL(ConvScores!W$6:W$2005,ConvScores!$AA$6:$AA$2005)) ->  | W40: =IF(OR(W$18="Y",$A40="Y"),"",CORREL(ConvScores!X$6:X$2005,ConvScores!$AA$6:$AA$2005)) ->  | X40: =IF(OR(X$18="Y",$A40="Y"),"",CORREL(ConvScores!Y$6:Y$2005,ConvScores!$AA$6:$AA$2005)) ->  | Y40: =IF(OR(Y$18="Y",$A40="Y"),"",CORREL(ConvScores!Z$6:Z$2005,ConvScores!$AA$6:$AA$2005)) -> 
A41: =IF(ROW()-18>SetUp!$C$3*SetUp!$C$4,"Y",INDEX(SetUp!$B$15:$AO$15,ROW()-18)) -> Y | B41: =INDEX(SetUp!$B$12:$AK$13,1,ROW()-18) ->  | C41: =INDEX(SetUp!$B$12:$AK$13,2,ROW()-18) ->  | D41: =AA$19 ->  | E41: =IF(OR(E$18="Y",$A41="Y"),"",CORREL(ConvScores!F$6:F$2005,ConvScores!$AB$6:$AB$2005)) ->  | F41: =IF(OR(F$18="Y",$A41="Y"),"",CORREL(ConvScores!G$6:G$2005,ConvScores!$AB$6:$AB$2005)) ->  | G41: =IF(OR(G$18="Y",$A41="Y"),"",CORREL(ConvScores!H$6:H$2005,ConvScores!$AB$6:$AB$2005)) ->  | H41: =IF(OR(H$18="Y",$A41="Y"),"",CORREL(ConvScores!I$6:I$2005,ConvScores!$AB$6:$AB$2005)) ->  | I41: =IF(OR(I$18="Y",$A41="Y"),"",CORREL(ConvScores!J$6:J$2005,ConvScores!$AB$6:$AB$2005)) ->  | J41: =IF(OR(J$18="Y",$A41="Y"),"",CORREL(ConvScores!K$6:K$2005,ConvScores!$AB$6:$AB$2005)) ->  | K41: =IF(OR(K$18="Y",$A41="Y"),"",CORREL(ConvScores!L$6:L$2005,ConvScores!$AB$6:$AB$2005)) ->  | L41: =IF(OR(L$18="Y",$A41="Y"),"",CORREL(ConvScores!M$6:M$2005,ConvScores!$AB$6:$AB$2005)) ->  | M41: =IF(OR(M$18="Y",$A41="Y"),"",CORREL(ConvScores!N$6:N$2005,ConvScores!$AB$6:$AB$2005)) ->  | N41: =IF(OR(N$18="Y",$A41="Y"),"",CORREL(ConvScores!O$6:O$2005,ConvScores!$AB$6:$AB$2005)) ->  | O41: =IF(OR(O$18="Y",$A41="Y"),"",CORREL(ConvScores!P$6:P$2005,ConvScores!$AB$6:$AB$2005)) ->  | P41: =IF(OR(P$18="Y",$A41="Y"),"",CORREL(ConvScores!Q$6:Q$2005,ConvScores!$AB$6:$AB$2005)) ->  | Q41: =IF(OR(Q$18="Y",$A41="Y"),"",CORREL(ConvScores!R$6:R$2005,ConvScores!$AB$6:$AB$2005)) ->  | R41: =IF(OR(R$18="Y",$A41="Y"),"",CORREL(ConvScores!S$6:S$2005,ConvScores!$AB$6:$AB$2005)) ->  | S41: =IF(OR(S$18="Y",$A41="Y"),"",CORREL(ConvScores!T$6:T$2005,ConvScores!$AB$6:$AB$2005)) ->  | T41: =IF(OR(T$18="Y",$A41="Y"),"",CORREL(ConvScores!U$6:U$2005,ConvScores!$AB$6:$AB$2005)) ->  | U41: =IF(OR(U$18="Y",$A41="Y"),"",CORREL(ConvScores!V$6:V$2005,ConvScores!$AB$6:$AB$2005)) ->  | V41: =IF(OR(V$18="Y",$A41="Y"),"",CORREL(ConvScores!W$6:W$2005,ConvScores!$AB$6:$AB$2005)) ->  | W41: =IF(OR(W$18="Y",$A41="Y"),"",CORREL(ConvScores!X$6:X$2005,ConvScores!$AB$6:$AB$2005)) ->  | X41: =IF(OR(X$18="Y",$A41="Y"),"",CORREL(ConvScores!Y$6:Y$2005,ConvScores!$AB$6:$AB$2005)) ->  | Y41: =IF(OR(Y$18="Y",$A41="Y"),"",CORREL(ConvScores!Z$6:Z$2005,ConvScores!$AB$6:$AB$2005)) ->  | Z41: =IF(OR(Z$18="Y",$A41="Y"),"",CORREL(ConvScores!AA$6:AA$2005,ConvScores!$AB$6:$AB$2005)) -> 
A42: =IF(ROW()-18>SetUp!$C$3*SetUp!$C$4,"Y",INDEX(SetUp!$B$15:$AO$15,ROW()-18)) -> Y | B42: =INDEX(SetUp!$B$12:$AK$13,1,ROW()-18) ->  | C42: =INDEX(SetUp!$B$12:$AK$13,2,ROW()-18) ->  | D42: =AB$19 ->  | E42: =IF(OR(E$18="Y",$A42="Y"),"",CORREL(ConvScores!F$6:F$2005,ConvScores!$AC$6:$AC$2005)) ->  | F42: =IF(OR(F$18="Y",$A42="Y"),"",CORREL(ConvScores!G$6:G$2005,ConvScores!$AC$6:$AC$2005)) ->  | G42: =IF(OR(G$18="Y",$A42="Y"),"",CORREL(ConvScores!H$6:H$2005,ConvScores!$AC$6:$AC$2005)) ->  | H42: =IF(OR(H$18="Y",$A42="Y"),"",CORREL(ConvScores!I$6:I$2005,ConvScores!$AC$6:$AC$2005)) ->  | I42: =IF(OR(I$18="Y",$A42="Y"),"",CORREL(ConvScores!J$6:J$2005,ConvScores!$AC$6:$AC$2005)) ->  | J42: =IF(OR(J$18="Y",$A42="Y"),"",CORREL(ConvScores!K$6:K$2005,ConvScores!$AC$6:$AC$2005)) ->  | K42: =IF(OR(K$18="Y",$A42="Y"),"",CORREL(ConvScores!L$6:L$2005,ConvScores!$AC$6:$AC$2005)) ->  | L42: =IF(OR(L$18="Y",$A42="Y"),"",CORREL(ConvScores!M$6:M$2005,ConvScores!$AC$6:$AC$2005)) ->  | M42: =IF(OR(M$18="Y",$A42="Y"),"",CORREL(ConvScores!N$6:N$2005,ConvScores!$AC$6:$AC$2005)) ->  | N42: =IF(OR(N$18="Y",$A42="Y"),"",CORREL(ConvScores!O$6:O$2005,ConvScores!$AC$6:$AC$2005)) ->  | O42: =IF(OR(O$18="Y",$A42="Y"),"",CORREL(ConvScores!P$6:P$2005,ConvScores!$AC$6:$AC$2005)) ->  | P42: =IF(OR(P$18="Y",$A42="Y"),"",CORREL(ConvScores!Q$6:Q$2005,ConvScores!$AC$6:$AC$2005)) ->  | Q42: =IF(OR(Q$18="Y",$A42="Y"),"",CORREL(ConvScores!R$6:R$2005,ConvScores!$AC$6:$AC$2005)) ->  | R42: =IF(OR(R$18="Y",$A42="Y"),"",CORREL(ConvScores!S$6:S$2005,ConvScores!$AC$6:$AC$2005)) ->  | S42: =IF(OR(S$18="Y",$A42="Y"),"",CORREL(ConvScores!T$6:T$2005,ConvScores!$AC$6:$AC$2005)) ->  | T42: =IF(OR(T$18="Y",$A42="Y"),"",CORREL(ConvScores!U$6:U$2005,ConvScores!$AC$6:$AC$2005)) ->  | U42: =IF(OR(U$18="Y",$A42="Y"),"",CORREL(ConvScores!V$6:V$2005,ConvScores!$AC$6:$AC$2005)) ->  | V42: =IF(OR(V$18="Y",$A42="Y"),"",CORREL(ConvScores!W$6:W$2005,ConvScores!$AC$6:$AC$2005)) ->  | W42: =IF(OR(W$18="Y",$A42="Y"),"",CORREL(ConvScores!X$6:X$2005,ConvScores!$AC$6:$AC$2005)) ->  | X42: =IF(OR(X$18="Y",$A42="Y"),"",CORREL(ConvScores!Y$6:Y$2005,ConvScores!$AC$6:$AC$2005)) ->  | Y42: =IF(OR(Y$18="Y",$A42="Y"),"",CORREL(ConvScores!Z$6:Z$2005,ConvScores!$AC$6:$AC$2005)) ->  | Z42: =IF(OR(Z$18="Y",$A42="Y"),"",CORREL(ConvScores!AA$6:AA$2005,ConvScores!$AC$6:$AC$2005)) ->  | AA42: =IF(OR(AA$18="Y",$A42="Y"),"",CORREL(ConvScores!AB$6:AB$2005,ConvScores!$AC$6:$AC$2005)) -> 
A43: =IF(ROW()-18>SetUp!$C$3*SetUp!$C$4,"Y",INDEX(SetUp!$B$15:$AO$15,ROW()-18)) -> Y | B43: =INDEX(SetUp!$B$12:$AK$13,1,ROW()-18) ->  | C43: =INDEX(SetUp!$B$12:$AK$13,2,ROW()-18) ->  | D43: =AC$19 ->  | E43: =IF(OR(E$18="Y",$A43="Y"),"",CORREL(ConvScores!F$6:F$2005,ConvScores!$AD$6:$AD$2005)) ->  | F43: =IF(OR(F$18="Y",$A43="Y"),"",CORREL(ConvScores!G$6:G$2005,ConvScores!$AD$6:$AD$2005)) ->  | G43: =IF(OR(G$18="Y",$A43="Y"),"",CORREL(ConvScores!H$6:H$2005,ConvScores!$AD$6:$AD$2005)) ->  | H43: =IF(OR(H$18="Y",$A43="Y"),"",CORREL(ConvScores!I$6:I$2005,ConvScores!$AD$6:$AD$2005)) ->  | I43: =IF(OR(I$18="Y",$A43="Y"),"",CORREL(ConvScores!J$6:J$2005,ConvScores!$AD$6:$AD$2005)) ->  | J43: =IF(OR(J$18="Y",$A43="Y"),"",CORREL(ConvScores!K$6:K$2005,ConvScores!$AD$6:$AD$2005)) ->  | K43: =IF(OR(K$18="Y",$A43="Y"),"",CORREL(ConvScores!L$6:L$2005,ConvScores!$AD$6:$AD$2005)) ->  | L43: =IF(OR(L$18="Y",$A43="Y"),"",CORREL(ConvScores!M$6:M$2005,ConvScores!$AD$6:$AD$2005)) ->  | M43: =IF(OR(M$18="Y",$A43="Y"),"",CORREL(ConvScores!N$6:N$2005,ConvScores!$AD$6:$AD$2005)) ->  | N43: =IF(OR(N$18="Y",$A43="Y"),"",CORREL(ConvScores!O$6:O$2005,ConvScores!$AD$6:$AD$2005)) ->  | O43: =IF(OR(O$18="Y",$A43="Y"),"",CORREL(ConvScores!P$6:P$2005,ConvScores!$AD$6:$AD$2005)) ->  | P43: =IF(OR(P$18="Y",$A43="Y"),"",CORREL(ConvScores!Q$6:Q$2005,ConvScores!$AD$6:$AD$2005)) ->  | Q43: =IF(OR(Q$18="Y",$A43="Y"),"",CORREL(ConvScores!R$6:R$2005,ConvScores!$AD$6:$AD$2005)) ->  | R43: =IF(OR(R$18="Y",$A43="Y"),"",CORREL(ConvScores!S$6:S$2005,ConvScores!$AD$6:$AD$2005)) ->  | S43: =IF(OR(S$18="Y",$A43="Y"),"",CORREL(ConvScores!T$6:T$2005,ConvScores!$AD$6:$AD$2005)) ->  | T43: =IF(OR(T$18="Y",$A43="Y"),"",CORREL(ConvScores!U$6:U$2005,ConvScores!$AD$6:$AD$2005)) ->  | U43: =IF(OR(U$18="Y",$A43="Y"),"",CORREL(ConvScores!V$6:V$2005,ConvScores!$AD$6:$AD$2005)) ->  | V43: =IF(OR(V$18="Y",$A43="Y"),"",CORREL(ConvScores!W$6:W$2005,ConvScores!$AD$6:$AD$2005)) ->  | W43: =IF(OR(W$18="Y",$A43="Y"),"",CORREL(ConvScores!X$6:X$2005,ConvScores!$AD$6:$AD$2005)) ->  | X43: =IF(OR(X$18="Y",$A43="Y"),"",CORREL(ConvScores!Y$6:Y$2005,ConvScores!$AD$6:$AD$2005)) ->  | Y43: =IF(OR(Y$18="Y",$A43="Y"),"",CORREL(ConvScores!Z$6:Z$2005,ConvScores!$AD$6:$AD$2005)) ->  | Z43: =IF(OR(Z$18="Y",$A43="Y"),"",CORREL(ConvScores!AA$6:AA$2005,ConvScores!$AD$6:$AD$2005)) ->  | AA43: =IF(OR(AA$18="Y",$A43="Y"),"",CORREL(ConvScores!AB$6:AB$2005,ConvScores!$AD$6:$AD$2005)) ->  | AB43: =IF(OR(AB$18="Y",$A43="Y"),"",CORREL(ConvScores!AC$6:AC$999,ConvScores!$AD$6:$AD$999)) -> 
A44: =IF(ROW()-18>SetUp!$C$3*SetUp!$C$4,"Y",INDEX(SetUp!$B$15:$AO$15,ROW()-18)) -> Y | B44: =INDEX(SetUp!$B$12:$AK$13,1,ROW()-18) ->  | C44: =INDEX(SetUp!$B$12:$AK$13,2,ROW()-18) ->  | D44: =AD$19 ->  | E44: =IF(OR(E$18="Y",$A44="Y"),"",CORREL(ConvScores!F$6:F$2005,ConvScores!$AE$6:$AE$2005)) ->  | F44: =IF(OR(F$18="Y",$A44="Y"),"",CORREL(ConvScores!G$6:G$2005,ConvScores!$AE$6:$AE$2005)) ->  | G44: =IF(OR(G$18="Y",$A44="Y"),"",CORREL(ConvScores!H$6:H$2005,ConvScores!$AE$6:$AE$2005)) ->  | H44: =IF(OR(H$18="Y",$A44="Y"),"",CORREL(ConvScores!I$6:I$2005,ConvScores!$AE$6:$AE$2005)) ->  | I44: =IF(OR(I$18="Y",$A44="Y"),"",CORREL(ConvScores!J$6:J$2005,ConvScores!$AE$6:$AE$2005)) ->  | J44: =IF(OR(J$18="Y",$A44="Y"),"",CORREL(ConvScores!K$6:K$2005,ConvScores!$AE$6:$AE$2005)) ->  | K44: =IF(OR(K$18="Y",$A44="Y"),"",CORREL(ConvScores!L$6:L$2005,ConvScores!$AE$6:$AE$2005)) ->  | L44: =IF(OR(L$18="Y",$A44="Y"),"",CORREL(ConvScores!M$6:M$2005,ConvScores!$AE$6:$AE$2005)) ->  | M44: =IF(OR(M$18="Y",$A44="Y"),"",CORREL(ConvScores!N$6:N$2005,ConvScores!$AE$6:$AE$2005)) ->  | N44: =IF(OR(N$18="Y",$A44="Y"),"",CORREL(ConvScores!O$6:O$2005,ConvScores!$AE$6:$AE$2005)) ->  | O44: =IF(OR(O$18="Y",$A44="Y"),"",CORREL(ConvScores!P$6:P$2005,ConvScores!$AE$6:$AE$2005)) ->  | P44: =IF(OR(P$18="Y",$A44="Y"),"",CORREL(ConvScores!Q$6:Q$2005,ConvScores!$AE$6:$AE$2005)) ->  | Q44: =IF(OR(Q$18="Y",$A44="Y"),"",CORREL(ConvScores!R$6:R$2005,ConvScores!$AE$6:$AE$2005)) ->  | R44: =IF(OR(R$18="Y",$A44="Y"),"",CORREL(ConvScores!S$6:S$2005,ConvScores!$AE$6:$AE$2005)) ->  | S44: =IF(OR(S$18="Y",$A44="Y"),"",CORREL(ConvScores!T$6:T$2005,ConvScores!$AE$6:$AE$2005)) ->  | T44: =IF(OR(T$18="Y",$A44="Y"),"",CORREL(ConvScores!U$6:U$2005,ConvScores!$AE$6:$AE$2005)) ->  | U44: =IF(OR(U$18="Y",$A44="Y"),"",CORREL(ConvScores!V$6:V$2005,ConvScores!$AE$6:$AE$2005)) ->  | V44: =IF(OR(V$18="Y",$A44="Y"),"",CORREL(ConvScores!W$6:W$2005,ConvScores!$AE$6:$AE$2005)) ->  | W44: =IF(OR(W$18="Y",$A44="Y"),"",CORREL(ConvScores!X$6:X$2005,ConvScores!$AE$6:$AE$2005)) ->  | X44: =IF(OR(X$18="Y",$A44="Y"),"",CORREL(ConvScores!Y$6:Y$2005,ConvScores!$AE$6:$AE$2005)) ->  | Y44: =IF(OR(Y$18="Y",$A44="Y"),"",CORREL(ConvScores!Z$6:Z$2005,ConvScores!$AE$6:$AE$2005)) ->  | Z44: =IF(OR(Z$18="Y",$A44="Y"),"",CORREL(ConvScores!AA$6:AA$2005,ConvScores!$AE$6:$AE$2005)) ->  | AA44: =IF(OR(AA$18="Y",$A44="Y"),"",CORREL(ConvScores!AB$6:AB$2005,ConvScores!$AE$6:$AE$2005)) ->  | AB44: =IF(OR(AB$18="Y",$A44="Y"),"",CORREL(ConvScores!AC$6:AC$999,ConvScores!$AE$6:$AE$999)) ->  | AC44: =IF(OR(AC$18="Y",$A44="Y"),"",CORREL(ConvScores!AD$6:AD$999,ConvScores!$AE$6:$AE$999)) -> 
A45: =IF(ROW()-18>SetUp!$C$3*SetUp!$C$4,"Y",INDEX(SetUp!$B$15:$AO$15,ROW()-18)) -> Y | B45: =INDEX(SetUp!$B$12:$AK$13,1,ROW()-18) ->  | C45: =INDEX(SetUp!$B$12:$AK$13,2,ROW()-18) ->  | D45: =AE$19 ->  | E45: =IF(OR(E$18="Y",$A45="Y"),"",CORREL(ConvScores!F$6:F$2005,ConvScores!$AF$6:$AF$2005)) ->  | F45: =IF(OR(F$18="Y",$A45="Y"),"",CORREL(ConvScores!G$6:G$2005,ConvScores!$AF$6:$AF$2005)) ->  | G45: =IF(OR(G$18="Y",$A45="Y"),"",CORREL(ConvScores!H$6:H$2005,ConvScores!$AF$6:$AF$2005)) ->  | H45: =IF(OR(H$18="Y",$A45="Y"),"",CORREL(ConvScores!I$6:I$2005,ConvScores!$AF$6:$AF$2005)) ->  | I45: =IF(OR(I$18="Y",$A45="Y"),"",CORREL(ConvScores!J$6:J$2005,ConvScores!$AF$6:$AF$2005)) ->  | J45: =IF(OR(J$18="Y",$A45="Y"),"",CORREL(ConvScores!K$6:K$2005,ConvScores!$AF$6:$AF$2005)) ->  | K45: =IF(OR(K$18="Y",$A45="Y"),"",CORREL(ConvScores!L$6:L$2005,ConvScores!$AF$6:$AF$2005)) ->  | L45: =IF(OR(L$18="Y",$A45="Y"),"",CORREL(ConvScores!M$6:M$2005,ConvScores!$AF$6:$AF$2005)) ->  | M45: =IF(OR(M$18="Y",$A45="Y"),"",CORREL(ConvScores!N$6:N$2005,ConvScores!$AF$6:$AF$2005)) ->  | N45: =IF(OR(N$18="Y",$A45="Y"),"",CORREL(ConvScores!O$6:O$2005,ConvScores!$AF$6:$AF$2005)) ->  | O45: =IF(OR(O$18="Y",$A45="Y"),"",CORREL(ConvScores!P$6:P$2005,ConvScores!$AF$6:$AF$2005)) ->  | P45: =IF(OR(P$18="Y",$A45="Y"),"",CORREL(ConvScores!Q$6:Q$2005,ConvScores!$AF$6:$AF$2005)) ->  | Q45: =IF(OR(Q$18="Y",$A45="Y"),"",CORREL(ConvScores!R$6:R$2005,ConvScores!$AF$6:$AF$2005)) ->  | R45: =IF(OR(R$18="Y",$A45="Y"),"",CORREL(ConvScores!S$6:S$2005,ConvScores!$AF$6:$AF$2005)) ->  | S45: =IF(OR(S$18="Y",$A45="Y"),"",CORREL(ConvScores!T$6:T$2005,ConvScores!$AF$6:$AF$2005)) ->  | T45: =IF(OR(T$18="Y",$A45="Y"),"",CORREL(ConvScores!U$6:U$2005,ConvScores!$AF$6:$AF$2005)) ->  | U45: =IF(OR(U$18="Y",$A45="Y"),"",CORREL(ConvScores!V$6:V$2005,ConvScores!$AF$6:$AF$2005)) ->  | V45: =IF(OR(V$18="Y",$A45="Y"),"",CORREL(ConvScores!W$6:W$2005,ConvScores!$AF$6:$AF$2005)) ->  | W45: =IF(OR(W$18="Y",$A45="Y"),"",CORREL(ConvScores!X$6:X$2005,ConvScores!$AF$6:$AF$2005)) ->  | X45: =IF(OR(X$18="Y",$A45="Y"),"",CORREL(ConvScores!Y$6:Y$2005,ConvScores!$AF$6:$AF$2005)) ->  | Y45: =IF(OR(Y$18="Y",$A45="Y"),"",CORREL(ConvScores!Z$6:Z$2005,ConvScores!$AF$6:$AF$2005)) ->  | Z45: =IF(OR(Z$18="Y",$A45="Y"),"",CORREL(ConvScores!AA$6:AA$2005,ConvScores!$AF$6:$AF$2005)) ->  | AA45: =IF(OR(AA$18="Y",$A45="Y"),"",CORREL(ConvScores!AB$6:AB$2005,ConvScores!$AF$6:$AF$2005)) ->  | AB45: =IF(OR(AB$18="Y",$A45="Y"),"",CORREL(ConvScores!AC$6:AC$999,ConvScores!$AF$6:$AF$999)) ->  | AC45: =IF(OR(AC$18="Y",$A45="Y"),"",CORREL(ConvScores!AD$6:AD$999,ConvScores!$AF$6:$AF$999)) ->  | AD45: =IF(OR(AD$18="Y",$A45="Y"),"",CORREL(ConvScores!AE$6:AE$999,ConvScores!$AF$6:$AF$999)) -> 
A46: =IF(ROW()-18>SetUp!$C$3*SetUp!$C$4,"Y",INDEX(SetUp!$B$15:$AO$15,ROW()-18)) -> Y | B46: =INDEX(SetUp!$B$12:$AK$13,1,ROW()-18) ->  | C46: =INDEX(SetUp!$B$12:$AK$13,2,ROW()-18) ->  | D46: =AF$19 ->  | E46: =IF(OR(E$18="Y",$A46="Y"),"",CORREL(ConvScores!F$6:F$2005,ConvScores!$AG$6:$AG$2005)) ->  | F46: =IF(OR(F$18="Y",$A46="Y"),"",CORREL(ConvScores!G$6:G$2005,ConvScores!$AG$6:$AG$2005)) ->  | G46: =IF(OR(G$18="Y",$A46="Y"),"",CORREL(ConvScores!H$6:H$2005,ConvScores!$AG$6:$AG$2005)) ->  | H46: =IF(OR(H$18="Y",$A46="Y"),"",CORREL(ConvScores!I$6:I$2005,ConvScores!$AG$6:$AG$2005)) ->  | I46: =IF(OR(I$18="Y",$A46="Y"),"",CORREL(ConvScores!J$6:J$2005,ConvScores!$AG$6:$AG$2005)) ->  | J46: =IF(OR(J$18="Y",$A46="Y"),"",CORREL(ConvScores!K$6:K$2005,ConvScores!$AG$6:$AG$2005)) ->  | K46: =IF(OR(K$18="Y",$A46="Y"),"",CORREL(ConvScores!L$6:L$2005,ConvScores!$AG$6:$AG$2005)) ->  | L46: =IF(OR(L$18="Y",$A46="Y"),"",CORREL(ConvScores!M$6:M$2005,ConvScores!$AG$6:$AG$2005)) ->  | M46: =IF(OR(M$18="Y",$A46="Y"),"",CORREL(ConvScores!N$6:N$2005,ConvScores!$AG$6:$AG$2005)) ->  | N46: =IF(OR(N$18="Y",$A46="Y"),"",CORREL(ConvScores!O$6:O$2005,ConvScores!$AG$6:$AG$2005)) ->  | O46: =IF(OR(O$18="Y",$A46="Y"),"",CORREL(ConvScores!P$6:P$2005,ConvScores!$AG$6:$AG$2005)) ->  | P46: =IF(OR(P$18="Y",$A46="Y"),"",CORREL(ConvScores!Q$6:Q$2005,ConvScores!$AG$6:$AG$2005)) ->  | Q46: =IF(OR(Q$18="Y",$A46="Y"),"",CORREL(ConvScores!R$6:R$2005,ConvScores!$AG$6:$AG$2005)) ->  | R46: =IF(OR(R$18="Y",$A46="Y"),"",CORREL(ConvScores!S$6:S$2005,ConvScores!$AG$6:$AG$2005)) ->  | S46: =IF(OR(S$18="Y",$A46="Y"),"",CORREL(ConvScores!T$6:T$2005,ConvScores!$AG$6:$AG$2005)) ->  | T46: =IF(OR(T$18="Y",$A46="Y"),"",CORREL(ConvScores!U$6:U$2005,ConvScores!$AG$6:$AG$2005)) ->  | U46: =IF(OR(U$18="Y",$A46="Y"),"",CORREL(ConvScores!V$6:V$2005,ConvScores!$AG$6:$AG$2005)) ->  | V46: =IF(OR(V$18="Y",$A46="Y"),"",CORREL(ConvScores!W$6:W$2005,ConvScores!$AG$6:$AG$2005)) ->  | W46: =IF(OR(W$18="Y",$A46="Y"),"",CORREL(ConvScores!X$6:X$2005,ConvScores!$AG$6:$AG$2005)) ->  | X46: =IF(OR(X$18="Y",$A46="Y"),"",CORREL(ConvScores!Y$6:Y$2005,ConvScores!$AG$6:$AG$2005)) ->  | Y46: =IF(OR(Y$18="Y",$A46="Y"),"",CORREL(ConvScores!Z$6:Z$2005,ConvScores!$AG$6:$AG$2005)) ->  | Z46: =IF(OR(Z$18="Y",$A46="Y"),"",CORREL(ConvScores!AA$6:AA$2005,ConvScores!$AG$6:$AG$2005)) ->  | AA46: =IF(OR(AA$18="Y",$A46="Y"),"",CORREL(ConvScores!AB$6:AB$2005,ConvScores!$AG$6:$AG$2005)) ->  | AB46: =IF(OR(AB$18="Y",$A46="Y"),"",CORREL(ConvScores!AC$6:AC$999,ConvScores!$AG$6:$AG$999)) ->  | AC46: =IF(OR(AC$18="Y",$A46="Y"),"",CORREL(ConvScores!AD$6:AD$999,ConvScores!$AG$6:$AG$999)) ->  | AD46: =IF(OR(AD$18="Y",$A46="Y"),"",CORREL(ConvScores!AE$6:AE$999,ConvScores!$AG$6:$AG$999)) ->  | AE46: =IF(OR(AE$18="Y",$A46="Y"),"",CORREL(ConvScores!AF$6:AF$999,ConvScores!$AG$6:$AG$999)) -> 
A47: =IF(ROW()-18>SetUp!$C$3*SetUp!$C$4,"Y",INDEX(SetUp!$B$15:$AO$15,ROW()-18)) -> Y | B47: =INDEX(SetUp!$B$12:$AK$13,1,ROW()-18) ->  | C47: =INDEX(SetUp!$B$12:$AK$13,2,ROW()-18) ->  | D47: =AG$19 ->  | E47: =IF(OR(E$18="Y",$A47="Y"),"",CORREL(ConvScores!F$6:F$2005,ConvScores!$AH$6:$AH$2005)) ->  | F47: =IF(OR(F$18="Y",$A47="Y"),"",CORREL(ConvScores!G$6:G$2005,ConvScores!$AH$6:$AH$2005)) ->  | G47: =IF(OR(G$18="Y",$A47="Y"),"",CORREL(ConvScores!H$6:H$2005,ConvScores!$AH$6:$AH$2005)) ->  | H47: =IF(OR(H$18="Y",$A47="Y"),"",CORREL(ConvScores!I$6:I$2005,ConvScores!$AH$6:$AH$2005)) ->  | I47: =IF(OR(I$18="Y",$A47="Y"),"",CORREL(ConvScores!J$6:J$2005,ConvScores!$AH$6:$AH$2005)) ->  | J47: =IF(OR(J$18="Y",$A47="Y"),"",CORREL(ConvScores!K$6:K$2005,ConvScores!$AH$6:$AH$2005)) ->  | K47: =IF(OR(K$18="Y",$A47="Y"),"",CORREL(ConvScores!L$6:L$2005,ConvScores!$AH$6:$AH$2005)) ->  | L47: =IF(OR(L$18="Y",$A47="Y"),"",CORREL(ConvScores!M$6:M$2005,ConvScores!$AH$6:$AH$2005)) ->  | M47: =IF(OR(M$18="Y",$A47="Y"),"",CORREL(ConvScores!N$6:N$2005,ConvScores!$AH$6:$AH$2005)) ->  | N47: =IF(OR(N$18="Y",$A47="Y"),"",CORREL(ConvScores!O$6:O$2005,ConvScores!$AH$6:$AH$2005)) ->  | O47: =IF(OR(O$18="Y",$A47="Y"),"",CORREL(ConvScores!P$6:P$2005,ConvScores!$AH$6:$AH$2005)) ->  | P47: =IF(OR(P$18="Y",$A47="Y"),"",CORREL(ConvScores!Q$6:Q$2005,ConvScores!$AH$6:$AH$2005)) ->  | Q47: =IF(OR(Q$18="Y",$A47="Y"),"",CORREL(ConvScores!R$6:R$2005,ConvScores!$AH$6:$AH$2005)) ->  | R47: =IF(OR(R$18="Y",$A47="Y"),"",CORREL(ConvScores!S$6:S$2005,ConvScores!$AH$6:$AH$2005)) ->  | S47: =IF(OR(S$18="Y",$A47="Y"),"",CORREL(ConvScores!T$6:T$2005,ConvScores!$AH$6:$AH$2005)) ->  | T47: =IF(OR(T$18="Y",$A47="Y"),"",CORREL(ConvScores!U$6:U$2005,ConvScores!$AH$6:$AH$2005)) ->  | U47: =IF(OR(U$18="Y",$A47="Y"),"",CORREL(ConvScores!V$6:V$2005,ConvScores!$AH$6:$AH$2005)) ->  | V47: =IF(OR(V$18="Y",$A47="Y"),"",CORREL(ConvScores!W$6:W$2005,ConvScores!$AH$6:$AH$2005)) ->  | W47: =IF(OR(W$18="Y",$A47="Y"),"",CORREL(ConvScores!X$6:X$2005,ConvScores!$AH$6:$AH$2005)) ->  | X47: =IF(OR(X$18="Y",$A47="Y"),"",CORREL(ConvScores!Y$6:Y$2005,ConvScores!$AH$6:$AH$2005)) ->  | Y47: =IF(OR(Y$18="Y",$A47="Y"),"",CORREL(ConvScores!Z$6:Z$2005,ConvScores!$AH$6:$AH$2005)) ->  | Z47: =IF(OR(Z$18="Y",$A47="Y"),"",CORREL(ConvScores!AA$6:AA$2005,ConvScores!$AH$6:$AH$2005)) ->  | AA47: =IF(OR(AA$18="Y",$A47="Y"),"",CORREL(ConvScores!AB$6:AB$2005,ConvScores!$AH$6:$AH$2005)) ->  | AB47: =IF(OR(AB$18="Y",$A47="Y"),"",CORREL(ConvScores!AC$6:AC$999,ConvScores!$AH$6:$AH$999)) ->  | AC47: =IF(OR(AC$18="Y",$A47="Y"),"",CORREL(ConvScores!AD$6:AD$999,ConvScores!$AH$6:$AH$999)) ->  | AD47: =IF(OR(AD$18="Y",$A47="Y"),"",CORREL(ConvScores!AE$6:AE$999,ConvScores!$AH$6:$AH$999)) ->  | AE47: =IF(OR(AE$18="Y",$A47="Y"),"",CORREL(ConvScores!AF$6:AF$999,ConvScores!$AH$6:$AH$999)) ->  | AF47: =IF(OR(AF$18="Y",$A47="Y"),"",CORREL(ConvScores!AG$6:AG$999,ConvScores!$AH$6:$AH$999)) -> 
A48: =IF(ROW()-18>SetUp!$C$3*SetUp!$C$4,"Y",INDEX(SetUp!$B$15:$AO$15,ROW()-18)) -> Y | B48: =INDEX(SetUp!$B$12:$AK$13,1,ROW()-18) ->  | C48: =INDEX(SetUp!$B$12:$AK$13,2,ROW()-18) ->  | D48: =AH$19 ->  | E48: =IF(OR(E$18="Y",$A48="Y"),"",CORREL(ConvScores!F$6:F$2005,ConvScores!$AI$6:$AI$2005)) ->  | F48: =IF(OR(F$18="Y",$A48="Y"),"",CORREL(ConvScores!G$6:G$2005,ConvScores!$AI$6:$AI$2005)) ->  | G48: =IF(OR(G$18="Y",$A48="Y"),"",CORREL(ConvScores!H$6:H$2005,ConvScores!$AI$6:$AI$2005)) ->  | H48: =IF(OR(H$18="Y",$A48="Y"),"",CORREL(ConvScores!I$6:I$2005,ConvScores!$AI$6:$AI$2005)) ->  | I48: =IF(OR(I$18="Y",$A48="Y"),"",CORREL(ConvScores!J$6:J$2005,ConvScores!$AI$6:$AI$2005)) ->  | J48: =IF(OR(J$18="Y",$A48="Y"),"",CORREL(ConvScores!K$6:K$2005,ConvScores!$AI$6:$AI$2005)) ->  | K48: =IF(OR(K$18="Y",$A48="Y"),"",CORREL(ConvScores!L$6:L$2005,ConvScores!$AI$6:$AI$2005)) ->  | L48: =IF(OR(L$18="Y",$A48="Y"),"",CORREL(ConvScores!M$6:M$2005,ConvScores!$AI$6:$AI$2005)) ->  | M48: =IF(OR(M$18="Y",$A48="Y"),"",CORREL(ConvScores!N$6:N$2005,ConvScores!$AI$6:$AI$2005)) ->  | N48: =IF(OR(N$18="Y",$A48="Y"),"",CORREL(ConvScores!O$6:O$2005,ConvScores!$AI$6:$AI$2005)) ->  | O48: =IF(OR(O$18="Y",$A48="Y"),"",CORREL(ConvScores!P$6:P$2005,ConvScores!$AI$6:$AI$2005)) ->  | P48: =IF(OR(P$18="Y",$A48="Y"),"",CORREL(ConvScores!Q$6:Q$2005,ConvScores!$AI$6:$AI$2005)) ->  | Q48: =IF(OR(Q$18="Y",$A48="Y"),"",CORREL(ConvScores!R$6:R$2005,ConvScores!$AI$6:$AI$2005)) ->  | R48: =IF(OR(R$18="Y",$A48="Y"),"",CORREL(ConvScores!S$6:S$2005,ConvScores!$AI$6:$AI$2005)) ->  | S48: =IF(OR(S$18="Y",$A48="Y"),"",CORREL(ConvScores!T$6:T$2005,ConvScores!$AI$6:$AI$2005)) ->  | T48: =IF(OR(T$18="Y",$A48="Y"),"",CORREL(ConvScores!U$6:U$2005,ConvScores!$AI$6:$AI$2005)) ->  | U48: =IF(OR(U$18="Y",$A48="Y"),"",CORREL(ConvScores!V$6:V$2005,ConvScores!$AI$6:$AI$2005)) ->  | V48: =IF(OR(V$18="Y",$A48="Y"),"",CORREL(ConvScores!W$6:W$2005,ConvScores!$AI$6:$AI$2005)) ->  | W48: =IF(OR(W$18="Y",$A48="Y"),"",CORREL(ConvScores!X$6:X$2005,ConvScores!$AI$6:$AI$2005)) ->  | X48: =IF(OR(X$18="Y",$A48="Y"),"",CORREL(ConvScores!Y$6:Y$2005,ConvScores!$AI$6:$AI$2005)) ->  | Y48: =IF(OR(Y$18="Y",$A48="Y"),"",CORREL(ConvScores!Z$6:Z$2005,ConvScores!$AI$6:$AI$2005)) ->  | Z48: =IF(OR(Z$18="Y",$A48="Y"),"",CORREL(ConvScores!AA$6:AA$2005,ConvScores!$AI$6:$AI$2005)) ->  | AA48: =IF(OR(AA$18="Y",$A48="Y"),"",CORREL(ConvScores!AB$6:AB$2005,ConvScores!$AI$6:$AI$2005)) ->  | AB48: =IF(OR(AB$18="Y",$A48="Y"),"",CORREL(ConvScores!AC$6:AC$999,ConvScores!$AI$6:$AI$999)) ->  | AC48: =IF(OR(AC$18="Y",$A48="Y"),"",CORREL(ConvScores!AD$6:AD$999,ConvScores!$AI$6:$AI$999)) ->  | AD48: =IF(OR(AD$18="Y",$A48="Y"),"",CORREL(ConvScores!AE$6:AE$999,ConvScores!$AI$6:$AI$999)) ->  | AE48: =IF(OR(AE$18="Y",$A48="Y"),"",CORREL(ConvScores!AF$6:AF$999,ConvScores!$AI$6:$AI$999)) ->  | AF48: =IF(OR(AF$18="Y",$A48="Y"),"",CORREL(ConvScores!AG$6:AG$999,ConvScores!$AI$6:$AI$999)) ->  | AG48: =IF(OR(AG$18="Y",$A48="Y"),"",CORREL(ConvScores!AH$6:AH$999,ConvScores!$AI$6:$AI$999)) -> 
A49: =IF(ROW()-18>SetUp!$C$3*SetUp!$C$4,"Y",INDEX(SetUp!$B$15:$AO$15,ROW()-18)) -> Y | B49: =INDEX(SetUp!$B$12:$AK$13,1,ROW()-18) ->  | C49: =INDEX(SetUp!$B$12:$AK$13,2,ROW()-18) ->  | D49: =AI$19 ->  | E49: =IF(OR(E$18="Y",$A49="Y"),"",CORREL(ConvScores!F$6:F$2005,ConvScores!$AJ$6:$AJ$2005)) ->  | F49: =IF(OR(F$18="Y",$A49="Y"),"",CORREL(ConvScores!G$6:G$2005,ConvScores!$AJ$6:$AJ$2005)) ->  | G49: =IF(OR(G$18="Y",$A49="Y"),"",CORREL(ConvScores!H$6:H$2005,ConvScores!$AJ$6:$AJ$2005)) ->  | H49: =IF(OR(H$18="Y",$A49="Y"),"",CORREL(ConvScores!I$6:I$2005,ConvScores!$AJ$6:$AJ$2005)) ->  | I49: =IF(OR(I$18="Y",$A49="Y"),"",CORREL(ConvScores!J$6:J$2005,ConvScores!$AJ$6:$AJ$2005)) ->  | J49: =IF(OR(J$18="Y",$A49="Y"),"",CORREL(ConvScores!K$6:K$2005,ConvScores!$AJ$6:$AJ$2005)) ->  | K49: =IF(OR(K$18="Y",$A49="Y"),"",CORREL(ConvScores!L$6:L$2005,ConvScores!$AJ$6:$AJ$2005)) ->  | L49: =IF(OR(L$18="Y",$A49="Y"),"",CORREL(ConvScores!M$6:M$2005,ConvScores!$AJ$6:$AJ$2005)) ->  | M49: =IF(OR(M$18="Y",$A49="Y"),"",CORREL(ConvScores!N$6:N$2005,ConvScores!$AJ$6:$AJ$2005)) ->  | N49: =IF(OR(N$18="Y",$A49="Y"),"",CORREL(ConvScores!O$6:O$2005,ConvScores!$AJ$6:$AJ$2005)) ->  | O49: =IF(OR(O$18="Y",$A49="Y"),"",CORREL(ConvScores!P$6:P$2005,ConvScores!$AJ$6:$AJ$2005)) ->  | P49: =IF(OR(P$18="Y",$A49="Y"),"",CORREL(ConvScores!Q$6:Q$2005,ConvScores!$AJ$6:$AJ$2005)) ->  | Q49: =IF(OR(Q$18="Y",$A49="Y"),"",CORREL(ConvScores!R$6:R$2005,ConvScores!$AJ$6:$AJ$2005)) ->  | R49: =IF(OR(R$18="Y",$A49="Y"),"",CORREL(ConvScores!S$6:S$2005,ConvScores!$AJ$6:$AJ$2005)) ->  | S49: =IF(OR(S$18="Y",$A49="Y"),"",CORREL(ConvScores!T$6:T$2005,ConvScores!$AJ$6:$AJ$2005)) ->  | T49: =IF(OR(T$18="Y",$A49="Y"),"",CORREL(ConvScores!U$6:U$2005,ConvScores!$AJ$6:$AJ$2005)) ->  | U49: =IF(OR(U$18="Y",$A49="Y"),"",CORREL(ConvScores!V$6:V$2005,ConvScores!$AJ$6:$AJ$2005)) ->  | V49: =IF(OR(V$18="Y",$A49="Y"),"",CORREL(ConvScores!W$6:W$2005,ConvScores!$AJ$6:$AJ$2005)) ->  | W49: =IF(OR(W$18="Y",$A49="Y"),"",CORREL(ConvScores!X$6:X$2005,ConvScores!$AJ$6:$AJ$2005)) ->  | X49: =IF(OR(X$18="Y",$A49="Y"),"",CORREL(ConvScores!Y$6:Y$2005,ConvScores!$AJ$6:$AJ$2005)) ->  | Y49: =IF(OR(Y$18="Y",$A49="Y"),"",CORREL(ConvScores!Z$6:Z$2005,ConvScores!$AJ$6:$AJ$2005)) ->  | Z49: =IF(OR(Z$18="Y",$A49="Y"),"",CORREL(ConvScores!AA$6:AA$2005,ConvScores!$AJ$6:$AJ$2005)) ->  | AA49: =IF(OR(AA$18="Y",$A49="Y"),"",CORREL(ConvScores!AB$6:AB$2005,ConvScores!$AJ$6:$AJ$2005)) ->  | AB49: =IF(OR(AB$18="Y",$A49="Y"),"",CORREL(ConvScores!AC$6:AC$999,ConvScores!$AJ$6:$AJ$999)) ->  | AC49: =IF(OR(AC$18="Y",$A49="Y"),"",CORREL(ConvScores!AD$6:AD$999,ConvScores!$AJ$6:$AJ$999)) ->  | AD49: =IF(OR(AD$18="Y",$A49="Y"),"",CORREL(ConvScores!AE$6:AE$999,ConvScores!$AJ$6:$AJ$999)) ->  | AE49: =IF(OR(AE$18="Y",$A49="Y"),"",CORREL(ConvScores!AF$6:AF$999,ConvScores!$AJ$6:$AJ$999)) ->  | AF49: =IF(OR(AF$18="Y",$A49="Y"),"",CORREL(ConvScores!AG$6:AG$999,ConvScores!$AJ$6:$AJ$999)) ->  | AG49: =IF(OR(AG$18="Y",$A49="Y"),"",CORREL(ConvScores!AH$6:AH$999,ConvScores!$AJ$6:$AJ$999)) ->  | AH49: =IF(OR(AH$18="Y",$A49="Y"),"",CORREL(ConvScores!AI$6:AI$999,ConvScores!$AJ$6:$AJ$999)) ->  | AI49: =IF(OR(AI$18="Y",$A49="Y"),"",CORREL(ConvScores!AJ$6:AJ$999,ConvScores!$AJ$6:$AJ$999)) ->  | AJ49: =IF(OR(AJ$18="Y",$A49="Y"),"",CORREL(ConvScores!AK$6:AK$999,ConvScores!$AJ$6:$AJ$999)) ->  | AK49: =IF(OR(AK$18="Y",$A49="Y"),"",CORREL(ConvScores!AL$6:AL$999,ConvScores!$AJ$6:$AJ$999)) ->  | AL49: =IF(OR(AL$18="Y",$A49="Y"),"",CORREL(ConvScores!AM$6:AM$999,ConvScores!$AJ$6:$AJ$999)) ->  | AM49: =IF(OR(AM$18="Y",$A49="Y"),"",CORREL(ConvScores!AN$6:AN$999,ConvScores!$AJ$6:$AJ$999)) ->  | AN49: =IF(OR(AN$18="Y",$A49="Y"),"",CORREL(ConvScores!AO$6:AO$999,ConvScores!$AJ$6:$AJ$999)) ->  | AO49: =IF(OR(AO$18="Y",$A49="Y"),"",CORREL(ConvScores!AP$6:AP$999,ConvScores!$AJ$6:$AJ$999)) ->  | AP49: =IF(OR(AP$18="Y",$A49="Y"),"",CORREL(ConvScores!AQ$6:AQ$999,ConvScores!$AJ$6:$AJ$999)) ->  | AQ49: =IF(OR(AQ$18="Y",$A49="Y"),"",CORREL(ConvScores!AR$7:AR$999,ConvScores!$AJ$7:$AJ$999)) -> 
A50: =IF(ROW()-18>SetUp!$C$3*SetUp!$C$4,"Y",INDEX(SetUp!$B$15:$AO$15,ROW()-18)) -> Y | B50: =INDEX(SetUp!$B$12:$AK$13,1,ROW()-18) ->  | C50: =INDEX(SetUp!$B$12:$AK$13,2,ROW()-18) ->  | D50: =AJ$19 ->  | E50: =IF(OR(E$18="Y",$A50="Y"),"",CORREL(ConvScores!F$6:F$2005,ConvScores!$AK$6:$AK$2005)) ->  | F50: =IF(OR(F$18="Y",$A50="Y"),"",CORREL(ConvScores!G$6:G$2005,ConvScores!$AK$6:$AK$2005)) ->  | G50: =IF(OR(G$18="Y",$A50="Y"),"",CORREL(ConvScores!H$6:H$2005,ConvScores!$AK$6:$AK$2005)) ->  | H50: =IF(OR(H$18="Y",$A50="Y"),"",CORREL(ConvScores!I$6:I$2005,ConvScores!$AK$6:$AK$2005)) ->  | I50: =IF(OR(I$18="Y",$A50="Y"),"",CORREL(ConvScores!J$6:J$2005,ConvScores!$AK$6:$AK$2005)) ->  | J50: =IF(OR(J$18="Y",$A50="Y"),"",CORREL(ConvScores!K$6:K$2005,ConvScores!$AK$6:$AK$2005)) ->  | K50: =IF(OR(K$18="Y",$A50="Y"),"",CORREL(ConvScores!L$6:L$2005,ConvScores!$AK$6:$AK$2005)) ->  | L50: =IF(OR(L$18="Y",$A50="Y"),"",CORREL(ConvScores!M$6:M$2005,ConvScores!$AK$6:$AK$2005)) ->  | M50: =IF(OR(M$18="Y",$A50="Y"),"",CORREL(ConvScores!N$6:N$2005,ConvScores!$AK$6:$AK$2005)) ->  | N50: =IF(OR(N$18="Y",$A50="Y"),"",CORREL(ConvScores!O$6:O$2005,ConvScores!$AK$6:$AK$2005)) ->  | O50: =IF(OR(O$18="Y",$A50="Y"),"",CORREL(ConvScores!P$6:P$2005,ConvScores!$AK$6:$AK$2005)) ->  | P50: =IF(OR(P$18="Y",$A50="Y"),"",CORREL(ConvScores!Q$6:Q$2005,ConvScores!$AK$6:$AK$2005)) ->  | Q50: =IF(OR(Q$18="Y",$A50="Y"),"",CORREL(ConvScores!R$6:R$2005,ConvScores!$AK$6:$AK$2005)) ->  | R50: =IF(OR(R$18="Y",$A50="Y"),"",CORREL(ConvScores!S$6:S$2005,ConvScores!$AK$6:$AK$2005)) ->  | S50: =IF(OR(S$18="Y",$A50="Y"),"",CORREL(ConvScores!T$6:T$2005,ConvScores!$AK$6:$AK$2005)) ->  | T50: =IF(OR(T$18="Y",$A50="Y"),"",CORREL(ConvScores!U$6:U$2005,ConvScores!$AK$6:$AK$2005)) ->  | U50: =IF(OR(U$18="Y",$A50="Y"),"",CORREL(ConvScores!V$6:V$2005,ConvScores!$AK$6:$AK$2005)) ->  | V50: =IF(OR(V$18="Y",$A50="Y"),"",CORREL(ConvScores!W$6:W$2005,ConvScores!$AK$6:$AK$2005)) ->  | W50: =IF(OR(W$18="Y",$A50="Y"),"",CORREL(ConvScores!X$6:X$2005,ConvScores!$AK$6:$AK$2005)) ->  | X50: =IF(OR(X$18="Y",$A50="Y"),"",CORREL(ConvScores!Y$6:Y$2005,ConvScores!$AK$6:$AK$2005)) ->  | Y50: =IF(OR(Y$18="Y",$A50="Y"),"",CORREL(ConvScores!Z$6:Z$2005,ConvScores!$AK$6:$AK$2005)) ->  | Z50: =IF(OR(Z$18="Y",$A50="Y"),"",CORREL(ConvScores!AA$6:AA$2005,ConvScores!$AK$6:$AK$2005)) ->  | AA50: =IF(OR(AA$18="Y",$A50="Y"),"",CORREL(ConvScores!AB$6:AB$2005,ConvScores!$AK$6:$AK$2005)) ->  | AB50: =IF(OR(AB$18="Y",$A50="Y"),"",CORREL(ConvScores!AC$6:AC$999,ConvScores!$AK$6:$AK$999)) ->  | AC50: =IF(OR(AC$18="Y",$A50="Y"),"",CORREL(ConvScores!AD$6:AD$999,ConvScores!$AK$6:$AK$999)) ->  | AD50: =IF(OR(AD$18="Y",$A50="Y"),"",CORREL(ConvScores!AE$6:AE$999,ConvScores!$AK$6:$AK$999)) ->  | AE50: =IF(OR(AE$18="Y",$A50="Y"),"",CORREL(ConvScores!AF$6:AF$999,ConvScores!$AK$6:$AK$999)) ->  | AF50: =IF(OR(AF$18="Y",$A50="Y"),"",CORREL(ConvScores!AG$6:AG$999,ConvScores!$AK$6:$AK$999)) ->  | AG50: =IF(OR(AG$18="Y",$A50="Y"),"",CORREL(ConvScores!AH$6:AH$999,ConvScores!$AK$6:$AK$999)) ->  | AH50: =IF(OR(AH$18="Y",$A50="Y"),"",CORREL(ConvScores!AI$6:AI$999,ConvScores!$AK$6:$AK$999)) ->  | AI50: =IF(OR(AI$18="Y",$A50="Y"),"",CORREL(ConvScores!AJ$6:AJ$999,ConvScores!$AK$6:$AK$999)) ->  | AJ50: =IF(OR(AJ$18="Y",$A50="Y"),"",CORREL(ConvScores!AK$6:AK$999,ConvScores!$AK$6:$AK$999)) ->  | AK50: =IF(OR(AK$18="Y",$A50="Y"),"",CORREL(ConvScores!AL$6:AL$999,ConvScores!$AK$6:$AK$999)) ->  | AL50: =IF(OR(AL$18="Y",$A50="Y"),"",CORREL(ConvScores!AM$6:AM$999,ConvScores!$AK$6:$AK$999)) ->  | AM50: =IF(OR(AM$18="Y",$A50="Y"),"",CORREL(ConvScores!AN$6:AN$999,ConvScores!$AK$6:$AK$999)) ->  | AN50: =IF(OR(AN$18="Y",$A50="Y"),"",CORREL(ConvScores!AO$6:AO$999,ConvScores!$AK$6:$AK$999)) ->  | AO50: =IF(OR(AO$18="Y",$A50="Y"),"",CORREL(ConvScores!AP$6:AP$999,ConvScores!$AK$6:$AK$999)) ->  | AP50: =IF(OR(AP$18="Y",$A50="Y"),"",CORREL(ConvScores!AQ$6:AQ$999,ConvScores!$AK$6:$AK$999)) ->  | AQ50: =IF(OR(AQ$18="Y",$A50="Y"),"",CORREL(ConvScores!AR$7:AR$999,ConvScores!$AK$7:$AK$999)) -> 
A51: =IF(ROW()-18>SetUp!$C$3*SetUp!$C$4,"Y",INDEX(SetUp!$B$15:$AO$15,ROW()-18)) -> Y | B51: =INDEX(SetUp!$B$12:$AK$13,1,ROW()-18) ->  | C51: =INDEX(SetUp!$B$12:$AK$13,2,ROW()-18) ->  | D51: =AK$19 ->  | E51: =IF(OR(E$18="Y",$A51="Y"),"",CORREL(ConvScores!F$6:F$2005,ConvScores!$AL$6:$AL$2005)) ->  | F51: =IF(OR(F$18="Y",$A51="Y"),"",CORREL(ConvScores!G$6:G$2005,ConvScores!$AL$6:$AL$2005)) ->  | G51: =IF(OR(G$18="Y",$A51="Y"),"",CORREL(ConvScores!H$6:H$2005,ConvScores!$AL$6:$AL$2005)) ->  | H51: =IF(OR(H$18="Y",$A51="Y"),"",CORREL(ConvScores!I$6:I$2005,ConvScores!$AL$6:$AL$2005)) ->  | I51: =IF(OR(I$18="Y",$A51="Y"),"",CORREL(ConvScores!J$6:J$2005,ConvScores!$AL$6:$AL$2005)) ->  | J51: =IF(OR(J$18="Y",$A51="Y"),"",CORREL(ConvScores!K$6:K$2005,ConvScores!$AL$6:$AL$2005)) ->  | K51: =IF(OR(K$18="Y",$A51="Y"),"",CORREL(ConvScores!L$6:L$2005,ConvScores!$AL$6:$AL$2005)) ->  | L51: =IF(OR(L$18="Y",$A51="Y"),"",CORREL(ConvScores!M$6:M$2005,ConvScores!$AL$6:$AL$2005)) ->  | M51: =IF(OR(M$18="Y",$A51="Y"),"",CORREL(ConvScores!N$6:N$2005,ConvScores!$AL$6:$AL$2005)) ->  | N51: =IF(OR(N$18="Y",$A51="Y"),"",CORREL(ConvScores!O$6:O$2005,ConvScores!$AL$6:$AL$2005)) ->  | O51: =IF(OR(O$18="Y",$A51="Y"),"",CORREL(ConvScores!P$6:P$2005,ConvScores!$AL$6:$AL$2005)) ->  | P51: =IF(OR(P$18="Y",$A51="Y"),"",CORREL(ConvScores!Q$6:Q$2005,ConvScores!$AL$6:$AL$2005)) ->  | Q51: =IF(OR(Q$18="Y",$A51="Y"),"",CORREL(ConvScores!R$6:R$2005,ConvScores!$AL$6:$AL$2005)) ->  | R51: =IF(OR(R$18="Y",$A51="Y"),"",CORREL(ConvScores!S$6:S$2005,ConvScores!$AL$6:$AL$2005)) ->  | S51: =IF(OR(S$18="Y",$A51="Y"),"",CORREL(ConvScores!T$6:T$2005,ConvScores!$AL$6:$AL$2005)) ->  | T51: =IF(OR(T$18="Y",$A51="Y"),"",CORREL(ConvScores!U$6:U$2005,ConvScores!$AL$6:$AL$2005)) ->  | U51: =IF(OR(U$18="Y",$A51="Y"),"",CORREL(ConvScores!V$6:V$2005,ConvScores!$AL$6:$AL$2005)) ->  | V51: =IF(OR(V$18="Y",$A51="Y"),"",CORREL(ConvScores!W$6:W$2005,ConvScores!$AL$6:$AL$2005)) ->  | W51: =IF(OR(W$18="Y",$A51="Y"),"",CORREL(ConvScores!X$6:X$2005,ConvScores!$AL$6:$AL$2005)) ->  | X51: =IF(OR(X$18="Y",$A51="Y"),"",CORREL(ConvScores!Y$6:Y$2005,ConvScores!$AL$6:$AL$2005)) ->  | Y51: =IF(OR(Y$18="Y",$A51="Y"),"",CORREL(ConvScores!Z$6:Z$2005,ConvScores!$AL$6:$AL$2005)) ->  | Z51: =IF(OR(Z$18="Y",$A51="Y"),"",CORREL(ConvScores!AA$6:AA$2005,ConvScores!$AL$6:$AL$2005)) ->  | AA51: =IF(OR(AA$18="Y",$A51="Y"),"",CORREL(ConvScores!AB$6:AB$2005,ConvScores!$AL$6:$AL$2005)) ->  | AB51: =IF(OR(AB$18="Y",$A51="Y"),"",CORREL(ConvScores!AC$6:AC$999,ConvScores!$AL$6:$AL$999)) ->  | AC51: =IF(OR(AC$18="Y",$A51="Y"),"",CORREL(ConvScores!AD$6:AD$999,ConvScores!$AL$6:$AL$999)) ->  | AD51: =IF(OR(AD$18="Y",$A51="Y"),"",CORREL(ConvScores!AE$6:AE$999,ConvScores!$AL$6:$AL$999)) ->  | AE51: =IF(OR(AE$18="Y",$A51="Y"),"",CORREL(ConvScores!AF$6:AF$999,ConvScores!$AL$6:$AL$999)) ->  | AF51: =IF(OR(AF$18="Y",$A51="Y"),"",CORREL(ConvScores!AG$6:AG$999,ConvScores!$AL$6:$AL$999)) ->  | AG51: =IF(OR(AG$18="Y",$A51="Y"),"",CORREL(ConvScores!AH$6:AH$999,ConvScores!$AL$6:$AL$999)) ->  | AH51: =IF(OR(AH$18="Y",$A51="Y"),"",CORREL(ConvScores!AI$6:AI$999,ConvScores!$AL$6:$AL$999)) ->  | AI51: =IF(OR(AI$18="Y",$A51="Y"),"",CORREL(ConvScores!AJ$6:AJ$999,ConvScores!$AL$6:$AL$999)) ->  | AJ51: =IF(OR(AJ$18="Y",$A51="Y"),"",CORREL(ConvScores!AK$6:AK$999,ConvScores!$AL$6:$AL$999)) ->  | AK51: =IF(OR(AK$18="Y",$A51="Y"),"",CORREL(ConvScores!AL$6:AL$999,ConvScores!$AL$6:$AL$999)) ->  | AL51: =IF(OR(AL$18="Y",$A51="Y"),"",CORREL(ConvScores!AM$6:AM$999,ConvScores!$AL$6:$AL$999)) ->  | AM51: =IF(OR(AM$18="Y",$A51="Y"),"",CORREL(ConvScores!AN$6:AN$999,ConvScores!$AL$6:$AL$999)) ->  | AN51: =IF(OR(AN$18="Y",$A51="Y"),"",CORREL(ConvScores!AO$6:AO$999,ConvScores!$AL$6:$AL$999)) ->  | AO51: =IF(OR(AO$18="Y",$A51="Y"),"",CORREL(ConvScores!AP$6:AP$999,ConvScores!$AL$6:$AL$999)) ->  | AP51: =IF(OR(AP$18="Y",$A51="Y"),"",CORREL(ConvScores!AQ$6:AQ$999,ConvScores!$AL$6:$AL$999)) ->  | AQ51: =IF(OR(AQ$18="Y",$A51="Y"),"",CORREL(ConvScores!AR$7:AR$999,ConvScores!$AL$7:$AL$999)) ->  | AR51: =IF(OR(AR$18="Y",$A51="Y"),"",CORREL(ConvScores!AS$7:AS$999,ConvScores!$AL$7:$AL$999)) -> 
A52: =IF(ROW()-18>SetUp!$C$3*SetUp!$C$4,"Y",INDEX(SetUp!$B$15:$AO$15,ROW()-18)) -> Y | B52: =INDEX(SetUp!$B$12:$AK$13,1,ROW()-18) ->  | C52: =INDEX(SetUp!$B$12:$AK$13,2,ROW()-18) ->  | D52: =AL$19 ->  | E52: =IF(OR(E$18="Y",$A52="Y"),"",CORREL(ConvScores!F$6:F$2005,ConvScores!$AM$6:$AM$2005)) ->  | F52: =IF(OR(F$18="Y",$A52="Y"),"",CORREL(ConvScores!G$6:G$2005,ConvScores!$AM$6:$AM$2005)) ->  | G52: =IF(OR(G$18="Y",$A52="Y"),"",CORREL(ConvScores!H$6:H$2005,ConvScores!$AM$6:$AM$2005)) ->  | H52: =IF(OR(H$18="Y",$A52="Y"),"",CORREL(ConvScores!I$6:I$2005,ConvScores!$AM$6:$AM$2005)) ->  | I52: =IF(OR(I$18="Y",$A52="Y"),"",CORREL(ConvScores!J$6:J$2005,ConvScores!$AM$6:$AM$2005)) ->  | J52: =IF(OR(J$18="Y",$A52="Y"),"",CORREL(ConvScores!K$6:K$2005,ConvScores!$AM$6:$AM$2005)) ->  | K52: =IF(OR(K$18="Y",$A52="Y"),"",CORREL(ConvScores!L$6:L$2005,ConvScores!$AM$6:$AM$2005)) ->  | L52: =IF(OR(L$18="Y",$A52="Y"),"",CORREL(ConvScores!M$6:M$2005,ConvScores!$AM$6:$AM$2005)) ->  | M52: =IF(OR(M$18="Y",$A52="Y"),"",CORREL(ConvScores!N$6:N$2005,ConvScores!$AM$6:$AM$2005)) ->  | N52: =IF(OR(N$18="Y",$A52="Y"),"",CORREL(ConvScores!O$6:O$2005,ConvScores!$AM$6:$AM$2005)) ->  | O52: =IF(OR(O$18="Y",$A52="Y"),"",CORREL(ConvScores!P$6:P$2005,ConvScores!$AM$6:$AM$2005)) ->  | P52: =IF(OR(P$18="Y",$A52="Y"),"",CORREL(ConvScores!Q$6:Q$2005,ConvScores!$AM$6:$AM$2005)) ->  | Q52: =IF(OR(Q$18="Y",$A52="Y"),"",CORREL(ConvScores!R$6:R$2005,ConvScores!$AM$6:$AM$2005)) ->  | R52: =IF(OR(R$18="Y",$A52="Y"),"",CORREL(ConvScores!S$6:S$2005,ConvScores!$AM$6:$AM$2005)) ->  | S52: =IF(OR(S$18="Y",$A52="Y"),"",CORREL(ConvScores!T$6:T$2005,ConvScores!$AM$6:$AM$2005)) ->  | T52: =IF(OR(T$18="Y",$A52="Y"),"",CORREL(ConvScores!U$6:U$2005,ConvScores!$AM$6:$AM$2005)) ->  | U52: =IF(OR(U$18="Y",$A52="Y"),"",CORREL(ConvScores!V$6:V$2005,ConvScores!$AM$6:$AM$2005)) ->  | V52: =IF(OR(V$18="Y",$A52="Y"),"",CORREL(ConvScores!W$6:W$2005,ConvScores!$AM$6:$AM$2005)) ->  | W52: =IF(OR(W$18="Y",$A52="Y"),"",CORREL(ConvScores!X$6:X$2005,ConvScores!$AM$6:$AM$2005)) ->  | X52: =IF(OR(X$18="Y",$A52="Y"),"",CORREL(ConvScores!Y$6:Y$2005,ConvScores!$AM$6:$AM$2005)) ->  | Y52: =IF(OR(Y$18="Y",$A52="Y"),"",CORREL(ConvScores!Z$6:Z$2005,ConvScores!$AM$6:$AM$2005)) ->  | Z52: =IF(OR(Z$18="Y",$A52="Y"),"",CORREL(ConvScores!AA$6:AA$2005,ConvScores!$AM$6:$AM$2005)) ->  | AA52: =IF(OR(AA$18="Y",$A52="Y"),"",CORREL(ConvScores!AB$6:AB$2005,ConvScores!$AM$6:$AM$2005)) ->  | AB52: =IF(OR(AB$18="Y",$A52="Y"),"",CORREL(ConvScores!AC$6:AC$999,ConvScores!$AM$6:$AM$999)) ->  | AC52: =IF(OR(AC$18="Y",$A52="Y"),"",CORREL(ConvScores!AD$6:AD$999,ConvScores!$AM$6:$AM$999)) ->  | AD52: =IF(OR(AD$18="Y",$A52="Y"),"",CORREL(ConvScores!AE$6:AE$999,ConvScores!$AM$6:$AM$999)) ->  | AE52: =IF(OR(AE$18="Y",$A52="Y"),"",CORREL(ConvScores!AF$6:AF$999,ConvScores!$AM$6:$AM$999)) ->  | AF52: =IF(OR(AF$18="Y",$A52="Y"),"",CORREL(ConvScores!AG$6:AG$999,ConvScores!$AM$6:$AM$999)) ->  | AG52: =IF(OR(AG$18="Y",$A52="Y"),"",CORREL(ConvScores!AH$6:AH$999,ConvScores!$AM$6:$AM$999)) ->  | AH52: =IF(OR(AH$18="Y",$A52="Y"),"",CORREL(ConvScores!AI$6:AI$999,ConvScores!$AM$6:$AM$999)) ->  | AI52: =IF(OR(AI$18="Y",$A52="Y"),"",CORREL(ConvScores!AJ$6:AJ$999,ConvScores!$AM$6:$AM$999)) ->  | AJ52: =IF(OR(AJ$18="Y",$A52="Y"),"",CORREL(ConvScores!AK$6:AK$999,ConvScores!$AM$6:$AM$999)) ->  | AK52: =IF(OR(AK$18="Y",$A52="Y"),"",CORREL(ConvScores!AL$6:AL$999,ConvScores!$AM$6:$AM$999)) ->  | AL52: =IF(OR(AL$18="Y",$A52="Y"),"",CORREL(ConvScores!AM$6:AM$999,ConvScores!$AM$6:$AM$999)) ->  | AM52: =IF(OR(AM$18="Y",$A52="Y"),"",CORREL(ConvScores!AN$6:AN$999,ConvScores!$AM$6:$AM$999)) ->  | AN52: =IF(OR(AN$18="Y",$A52="Y"),"",CORREL(ConvScores!AO$6:AO$999,ConvScores!$AM$6:$AM$999)) ->  | AO52: =IF(OR(AO$18="Y",$A52="Y"),"",CORREL(ConvScores!AP$6:AP$999,ConvScores!$AM$6:$AM$999)) ->  | AP52: =IF(OR(AP$18="Y",$A52="Y"),"",CORREL(ConvScores!AQ$6:AQ$999,ConvScores!$AM$6:$AM$999)) ->  | AQ52: =IF(OR(AQ$18="Y",$A52="Y"),"",CORREL(ConvScores!AR$7:AR$999,ConvScores!$AM$7:$AM$999)) ->  | AR52: =IF(OR(AR$18="Y",$A52="Y"),"",CORREL(ConvScores!AS$7:AS$999,ConvScores!$AM$7:$AM$999)) ->  | AS52: =IF(OR(AS$18="Y",$A52="Y"),"",CORREL(ConvScores!AT$7:AT$999,ConvScores!$AM$7:$AM$999)) -> 
A53: =IF(ROW()-18>SetUp!$C$3*SetUp!$C$4,"Y",INDEX(SetUp!$B$15:$AO$15,ROW()-18)) -> Y | B53: =INDEX(SetUp!$B$12:$AK$13,1,ROW()-18) ->  | C53: =INDEX(SetUp!$B$12:$AK$13,2,ROW()-18) ->  | D53: =AM$19 ->  | E53: =IF(OR(E$18="Y",$A53="Y"),"",CORREL(ConvScores!F$6:F$2005,ConvScores!$AN$6:$AN$2005)) ->  | F53: =IF(OR(F$18="Y",$A53="Y"),"",CORREL(ConvScores!G$6:G$2005,ConvScores!$AN$6:$AN$2005)) ->  | G53: =IF(OR(G$18="Y",$A53="Y"),"",CORREL(ConvScores!H$6:H$2005,ConvScores!$AN$6:$AN$2005)) ->  | H53: =IF(OR(H$18="Y",$A53="Y"),"",CORREL(ConvScores!I$6:I$2005,ConvScores!$AN$6:$AN$2005)) ->  | I53: =IF(OR(I$18="Y",$A53="Y"),"",CORREL(ConvScores!J$6:J$2005,ConvScores!$AN$6:$AN$2005)) ->  | J53: =IF(OR(J$18="Y",$A53="Y"),"",CORREL(ConvScores!K$6:K$2005,ConvScores!$AN$6:$AN$2005)) ->  | K53: =IF(OR(K$18="Y",$A53="Y"),"",CORREL(ConvScores!L$6:L$2005,ConvScores!$AN$6:$AN$2005)) ->  | L53: =IF(OR(L$18="Y",$A53="Y"),"",CORREL(ConvScores!M$6:M$2005,ConvScores!$AN$6:$AN$2005)) ->  | M53: =IF(OR(M$18="Y",$A53="Y"),"",CORREL(ConvScores!N$6:N$2005,ConvScores!$AN$6:$AN$2005)) ->  | N53: =IF(OR(N$18="Y",$A53="Y"),"",CORREL(ConvScores!O$6:O$2005,ConvScores!$AN$6:$AN$2005)) ->  | O53: =IF(OR(O$18="Y",$A53="Y"),"",CORREL(ConvScores!P$6:P$2005,ConvScores!$AN$6:$AN$2005)) ->  | P53: =IF(OR(P$18="Y",$A53="Y"),"",CORREL(ConvScores!Q$6:Q$2005,ConvScores!$AN$6:$AN$2005)) ->  | Q53: =IF(OR(Q$18="Y",$A53="Y"),"",CORREL(ConvScores!R$6:R$2005,ConvScores!$AN$6:$AN$2005)) ->  | R53: =IF(OR(R$18="Y",$A53="Y"),"",CORREL(ConvScores!S$6:S$2005,ConvScores!$AN$6:$AN$2005)) ->  | S53: =IF(OR(S$18="Y",$A53="Y"),"",CORREL(ConvScores!T$6:T$2005,ConvScores!$AN$6:$AN$2005)) ->  | T53: =IF(OR(T$18="Y",$A53="Y"),"",CORREL(ConvScores!U$6:U$2005,ConvScores!$AN$6:$AN$2005)) ->  | U53: =IF(OR(U$18="Y",$A53="Y"),"",CORREL(ConvScores!V$6:V$2005,ConvScores!$AN$6:$AN$2005)) ->  | V53: =IF(OR(V$18="Y",$A53="Y"),"",CORREL(ConvScores!W$6:W$2005,ConvScores!$AN$6:$AN$2005)) ->  | W53: =IF(OR(W$18="Y",$A53="Y"),"",CORREL(ConvScores!X$6:X$2005,ConvScores!$AN$6:$AN$2005)) ->  | X53: =IF(OR(X$18="Y",$A53="Y"),"",CORREL(ConvScores!Y$6:Y$2005,ConvScores!$AN$6:$AN$2005)) ->  | Y53: =IF(OR(Y$18="Y",$A53="Y"),"",CORREL(ConvScores!Z$6:Z$2005,ConvScores!$AN$6:$AN$2005)) ->  | Z53: =IF(OR(Z$18="Y",$A53="Y"),"",CORREL(ConvScores!AA$6:AA$2005,ConvScores!$AN$6:$AN$2005)) ->  | AA53: =IF(OR(AA$18="Y",$A53="Y"),"",CORREL(ConvScores!AB$6:AB$2005,ConvScores!$AN$6:$AN$2005)) ->  | AB53: =IF(OR(AB$18="Y",$A53="Y"),"",CORREL(ConvScores!AC$6:AC$999,ConvScores!$AN$6:$AN$999)) ->  | AC53: =IF(OR(AC$18="Y",$A53="Y"),"",CORREL(ConvScores!AD$6:AD$999,ConvScores!$AN$6:$AN$999)) ->  | AD53: =IF(OR(AD$18="Y",$A53="Y"),"",CORREL(ConvScores!AE$6:AE$999,ConvScores!$AN$6:$AN$999)) ->  | AE53: =IF(OR(AE$18="Y",$A53="Y"),"",CORREL(ConvScores!AF$6:AF$999,ConvScores!$AN$6:$AN$999)) ->  | AF53: =IF(OR(AF$18="Y",$A53="Y"),"",CORREL(ConvScores!AG$6:AG$999,ConvScores!$AN$6:$AN$999)) ->  | AG53: =IF(OR(AG$18="Y",$A53="Y"),"",CORREL(ConvScores!AH$6:AH$999,ConvScores!$AN$6:$AN$999)) ->  | AH53: =IF(OR(AH$18="Y",$A53="Y"),"",CORREL(ConvScores!AI$6:AI$999,ConvScores!$AN$6:$AN$999)) ->  | AI53: =IF(OR(AI$18="Y",$A53="Y"),"",CORREL(ConvScores!AJ$6:AJ$999,ConvScores!$AN$6:$AN$999)) ->  | AJ53: =IF(OR(AJ$18="Y",$A53="Y"),"",CORREL(ConvScores!AK$6:AK$999,ConvScores!$AN$6:$AN$999)) ->  | AK53: =IF(OR(AK$18="Y",$A53="Y"),"",CORREL(ConvScores!AL$6:AL$999,ConvScores!$AN$6:$AN$999)) ->  | AL53: =IF(OR(AL$18="Y",$A53="Y"),"",CORREL(ConvScores!AM$6:AM$999,ConvScores!$AN$6:$AN$999)) ->  | AM53: =IF(OR(AM$18="Y",$A53="Y"),"",CORREL(ConvScores!AN$6:AN$999,ConvScores!$AN$6:$AN$999)) ->  | AN53: =IF(OR(AN$18="Y",$A53="Y"),"",CORREL(ConvScores!AO$6:AO$999,ConvScores!$AN$6:$AN$999)) ->  | AO53: =IF(OR(AO$18="Y",$A53="Y"),"",CORREL(ConvScores!AP$6:AP$999,ConvScores!$AN$6:$AN$999)) ->  | AP53: =IF(OR(AP$18="Y",$A53="Y"),"",CORREL(ConvScores!AQ$6:AQ$999,ConvScores!$AN$6:$AN$999)) ->  | AQ53: =IF(OR(AQ$18="Y",$A53="Y"),"",CORREL(ConvScores!AR$7:AR$999,ConvScores!$AN$7:$AN$999)) ->  | AR53: =IF(OR(AR$18="Y",$A53="Y"),"",CORREL(ConvScores!AS$7:AS$999,ConvScores!$AN$7:$AN$999)) ->  | AS53: =IF(OR(AS$18="Y",$A53="Y"),"",CORREL(ConvScores!AT$7:AT$999,ConvScores!$AN$7:$AN$999)) ->  | AT53: =IF(OR(AT$18="Y",$A53="Y"),"",CORREL(ConvScores!AU$7:AU$999,ConvScores!$AN$7:$AN$999)) -> 
A54: =IF(ROW()-18>SetUp!$C$3*SetUp!$C$4,"Y",INDEX(SetUp!$B$15:$AO$15,ROW()-18)) -> Y | B54: =INDEX(SetUp!$B$12:$AK$13,1,ROW()-18) ->  | C54: =INDEX(SetUp!$B$12:$AK$13,2,ROW()-18) ->  | D54: =AN$19 ->  | E54: =IF(OR(E$18="Y",$A54="Y"),"",CORREL(ConvScores!F$6:F$2005,ConvScores!$AO$6:$AO$2005)) ->  | F54: =IF(OR(F$18="Y",$A54="Y"),"",CORREL(ConvScores!G$6:G$2005,ConvScores!$AO$6:$AO$2005)) ->  | G54: =IF(OR(G$18="Y",$A54="Y"),"",CORREL(ConvScores!H$6:H$2005,ConvScores!$AO$6:$AO$2005)) ->  | H54: =IF(OR(H$18="Y",$A54="Y"),"",CORREL(ConvScores!I$6:I$2005,ConvScores!$AO$6:$AO$2005)) ->  | I54: =IF(OR(I$18="Y",$A54="Y"),"",CORREL(ConvScores!J$6:J$2005,ConvScores!$AO$6:$AO$2005)) ->  | J54: =IF(OR(J$18="Y",$A54="Y"),"",CORREL(ConvScores!K$6:K$2005,ConvScores!$AO$6:$AO$2005)) ->  | K54: =IF(OR(K$18="Y",$A54="Y"),"",CORREL(ConvScores!L$6:L$2005,ConvScores!$AO$6:$AO$2005)) ->  | L54: =IF(OR(L$18="Y",$A54="Y"),"",CORREL(ConvScores!M$6:M$2005,ConvScores!$AO$6:$AO$2005)) ->  | M54: =IF(OR(M$18="Y",$A54="Y"),"",CORREL(ConvScores!N$6:N$2005,ConvScores!$AO$6:$AO$2005)) ->  | N54: =IF(OR(N$18="Y",$A54="Y"),"",CORREL(ConvScores!O$6:O$2005,ConvScores!$AO$6:$AO$2005)) ->  | O54: =IF(OR(O$18="Y",$A54="Y"),"",CORREL(ConvScores!P$6:P$2005,ConvScores!$AO$6:$AO$2005)) ->  | P54: =IF(OR(P$18="Y",$A54="Y"),"",CORREL(ConvScores!Q$6:Q$2005,ConvScores!$AO$6:$AO$2005)) ->  | Q54: =IF(OR(Q$18="Y",$A54="Y"),"",CORREL(ConvScores!R$6:R$2005,ConvScores!$AO$6:$AO$2005)) ->  | R54: =IF(OR(R$18="Y",$A54="Y"),"",CORREL(ConvScores!S$6:S$2005,ConvScores!$AO$6:$AO$2005)) ->  | S54: =IF(OR(S$18="Y",$A54="Y"),"",CORREL(ConvScores!T$6:T$2005,ConvScores!$AO$6:$AO$2005)) ->  | T54: =IF(OR(T$18="Y",$A54="Y"),"",CORREL(ConvScores!U$6:U$2005,ConvScores!$AO$6:$AO$2005)) ->  | U54: =IF(OR(U$18="Y",$A54="Y"),"",CORREL(ConvScores!V$6:V$2005,ConvScores!$AO$6:$AO$2005)) ->  | V54: =IF(OR(V$18="Y",$A54="Y"),"",CORREL(ConvScores!W$6:W$2005,ConvScores!$AO$6:$AO$2005)) ->  | W54: =IF(OR(W$18="Y",$A54="Y"),"",CORREL(ConvScores!X$6:X$2005,ConvScores!$AO$6:$AO$2005)) ->  | X54: =IF(OR(X$18="Y",$A54="Y"),"",CORREL(ConvScores!Y$6:Y$2005,ConvScores!$AO$6:$AO$2005)) ->  | Y54: =IF(OR(Y$18="Y",$A54="Y"),"",CORREL(ConvScores!Z$6:Z$2005,ConvScores!$AO$6:$AO$2005)) ->  | Z54: =IF(OR(Z$18="Y",$A54="Y"),"",CORREL(ConvScores!AA$6:AA$2005,ConvScores!$AO$6:$AO$2005)) ->  | AA54: =IF(OR(AA$18="Y",$A54="Y"),"",CORREL(ConvScores!AB$6:AB$2005,ConvScores!$AO$6:$AO$2005)) ->  | AB54: =IF(OR(AB$18="Y",$A54="Y"),"",CORREL(ConvScores!AC$6:AC$999,ConvScores!$AO$6:$AO$999)) ->  | AC54: =IF(OR(AC$18="Y",$A54="Y"),"",CORREL(ConvScores!AD$6:AD$999,ConvScores!$AO$6:$AO$999)) ->  | AD54: =IF(OR(AD$18="Y",$A54="Y"),"",CORREL(ConvScores!AE$6:AE$999,ConvScores!$AO$6:$AO$999)) ->  | AE54: =IF(OR(AE$18="Y",$A54="Y"),"",CORREL(ConvScores!AF$6:AF$999,ConvScores!$AO$6:$AO$999)) ->  | AF54: =IF(OR(AF$18="Y",$A54="Y"),"",CORREL(ConvScores!AG$6:AG$999,ConvScores!$AO$6:$AO$999)) ->  | AG54: =IF(OR(AG$18="Y",$A54="Y"),"",CORREL(ConvScores!AH$6:AH$999,ConvScores!$AO$6:$AO$999)) ->  | AH54: =IF(OR(AH$18="Y",$A54="Y"),"",CORREL(ConvScores!AI$6:AI$999,ConvScores!$AO$6:$AO$999)) ->  | AI54: =IF(OR(AI$18="Y",$A54="Y"),"",CORREL(ConvScores!AJ$6:AJ$999,ConvScores!$AO$6:$AO$999)) ->  | AJ54: =IF(OR(AJ$18="Y",$A54="Y"),"",CORREL(ConvScores!AK$6:AK$999,ConvScores!$AO$6:$AO$999)) ->  | AK54: =IF(OR(AK$18="Y",$A54="Y"),"",CORREL(ConvScores!AL$6:AL$999,ConvScores!$AO$6:$AO$999)) ->  | AL54: =IF(OR(AL$18="Y",$A54="Y"),"",CORREL(ConvScores!AM$6:AM$999,ConvScores!$AO$6:$AO$999)) ->  | AM54: =IF(OR(AM$18="Y",$A54="Y"),"",CORREL(ConvScores!AN$6:AN$999,ConvScores!$AO$6:$AO$999)) ->  | AN54: =IF(OR(AN$18="Y",$A54="Y"),"",CORREL(ConvScores!AO$6:AO$999,ConvScores!$AO$6:$AO$999)) ->  | AO54: =IF(OR(AO$18="Y",$A54="Y"),"",CORREL(ConvScores!AP$6:AP$999,ConvScores!$AO$6:$AO$999)) ->  | AP54: =IF(OR(AP$18="Y",$A54="Y"),"",CORREL(ConvScores!AQ$6:AQ$999,ConvScores!$AO$6:$AO$999)) ->  | AQ54: =IF(OR(AQ$18="Y",$A54="Y"),"",CORREL(ConvScores!AR$7:AR$999,ConvScores!$AO$7:$AO$999)) ->  | AR54: =IF(OR(AR$18="Y",$A54="Y"),"",CORREL(ConvScores!AS$7:AS$999,ConvScores!$AO$7:$AO$999)) ->  | AS54: =IF(OR(AS$18="Y",$A54="Y"),"",CORREL(ConvScores!AT$7:AT$999,ConvScores!$AO$7:$AO$999)) ->  | AT54: =IF(OR(AT$18="Y",$A54="Y"),"",CORREL(ConvScores!AU$7:AU$999,ConvScores!$AO$7:$AO$999)) ->  | AU54: =IF(OR(AU$18="Y",$A54="Y"),"",CORREL(ConvScores!AV$7:AV$999,ConvScores!$AO$7:$AO$999)) -> 
C55: =INDEX(SetUp!$B$12:$AL$13,2,ROW()-18) -> 
C56: =INDEX(SetUp!$B$12:$AM$13,2,ROW()-18) -> 
D58: Inter Question Total Correlations
E59: 1 | F59: 2 | G59: 3 | H59: 4 | I59: 5 | J59: 6 | K59: 7 | L59: 8 | M59: 9 | N59: 10 | O59: 11 | P59: 12 | Q59: 13 | R59: 14 | S59: 15 | T59: 16 | U59: 17 | V59: 18 | W59: 19 | X59: 20 | Y59: 21 | Z59: 22 | AA59: 23 | AB59: 24 | AC59: 25 | AD59: 26 | AE59: 27 | AF59: 28 | AG59: 29 | AH59: 30 | AI59: 31 | AJ59: 32 | AK59: 33 | AL59: 34 | AM59: 35 | AN59: 36 | AO59: 37 | AP59: 38 | AQ59: 39 | AR59: 40 | AS59: 41 | AT59: 42 | AU59: 43 | AV59: 44
D60: 2 | E60: =CORREL(Rollups!Z$6:Z$1001,Rollups!$AA$6:$AA$1001) -> 0.9161341881
D61: 3 | E61: =IF(Correlations!$D61>SetUp!$C$3,"",CORREL(Rollups!Z$6:Z$1001,Rollups!$AB$6:$AB$1001)) -> 0.7249183669 | F61: =IF(VALUE(RIGHT(Correlations!$D10,1))>SetUp!$C$3,"",CORREL(Rollups!AA$6:AA$1001,Rollups!$AB$6:$AB$1001)) -> 0.9148445618
D62: 4 | E62: =IF(Correlations!$D62>SetUp!$C$3,"",CORREL(Rollups!Z$6:Z$1001,Rollups!$AC$6:$AC$1001)) -> 0.6166742249 | F62: =IF(VALUE(RIGHT(Correlations!$D11,1))>SetUp!$C$3,"",CORREL(Rollups!AA$6:AA$1001,Rollups!$AC$6:$AC$1001)) -> 0.8207913234 | G62: =IF(VALUE(RIGHT(Correlations!$D11,1))>SetUp!$C$3,"",CORREL(Rollups!AB$6:AB$1001,Rollups!$AC$6:$AC$1001)) -> 0.9696275681
D63: 5 | E63: =IF(Correlations!$D63>SetUp!$C$3,"",CORREL(Rollups!Z$6:Z$1001,Rollups!$AD$6:$AD$1001)) ->  | F63: =IF(Correlations!$D63>SetUp!$C$3,"",CORREL(Rollups!AA$6:AA$1001,Rollups!$AD$6:$AD$1001)) ->  | G63: =IF(Correlations!$D63>SetUp!$C$3,"",CORREL(Rollups!AB$6:AB$1001,Rollups!$AD$6:$AD$1001)) ->  | H63: =IF(Correlations!$D63>SetUp!$C$3,"",CORREL(Rollups!AC$6:AC$1001,Rollups!$AD$6:$AD$1001)) -> 
D64: 6 | E64: =IF(Correlations!$D64>SetUp!$C$3,"",CORREL(Rollups!Z$6:Z$1001,Rollups!$AE$6:$AE$1001)) ->  | F64: =IF(Correlations!$D64>SetUp!$C$3,"",CORREL(Rollups!AA$6:AA$1001,Rollups!$AE$6:$AE$1001)) ->  | G64: =IF(Correlations!$D64>SetUp!$C$3,"",CORREL(Rollups!AB$6:AB$1001,Rollups!$AE$6:$AE$1001)) ->  | H64: =IF(Correlations!$D64>SetUp!$C$3,"",CORREL(Rollups!AC$6:AC$1001,Rollups!$AE$6:$AE$1001)) ->  | I64: =IF(Correlations!$D64>SetUp!$C$3,"",CORREL(Rollups!AD$6:AD$1001,Rollups!$AE$6:$AE$1001)) -> 
D65: 7 | E65: =IF(Correlations!$D65>SetUp!$C$3,"",CORREL(Rollups!Z$6:Z$1001,Rollups!$AF$6:$AF$1001)) ->  | F65: =IF(Correlations!$D65>SetUp!$C$3,"",CORREL(Rollups!AA$6:AA$1001,Rollups!$AF$6:$AF$1001)) ->  | G65: =IF(Correlations!$D65>SetUp!$C$3,"",CORREL(Rollups!AB$6:AB$1001,Rollups!$AF$6:$AF$1001)) ->  | H65: =IF(Correlations!$D65>SetUp!$C$3,"",CORREL(Rollups!AC$6:AC$1001,Rollups!$AF$6:$AF$1001)) ->  | I65: =IF(Correlations!$D65>SetUp!$C$3,"",CORREL(Rollups!AD$6:AD$1001,Rollups!$AF$6:$AF$1001)) ->  | J65: =IF(Correlations!$D65>SetUp!$C$3,"",CORREL(Rollups!AE$6:AE$1001,Rollups!$AF$6:$AF$1001)) -> 
D66: 8 | E66: =IF(Correlations!$D66>SetUp!$C$3,"",CORREL(Rollups!Z$6:Z$1001,Rollups!$AG$6:$AG$1001)) ->  | F66: =IF(Correlations!$D66>SetUp!$C$3,"",CORREL(Rollups!AA$6:AA$1001,Rollups!$AG$6:$AG$1001)) ->  | G66: =IF(Correlations!$D66>SetUp!$C$3,"",CORREL(Rollups!AB$6:AB$1001,Rollups!$AG$6:$AG$1001)) ->  | H66: =IF(Correlations!$D66>SetUp!$C$3,"",CORREL(Rollups!AC$6:AC$1001,Rollups!$AG$6:$AG$1001)) ->  | I66: =IF(Correlations!$D66>SetUp!$C$3,"",CORREL(Rollups!AD$6:AD$1001,Rollups!$AG$6:$AG$1001)) ->  | J66: =IF(Correlations!$D66>SetUp!$C$3,"",CORREL(Rollups!AE$6:AE$1001,Rollups!$AG$6:$AG$1001)) ->  | K66: =IF(Correlations!$D66>SetUp!$C$3,"",CORREL(Rollups!AF$6:AF$1001,Rollups!$AG$6:$AG$1001)) -> 
D67: 9 | E67: =IF(Correlations!$D67>SetUp!$C$3,"",CORREL(Rollups!Z$6:Z$1001,Rollups!$AH$6:$AH$1001)) ->  | F67: =IF(Correlations!$D67>SetUp!$C$3,"",CORREL(Rollups!AA$6:AA$1001,Rollups!$AH$6:$AH$1001)) ->  | G67: =IF(Correlations!$D67>SetUp!$C$3,"",CORREL(Rollups!AB$6:AB$1001,Rollups!$AH$6:$AH$1001)) ->  | H67: =IF(Correlations!$D67>SetUp!$C$3,"",CORREL(Rollups!AC$6:AC$1001,Rollups!$AH$6:$AH$1001)) ->  | I67: =IF(Correlations!$D67>SetUp!$C$3,"",CORREL(Rollups!AD$6:AD$1001,Rollups!$AH$6:$AH$1001)) ->  | J67: =IF(Correlations!$D67>SetUp!$C$3,"",CORREL(Rollups!AE$6:AE$1001,Rollups!$AH$6:$AH$1001)) ->  | K67: =IF(Correlations!$D67>SetUp!$C$3,"",CORREL(Rollups!AF$6:AF$1001,Rollups!$AH$6:$AH$1001)) ->  | L67: =IF(Correlations!$D67>SetUp!$C$3,"",CORREL(Rollups!AG$6:AG$1001,Rollups!$AH$6:$AH$1001)) -> 
D68: 10 | E68: =IF(Correlations!$D68>SetUp!$C$3,"",CORREL(Rollups!Z$6:Z$1001,Rollups!$AI$6:$AI$1001)) ->  | F68: =IF(Correlations!$D68>SetUp!$C$3,"",CORREL(Rollups!AA$6:AA$1001,Rollups!$AI$6:$AI$1001)) ->  | G68: =IF(Correlations!$D68>SetUp!$C$3,"",CORREL(Rollups!AB$6:AB$1001,Rollups!$AI$6:$AI$1001)) ->  | H68: =IF(Correlations!$D68>SetUp!$C$3,"",CORREL(Rollups!AC$6:AC$1001,Rollups!$AI$6:$AI$1001)) ->  | I68: =IF(Correlations!$D68>SetUp!$C$3,"",CORREL(Rollups!AD$6:AD$1001,Rollups!$AI$6:$AI$1001)) ->  | J68: =IF(Correlations!$D68>SetUp!$C$3,"",CORREL(Rollups!AE$6:AE$1001,Rollups!$AI$6:$AI$1001)) ->  | K68: =IF(Correlations!$D68>SetUp!$C$3,"",CORREL(Rollups!AF$6:AF$1001,Rollups!$AI$6:$AI$1001)) ->  | L68: =IF(Correlations!$D68>SetUp!$C$3,"",CORREL(Rollups!AG$6:AG$1001,Rollups!$AI$6:$AI$1001)) ->  | M68: =IF(Correlations!$D68>SetUp!$C$3,"",CORREL(Rollups!AH$6:AH$1001,Rollups!$AI$6:$AI$1001)) -> 
D69: 11 | E69: =IF(Correlations!$D69>SetUp!$C$3,"",CORREL(Rollups!Z$6:Z$1001,Rollups!$AJ$6:$AJ$1001)) ->  | F69: =IF(Correlations!$D69>SetUp!$C$3,"",CORREL(Rollups!AA$6:AA$1001,Rollups!$AJ$6:$AJ$1001)) ->  | G69: =IF(Correlations!$D69>SetUp!$C$3,"",CORREL(Rollups!AB$6:AB$1001,Rollups!$AJ$6:$AJ$1001)) ->  | H69: =IF(Correlations!$D69>SetUp!$C$3,"",CORREL(Rollups!AC$6:AC$1001,Rollups!$AJ$6:$AJ$1001)) ->  | I69: =IF(Correlations!$D69>SetUp!$C$3,"",CORREL(Rollups!AD$6:AD$1001,Rollups!$AJ$6:$AJ$1001)) ->  | J69: =IF(Correlations!$D69>SetUp!$C$3,"",CORREL(Rollups!AE$6:AE$1001,Rollups!$AJ$6:$AJ$1001)) ->  | K69: =IF(Correlations!$D69>SetUp!$C$3,"",CORREL(Rollups!AF$6:AF$1001,Rollups!$AJ$6:$AJ$1001)) ->  | L69: =IF(Correlations!$D69>SetUp!$C$3,"",CORREL(Rollups!AG$6:AG$1001,Rollups!$AJ$6:$AJ$1001)) ->  | M69: =IF(Correlations!$D69>SetUp!$C$3,"",CORREL(Rollups!AH$6:AH$1001,Rollups!$AJ$6:$AJ$1001)) ->  | N69: =IF(Correlations!$D69>SetUp!$C$3,"",CORREL(Rollups!AI$6:AI$1001,Rollups!$AJ$6:$AJ$1001)) -> 
D70: 12 | E70: =IF(Correlations!$D70>SetUp!$C$3,"",CORREL(Rollups!Z$6:Z$1001,Rollups!$AK$6:$AK$1001)) ->  | F70: =IF(Correlations!$D70>SetUp!$C$3,"",CORREL(Rollups!AA$6:AA$1001,Rollups!$AK$6:$AK$1001)) ->  | G70: =IF(Correlations!$D70>SetUp!$C$3,"",CORREL(Rollups!AB$6:AB$1001,Rollups!$AK$6:$AK$1001)) ->  | H70: =IF(Correlations!$D70>SetUp!$C$3,"",CORREL(Rollups!AC$6:AC$1001,Rollups!$AK$6:$AK$1001)) ->  | I70: =IF(Correlations!$D70>SetUp!$C$3,"",CORREL(Rollups!AD$6:AD$1001,Rollups!$AK$6:$AK$1001)) ->  | J70: =IF(Correlations!$D70>SetUp!$C$3,"",CORREL(Rollups!AE$6:AE$1001,Rollups!$AK$6:$AK$1001)) ->  | K70: =IF(Correlations!$D70>SetUp!$C$3,"",CORREL(Rollups!AF$6:AF$1001,Rollups!$AK$6:$AK$1001)) ->  | L70: =IF(Correlations!$D70>SetUp!$C$3,"",CORREL(Rollups!AG$6:AG$1001,Rollups!$AK$6:$AK$1001)) ->  | M70: =IF(Correlations!$D70>SetUp!$C$3,"",CORREL(Rollups!AH$6:AH$1001,Rollups!$AK$6:$AK$1001)) ->  | N70: =IF(Correlations!$D70>SetUp!$C$3,"",CORREL(Rollups!AI$6:AI$1001,Rollups!$AK$6:$AK$1001)) ->  | O70: =IF(Correlations!$D70>SetUp!$C$3,"",CORREL(Rollups!AJ$6:AJ$1001,Rollups!$AK$6:$AK$1001)) -> 
D71: 13 | E71: =IF(Correlations!$D71>SetUp!$C$3,"",CORREL(Rollups!Z$6:Z$1001,Rollups!$AL$6:$AL$1001)) ->  | F71: =IF(Correlations!$D71>SetUp!$C$3,"",CORREL(Rollups!AA$6:AA$1001,Rollups!$AL$6:$AL$1001)) ->  | G71: =IF(Correlations!$D71>SetUp!$C$3,"",CORREL(Rollups!AB$6:AB$1001,Rollups!$AL$6:$AL$1001)) ->  | H71: =IF(Correlations!$D71>SetUp!$C$3,"",CORREL(Rollups!AC$6:AC$1001,Rollups!$AL$6:$AL$1001)) ->  | I71: =IF(Correlations!$D71>SetUp!$C$3,"",CORREL(Rollups!AD$6:AD$1001,Rollups!$AL$6:$AL$1001)) ->  | J71: =IF(Correlations!$D71>SetUp!$C$3,"",CORREL(Rollups!AE$6:AE$1001,Rollups!$AL$6:$AL$1001)) ->  | K71: =IF(Correlations!$D71>SetUp!$C$3,"",CORREL(Rollups!AF$6:AF$1001,Rollups!$AL$6:$AL$1001)) ->  | L71: =IF(Correlations!$D71>SetUp!$C$3,"",CORREL(Rollups!AG$6:AG$1001,Rollups!$AL$6:$AL$1001)) ->  | M71: =IF(Correlations!$D71>SetUp!$C$3,"",CORREL(Rollups!AH$6:AH$1001,Rollups!$AL$6:$AL$1001)) ->  | N71: =IF(Correlations!$D71>SetUp!$C$3,"",CORREL(Rollups!AI$6:AI$1001,Rollups!$AL$6:$AL$1001)) ->  | O71: =IF(Correlations!$D71>SetUp!$C$3,"",CORREL(Rollups!AJ$6:AJ$1001,Rollups!$AL$6:$AL$1001)) ->  | P71: =IF(Correlations!$D71>SetUp!$C$3,"",CORREL(Rollups!AK$6:AK$1001,Rollups!$AL$6:$AL$1001)) -> 
D72: 14 | E72: =IF(Correlations!$D72>SetUp!$C$3,"",CORREL(Rollups!Z$6:Z$1001,Rollups!$AM$6:$AM$1001)) ->  | F72: =IF(Correlations!$D72>SetUp!$C$3,"",CORREL(Rollups!AA$6:AA$1001,Rollups!$AM$6:$AM$1001)) ->  | G72: =IF(Correlations!$D72>SetUp!$C$3,"",CORREL(Rollups!AB$6:AB$1001,Rollups!$AM$6:$AM$1001)) ->  | H72: =IF(Correlations!$D72>SetUp!$C$3,"",CORREL(Rollups!AC$6:AC$1001,Rollups!$AM$6:$AM$1001)) ->  | I72: =IF(Correlations!$D72>SetUp!$C$3,"",CORREL(Rollups!AD$6:AD$1001,Rollups!$AM$6:$AM$1001)) ->  | J72: =IF(Correlations!$D72>SetUp!$C$3,"",CORREL(Rollups!AE$6:AE$1001,Rollups!$AM$6:$AM$1001)) ->  | K72: =IF(Correlations!$D72>SetUp!$C$3,"",CORREL(Rollups!AF$6:AF$1001,Rollups!$AM$6:$AM$1001)) ->  | L72: =IF(Correlations!$D72>SetUp!$C$3,"",CORREL(Rollups!AG$6:AG$1001,Rollups!$AM$6:$AM$1001)) ->  | M72: =IF(Correlations!$D72>SetUp!$C$3,"",CORREL(Rollups!AH$6:AH$1001,Rollups!$AM$6:$AM$1001)) ->  | N72: =IF(Correlations!$D72>SetUp!$C$3,"",CORREL(Rollups!AI$6:AI$1001,Rollups!$AM$6:$AM$1001)) ->  | O72: =IF(Correlations!$D72>SetUp!$C$3,"",CORREL(Rollups!AJ$6:AJ$1001,Rollups!$AM$6:$AM$1001)) ->  | P72: =IF(Correlations!$D72>SetUp!$C$3,"",CORREL(Rollups!AK$6:AK$1001,Rollups!$AM$6:$AM$1001)) ->  | Q72: =IF(Correlations!$D72>SetUp!$C$3,"",CORREL(Rollups!AL$6:AL$1001,Rollups!$AM$6:$AM$1001)) -> 
D73: 15 | E73: =IF(Correlations!$D73>SetUp!$C$3,"",CORREL(Rollups!Z$6:Z$1001,Rollups!$AN$6:$AN$1001)) ->  | F73: =IF(Correlations!$D73>SetUp!$C$3,"",CORREL(Rollups!AA$6:AA$1001,Rollups!$AN$6:$AN$1001)) ->  | G73: =IF(Correlations!$D73>SetUp!$C$3,"",CORREL(Rollups!AB$6:AB$1001,Rollups!$AN$6:$AN$1001)) ->  | H73: =IF(Correlations!$D73>SetUp!$C$3,"",CORREL(Rollups!AC$6:AC$1001,Rollups!$AN$6:$AN$1001)) ->  | I73: =IF(Correlations!$D73>SetUp!$C$3,"",CORREL(Rollups!AD$6:AD$1001,Rollups!$AN$6:$AN$1001)) ->  | J73: =IF(Correlations!$D73>SetUp!$C$3,"",CORREL(Rollups!AE$6:AE$1001,Rollups!$AN$6:$AN$1001)) ->  | K73: =IF(Correlations!$D73>SetUp!$C$3,"",CORREL(Rollups!AF$6:AF$1001,Rollups!$AN$6:$AN$1001)) ->  | L73: =IF(Correlations!$D73>SetUp!$C$3,"",CORREL(Rollups!AG$6:AG$1001,Rollups!$AN$6:$AN$1001)) ->  | M73: =IF(Correlations!$D73>SetUp!$C$3,"",CORREL(Rollups!AH$6:AH$1001,Rollups!$AN$6:$AN$1001)) ->  | N73: =IF(Correlations!$D73>SetUp!$C$3,"",CORREL(Rollups!AI$6:AI$1001,Rollups!$AN$6:$AN$1001)) ->  | O73: =IF(Correlations!$D73>SetUp!$C$3,"",CORREL(Rollups!AJ$6:AJ$1001,Rollups!$AN$6:$AN$1001)) ->  | P73: =IF(Correlations!$D73>SetUp!$C$3,"",CORREL(Rollups!AK$6:AK$1001,Rollups!$AN$6:$AN$1001)) ->  | Q73: =IF(Correlations!$D73>SetUp!$C$3,"",CORREL(Rollups!AL$6:AL$1001,Rollups!$AN$6:$AN$1001)) ->  | R73: =IF(Correlations!$D73>SetUp!$C$3,"",CORREL(Rollups!AM$6:AM$1001,Rollups!$AN$6:$AN$1001)) -> 
D74: 16 | E74: =IF(Correlations!$D74>SetUp!$C$3,"",CORREL(Rollups!Z$6:Z$1001,Rollups!$AO$6:$AO$1001)) ->  | F74: =IF(Correlations!$D74>SetUp!$C$3,"",CORREL(Rollups!AA$6:AA$1001,Rollups!$AO$6:$AO$1001)) ->  | G74: =IF(Correlations!$D74>SetUp!$C$3,"",CORREL(Rollups!AB$6:AB$1001,Rollups!$AO$6:$AO$1001)) ->  | H74: =IF(Correlations!$D74>SetUp!$C$3,"",CORREL(Rollups!AC$6:AC$1001,Rollups!$AO$6:$AO$1001)) ->  | I74: =IF(Correlations!$D74>SetUp!$C$3,"",CORREL(Rollups!AD$6:AD$1001,Rollups!$AO$6:$AO$1001)) ->  | J74: =IF(Correlations!$D74>SetUp!$C$3,"",CORREL(Rollups!AE$6:AE$1001,Rollups!$AO$6:$AO$1001)) ->  | K74: =IF(Correlations!$D74>SetUp!$C$3,"",CORREL(Rollups!AF$6:AF$1001,Rollups!$AO$6:$AO$1001)) ->  | L74: =IF(Correlations!$D74>SetUp!$C$3,"",CORREL(Rollups!AG$6:AG$1001,Rollups!$AO$6:$AO$1001)) ->  | M74: =IF(Correlations!$D74>SetUp!$C$3,"",CORREL(Rollups!AH$6:AH$1001,Rollups!$AO$6:$AO$1001)) ->  | N74: =IF(Correlations!$D74>SetUp!$C$3,"",CORREL(Rollups!AI$6:AI$1001,Rollups!$AO$6:$AO$1001)) ->  | O74: =IF(Correlations!$D74>SetUp!$C$3,"",CORREL(Rollups!AJ$6:AJ$1001,Rollups!$AO$6:$AO$1001)) ->  | P74: =IF(Correlations!$D74>SetUp!$C$3,"",CORREL(Rollups!AK$6:AK$1001,Rollups!$AO$6:$AO$1001)) ->  | Q74: =IF(Correlations!$D74>SetUp!$C$3,"",CORREL(Rollups!AL$6:AL$1001,Rollups!$AO$6:$AO$1001)) ->  | R74: =IF(Correlations!$D74>SetUp!$C$3,"",CORREL(Rollups!AM$6:AM$1001,Rollups!$AO$6:$AO$1001)) ->  | S74: =IF(Correlations!$D74>SetUp!$C$3,"",CORREL(Rollups!AN$6:AN$1001,Rollups!$AO$6:$AO$1001)) -> 
D75: 17 | E75: =IF(Correlations!$D75>SetUp!$C$3,"",CORREL(Rollups!Z$6:Z$1001,Rollups!$AP$6:$AP$1001)) ->  | F75: =IF(Correlations!$D75>SetUp!$C$3,"",CORREL(Rollups!AA$6:AA$1001,Rollups!$AP$6:$AP$1001)) ->  | G75: =IF(Correlations!$D75>SetUp!$C$3,"",CORREL(Rollups!AB$6:AB$1001,Rollups!$AP$6:$AP$1001)) ->  | H75: =IF(Correlations!$D75>SetUp!$C$3,"",CORREL(Rollups!AC$6:AC$1001,Rollups!$AP$6:$AP$1001)) ->  | I75: =IF(Correlations!$D75>SetUp!$C$3,"",CORREL(Rollups!AD$6:AD$1001,Rollups!$AP$6:$AP$1001)) ->  | J75: =IF(Correlations!$D75>SetUp!$C$3,"",CORREL(Rollups!AE$6:AE$1001,Rollups!$AP$6:$AP$1001)) ->  | K75: =IF(Correlations!$D75>SetUp!$C$3,"",CORREL(Rollups!AF$6:AF$1001,Rollups!$AP$6:$AP$1001)) ->  | L75: =IF(Correlations!$D75>SetUp!$C$3,"",CORREL(Rollups!AG$6:AG$1001,Rollups!$AP$6:$AP$1001)) ->  | M75: =IF(Correlations!$D75>SetUp!$C$3,"",CORREL(Rollups!AH$6:AH$1001,Rollups!$AP$6:$AP$1001)) ->  | N75: =IF(Correlations!$D75>SetUp!$C$3,"",CORREL(Rollups!AI$6:AI$1001,Rollups!$AP$6:$AP$1001)) ->  | O75: =IF(Correlations!$D75>SetUp!$C$3,"",CORREL(Rollups!AJ$6:AJ$1001,Rollups!$AP$6:$AP$1001)) ->  | P75: =IF(Correlations!$D75>SetUp!$C$3,"",CORREL(Rollups!AK$6:AK$1001,Rollups!$AP$6:$AP$1001)) ->  | Q75: =IF(Correlations!$D75>SetUp!$C$3,"",CORREL(Rollups!AL$6:AL$1001,Rollups!$AP$6:$AP$1001)) ->  | R75: =IF(Correlations!$D75>SetUp!$C$3,"",CORREL(Rollups!AM$6:AM$1001,Rollups!$AP$6:$AP$1001)) ->  | S75: =IF(Correlations!$D75>SetUp!$C$3,"",CORREL(Rollups!AN$6:AN$1001,Rollups!$AP$6:$AP$1001)) ->  | T75: =IF(Correlations!$D75>SetUp!$C$3,"",CORREL(Rollups!AO$6:AO$1001,Rollups!$AP$6:$AP$1001)) -> 
D76: 18 | E76: =IF(Correlations!$D76>SetUp!$C$3,"",CORREL(Rollups!Z$6:Z$1001,Rollups!$AQ$6:$AQ$1001)) ->  | F76: =IF(Correlations!$D76>SetUp!$C$3,"",CORREL(Rollups!AA$6:AA$1001,Rollups!$AQ$6:$AQ$1001)) ->  | G76: =IF(Correlations!$D76>SetUp!$C$3,"",CORREL(Rollups!AB$6:AB$1001,Rollups!$AQ$6:$AQ$1001)) ->  | H76: =IF(Correlations!$D76>SetUp!$C$3,"",CORREL(Rollups!AC$6:AC$1001,Rollups!$AQ$6:$AQ$1001)) ->  | I76: =IF(Correlations!$D76>SetUp!$C$3,"",CORREL(Rollups!AD$6:AD$1001,Rollups!$AQ$6:$AQ$1001)) ->  | J76: =IF(Correlations!$D76>SetUp!$C$3,"",CORREL(Rollups!AE$6:AE$1001,Rollups!$AQ$6:$AQ$1001)) ->  | K76: =IF(Correlations!$D76>SetUp!$C$3,"",CORREL(Rollups!AF$6:AF$1001,Rollups!$AQ$6:$AQ$1001)) ->  | L76: =IF(Correlations!$D76>SetUp!$C$3,"",CORREL(Rollups!AG$6:AG$1001,Rollups!$AQ$6:$AQ$1001)) ->  | M76: =IF(Correlations!$D76>SetUp!$C$3,"",CORREL(Rollups!AH$6:AH$1001,Rollups!$AQ$6:$AQ$1001)) ->  | N76: =IF(Correlations!$D76>SetUp!$C$3,"",CORREL(Rollups!AI$6:AI$1001,Rollups!$AQ$6:$AQ$1001)) ->  | O76: =IF(Correlations!$D76>SetUp!$C$3,"",CORREL(Rollups!AJ$6:AJ$1001,Rollups!$AQ$6:$AQ$1001)) ->  | P76: =IF(Correlations!$D76>SetUp!$C$3,"",CORREL(Rollups!AK$6:AK$1001,Rollups!$AQ$6:$AQ$1001)) ->  | Q76: =IF(Correlations!$D76>SetUp!$C$3,"",CORREL(Rollups!AL$6:AL$1001,Rollups!$AQ$6:$AQ$1001)) ->  | R76: =IF(Correlations!$D76>SetUp!$C$3,"",CORREL(Rollups!AM$6:AM$1001,Rollups!$AQ$6:$AQ$1001)) ->  | S76: =IF(Correlations!$D76>SetUp!$C$3,"",CORREL(Rollups!AN$6:AN$1001,Rollups!$AQ$6:$AQ$1001)) ->  | T76: =IF(Correlations!$D76>SetUp!$C$3,"",CORREL(Rollups!AO$6:AO$1001,Rollups!$AQ$6:$AQ$1001)) ->  | U76: =IF(Correlations!$D76>SetUp!$C$3,"",CORREL(Rollups!AP$6:AP$1001,Rollups!$AQ$6:$AQ$1001)) -> 
D77: 19 | E77: =IF(Correlations!$D77>SetUp!$C$3,"",CORREL(Rollups!Z$6:Z$1001,Rollups!$AR$6:$AR$1001)) ->  | F77: =IF(Correlations!$D77>SetUp!$C$3,"",CORREL(Rollups!AA$6:AA$1001,Rollups!$AR$6:$AR$1001)) ->  | G77: =IF(Correlations!$D77>SetUp!$C$3,"",CORREL(Rollups!AB$6:AB$1001,Rollups!$AR$6:$AR$1001)) ->  | H77: =IF(Correlations!$D77>SetUp!$C$3,"",CORREL(Rollups!AC$6:AC$1001,Rollups!$AR$6:$AR$1001)) ->  | I77: =IF(Correlations!$D77>SetUp!$C$3,"",CORREL(Rollups!AD$6:AD$1001,Rollups!$AR$6:$AR$1001)) ->  | J77: =IF(Correlations!$D77>SetUp!$C$3,"",CORREL(Rollups!AE$6:AE$1001,Rollups!$AR$6:$AR$1001)) ->  | K77: =IF(Correlations!$D77>SetUp!$C$3,"",CORREL(Rollups!AF$6:AF$1001,Rollups!$AR$6:$AR$1001)) ->  | L77: =IF(Correlations!$D77>SetUp!$C$3,"",CORREL(Rollups!AG$6:AG$1001,Rollups!$AR$6:$AR$1001)) ->  | M77: =IF(Correlations!$D77>SetUp!$C$3,"",CORREL(Rollups!AH$6:AH$1001,Rollups!$AR$6:$AR$1001)) ->  | N77: =IF(Correlations!$D77>SetUp!$C$3,"",CORREL(Rollups!AI$6:AI$1001,Rollups!$AR$6:$AR$1001)) ->  | O77: =IF(Correlations!$D77>SetUp!$C$3,"",CORREL(Rollups!AJ$6:AJ$1001,Rollups!$AR$6:$AR$1001)) ->  | P77: =IF(Correlations!$D77>SetUp!$C$3,"",CORREL(Rollups!AK$6:AK$1001,Rollups!$AR$6:$AR$1001)) ->  | Q77: =IF(Correlations!$D77>SetUp!$C$3,"",CORREL(Rollups!AL$6:AL$1001,Rollups!$AR$6:$AR$1001)) ->  | R77: =IF(Correlations!$D77>SetUp!$C$3,"",CORREL(Rollups!AM$6:AM$1001,Rollups!$AR$6:$AR$1001)) ->  | S77: =IF(Correlations!$D77>SetUp!$C$3,"",CORREL(Rollups!AN$6:AN$1001,Rollups!$AR$6:$AR$1001)) ->  | T77: =IF(Correlations!$D77>SetUp!$C$3,"",CORREL(Rollups!AO$6:AO$1001,Rollups!$AR$6:$AR$1001)) ->  | U77: =IF(Correlations!$D77>SetUp!$C$3,"",CORREL(Rollups!AP$6:AP$1001,Rollups!$AR$6:$AR$1001)) ->  | V77: =IF(Correlations!$D77>SetUp!$C$3,"",CORREL(Rollups!AQ$6:AQ$1001,Rollups!$AR$6:$AR$1001)) -> 
D78: 20 | E78: =IF(Correlations!$D78>SetUp!$C$3,"",CORREL(Rollups!Z$6:Z$1001,Rollups!$AS$6:$AS$1001)) ->  | F78: =IF(Correlations!$D78>SetUp!$C$3,"",CORREL(Rollups!AA$6:AA$1001,Rollups!$AS$6:$AS$1001)) ->  | G78: =IF(Correlations!$D78>SetUp!$C$3,"",CORREL(Rollups!AB$6:AB$1001,Rollups!$AS$6:$AS$1001)) ->  | H78: =IF(Correlations!$D78>SetUp!$C$3,"",CORREL(Rollups!AC$6:AC$1001,Rollups!$AS$6:$AS$1001)) ->  | I78: =IF(Correlations!$D78>SetUp!$C$3,"",CORREL(Rollups!AD$6:AD$1001,Rollups!$AS$6:$AS$1001)) ->  | J78: =IF(Correlations!$D78>SetUp!$C$3,"",CORREL(Rollups!AE$6:AE$1001,Rollups!$AS$6:$AS$1001)) ->  | K78: =IF(Correlations!$D78>SetUp!$C$3,"",CORREL(Rollups!AF$6:AF$1001,Rollups!$AS$6:$AS$1001)) ->  | L78: =IF(Correlations!$D78>SetUp!$C$3,"",CORREL(Rollups!AG$6:AG$1001,Rollups!$AS$6:$AS$1001)) ->  | M78: =IF(Correlations!$D78>SetUp!$C$3,"",CORREL(Rollups!AH$6:AH$1001,Rollups!$AS$6:$AS$1001)) ->  | N78: =IF(Correlations!$D78>SetUp!$C$3,"",CORREL(Rollups!AI$6:AI$1001,Rollups!$AS$6:$AS$1001)) ->  | O78: =IF(Correlations!$D78>SetUp!$C$3,"",CORREL(Rollups!AJ$6:AJ$1001,Rollups!$AS$6:$AS$1001)) ->  | P78: =IF(Correlations!$D78>SetUp!$C$3,"",CORREL(Rollups!AK$6:AK$1001,Rollups!$AS$6:$AS$1001)) ->  | Q78: =IF(Correlations!$D78>SetUp!$C$3,"",CORREL(Rollups!AL$6:AL$1001,Rollups!$AS$6:$AS$1001)) ->  | R78: =IF(Correlations!$D78>SetUp!$C$3,"",CORREL(Rollups!AM$6:AM$1001,Rollups!$AS$6:$AS$1001)) ->  | S78: =IF(Correlations!$D78>SetUp!$C$3,"",CORREL(Rollups!AN$6:AN$1001,Rollups!$AS$6:$AS$1001)) ->  | T78: =IF(Correlations!$D78>SetUp!$C$3,"",CORREL(Rollups!AO$6:AO$1001,Rollups!$AS$6:$AS$1001)) ->  | U78: =IF(Correlations!$D78>SetUp!$C$3,"",CORREL(Rollups!AP$6:AP$1001,Rollups!$AS$6:$AS$1001)) ->  | V78: =IF(Correlations!$D78>SetUp!$C$3,"",CORREL(Rollups!AQ$6:AQ$1001,Rollups!$AS$6:$AS$1001)) ->  | W78: =IF(Correlations!$D78>SetUp!$C$3,"",CORREL(Rollups!AR$6:AR$1001,Rollups!$AS$6:$AS$1001)) -> 
D79: 21 | E79: =IF(Correlations!$D79>SetUp!$C$3,"",CORREL(Rollups!Z$6:Z$1001,Rollups!$AT$6:$AT$1001)) ->  | F79: =IF(Correlations!$D79>SetUp!$C$3,"",CORREL(Rollups!AA$6:AA$1001,Rollups!$AT$6:$AT$1001)) ->  | G79: =IF(Correlations!$D79>SetUp!$C$3,"",CORREL(Rollups!AB$6:AB$1001,Rollups!$AT$6:$AT$1001)) ->  | H79: =IF(Correlations!$D79>SetUp!$C$3,"",CORREL(Rollups!AC$6:AC$1001,Rollups!$AT$6:$AT$1001)) ->  | I79: =IF(Correlations!$D79>SetUp!$C$3,"",CORREL(Rollups!AD$6:AD$1001,Rollups!$AT$6:$AT$1001)) ->  | J79: =IF(Correlations!$D79>SetUp!$C$3,"",CORREL(Rollups!AE$6:AE$1001,Rollups!$AT$6:$AT$1001)) ->  | K79: =IF(Correlations!$D79>SetUp!$C$3,"",CORREL(Rollups!AF$6:AF$1001,Rollups!$AT$6:$AT$1001)) ->  | L79: =IF(Correlations!$D79>SetUp!$C$3,"",CORREL(Rollups!AG$6:AG$1001,Rollups!$AT$6:$AT$1001)) ->  | M79: =IF(Correlations!$D79>SetUp!$C$3,"",CORREL(Rollups!AH$6:AH$1001,Rollups!$AT$6:$AT$1001)) ->  | N79: =IF(Correlations!$D79>SetUp!$C$3,"",CORREL(Rollups!AI$6:AI$1001,Rollups!$AT$6:$AT$1001)) ->  | O79: =IF(Correlations!$D79>SetUp!$C$3,"",CORREL(Rollups!AJ$6:AJ$1001,Rollups!$AT$6:$AT$1001)) ->  | P79: =IF(Correlations!$D79>SetUp!$C$3,"",CORREL(Rollups!AK$6:AK$1001,Rollups!$AT$6:$AT$1001)) ->  | Q79: =IF(Correlations!$D79>SetUp!$C$3,"",CORREL(Rollups!AL$6:AL$1001,Rollups!$AT$6:$AT$1001)) ->  | R79: =IF(Correlations!$D79>SetUp!$C$3,"",CORREL(Rollups!AM$6:AM$1001,Rollups!$AT$6:$AT$1001)) ->  | S79: =IF(Correlations!$D79>SetUp!$C$3,"",CORREL(Rollups!AN$6:AN$1001,Rollups!$AT$6:$AT$1001)) ->  | T79: =IF(Correlations!$D79>SetUp!$C$3,"",CORREL(Rollups!AO$6:AO$1001,Rollups!$AT$6:$AT$1001)) ->  | U79: =IF(Correlations!$D79>SetUp!$C$3,"",CORREL(Rollups!AP$6:AP$1001,Rollups!$AT$6:$AT$1001)) ->  | V79: =IF(Correlations!$D79>SetUp!$C$3,"",CORREL(Rollups!AQ$6:AQ$1001,Rollups!$AT$6:$AT$1001)) ->  | W79: =IF(Correlations!$D79>SetUp!$C$3,"",CORREL(Rollups!AR$6:AR$1001,Rollups!$AT$6:$AT$1001)) ->  | X79: =IF(Correlations!$D79>SetUp!$C$3,"",CORREL(Rollups!AS$6:AS$1001,Rollups!$AT$6:$AT$1001)) -> 
D80: 22 | E80: =IF(Correlations!$D80>SetUp!$C$3,"",CORREL(Rollups!Z$6:Z$1001,Rollups!$AU$6:$AU$1001)) ->  | F80: =IF(Correlations!$D80>SetUp!$C$3,"",CORREL(Rollups!AA$6:AA$1001,Rollups!$AU$6:$AU$1001)) ->  | G80: =IF(Correlations!$D80>SetUp!$C$3,"",CORREL(Rollups!AB$6:AB$1001,Rollups!$AU$6:$AU$1001)) ->  | H80: =IF(Correlations!$D80>SetUp!$C$3,"",CORREL(Rollups!AC$6:AC$1001,Rollups!$AU$6:$AU$1001)) ->  | I80: =IF(Correlations!$D80>SetUp!$C$3,"",CORREL(Rollups!AD$6:AD$1001,Rollups!$AU$6:$AU$1001)) ->  | J80: =IF(Correlations!$D80>SetUp!$C$3,"",CORREL(Rollups!AE$6:AE$1001,Rollups!$AU$6:$AU$1001)) ->  | K80: =IF(Correlations!$D80>SetUp!$C$3,"",CORREL(Rollups!AF$6:AF$1001,Rollups!$AU$6:$AU$1001)) ->  | L80: =IF(Correlations!$D80>SetUp!$C$3,"",CORREL(Rollups!AG$6:AG$1001,Rollups!$AU$6:$AU$1001)) ->  | M80: =IF(Correlations!$D80>SetUp!$C$3,"",CORREL(Rollups!AH$6:AH$1001,Rollups!$AU$6:$AU$1001)) ->  | N80: =IF(Correlations!$D80>SetUp!$C$3,"",CORREL(Rollups!AI$6:AI$1001,Rollups!$AU$6:$AU$1001)) ->  | O80: =IF(Correlations!$D80>SetUp!$C$3,"",CORREL(Rollups!AJ$6:AJ$1001,Rollups!$AU$6:$AU$1001)) ->  | P80: =IF(Correlations!$D80>SetUp!$C$3,"",CORREL(Rollups!AK$6:AK$1001,Rollups!$AU$6:$AU$1001)) ->  | Q80: =IF(Correlations!$D80>SetUp!$C$3,"",CORREL(Rollups!AL$6:AL$1001,Rollups!$AU$6:$AU$1001)) ->  | R80: =IF(Correlations!$D80>SetUp!$C$3,"",CORREL(Rollups!AM$6:AM$1001,Rollups!$AU$6:$AU$1001)) ->  | S80: =IF(Correlations!$D80>SetUp!$C$3,"",CORREL(Rollups!AN$6:AN$1001,Rollups!$AU$6:$AU$1001)) ->  | T80: =IF(Correlations!$D80>SetUp!$C$3,"",CORREL(Rollups!AO$6:AO$1001,Rollups!$AU$6:$AU$1001)) ->  | U80: =IF(Correlations!$D80>SetUp!$C$3,"",CORREL(Rollups!AP$6:AP$1001,Rollups!$AU$6:$AU$1001)) ->  | V80: =IF(Correlations!$D80>SetUp!$C$3,"",CORREL(Rollups!AQ$6:AQ$1001,Rollups!$AU$6:$AU$1001)) ->  | W80: =IF(Correlations!$D80>SetUp!$C$3,"",CORREL(Rollups!AR$6:AR$1001,Rollups!$AU$6:$AU$1001)) ->  | X80: =IF(Correlations!$D80>SetUp!$C$3,"",CORREL(Rollups!AS$6:AS$1001,Rollups!$AU$6:$AU$1001)) ->  | Y80: =IF(Correlations!$D80>SetUp!$C$3,"",CORREL(Rollups!AT$6:AT$1001,Rollups!$AU$6:$AU$1001)) -> 
D81: 23 | E81: =IF(Correlations!$D81>SetUp!$C$3,"",CORREL(Rollups!Z$6:Z$1001,Rollups!$AV$6:$AV$1001)) ->  | F81: =IF(Correlations!$D81>SetUp!$C$3,"",CORREL(Rollups!AA$6:AA$1001,Rollups!$AV$6:$AV$1001)) ->  | G81: =IF(Correlations!$D81>SetUp!$C$3,"",CORREL(Rollups!AB$6:AB$1001,Rollups!$AV$6:$AV$1001)) ->  | H81: =IF(Correlations!$D81>SetUp!$C$3,"",CORREL(Rollups!AC$6:AC$1001,Rollups!$AV$6:$AV$1001)) ->  | I81: =IF(Correlations!$D81>SetUp!$C$3,"",CORREL(Rollups!AD$6:AD$1001,Rollups!$AV$6:$AV$1001)) ->  | J81: =IF(Correlations!$D81>SetUp!$C$3,"",CORREL(Rollups!AE$6:AE$1001,Rollups!$AV$6:$AV$1001)) ->  | K81: =IF(Correlations!$D81>SetUp!$C$3,"",CORREL(Rollups!AF$6:AF$1001,Rollups!$AV$6:$AV$1001)) ->  | L81: =IF(Correlations!$D81>SetUp!$C$3,"",CORREL(Rollups!AG$6:AG$1001,Rollups!$AV$6:$AV$1001)) ->  | M81: =IF(Correlations!$D81>SetUp!$C$3,"",CORREL(Rollups!AH$6:AH$1001,Rollups!$AV$6:$AV$1001)) ->  | N81: =IF(Correlations!$D81>SetUp!$C$3,"",CORREL(Rollups!AI$6:AI$1001,Rollups!$AV$6:$AV$1001)) ->  | O81: =IF(Correlations!$D81>SetUp!$C$3,"",CORREL(Rollups!AJ$6:AJ$1001,Rollups!$AV$6:$AV$1001)) ->  | P81: =IF(Correlations!$D81>SetUp!$C$3,"",CORREL(Rollups!AK$6:AK$1001,Rollups!$AV$6:$AV$1001)) ->  | Q81: =IF(Correlations!$D81>SetUp!$C$3,"",CORREL(Rollups!AL$6:AL$1001,Rollups!$AV$6:$AV$1001)) ->  | R81: =IF(Correlations!$D81>SetUp!$C$3,"",CORREL(Rollups!AM$6:AM$1001,Rollups!$AV$6:$AV$1001)) ->  | S81: =IF(Correlations!$D81>SetUp!$C$3,"",CORREL(Rollups!AN$6:AN$1001,Rollups!$AV$6:$AV$1001)) ->  | T81: =IF(Correlations!$D81>SetUp!$C$3,"",CORREL(Rollups!AO$6:AO$1001,Rollups!$AV$6:$AV$1001)) ->  | U81: =IF(Correlations!$D81>SetUp!$C$3,"",CORREL(Rollups!AP$6:AP$1001,Rollups!$AV$6:$AV$1001)) ->  | V81: =IF(Correlations!$D81>SetUp!$C$3,"",CORREL(Rollups!AQ$6:AQ$1001,Rollups!$AV$6:$AV$1001)) ->  | W81: =IF(Correlations!$D81>SetUp!$C$3,"",CORREL(Rollups!AR$6:AR$1001,Rollups!$AV$6:$AV$1001)) ->  | X81: =IF(Correlations!$D81>SetUp!$C$3,"",CORREL(Rollups!AS$6:AS$1001,Rollups!$AV$6:$AV$1001)) ->  | Y81: =IF(Correlations!$D81>SetUp!$C$3,"",CORREL(Rollups!AT$6:AT$1001,Rollups!$AV$6:$AV$1001)) ->  | Z81: =IF(Correlations!$D81>SetUp!$C$3,"",CORREL(Rollups!AU$6:AU$1001,Rollups!$AV$6:$AV$1001)) -> 
D82: 24 | E82: =IF(Correlations!$D82>SetUp!$C$3,"",CORREL(Rollups!Z$6:Z$1001,Rollups!$AW$6:$AW$1001)) ->  | F82: =IF(Correlations!$D82>SetUp!$C$3,"",CORREL(Rollups!AA$6:AA$1001,Rollups!$AW$6:$AW$1001)) ->  | G82: =IF(Correlations!$D82>SetUp!$C$3,"",CORREL(Rollups!AB$6:AB$1001,Rollups!$AW$6:$AW$1001)) ->  | H82: =IF(Correlations!$D82>SetUp!$C$3,"",CORREL(Rollups!AC$6:AC$1001,Rollups!$AW$6:$AW$1001)) ->  | I82: =IF(Correlations!$D82>SetUp!$C$3,"",CORREL(Rollups!AD$6:AD$1001,Rollups!$AW$6:$AW$1001)) ->  | J82: =IF(Correlations!$D82>SetUp!$C$3,"",CORREL(Rollups!AE$6:AE$1001,Rollups!$AW$6:$AW$1001)) ->  | K82: =IF(Correlations!$D82>SetUp!$C$3,"",CORREL(Rollups!AF$6:AF$1001,Rollups!$AW$6:$AW$1001)) ->  | L82: =IF(Correlations!$D82>SetUp!$C$3,"",CORREL(Rollups!AG$6:AG$1001,Rollups!$AW$6:$AW$1001)) ->  | M82: =IF(Correlations!$D82>SetUp!$C$3,"",CORREL(Rollups!AH$6:AH$1001,Rollups!$AW$6:$AW$1001)) ->  | N82: =IF(Correlations!$D82>SetUp!$C$3,"",CORREL(Rollups!AI$6:AI$1001,Rollups!$AW$6:$AW$1001)) ->  | O82: =IF(Correlations!$D82>SetUp!$C$3,"",CORREL(Rollups!AJ$6:AJ$1001,Rollups!$AW$6:$AW$1001)) ->  | P82: =IF(Correlations!$D82>SetUp!$C$3,"",CORREL(Rollups!AK$6:AK$1001,Rollups!$AW$6:$AW$1001)) ->  | Q82: =IF(Correlations!$D82>SetUp!$C$3,"",CORREL(Rollups!AL$6:AL$1001,Rollups!$AW$6:$AW$1001)) ->  | R82: =IF(Correlations!$D82>SetUp!$C$3,"",CORREL(Rollups!AM$6:AM$1001,Rollups!$AW$6:$AW$1001)) ->  | S82: =IF(Correlations!$D82>SetUp!$C$3,"",CORREL(Rollups!AN$6:AN$1001,Rollups!$AW$6:$AW$1001)) ->  | T82: =IF(Correlations!$D82>SetUp!$C$3,"",CORREL(Rollups!AO$6:AO$1001,Rollups!$AW$6:$AW$1001)) ->  | U82: =IF(Correlations!$D82>SetUp!$C$3,"",CORREL(Rollups!AP$6:AP$1001,Rollups!$AW$6:$AW$1001)) ->  | V82: =IF(Correlations!$D82>SetUp!$C$3,"",CORREL(Rollups!AQ$6:AQ$1001,Rollups!$AW$6:$AW$1001)) ->  | W82: =IF(Correlations!$D82>SetUp!$C$3,"",CORREL(Rollups!AR$6:AR$1001,Rollups!$AW$6:$AW$1001)) ->  | X82: =IF(Correlations!$D82>SetUp!$C$3,"",CORREL(Rollups!AS$6:AS$1001,Rollups!$AW$6:$AW$1001)) ->  | Y82: =IF(Correlations!$D82>SetUp!$C$3,"",CORREL(Rollups!AT$6:AT$1001,Rollups!$AW$6:$AW$1001)) ->  | Z82: =IF(Correlations!$D82>SetUp!$C$3,"",CORREL(Rollups!AU$6:AU$1001,Rollups!$AW$6:$AW$1001)) ->  | AA82: =IF(Correlations!$D82>SetUp!$C$3,"",CORREL(Rollups!AV$6:AV$1001,Rollups!$AW$6:$AW$1001)) -> 
D83: 25 | E83: =IF(Correlations!$D83>SetUp!$C$3,"",CORREL(Rollups!Z$6:Z$1001,Rollups!$AX$6:$AX$1001)) ->  | F83: =IF(Correlations!$D83>SetUp!$C$3,"",CORREL(Rollups!AA$6:AA$1001,Rollups!$AX$6:$AX$1001)) ->  | G83: =IF(Correlations!$D83>SetUp!$C$3,"",CORREL(Rollups!AB$6:AB$1001,Rollups!$AX$6:$AX$1001)) ->  | H83: =IF(Correlations!$D83>SetUp!$C$3,"",CORREL(Rollups!AC$6:AC$1001,Rollups!$AX$6:$AX$1001)) ->  | I83: =IF(Correlations!$D83>SetUp!$C$3,"",CORREL(Rollups!AD$6:AD$1001,Rollups!$AX$6:$AX$1001)) ->  | J83: =IF(Correlations!$D83>SetUp!$C$3,"",CORREL(Rollups!AE$6:AE$1001,Rollups!$AX$6:$AX$1001)) ->  | K83: =IF(Correlations!$D83>SetUp!$C$3,"",CORREL(Rollups!AF$6:AF$1001,Rollups!$AX$6:$AX$1001)) ->  | L83: =IF(Correlations!$D83>SetUp!$C$3,"",CORREL(Rollups!AG$6:AG$1001,Rollups!$AX$6:$AX$1001)) ->  | M83: =IF(Correlations!$D83>SetUp!$C$3,"",CORREL(Rollups!AH$6:AH$1001,Rollups!$AX$6:$AX$1001)) ->  | N83: =IF(Correlations!$D83>SetUp!$C$3,"",CORREL(Rollups!AI$6:AI$1001,Rollups!$AX$6:$AX$1001)) ->  | O83: =IF(Correlations!$D83>SetUp!$C$3,"",CORREL(Rollups!AJ$6:AJ$1001,Rollups!$AX$6:$AX$1001)) ->  | P83: =IF(Correlations!$D83>SetUp!$C$3,"",CORREL(Rollups!AK$6:AK$1001,Rollups!$AX$6:$AX$1001)) ->  | Q83: =IF(Correlations!$D83>SetUp!$C$3,"",CORREL(Rollups!AL$6:AL$1001,Rollups!$AX$6:$AX$1001)) ->  | R83: =IF(Correlations!$D83>SetUp!$C$3,"",CORREL(Rollups!AM$6:AM$1001,Rollups!$AX$6:$AX$1001)) ->  | S83: =IF(Correlations!$D83>SetUp!$C$3,"",CORREL(Rollups!AN$6:AN$1001,Rollups!$AX$6:$AX$1001)) ->  | T83: =IF(Correlations!$D83>SetUp!$C$3,"",CORREL(Rollups!AO$6:AO$1001,Rollups!$AX$6:$AX$1001)) ->  | U83: =IF(Correlations!$D83>SetUp!$C$3,"",CORREL(Rollups!AP$6:AP$1001,Rollups!$AX$6:$AX$1001)) ->  | V83: =IF(Correlations!$D83>SetUp!$C$3,"",CORREL(Rollups!AQ$6:AQ$1001,Rollups!$AX$6:$AX$1001)) ->  | W83: =IF(Correlations!$D83>SetUp!$C$3,"",CORREL(Rollups!AR$6:AR$1001,Rollups!$AX$6:$AX$1001)) ->  | X83: =IF(Correlations!$D83>SetUp!$C$3,"",CORREL(Rollups!AS$6:AS$1001,Rollups!$AX$6:$AX$1001)) ->  | Y83: =IF(Correlations!$D83>SetUp!$C$3,"",CORREL(Rollups!AT$6:AT$1001,Rollups!$AX$6:$AX$1001)) ->  | Z83: =IF(Correlations!$D83>SetUp!$C$3,"",CORREL(Rollups!AU$6:AU$1001,Rollups!$AX$6:$AX$1001)) ->  | AA83: =IF(Correlations!$D83>SetUp!$C$3,"",CORREL(Rollups!AV$6:AV$1001,Rollups!$AX$6:$AX$1001)) ->  | AB83: =IF(Correlations!$D83>SetUp!$C$3,"",CORREL(Rollups!AW$6:AW$1001,Rollups!$AX$6:$AX$1001)) -> 
D84: 26 | E84: =IF(Correlations!$D84>SetUp!$C$3,"",CORREL(Rollups!Z$6:Z$1001,Rollups!$AY$6:$AY$1001)) ->  | F84: =IF(Correlations!$D84>SetUp!$C$3,"",CORREL(Rollups!AA$6:AA$1001,Rollups!$AY$6:$AY$1001)) ->  | G84: =IF(Correlations!$D84>SetUp!$C$3,"",CORREL(Rollups!AB$6:AB$1001,Rollups!$AY$6:$AY$1001)) ->  | H84: =IF(Correlations!$D84>SetUp!$C$3,"",CORREL(Rollups!AC$6:AC$1001,Rollups!$AY$6:$AY$1001)) ->  | I84: =IF(Correlations!$D84>SetUp!$C$3,"",CORREL(Rollups!AD$6:AD$1001,Rollups!$AY$6:$AY$1001)) ->  | J84: =IF(Correlations!$D84>SetUp!$C$3,"",CORREL(Rollups!AE$6:AE$1001,Rollups!$AY$6:$AY$1001)) ->  | K84: =IF(Correlations!$D84>SetUp!$C$3,"",CORREL(Rollups!AF$6:AF$1001,Rollups!$AY$6:$AY$1001)) ->  | L84: =IF(Correlations!$D84>SetUp!$C$3,"",CORREL(Rollups!AG$6:AG$1001,Rollups!$AY$6:$AY$1001)) ->  | M84: =IF(Correlations!$D84>SetUp!$C$3,"",CORREL(Rollups!AH$6:AH$1001,Rollups!$AY$6:$AY$1001)) ->  | N84: =IF(Correlations!$D84>SetUp!$C$3,"",CORREL(Rollups!AI$6:AI$1001,Rollups!$AY$6:$AY$1001)) ->  | O84: =IF(Correlations!$D84>SetUp!$C$3,"",CORREL(Rollups!AJ$6:AJ$1001,Rollups!$AY$6:$AY$1001)) ->  | P84: =IF(Correlations!$D84>SetUp!$C$3,"",CORREL(Rollups!AK$6:AK$1001,Rollups!$AY$6:$AY$1001)) ->  | Q84: =IF(Correlations!$D84>SetUp!$C$3,"",CORREL(Rollups!AL$6:AL$1001,Rollups!$AY$6:$AY$1001)) ->  | R84: =IF(Correlations!$D84>SetUp!$C$3,"",CORREL(Rollups!AM$6:AM$1001,Rollups!$AY$6:$AY$1001)) ->  | S84: =IF(Correlations!$D84>SetUp!$C$3,"",CORREL(Rollups!AN$6:AN$1001,Rollups!$AY$6:$AY$1001)) ->  | T84: =IF(Correlations!$D84>SetUp!$C$3,"",CORREL(Rollups!AO$6:AO$1001,Rollups!$AY$6:$AY$1001)) ->  | U84: =IF(Correlations!$D84>SetUp!$C$3,"",CORREL(Rollups!AP$6:AP$1001,Rollups!$AY$6:$AY$1001)) ->  | V84: =IF(Correlations!$D84>SetUp!$C$3,"",CORREL(Rollups!AQ$6:AQ$1001,Rollups!$AY$6:$AY$1001)) ->  | W84: =IF(Correlations!$D84>SetUp!$C$3,"",CORREL(Rollups!AR$6:AR$1001,Rollups!$AY$6:$AY$1001)) ->  | X84: =IF(Correlations!$D84>SetUp!$C$3,"",CORREL(Rollups!AS$6:AS$1001,Rollups!$AY$6:$AY$1001)) ->  | Y84: =IF(Correlations!$D84>SetUp!$C$3,"",CORREL(Rollups!AT$6:AT$1001,Rollups!$AY$6:$AY$1001)) ->  | Z84: =IF(Correlations!$D84>SetUp!$C$3,"",CORREL(Rollups!AU$6:AU$1001,Rollups!$AY$6:$AY$1001)) ->  | AA84: =IF(Correlations!$D84>SetUp!$C$3,"",CORREL(Rollups!AV$6:AV$1001,Rollups!$AY$6:$AY$1001)) ->  | AB84: =IF(Correlations!$D84>SetUp!$C$3,"",CORREL(Rollups!AW$6:AW$1001,Rollups!$AY$6:$AY$1001)) ->  | AC84: =IF(Correlations!$D84>SetUp!$C$3,"",CORREL(Rollups!AX$6:AX$1001,Rollups!$AY$6:$AY$1001)) -> 
D85: 27 | E85: =IF(Correlations!$D85>SetUp!$C$3,"",CORREL(Rollups!Z$6:Z$1001,Rollups!$AZ$6:$AZ$1001)) ->  | F85: =IF(Correlations!$D85>SetUp!$C$3,"",CORREL(Rollups!AA$6:AA$1001,Rollups!$AZ$6:$AZ$1001)) ->  | G85: =IF(Correlations!$D85>SetUp!$C$3,"",CORREL(Rollups!AB$6:AB$1001,Rollups!$AZ$6:$AZ$1001)) ->  | H85: =IF(Correlations!$D85>SetUp!$C$3,"",CORREL(Rollups!AC$6:AC$1001,Rollups!$AZ$6:$AZ$1001)) ->  | I85: =IF(Correlations!$D85>SetUp!$C$3,"",CORREL(Rollups!AD$6:AD$1001,Rollups!$AZ$6:$AZ$1001)) ->  | J85: =IF(Correlations!$D85>SetUp!$C$3,"",CORREL(Rollups!AE$6:AE$1001,Rollups!$AZ$6:$AZ$1001)) ->  | K85: =IF(Correlations!$D85>SetUp!$C$3,"",CORREL(Rollups!AF$6:AF$1001,Rollups!$AZ$6:$AZ$1001)) ->  | L85: =IF(Correlations!$D85>SetUp!$C$3,"",CORREL(Rollups!AG$6:AG$1001,Rollups!$AZ$6:$AZ$1001)) ->  | M85: =IF(Correlations!$D85>SetUp!$C$3,"",CORREL(Rollups!AH$6:AH$1001,Rollups!$AZ$6:$AZ$1001)) ->  | N85: =IF(Correlations!$D85>SetUp!$C$3,"",CORREL(Rollups!AI$6:AI$1001,Rollups!$AZ$6:$AZ$1001)) ->  | O85: =IF(Correlations!$D85>SetUp!$C$3,"",CORREL(Rollups!AJ$6:AJ$1001,Rollups!$AZ$6:$AZ$1001)) ->  | P85: =IF(Correlations!$D85>SetUp!$C$3,"",CORREL(Rollups!AK$6:AK$1001,Rollups!$AZ$6:$AZ$1001)) ->  | Q85: =IF(Correlations!$D85>SetUp!$C$3,"",CORREL(Rollups!AL$6:AL$1001,Rollups!$AZ$6:$AZ$1001)) ->  | R85: =IF(Correlations!$D85>SetUp!$C$3,"",CORREL(Rollups!AM$6:AM$1001,Rollups!$AZ$6:$AZ$1001)) ->  | S85: =IF(Correlations!$D85>SetUp!$C$3,"",CORREL(Rollups!AN$6:AN$1001,Rollups!$AZ$6:$AZ$1001)) ->  | T85: =IF(Correlations!$D85>SetUp!$C$3,"",CORREL(Rollups!AO$6:AO$1001,Rollups!$AZ$6:$AZ$1001)) ->  | U85: =IF(Correlations!$D85>SetUp!$C$3,"",CORREL(Rollups!AP$6:AP$1001,Rollups!$AZ$6:$AZ$1001)) ->  | V85: =IF(Correlations!$D85>SetUp!$C$3,"",CORREL(Rollups!AQ$6:AQ$1001,Rollups!$AZ$6:$AZ$1001)) ->  | W85: =IF(Correlations!$D85>SetUp!$C$3,"",CORREL(Rollups!AR$6:AR$1001,Rollups!$AZ$6:$AZ$1001)) ->  | X85: =IF(Correlations!$D85>SetUp!$C$3,"",CORREL(Rollups!AS$6:AS$1001,Rollups!$AZ$6:$AZ$1001)) ->  | Y85: =IF(Correlations!$D85>SetUp!$C$3,"",CORREL(Rollups!AT$6:AT$1001,Rollups!$AZ$6:$AZ$1001)) ->  | Z85: =IF(Correlations!$D85>SetUp!$C$3,"",CORREL(Rollups!AU$6:AU$1001,Rollups!$AZ$6:$AZ$1001)) ->  | AA85: =IF(Correlations!$D85>SetUp!$C$3,"",CORREL(Rollups!AV$6:AV$1001,Rollups!$AZ$6:$AZ$1001)) ->  | AB85: =IF(Correlations!$D85>SetUp!$C$3,"",CORREL(Rollups!AW$6:AW$1001,Rollups!$AZ$6:$AZ$1001)) ->  | AC85: =IF(Correlations!$D85>SetUp!$C$3,"",CORREL(Rollups!AX$6:AX$1001,Rollups!$AZ$6:$AZ$1001)) ->  | AD85: =IF(Correlations!$D85>SetUp!$C$3,"",CORREL(Rollups!AY$6:AY$1001,Rollups!$AZ$6:$AZ$1001)) -> 
D86: 28 | E86: =IF(Correlations!$D86>SetUp!$C$3,"",CORREL(Rollups!Z$6:Z$1001,Rollups!$BA$6:$BA$1001)) ->  | F86: =IF(Correlations!$D86>SetUp!$C$3,"",CORREL(Rollups!AA$6:AA$1001,Rollups!$BA$6:$BA$1001)) ->  | G86: =IF(Correlations!$D86>SetUp!$C$3,"",CORREL(Rollups!AB$6:AB$1001,Rollups!$BA$6:$BA$1001)) ->  | H86: =IF(Correlations!$D86>SetUp!$C$3,"",CORREL(Rollups!AC$6:AC$1001,Rollups!$BA$6:$BA$1001)) ->  | I86: =IF(Correlations!$D86>SetUp!$C$3,"",CORREL(Rollups!AD$6:AD$1001,Rollups!$BA$6:$BA$1001)) ->  | J86: =IF(Correlations!$D86>SetUp!$C$3,"",CORREL(Rollups!AE$6:AE$1001,Rollups!$BA$6:$BA$1001)) ->  | K86: =IF(Correlations!$D86>SetUp!$C$3,"",CORREL(Rollups!AF$6:AF$1001,Rollups!$BA$6:$BA$1001)) ->  | L86: =IF(Correlations!$D86>SetUp!$C$3,"",CORREL(Rollups!AG$6:AG$1001,Rollups!$BA$6:$BA$1001)) ->  | M86: =IF(Correlations!$D86>SetUp!$C$3,"",CORREL(Rollups!AH$6:AH$1001,Rollups!$BA$6:$BA$1001)) ->  | N86: =IF(Correlations!$D86>SetUp!$C$3,"",CORREL(Rollups!AI$6:AI$1001,Rollups!$BA$6:$BA$1001)) ->  | O86: =IF(Correlations!$D86>SetUp!$C$3,"",CORREL(Rollups!AJ$6:AJ$1001,Rollups!$BA$6:$BA$1001)) ->  | P86: =IF(Correlations!$D86>SetUp!$C$3,"",CORREL(Rollups!AK$6:AK$1001,Rollups!$BA$6:$BA$1001)) ->  | Q86: =IF(Correlations!$D86>SetUp!$C$3,"",CORREL(Rollups!AL$6:AL$1001,Rollups!$BA$6:$BA$1001)) ->  | R86: =IF(Correlations!$D86>SetUp!$C$3,"",CORREL(Rollups!AM$6:AM$1001,Rollups!$BA$6:$BA$1001)) ->  | S86: =IF(Correlations!$D86>SetUp!$C$3,"",CORREL(Rollups!AN$6:AN$1001,Rollups!$BA$6:$BA$1001)) ->  | T86: =IF(Correlations!$D86>SetUp!$C$3,"",CORREL(Rollups!AO$6:AO$1001,Rollups!$BA$6:$BA$1001)) ->  | U86: =IF(Correlations!$D86>SetUp!$C$3,"",CORREL(Rollups!AP$6:AP$1001,Rollups!$BA$6:$BA$1001)) ->  | V86: =IF(Correlations!$D86>SetUp!$C$3,"",CORREL(Rollups!AQ$6:AQ$1001,Rollups!$BA$6:$BA$1001)) ->  | W86: =IF(Correlations!$D86>SetUp!$C$3,"",CORREL(Rollups!AR$6:AR$1001,Rollups!$BA$6:$BA$1001)) ->  | X86: =IF(Correlations!$D86>SetUp!$C$3,"",CORREL(Rollups!AS$6:AS$1001,Rollups!$BA$6:$BA$1001)) ->  | Y86: =IF(Correlations!$D86>SetUp!$C$3,"",CORREL(Rollups!AT$6:AT$1001,Rollups!$BA$6:$BA$1001)) ->  | Z86: =IF(Correlations!$D86>SetUp!$C$3,"",CORREL(Rollups!AU$6:AU$1001,Rollups!$BA$6:$BA$1001)) ->  | AA86: =IF(Correlations!$D86>SetUp!$C$3,"",CORREL(Rollups!AV$6:AV$1001,Rollups!$BA$6:$BA$1001)) ->  | AB86: =IF(Correlations!$D86>SetUp!$C$3,"",CORREL(Rollups!AW$6:AW$1001,Rollups!$BA$6:$BA$1001)) ->  | AC86: =IF(Correlations!$D86>SetUp!$C$3,"",CORREL(Rollups!AX$6:AX$1001,Rollups!$BA$6:$BA$1001)) ->  | AD86: =IF(Correlations!$D86>SetUp!$C$3,"",CORREL(Rollups!AY$6:AY$1001,Rollups!$BA$6:$BA$1001)) ->  | AE86: =IF(Correlations!$D86>SetUp!$C$3,"",CORREL(Rollups!AZ$6:AZ$1001,Rollups!$BA$6:$BA$1001)) -> 
D87: 29 | E87: =IF(Correlations!$D87>SetUp!$C$3,"",CORREL(Rollups!Z$6:Z$1001,Rollups!$BB$6:$BB$1001)) ->  | F87: =IF(Correlations!$D87>SetUp!$C$3,"",CORREL(Rollups!AA$6:AA$1001,Rollups!$BB$6:$BB$1001)) ->  | G87: =IF(Correlations!$D87>SetUp!$C$3,"",CORREL(Rollups!AB$6:AB$1001,Rollups!$BB$6:$BB$1001)) ->  | H87: =IF(Correlations!$D87>SetUp!$C$3,"",CORREL(Rollups!AC$6:AC$1001,Rollups!$BB$6:$BB$1001)) ->  | I87: =IF(Correlations!$D87>SetUp!$C$3,"",CORREL(Rollups!AD$6:AD$1001,Rollups!$BB$6:$BB$1001)) ->  | J87: =IF(Correlations!$D87>SetUp!$C$3,"",CORREL(Rollups!AE$6:AE$1001,Rollups!$BB$6:$BB$1001)) ->  | K87: =IF(Correlations!$D87>SetUp!$C$3,"",CORREL(Rollups!AF$6:AF$1001,Rollups!$BB$6:$BB$1001)) ->  | L87: =IF(Correlations!$D87>SetUp!$C$3,"",CORREL(Rollups!AG$6:AG$1001,Rollups!$BB$6:$BB$1001)) ->  | M87: =IF(Correlations!$D87>SetUp!$C$3,"",CORREL(Rollups!AH$6:AH$1001,Rollups!$BB$6:$BB$1001)) ->  | N87: =IF(Correlations!$D87>SetUp!$C$3,"",CORREL(Rollups!AI$6:AI$1001,Rollups!$BB$6:$BB$1001)) ->  | O87: =IF(Correlations!$D87>SetUp!$C$3,"",CORREL(Rollups!AJ$6:AJ$1001,Rollups!$BB$6:$BB$1001)) ->  | P87: =IF(Correlations!$D87>SetUp!$C$3,"",CORREL(Rollups!AK$6:AK$1001,Rollups!$BB$6:$BB$1001)) ->  | Q87: =IF(Correlations!$D87>SetUp!$C$3,"",CORREL(Rollups!AL$6:AL$1001,Rollups!$BB$6:$BB$1001)) ->  | R87: =IF(Correlations!$D87>SetUp!$C$3,"",CORREL(Rollups!AM$6:AM$1001,Rollups!$BB$6:$BB$1001)) ->  | S87: =IF(Correlations!$D87>SetUp!$C$3,"",CORREL(Rollups!AN$6:AN$1001,Rollups!$BB$6:$BB$1001)) ->  | T87: =IF(Correlations!$D87>SetUp!$C$3,"",CORREL(Rollups!AO$6:AO$1001,Rollups!$BB$6:$BB$1001)) ->  | U87: =IF(Correlations!$D87>SetUp!$C$3,"",CORREL(Rollups!AP$6:AP$1001,Rollups!$BB$6:$BB$1001)) ->  | V87: =IF(Correlations!$D87>SetUp!$C$3,"",CORREL(Rollups!AQ$6:AQ$1001,Rollups!$BB$6:$BB$1001)) ->  | W87: =IF(Correlations!$D87>SetUp!$C$3,"",CORREL(Rollups!AR$6:AR$1001,Rollups!$BB$6:$BB$1001)) ->  | X87: =IF(Correlations!$D87>SetUp!$C$3,"",CORREL(Rollups!AS$6:AS$1001,Rollups!$BB$6:$BB$1001)) ->  | Y87: =IF(Correlations!$D87>SetUp!$C$3,"",CORREL(Rollups!AT$6:AT$1001,Rollups!$BB$6:$BB$1001)) ->  | Z87: =IF(Correlations!$D87>SetUp!$C$3,"",CORREL(Rollups!AU$6:AU$1001,Rollups!$BB$6:$BB$1001)) ->  | AA87: =IF(Correlations!$D87>SetUp!$C$3,"",CORREL(Rollups!AV$6:AV$1001,Rollups!$BB$6:$BB$1001)) ->  | AB87: =IF(Correlations!$D87>SetUp!$C$3,"",CORREL(Rollups!AW$6:AW$1001,Rollups!$BB$6:$BB$1001)) ->  | AC87: =IF(Correlations!$D87>SetUp!$C$3,"",CORREL(Rollups!AX$6:AX$1001,Rollups!$BB$6:$BB$1001)) ->  | AD87: =IF(Correlations!$D87>SetUp!$C$3,"",CORREL(Rollups!AY$6:AY$1001,Rollups!$BB$6:$BB$1001)) ->  | AE87: =IF(Correlations!$D87>SetUp!$C$3,"",CORREL(Rollups!AZ$6:AZ$1001,Rollups!$BB$6:$BB$1001)) ->  | AF87: =IF(Correlations!$D87>SetUp!$C$3,"",CORREL(Rollups!BA$6:BA$1001,Rollups!$BB$6:$BB$1001)) -> 
D88: 30 | E88: =IF(Correlations!$D88>SetUp!$C$3,"",CORREL(Rollups!Z$6:Z$1001,Rollups!$BC$6:$BC$1001)) ->  | F88: =IF(Correlations!$D88>SetUp!$C$3,"",CORREL(Rollups!AA$6:AA$1001,Rollups!$BC$6:$BC$1001)) ->  | G88: =IF(Correlations!$D88>SetUp!$C$3,"",CORREL(Rollups!AB$6:AB$1001,Rollups!$BC$6:$BC$1001)) ->  | H88: =IF(Correlations!$D88>SetUp!$C$3,"",CORREL(Rollups!AC$6:AC$1001,Rollups!$BC$6:$BC$1001)) ->  | I88: =IF(Correlations!$D88>SetUp!$C$3,"",CORREL(Rollups!AD$6:AD$1001,Rollups!$BC$6:$BC$1001)) ->  | J88: =IF(Correlations!$D88>SetUp!$C$3,"",CORREL(Rollups!AE$6:AE$1001,Rollups!$BC$6:$BC$1001)) ->  | K88: =IF(Correlations!$D88>SetUp!$C$3,"",CORREL(Rollups!AF$6:AF$1001,Rollups!$BC$6:$BC$1001)) ->  | L88: =IF(Correlations!$D88>SetUp!$C$3,"",CORREL(Rollups!AG$6:AG$1001,Rollups!$BC$6:$BC$1001)) ->  | M88: =IF(Correlations!$D88>SetUp!$C$3,"",CORREL(Rollups!AH$6:AH$1001,Rollups!$BC$6:$BC$1001)) ->  | N88: =IF(Correlations!$D88>SetUp!$C$3,"",CORREL(Rollups!AI$6:AI$1001,Rollups!$BC$6:$BC$1001)) ->  | O88: =IF(Correlations!$D88>SetUp!$C$3,"",CORREL(Rollups!AJ$6:AJ$1001,Rollups!$BC$6:$BC$1001)) ->  | P88: =IF(Correlations!$D88>SetUp!$C$3,"",CORREL(Rollups!AK$6:AK$1001,Rollups!$BC$6:$BC$1001)) ->  | Q88: =IF(Correlations!$D88>SetUp!$C$3,"",CORREL(Rollups!AL$6:AL$1001,Rollups!$BC$6:$BC$1001)) ->  | R88: =IF(Correlations!$D88>SetUp!$C$3,"",CORREL(Rollups!AM$6:AM$1001,Rollups!$BC$6:$BC$1001)) ->  | S88: =IF(Correlations!$D88>SetUp!$C$3,"",CORREL(Rollups!AN$6:AN$1001,Rollups!$BC$6:$BC$1001)) ->  | T88: =IF(Correlations!$D88>SetUp!$C$3,"",CORREL(Rollups!AO$6:AO$1001,Rollups!$BC$6:$BC$1001)) ->  | U88: =IF(Correlations!$D88>SetUp!$C$3,"",CORREL(Rollups!AP$6:AP$1001,Rollups!$BC$6:$BC$1001)) ->  | V88: =IF(Correlations!$D88>SetUp!$C$3,"",CORREL(Rollups!AQ$6:AQ$1001,Rollups!$BC$6:$BC$1001)) ->  | W88: =IF(Correlations!$D88>SetUp!$C$3,"",CORREL(Rollups!AR$6:AR$1001,Rollups!$BC$6:$BC$1001)) ->  | X88: =IF(Correlations!$D88>SetUp!$C$3,"",CORREL(Rollups!AS$6:AS$1001,Rollups!$BC$6:$BC$1001)) ->  | Y88: =IF(Correlations!$D88>SetUp!$C$3,"",CORREL(Rollups!AT$6:AT$1001,Rollups!$BC$6:$BC$1001)) ->  | Z88: =IF(Correlations!$D88>SetUp!$C$3,"",CORREL(Rollups!AU$6:AU$1001,Rollups!$BC$6:$BC$1001)) ->  | AA88: =IF(Correlations!$D88>SetUp!$C$3,"",CORREL(Rollups!AV$6:AV$1001,Rollups!$BC$6:$BC$1001)) ->  | AB88: =IF(Correlations!$D88>SetUp!$C$3,"",CORREL(Rollups!AW$6:AW$1001,Rollups!$BC$6:$BC$1001)) ->  | AC88: =IF(Correlations!$D88>SetUp!$C$3,"",CORREL(Rollups!AX$6:AX$1001,Rollups!$BC$6:$BC$1001)) ->  | AD88: =IF(Correlations!$D88>SetUp!$C$3,"",CORREL(Rollups!AY$6:AY$1001,Rollups!$BC$6:$BC$1001)) ->  | AE88: =IF(Correlations!$D88>SetUp!$C$3,"",CORREL(Rollups!AZ$6:AZ$1001,Rollups!$BC$6:$BC$1001)) ->  | AF88: =IF(Correlations!$D88>SetUp!$C$3,"",CORREL(Rollups!BA$6:BA$1001,Rollups!$BC$6:$BC$1001)) ->  | AG88: =IF(Correlations!$D88>SetUp!$C$3,"",CORREL(Rollups!BB$6:BB$1001,Rollups!$BC$6:$BC$1001)) -> 
D89: 31 | E89: =IF(Correlations!$D89>SetUp!$C$3,"",CORREL(Rollups!Z$6:Z$1001,Rollups!$BD$6:$BD$1001)) ->  | F89: =IF(Correlations!$D89>SetUp!$C$3,"",CORREL(Rollups!AA$6:AA$1001,Rollups!$BD$6:$BD$1001)) ->  | G89: =IF(Correlations!$D89>SetUp!$C$3,"",CORREL(Rollups!AB$6:AB$1001,Rollups!$BD$6:$BD$1001)) ->  | H89: =IF(Correlations!$D89>SetUp!$C$3,"",CORREL(Rollups!AC$6:AC$1001,Rollups!$BD$6:$BD$1001)) ->  | I89: =IF(Correlations!$D89>SetUp!$C$3,"",CORREL(Rollups!AD$6:AD$1001,Rollups!$BD$6:$BD$1001)) ->  | J89: =IF(Correlations!$D89>SetUp!$C$3,"",CORREL(Rollups!AE$6:AE$1001,Rollups!$BD$6:$BD$1001)) ->  | K89: =IF(Correlations!$D89>SetUp!$C$3,"",CORREL(Rollups!AF$6:AF$1001,Rollups!$BD$6:$BD$1001)) ->  | L89: =IF(Correlations!$D89>SetUp!$C$3,"",CORREL(Rollups!AG$6:AG$1001,Rollups!$BD$6:$BD$1001)) ->  | M89: =IF(Correlations!$D89>SetUp!$C$3,"",CORREL(Rollups!AH$6:AH$1001,Rollups!$BD$6:$BD$1001)) ->  | N89: =IF(Correlations!$D89>SetUp!$C$3,"",CORREL(Rollups!AI$6:AI$1001,Rollups!$BD$6:$BD$1001)) ->  | O89: =IF(Correlations!$D89>SetUp!$C$3,"",CORREL(Rollups!AJ$6:AJ$1001,Rollups!$BD$6:$BD$1001)) ->  | P89: =IF(Correlations!$D89>SetUp!$C$3,"",CORREL(Rollups!AK$6:AK$1001,Rollups!$BD$6:$BD$1001)) ->  | Q89: =IF(Correlations!$D89>SetUp!$C$3,"",CORREL(Rollups!AL$6:AL$1001,Rollups!$BD$6:$BD$1001)) ->  | R89: =IF(Correlations!$D89>SetUp!$C$3,"",CORREL(Rollups!AM$6:AM$1001,Rollups!$BD$6:$BD$1001)) ->  | S89: =IF(Correlations!$D89>SetUp!$C$3,"",CORREL(Rollups!AN$6:AN$1001,Rollups!$BD$6:$BD$1001)) ->  | T89: =IF(Correlations!$D89>SetUp!$C$3,"",CORREL(Rollups!AO$6:AO$1001,Rollups!$BD$6:$BD$1001)) ->  | U89: =IF(Correlations!$D89>SetUp!$C$3,"",CORREL(Rollups!AP$6:AP$1001,Rollups!$BD$6:$BD$1001)) ->  | V89: =IF(Correlations!$D89>SetUp!$C$3,"",CORREL(Rollups!AQ$6:AQ$1001,Rollups!$BD$6:$BD$1001)) ->  | W89: =IF(Correlations!$D89>SetUp!$C$3,"",CORREL(Rollups!AR$6:AR$1001,Rollups!$BD$6:$BD$1001)) ->  | X89: =IF(Correlations!$D89>SetUp!$C$3,"",CORREL(Rollups!AS$6:AS$1001,Rollups!$BD$6:$BD$1001)) ->  | Y89: =IF(Correlations!$D89>SetUp!$C$3,"",CORREL(Rollups!AT$6:AT$1001,Rollups!$BD$6:$BD$1001)) ->  | Z89: =IF(Correlations!$D89>SetUp!$C$3,"",CORREL(Rollups!AU$6:AU$1001,Rollups!$BD$6:$BD$1001)) ->  | AA89: =IF(Correlations!$D89>SetUp!$C$3,"",CORREL(Rollups!AV$6:AV$1001,Rollups!$BD$6:$BD$1001)) ->  | AB89: =IF(Correlations!$D89>SetUp!$C$3,"",CORREL(Rollups!AW$6:AW$1001,Rollups!$BD$6:$BD$1001)) ->  | AC89: =IF(Correlations!$D89>SetUp!$C$3,"",CORREL(Rollups!AX$6:AX$1001,Rollups!$BD$6:$BD$1001)) ->  | AD89: =IF(Correlations!$D89>SetUp!$C$3,"",CORREL(Rollups!AY$6:AY$1001,Rollups!$BD$6:$BD$1001)) ->  | AE89: =IF(Correlations!$D89>SetUp!$C$3,"",CORREL(Rollups!AZ$6:AZ$1001,Rollups!$BD$6:$BD$1001)) ->  | AF89: =IF(Correlations!$D89>SetUp!$C$3,"",CORREL(Rollups!BA$6:BA$1001,Rollups!$BD$6:$BD$1001)) ->  | AG89: =IF(Correlations!$D89>SetUp!$C$3,"",CORREL(Rollups!BB$6:BB$1001,Rollups!$BD$6:$BD$1001)) ->  | AH89: =IF(Correlations!$D89>SetUp!$C$3,"",CORREL(Rollups!BC$6:BC$1001,Rollups!$BD$6:$BD$1001)) -> 
D90: 32 | E90: =IF(Correlations!$D90>SetUp!$C$3,"",CORREL(Rollups!Z$6:Z$1001,Rollups!$BE$6:$BE$1001)) ->  | F90: =IF(Correlations!$D90>SetUp!$C$3,"",CORREL(Rollups!AA$6:AA$1001,Rollups!$BE$6:$BE$1001)) ->  | G90: =IF(Correlations!$D90>SetUp!$C$3,"",CORREL(Rollups!AB$6:AB$1001,Rollups!$BE$6:$BE$1001)) ->  | H90: =IF(Correlations!$D90>SetUp!$C$3,"",CORREL(Rollups!AC$6:AC$1001,Rollups!$BE$6:$BE$1001)) ->  | I90: =IF(Correlations!$D90>SetUp!$C$3,"",CORREL(Rollups!AD$6:AD$1001,Rollups!$BE$6:$BE$1001)) ->  | J90: =IF(Correlations!$D90>SetUp!$C$3,"",CORREL(Rollups!AE$6:AE$1001,Rollups!$BE$6:$BE$1001)) ->  | K90: =IF(Correlations!$D90>SetUp!$C$3,"",CORREL(Rollups!AF$6:AF$1001,Rollups!$BE$6:$BE$1001)) ->  | L90: =IF(Correlations!$D90>SetUp!$C$3,"",CORREL(Rollups!AG$6:AG$1001,Rollups!$BE$6:$BE$1001)) ->  | M90: =IF(Correlations!$D90>SetUp!$C$3,"",CORREL(Rollups!AH$6:AH$1001,Rollups!$BE$6:$BE$1001)) ->  | N90: =IF(Correlations!$D90>SetUp!$C$3,"",CORREL(Rollups!AI$6:AI$1001,Rollups!$BE$6:$BE$1001)) ->  | O90: =IF(Correlations!$D90>SetUp!$C$3,"",CORREL(Rollups!AJ$6:AJ$1001,Rollups!$BE$6:$BE$1001)) ->  | P90: =IF(Correlations!$D90>SetUp!$C$3,"",CORREL(Rollups!AK$6:AK$1001,Rollups!$BE$6:$BE$1001)) ->  | Q90: =IF(Correlations!$D90>SetUp!$C$3,"",CORREL(Rollups!AL$6:AL$1001,Rollups!$BE$6:$BE$1001)) ->  | R90: =IF(Correlations!$D90>SetUp!$C$3,"",CORREL(Rollups!AM$6:AM$1001,Rollups!$BE$6:$BE$1001)) ->  | S90: =IF(Correlations!$D90>SetUp!$C$3,"",CORREL(Rollups!AN$6:AN$1001,Rollups!$BE$6:$BE$1001)) ->  | T90: =IF(Correlations!$D90>SetUp!$C$3,"",CORREL(Rollups!AO$6:AO$1001,Rollups!$BE$6:$BE$1001)) ->  | U90: =IF(Correlations!$D90>SetUp!$C$3,"",CORREL(Rollups!AP$6:AP$1001,Rollups!$BE$6:$BE$1001)) ->  | V90: =IF(Correlations!$D90>SetUp!$C$3,"",CORREL(Rollups!AQ$6:AQ$1001,Rollups!$BE$6:$BE$1001)) ->  | W90: =IF(Correlations!$D90>SetUp!$C$3,"",CORREL(Rollups!AR$6:AR$1001,Rollups!$BE$6:$BE$1001)) ->  | X90: =IF(Correlations!$D90>SetUp!$C$3,"",CORREL(Rollups!AS$6:AS$1001,Rollups!$BE$6:$BE$1001)) ->  | Y90: =IF(Correlations!$D90>SetUp!$C$3,"",CORREL(Rollups!AT$6:AT$1001,Rollups!$BE$6:$BE$1001)) ->  | Z90: =IF(Correlations!$D90>SetUp!$C$3,"",CORREL(Rollups!AU$6:AU$1001,Rollups!$BE$6:$BE$1001)) ->  | AA90: =IF(Correlations!$D90>SetUp!$C$3,"",CORREL(Rollups!AV$6:AV$1001,Rollups!$BE$6:$BE$1001)) ->  | AB90: =IF(Correlations!$D90>SetUp!$C$3,"",CORREL(Rollups!AW$6:AW$1001,Rollups!$BE$6:$BE$1001)) ->  | AC90: =IF(Correlations!$D90>SetUp!$C$3,"",CORREL(Rollups!AX$6:AX$1001,Rollups!$BE$6:$BE$1001)) ->  | AD90: =IF(Correlations!$D90>SetUp!$C$3,"",CORREL(Rollups!AY$6:AY$1001,Rollups!$BE$6:$BE$1001)) ->  | AE90: =IF(Correlations!$D90>SetUp!$C$3,"",CORREL(Rollups!AZ$6:AZ$1001,Rollups!$BE$6:$BE$1001)) ->  | AF90: =IF(Correlations!$D90>SetUp!$C$3,"",CORREL(Rollups!BA$6:BA$1001,Rollups!$BE$6:$BE$1001)) ->  | AG90: =IF(Correlations!$D90>SetUp!$C$3,"",CORREL(Rollups!BB$6:BB$1001,Rollups!$BE$6:$BE$1001)) ->  | AH90: =IF(Correlations!$D90>SetUp!$C$3,"",CORREL(Rollups!BC$6:BC$1001,Rollups!$BE$6:$BE$1001)) ->  | AI90: =IF(Correlations!$D90>SetUp!$C$3,"",CORREL(Rollups!BD$6:BD$1001,Rollups!$BE$6:$BE$1001)) -> 
D91: =IF(D90<SetUp!$C$3,Correlations!D90+1,"") -> 
D92: =IF(D91<SetUp!$C$3,Correlations!D91+1,"") -> 
D93: Question z values | E93: 1 | F93: 2 | G93: 3 | H93: 4 | I93: 5 | J93: 6 | K93: 7 | L93: 8 | M93: 9 | N93: 10 | O93: 11 | P93: 12 | Q93: 13 | R93: 14 | S93: 15 | T93: 16 | U93: 17 | V93: 18 | W93: 19 | X93: 20 | Y93: 21 | Z93: 22 | AA93: 23 | AB93: 24 | AC93: 25 | AD93: 26 | AE93: 27 | AF93: 28 | AG93: 29 | AH93: 30 | AI93: 31 | AJ93: 32
D94: 2 | E94: =IF(OR($D94>SetUp!$C$3,E$93>SetUp!$C$3),"",IF(VALUE(E60)< 1,FISHER(E60),FISHER(0.999))) -> 1.564423474
D95: 3 | E95: =IF(OR($D95>SetUp!$C$3,E$93>SetUp!$C$3),"",IF(VALUE(E61)< 1,FISHER(E61),FISHER(0.999))) -> 0.9179335518 | F95: =IF(OR($D95>SetUp!$C$3,F$93>SetUp!$C$3),"",IF(VALUE(F61)< 1,FISHER(F61),FISHER(0.999))) -> 1.556456729
D96: 4 | E96: =IF(OR($D96>SetUp!$C$3,E$93>SetUp!$C$3),"",IF(VALUE(E62)< 1,FISHER(E62),FISHER(0.999))) -> 0.7196205776 | F96: =IF(OR($D96>SetUp!$C$3,F$93>SetUp!$C$3),"",IF(VALUE(F62)< 1,FISHER(F62),FISHER(0.999))) -> 1.15923778 | G96: =IF(OR($D96>SetUp!$C$3,G$93>SetUp!$C$3),"",IF(VALUE(G62)< 1,FISHER(G62),FISHER(0.999))) -> 2.0860322
D97: 5 | E97: =IF(OR($D97>SetUp!$C$3,E$93>SetUp!$C$3),"",IF(VALUE(E63)< 1,FISHER(E63),FISHER(0.999))) ->  | F97: =IF(OR($D97>SetUp!$C$3,F$93>SetUp!$C$3),"",IF(VALUE(F63)< 1,FISHER(F63),FISHER(0.999))) ->  | G97: =IF(OR($D97>SetUp!$C$3,G$93>SetUp!$C$3),"",IF(VALUE(G63)< 1,FISHER(G63),FISHER(0.999))) ->  | H97: =IF(OR($D97>SetUp!$C$3,H$93>SetUp!$C$3),"",IF(VALUE(H63)< 1,FISHER(H63),FISHER(0.999))) -> 
D98: 6 | E98: =IF(OR($D98>SetUp!$C$3,E$93>SetUp!$C$3),"",IF(VALUE(E64)< 1,FISHER(E64),FISHER(0.999))) ->  | F98: =IF(OR($D98>SetUp!$C$3,F$93>SetUp!$C$3),"",IF(VALUE(F64)< 1,FISHER(F64),FISHER(0.999))) ->  | G98: =IF(OR($D98>SetUp!$C$3,G$93>SetUp!$C$3),"",IF(VALUE(G64)< 1,FISHER(G64),FISHER(0.999))) ->  | H98: =IF(OR($D98>SetUp!$C$3,H$93>SetUp!$C$3),"",IF(VALUE(H64)< 1,FISHER(H64),FISHER(0.999))) ->  | I98: =IF(OR($D98>SetUp!$C$3,I$93>SetUp!$C$3),"",IF(VALUE(I64)< 1,FISHER(I64),FISHER(0.999))) -> 
D99: 7 | E99: =IF(OR($D99>SetUp!$C$3,E$93>SetUp!$C$3),"",IF(VALUE(E65)< 1,FISHER(E65),FISHER(0.999))) ->  | F99: =IF(OR($D99>SetUp!$C$3,F$93>SetUp!$C$3),"",IF(VALUE(F65)< 1,FISHER(F65),FISHER(0.999))) ->  | G99: =IF(OR($D99>SetUp!$C$3,G$93>SetUp!$C$3),"",IF(VALUE(G65)< 1,FISHER(G65),FISHER(0.999))) ->  | H99: =IF(OR($D99>SetUp!$C$3,H$93>SetUp!$C$3),"",IF(VALUE(H65)< 1,FISHER(H65),FISHER(0.999))) ->  | I99: =IF(OR($D99>SetUp!$C$3,I$93>SetUp!$C$3),"",IF(VALUE(I65)< 1,FISHER(I65),FISHER(0.999))) ->  | J99: =IF(OR($D99>SetUp!$C$3,J$93>SetUp!$C$3),"",IF(VALUE(J65)< 1,FISHER(J65),FISHER(0.999))) -> 
D100: 8 | E100: =IF(OR($D100>SetUp!$C$3,E$93>SetUp!$C$3),"",IF(VALUE(E66)< 1,FISHER(E66),FISHER(0.999))) ->  | F100: =IF(OR($D100>SetUp!$C$3,F$93>SetUp!$C$3),"",IF(VALUE(F66)< 1,FISHER(F66),FISHER(0.999))) ->  | G100: =IF(OR($D100>SetUp!$C$3,G$93>SetUp!$C$3),"",IF(VALUE(G66)< 1,FISHER(G66),FISHER(0.999))) ->  | H100: =IF(OR($D100>SetUp!$C$3,H$93>SetUp!$C$3),"",IF(VALUE(H66)< 1,FISHER(H66),FISHER(0.999))) ->  | I100: =IF(OR($D100>SetUp!$C$3,I$93>SetUp!$C$3),"",IF(VALUE(I66)< 1,FISHER(I66),FISHER(0.999))) ->  | J100: =IF(OR($D100>SetUp!$C$3,J$93>SetUp!$C$3),"",IF(VALUE(J66)< 1,FISHER(J66),FISHER(0.999))) ->  | K100: =IF(OR($D100>SetUp!$C$3,K$93>SetUp!$C$3),"",IF(VALUE(K66)< 1,FISHER(K66),FISHER(0.999))) -> 
D101: 9 | E101: =IF(OR($D101>SetUp!$C$3,E$93>SetUp!$C$3),"",IF(VALUE(E67)< 1,FISHER(E67),FISHER(0.999))) ->  | F101: =IF(OR($D101>SetUp!$C$3,F$93>SetUp!$C$3),"",IF(VALUE(F67)< 1,FISHER(F67),FISHER(0.999))) ->  | G101: =IF(OR($D101>SetUp!$C$3,G$93>SetUp!$C$3),"",IF(VALUE(G67)< 1,FISHER(G67),FISHER(0.999))) ->  | H101: =IF(OR($D101>SetUp!$C$3,H$93>SetUp!$C$3),"",IF(VALUE(H67)< 1,FISHER(H67),FISHER(0.999))) ->  | I101: =IF(OR($D101>SetUp!$C$3,I$93>SetUp!$C$3),"",IF(VALUE(I67)< 1,FISHER(I67),FISHER(0.999))) ->  | J101: =IF(OR($D101>SetUp!$C$3,J$93>SetUp!$C$3),"",IF(VALUE(J67)< 1,FISHER(J67),FISHER(0.999))) ->  | K101: =IF(OR($D101>SetUp!$C$3,K$93>SetUp!$C$3),"",IF(VALUE(K67)< 1,FISHER(K67),FISHER(0.999))) ->  | L101: =IF(OR($D101>SetUp!$C$3,L$93>SetUp!$C$3),"",IF(VALUE(L67)< 1,FISHER(L67),FISHER(0.999))) -> 
D102: 10 | E102: =IF(OR($D102>SetUp!$C$3,E$93>SetUp!$C$3),"",IF(VALUE(E68)< 1,FISHER(E68),FISHER(0.999))) ->  | F102: =IF(OR($D102>SetUp!$C$3,F$93>SetUp!$C$3),"",IF(VALUE(F68)< 1,FISHER(F68),FISHER(0.999))) ->  | G102: =IF(OR($D102>SetUp!$C$3,G$93>SetUp!$C$3),"",IF(VALUE(G68)< 1,FISHER(G68),FISHER(0.999))) ->  | H102: =IF(OR($D102>SetUp!$C$3,H$93>SetUp!$C$3),"",IF(VALUE(H68)< 1,FISHER(H68),FISHER(0.999))) ->  | I102: =IF(OR($D102>SetUp!$C$3,I$93>SetUp!$C$3),"",IF(VALUE(I68)< 1,FISHER(I68),FISHER(0.999))) ->  | J102: =IF(OR($D102>SetUp!$C$3,J$93>SetUp!$C$3),"",IF(VALUE(J68)< 1,FISHER(J68),FISHER(0.999))) ->  | K102: =IF(OR($D102>SetUp!$C$3,K$93>SetUp!$C$3),"",IF(VALUE(K68)< 1,FISHER(K68),FISHER(0.999))) ->  | L102: =IF(OR($D102>SetUp!$C$3,L$93>SetUp!$C$3),"",IF(VALUE(L68)< 1,FISHER(L68),FISHER(0.999))) ->  | M102: =IF(OR($D102>SetUp!$C$3,M$93>SetUp!$C$3),"",IF(VALUE(M68)< 1,FISHER(M68),FISHER(0.999))) -> 
D103: 11 | E103: =IF(OR($D103>SetUp!$C$3,E$93>SetUp!$C$3),"",IF(VALUE(E69)< 1,FISHER(E69),FISHER(0.999))) ->  | F103: =IF(OR($D103>SetUp!$C$3,F$93>SetUp!$C$3),"",IF(VALUE(F69)< 1,FISHER(F69),FISHER(0.999))) ->  | G103: =IF(OR($D103>SetUp!$C$3,G$93>SetUp!$C$3),"",IF(VALUE(G69)< 1,FISHER(G69),FISHER(0.999))) ->  | H103: =IF(OR($D103>SetUp!$C$3,H$93>SetUp!$C$3),"",IF(VALUE(H69)< 1,FISHER(H69),FISHER(0.999))) ->  | I103: =IF(OR($D103>SetUp!$C$3,I$93>SetUp!$C$3),"",IF(VALUE(I69)< 1,FISHER(I69),FISHER(0.999))) ->  | J103: =IF(OR($D103>SetUp!$C$3,J$93>SetUp!$C$3),"",IF(VALUE(J69)< 1,FISHER(J69),FISHER(0.999))) ->  | K103: =IF(OR($D103>SetUp!$C$3,K$93>SetUp!$C$3),"",IF(VALUE(K69)< 1,FISHER(K69),FISHER(0.999))) ->  | L103: =IF(OR($D103>SetUp!$C$3,L$93>SetUp!$C$3),"",IF(VALUE(L69)< 1,FISHER(L69),FISHER(0.999))) ->  | M103: =IF(OR($D103>SetUp!$C$3,M$93>SetUp!$C$3),"",IF(VALUE(M69)< 1,FISHER(M69),FISHER(0.999))) ->  | N103: =IF(OR($D103>SetUp!$C$3,N$93>SetUp!$C$3),"",IF(VALUE(N69)< 1,FISHER(N69),FISHER(0.999))) -> 
D104: 12 | E104: =IF(OR($D104>SetUp!$C$3,E$93>SetUp!$C$3),"",IF(VALUE(E70)< 1,FISHER(E70),FISHER(0.999))) ->  | F104: =IF(OR($D104>SetUp!$C$3,F$93>SetUp!$C$3),"",IF(VALUE(F70)< 1,FISHER(F70),FISHER(0.999))) ->  | G104: =IF(OR($D104>SetUp!$C$3,G$93>SetUp!$C$3),"",IF(VALUE(G70)< 1,FISHER(G70),FISHER(0.999))) ->  | H104: =IF(OR($D104>SetUp!$C$3,H$93>SetUp!$C$3),"",IF(VALUE(H70)< 1,FISHER(H70),FISHER(0.999))) ->  | I104: =IF(OR($D104>SetUp!$C$3,I$93>SetUp!$C$3),"",IF(VALUE(I70)< 1,FISHER(I70),FISHER(0.999))) ->  | J104: =IF(OR($D104>SetUp!$C$3,J$93>SetUp!$C$3),"",IF(VALUE(J70)< 1,FISHER(J70),FISHER(0.999))) ->  | K104: =IF(OR($D104>SetUp!$C$3,K$93>SetUp!$C$3),"",IF(VALUE(K70)< 1,FISHER(K70),FISHER(0.999))) ->  | L104: =IF(OR($D104>SetUp!$C$3,L$93>SetUp!$C$3),"",IF(VALUE(L70)< 1,FISHER(L70),FISHER(0.999))) ->  | M104: =IF(OR($D104>SetUp!$C$3,M$93>SetUp!$C$3),"",IF(VALUE(M70)< 1,FISHER(M70),FISHER(0.999))) ->  | N104: =IF(OR($D104>SetUp!$C$3,N$93>SetUp!$C$3),"",IF(VALUE(N70)< 1,FISHER(N70),FISHER(0.999))) ->  | O104: =IF(OR($D104>SetUp!$C$3,O$93>SetUp!$C$3),"",IF(VALUE(O70)< 1,FISHER(O70),FISHER(0.999))) -> 
D105: 13 | E105: =IF(OR($D105>SetUp!$C$3,E$93>SetUp!$C$3),"",IF(VALUE(E71)< 1,FISHER(E71),FISHER(0.999))) ->  | F105: =IF(OR($D105>SetUp!$C$3,F$93>SetUp!$C$3),"",IF(VALUE(F71)< 1,FISHER(F71),FISHER(0.999))) ->  | G105: =IF(OR($D105>SetUp!$C$3,G$93>SetUp!$C$3),"",IF(VALUE(G71)< 1,FISHER(G71),FISHER(0.999))) ->  | H105: =IF(OR($D105>SetUp!$C$3,H$93>SetUp!$C$3),"",IF(VALUE(H71)< 1,FISHER(H71),FISHER(0.999))) ->  | I105: =IF(OR($D105>SetUp!$C$3,I$93>SetUp!$C$3),"",IF(VALUE(I71)< 1,FISHER(I71),FISHER(0.999))) ->  | J105: =IF(OR($D105>SetUp!$C$3,J$93>SetUp!$C$3),"",IF(VALUE(J71)< 1,FISHER(J71),FISHER(0.999))) ->  | K105: =IF(OR($D105>SetUp!$C$3,K$93>SetUp!$C$3),"",IF(VALUE(K71)< 1,FISHER(K71),FISHER(0.999))) ->  | L105: =IF(OR($D105>SetUp!$C$3,L$93>SetUp!$C$3),"",IF(VALUE(L71)< 1,FISHER(L71),FISHER(0.999))) ->  | M105: =IF(OR($D105>SetUp!$C$3,M$93>SetUp!$C$3),"",IF(VALUE(M71)< 1,FISHER(M71),FISHER(0.999))) ->  | N105: =IF(OR($D105>SetUp!$C$3,N$93>SetUp!$C$3),"",IF(VALUE(N71)< 1,FISHER(N71),FISHER(0.999))) ->  | O105: =IF(OR($D105>SetUp!$C$3,O$93>SetUp!$C$3),"",IF(VALUE(O71)< 1,FISHER(O71),FISHER(0.999))) ->  | P105: =IF(OR($D105>SetUp!$C$3,P$93>SetUp!$C$3),"",IF(VALUE(P71)< 1,FISHER(P71),FISHER(0.999))) -> 
D106: 14 | E106: =IF(OR($D106>SetUp!$C$3,E$93>SetUp!$C$3),"",IF(VALUE(E72)< 1,FISHER(E72),FISHER(0.999))) ->  | F106: =IF(OR($D106>SetUp!$C$3,F$93>SetUp!$C$3),"",IF(VALUE(F72)< 1,FISHER(F72),FISHER(0.999))) ->  | G106: =IF(OR($D106>SetUp!$C$3,G$93>SetUp!$C$3),"",IF(VALUE(G72)< 1,FISHER(G72),FISHER(0.999))) ->  | H106: =IF(OR($D106>SetUp!$C$3,H$93>SetUp!$C$3),"",IF(VALUE(H72)< 1,FISHER(H72),FISHER(0.999))) ->  | I106: =IF(OR($D106>SetUp!$C$3,I$93>SetUp!$C$3),"",IF(VALUE(I72)< 1,FISHER(I72),FISHER(0.999))) ->  | J106: =IF(OR($D106>SetUp!$C$3,J$93>SetUp!$C$3),"",IF(VALUE(J72)< 1,FISHER(J72),FISHER(0.999))) ->  | K106: =IF(OR($D106>SetUp!$C$3,K$93>SetUp!$C$3),"",IF(VALUE(K72)< 1,FISHER(K72),FISHER(0.999))) ->  | L106: =IF(OR($D106>SetUp!$C$3,L$93>SetUp!$C$3),"",IF(VALUE(L72)< 1,FISHER(L72),FISHER(0.999))) ->  | M106: =IF(OR($D106>SetUp!$C$3,M$93>SetUp!$C$3),"",IF(VALUE(M72)< 1,FISHER(M72),FISHER(0.999))) ->  | N106: =IF(OR($D106>SetUp!$C$3,N$93>SetUp!$C$3),"",IF(VALUE(N72)< 1,FISHER(N72),FISHER(0.999))) ->  | O106: =IF(OR($D106>SetUp!$C$3,O$93>SetUp!$C$3),"",IF(VALUE(O72)< 1,FISHER(O72),FISHER(0.999))) ->  | P106: =IF(OR($D106>SetUp!$C$3,P$93>SetUp!$C$3),"",IF(VALUE(P72)< 1,FISHER(P72),FISHER(0.999))) ->  | Q106: =IF(OR($D106>SetUp!$C$3,Q$93>SetUp!$C$3),"",IF(VALUE(Q72)< 1,FISHER(Q72),FISHER(0.999))) -> 
D107: 15 | E107: =IF(OR($D107>SetUp!$C$3,E$93>SetUp!$C$3),"",IF(VALUE(E73)< 1,FISHER(E73),FISHER(0.999))) ->  | F107: =IF(OR($D107>SetUp!$C$3,F$93>SetUp!$C$3),"",IF(VALUE(F73)< 1,FISHER(F73),FISHER(0.999))) ->  | G107: =IF(OR($D107>SetUp!$C$3,G$93>SetUp!$C$3),"",IF(VALUE(G73)< 1,FISHER(G73),FISHER(0.999))) ->  | H107: =IF(OR($D107>SetUp!$C$3,H$93>SetUp!$C$3),"",IF(VALUE(H73)< 1,FISHER(H73),FISHER(0.999))) ->  | I107: =IF(OR($D107>SetUp!$C$3,I$93>SetUp!$C$3),"",IF(VALUE(I73)< 1,FISHER(I73),FISHER(0.999))) ->  | J107: =IF(OR($D107>SetUp!$C$3,J$93>SetUp!$C$3),"",IF(VALUE(J73)< 1,FISHER(J73),FISHER(0.999))) ->  | K107: =IF(OR($D107>SetUp!$C$3,K$93>SetUp!$C$3),"",IF(VALUE(K73)< 1,FISHER(K73),FISHER(0.999))) ->  | L107: =IF(OR($D107>SetUp!$C$3,L$93>SetUp!$C$3),"",IF(VALUE(L73)< 1,FISHER(L73),FISHER(0.999))) ->  | M107: =IF(OR($D107>SetUp!$C$3,M$93>SetUp!$C$3),"",IF(VALUE(M73)< 1,FISHER(M73),FISHER(0.999))) ->  | N107: =IF(OR($D107>SetUp!$C$3,N$93>SetUp!$C$3),"",IF(VALUE(N73)< 1,FISHER(N73),FISHER(0.999))) ->  | O107: =IF(OR($D107>SetUp!$C$3,O$93>SetUp!$C$3),"",IF(VALUE(O73)< 1,FISHER(O73),FISHER(0.999))) ->  | P107: =IF(OR($D107>SetUp!$C$3,P$93>SetUp!$C$3),"",IF(VALUE(P73)< 1,FISHER(P73),FISHER(0.999))) ->  | Q107: =IF(OR($D107>SetUp!$C$3,Q$93>SetUp!$C$3),"",IF(VALUE(Q73)< 1,FISHER(Q73),FISHER(0.999))) ->  | R107: =IF(OR($D107>SetUp!$C$3,R$93>SetUp!$C$3),"",IF(VALUE(R73)< 1,FISHER(R73),FISHER(0.999))) -> 
D108: 16 | E108: =IF(OR($D108>SetUp!$C$3,E$93>SetUp!$C$3),"",IF(VALUE(E74)< 1,FISHER(E74),FISHER(0.999))) ->  | F108: =IF(OR($D108>SetUp!$C$3,F$93>SetUp!$C$3),"",IF(VALUE(F74)< 1,FISHER(F74),FISHER(0.999))) ->  | G108: =IF(OR($D108>SetUp!$C$3,G$93>SetUp!$C$3),"",IF(VALUE(G74)< 1,FISHER(G74),FISHER(0.999))) ->  | H108: =IF(OR($D108>SetUp!$C$3,H$93>SetUp!$C$3),"",IF(VALUE(H74)< 1,FISHER(H74),FISHER(0.999))) ->  | I108: =IF(OR($D108>SetUp!$C$3,I$93>SetUp!$C$3),"",IF(VALUE(I74)< 1,FISHER(I74),FISHER(0.999))) ->  | J108: =IF(OR($D108>SetUp!$C$3,J$93>SetUp!$C$3),"",IF(VALUE(J74)< 1,FISHER(J74),FISHER(0.999))) ->  | K108: =IF(OR($D108>SetUp!$C$3,K$93>SetUp!$C$3),"",IF(VALUE(K74)< 1,FISHER(K74),FISHER(0.999))) ->  | L108: =IF(OR($D108>SetUp!$C$3,L$93>SetUp!$C$3),"",IF(VALUE(L74)< 1,FISHER(L74),FISHER(0.999))) ->  | M108: =IF(OR($D108>SetUp!$C$3,M$93>SetUp!$C$3),"",IF(VALUE(M74)< 1,FISHER(M74),FISHER(0.999))) ->  | N108: =IF(OR($D108>SetUp!$C$3,N$93>SetUp!$C$3),"",IF(VALUE(N74)< 1,FISHER(N74),FISHER(0.999))) ->  | O108: =IF(OR($D108>SetUp!$C$3,O$93>SetUp!$C$3),"",IF(VALUE(O74)< 1,FISHER(O74),FISHER(0.999))) ->  | P108: =IF(OR($D108>SetUp!$C$3,P$93>SetUp!$C$3),"",IF(VALUE(P74)< 1,FISHER(P74),FISHER(0.999))) ->  | Q108: =IF(OR($D108>SetUp!$C$3,Q$93>SetUp!$C$3),"",IF(VALUE(Q74)< 1,FISHER(Q74),FISHER(0.999))) ->  | R108: =IF(OR($D108>SetUp!$C$3,R$93>SetUp!$C$3),"",IF(VALUE(R74)< 1,FISHER(R74),FISHER(0.999))) ->  | S108: =IF(OR($D108>SetUp!$C$3,S$93>SetUp!$C$3),"",IF(VALUE(S74)< 1,FISHER(S74),FISHER(0.999))) -> 
D109: 17 | E109: =IF(OR($D109>SetUp!$C$3,E$93>SetUp!$C$3),"",IF(VALUE(E75)< 1,FISHER(E75),FISHER(0.999))) ->  | F109: =IF(OR($D109>SetUp!$C$3,F$93>SetUp!$C$3),"",IF(VALUE(F75)< 1,FISHER(F75),FISHER(0.999))) ->  | G109: =IF(OR($D109>SetUp!$C$3,G$93>SetUp!$C$3),"",IF(VALUE(G75)< 1,FISHER(G75),FISHER(0.999))) ->  | H109: =IF(OR($D109>SetUp!$C$3,H$93>SetUp!$C$3),"",IF(VALUE(H75)< 1,FISHER(H75),FISHER(0.999))) ->  | I109: =IF(OR($D109>SetUp!$C$3,I$93>SetUp!$C$3),"",IF(VALUE(I75)< 1,FISHER(I75),FISHER(0.999))) ->  | J109: =IF(OR($D109>SetUp!$C$3,J$93>SetUp!$C$3),"",IF(VALUE(J75)< 1,FISHER(J75),FISHER(0.999))) ->  | K109: =IF(OR($D109>SetUp!$C$3,K$93>SetUp!$C$3),"",IF(VALUE(K75)< 1,FISHER(K75),FISHER(0.999))) ->  | L109: =IF(OR($D109>SetUp!$C$3,L$93>SetUp!$C$3),"",IF(VALUE(L75)< 1,FISHER(L75),FISHER(0.999))) ->  | M109: =IF(OR($D109>SetUp!$C$3,M$93>SetUp!$C$3),"",IF(VALUE(M75)< 1,FISHER(M75),FISHER(0.999))) ->  | N109: =IF(OR($D109>SetUp!$C$3,N$93>SetUp!$C$3),"",IF(VALUE(N75)< 1,FISHER(N75),FISHER(0.999))) ->  | O109: =IF(OR($D109>SetUp!$C$3,O$93>SetUp!$C$3),"",IF(VALUE(O75)< 1,FISHER(O75),FISHER(0.999))) ->  | P109: =IF(OR($D109>SetUp!$C$3,P$93>SetUp!$C$3),"",IF(VALUE(P75)< 1,FISHER(P75),FISHER(0.999))) ->  | Q109: =IF(OR($D109>SetUp!$C$3,Q$93>SetUp!$C$3),"",IF(VALUE(Q75)< 1,FISHER(Q75),FISHER(0.999))) ->  | R109: =IF(OR($D109>SetUp!$C$3,R$93>SetUp!$C$3),"",IF(VALUE(R75)< 1,FISHER(R75),FISHER(0.999))) ->  | S109: =IF(OR($D109>SetUp!$C$3,S$93>SetUp!$C$3),"",IF(VALUE(S75)< 1,FISHER(S75),FISHER(0.999))) ->  | T109: =IF(OR($D109>SetUp!$C$3,T$93>SetUp!$C$3),"",IF(VALUE(T75)< 1,FISHER(T75),FISHER(0.999))) -> 
D110: 18 | E110: =IF(OR($D110>SetUp!$C$3,E$93>SetUp!$C$3),"",IF(VALUE(E76)< 1,FISHER(E76),FISHER(0.999))) ->  | F110: =IF(OR($D110>SetUp!$C$3,F$93>SetUp!$C$3),"",IF(VALUE(F76)< 1,FISHER(F76),FISHER(0.999))) ->  | G110: =IF(OR($D110>SetUp!$C$3,G$93>SetUp!$C$3),"",IF(VALUE(G76)< 1,FISHER(G76),FISHER(0.999))) ->  | H110: =IF(OR($D110>SetUp!$C$3,H$93>SetUp!$C$3),"",IF(VALUE(H76)< 1,FISHER(H76),FISHER(0.999))) ->  | I110: =IF(OR($D110>SetUp!$C$3,I$93>SetUp!$C$3),"",IF(VALUE(I76)< 1,FISHER(I76),FISHER(0.999))) ->  | J110: =IF(OR($D110>SetUp!$C$3,J$93>SetUp!$C$3),"",IF(VALUE(J76)< 1,FISHER(J76),FISHER(0.999))) ->  | K110: =IF(OR($D110>SetUp!$C$3,K$93>SetUp!$C$3),"",IF(VALUE(K76)< 1,FISHER(K76),FISHER(0.999))) ->  | L110: =IF(OR($D110>SetUp!$C$3,L$93>SetUp!$C$3),"",IF(VALUE(L76)< 1,FISHER(L76),FISHER(0.999))) ->  | M110: =IF(OR($D110>SetUp!$C$3,M$93>SetUp!$C$3),"",IF(VALUE(M76)< 1,FISHER(M76),FISHER(0.999))) ->  | N110: =IF(OR($D110>SetUp!$C$3,N$93>SetUp!$C$3),"",IF(VALUE(N76)< 1,FISHER(N76),FISHER(0.999))) ->  | O110: =IF(OR($D110>SetUp!$C$3,O$93>SetUp!$C$3),"",IF(VALUE(O76)< 1,FISHER(O76),FISHER(0.999))) ->  | P110: =IF(OR($D110>SetUp!$C$3,P$93>SetUp!$C$3),"",IF(VALUE(P76)< 1,FISHER(P76),FISHER(0.999))) ->  | Q110: =IF(OR($D110>SetUp!$C$3,Q$93>SetUp!$C$3),"",IF(VALUE(Q76)< 1,FISHER(Q76),FISHER(0.999))) ->  | R110: =IF(OR($D110>SetUp!$C$3,R$93>SetUp!$C$3),"",IF(VALUE(R76)< 1,FISHER(R76),FISHER(0.999))) ->  | S110: =IF(OR($D110>SetUp!$C$3,S$93>SetUp!$C$3),"",IF(VALUE(S76)< 1,FISHER(S76),FISHER(0.999))) ->  | T110: =IF(OR($D110>SetUp!$C$3,T$93>SetUp!$C$3),"",IF(VALUE(T76)< 1,FISHER(T76),FISHER(0.999))) ->  | U110: =IF(OR($D110>SetUp!$C$3,U$93>SetUp!$C$3),"",IF(VALUE(U76)< 1,FISHER(U76),FISHER(0.999))) -> 
D111: 19 | E111: =IF(OR($D111>SetUp!$C$3,E$93>SetUp!$C$3),"",IF(VALUE(E77)< 1,FISHER(E77),FISHER(0.999))) ->  | F111: =IF(OR($D111>SetUp!$C$3,F$93>SetUp!$C$3),"",IF(VALUE(F77)< 1,FISHER(F77),FISHER(0.999))) ->  | G111: =IF(OR($D111>SetUp!$C$3,G$93>SetUp!$C$3),"",IF(VALUE(G77)< 1,FISHER(G77),FISHER(0.999))) ->  | H111: =IF(OR($D111>SetUp!$C$3,H$93>SetUp!$C$3),"",IF(VALUE(H77)< 1,FISHER(H77),FISHER(0.999))) ->  | I111: =IF(OR($D111>SetUp!$C$3,I$93>SetUp!$C$3),"",IF(VALUE(I77)< 1,FISHER(I77),FISHER(0.999))) ->  | J111: =IF(OR($D111>SetUp!$C$3,J$93>SetUp!$C$3),"",IF(VALUE(J77)< 1,FISHER(J77),FISHER(0.999))) ->  | K111: =IF(OR($D111>SetUp!$C$3,K$93>SetUp!$C$3),"",IF(VALUE(K77)< 1,FISHER(K77),FISHER(0.999))) ->  | L111: =IF(OR($D111>SetUp!$C$3,L$93>SetUp!$C$3),"",IF(VALUE(L77)< 1,FISHER(L77),FISHER(0.999))) ->  | M111: =IF(OR($D111>SetUp!$C$3,M$93>SetUp!$C$3),"",IF(VALUE(M77)< 1,FISHER(M77),FISHER(0.999))) ->  | N111: =IF(OR($D111>SetUp!$C$3,N$93>SetUp!$C$3),"",IF(VALUE(N77)< 1,FISHER(N77),FISHER(0.999))) ->  | O111: =IF(OR($D111>SetUp!$C$3,O$93>SetUp!$C$3),"",IF(VALUE(O77)< 1,FISHER(O77),FISHER(0.999))) ->  | P111: =IF(OR($D111>SetUp!$C$3,P$93>SetUp!$C$3),"",IF(VALUE(P77)< 1,FISHER(P77),FISHER(0.999))) ->  | Q111: =IF(OR($D111>SetUp!$C$3,Q$93>SetUp!$C$3),"",IF(VALUE(Q77)< 1,FISHER(Q77),FISHER(0.999))) ->  | R111: =IF(OR($D111>SetUp!$C$3,R$93>SetUp!$C$3),"",IF(VALUE(R77)< 1,FISHER(R77),FISHER(0.999))) ->  | S111: =IF(OR($D111>SetUp!$C$3,S$93>SetUp!$C$3),"",IF(VALUE(S77)< 1,FISHER(S77),FISHER(0.999))) ->  | T111: =IF(OR($D111>SetUp!$C$3,T$93>SetUp!$C$3),"",IF(VALUE(T77)< 1,FISHER(T77),FISHER(0.999))) ->  | U111: =IF(OR($D111>SetUp!$C$3,U$93>SetUp!$C$3),"",IF(VALUE(U77)< 1,FISHER(U77),FISHER(0.999))) ->  | V111: =IF(OR($D111>SetUp!$C$3,V$93>SetUp!$C$3),"",IF(VALUE(V77)< 1,FISHER(V77),FISHER(0.999))) -> 
D112: 20 | E112: =IF(OR($D112>SetUp!$C$3,E$93>SetUp!$C$3),"",IF(VALUE(E78)< 1,FISHER(E78),FISHER(0.999))) ->  | F112: =IF(OR($D112>SetUp!$C$3,F$93>SetUp!$C$3),"",IF(VALUE(F78)< 1,FISHER(F78),FISHER(0.999))) ->  | G112: =IF(OR($D112>SetUp!$C$3,G$93>SetUp!$C$3),"",IF(VALUE(G78)< 1,FISHER(G78),FISHER(0.999))) ->  | H112: =IF(OR($D112>SetUp!$C$3,H$93>SetUp!$C$3),"",IF(VALUE(H78)< 1,FISHER(H78),FISHER(0.999))) ->  | I112: =IF(OR($D112>SetUp!$C$3,I$93>SetUp!$C$3),"",IF(VALUE(I78)< 1,FISHER(I78),FISHER(0.999))) ->  | J112: =IF(OR($D112>SetUp!$C$3,J$93>SetUp!$C$3),"",IF(VALUE(J78)< 1,FISHER(J78),FISHER(0.999))) ->  | K112: =IF(OR($D112>SetUp!$C$3,K$93>SetUp!$C$3),"",IF(VALUE(K78)< 1,FISHER(K78),FISHER(0.999))) ->  | L112: =IF(OR($D112>SetUp!$C$3,L$93>SetUp!$C$3),"",IF(VALUE(L78)< 1,FISHER(L78),FISHER(0.999))) ->  | M112: =IF(OR($D112>SetUp!$C$3,M$93>SetUp!$C$3),"",IF(VALUE(M78)< 1,FISHER(M78),FISHER(0.999))) ->  | N112: =IF(OR($D112>SetUp!$C$3,N$93>SetUp!$C$3),"",IF(VALUE(N78)< 1,FISHER(N78),FISHER(0.999))) ->  | O112: =IF(OR($D112>SetUp!$C$3,O$93>SetUp!$C$3),"",IF(VALUE(O78)< 1,FISHER(O78),FISHER(0.999))) ->  | P112: =IF(OR($D112>SetUp!$C$3,P$93>SetUp!$C$3),"",IF(VALUE(P78)< 1,FISHER(P78),FISHER(0.999))) ->  | Q112: =IF(OR($D112>SetUp!$C$3,Q$93>SetUp!$C$3),"",IF(VALUE(Q78)< 1,FISHER(Q78),FISHER(0.999))) ->  | R112: =IF(OR($D112>SetUp!$C$3,R$93>SetUp!$C$3),"",IF(VALUE(R78)< 1,FISHER(R78),FISHER(0.999))) ->  | S112: =IF(OR($D112>SetUp!$C$3,S$93>SetUp!$C$3),"",IF(VALUE(S78)< 1,FISHER(S78),FISHER(0.999))) ->  | T112: =IF(OR($D112>SetUp!$C$3,T$93>SetUp!$C$3),"",IF(VALUE(T78)< 1,FISHER(T78),FISHER(0.999))) ->  | U112: =IF(OR($D112>SetUp!$C$3,U$93>SetUp!$C$3),"",IF(VALUE(U78)< 1,FISHER(U78),FISHER(0.999))) ->  | V112: =IF(OR($D112>SetUp!$C$3,V$93>SetUp!$C$3),"",IF(VALUE(V78)< 1,FISHER(V78),FISHER(0.999))) ->  | W112: =IF(OR($D112>SetUp!$C$3,W$93>SetUp!$C$3),"",IF(VALUE(W78)< 1,FISHER(W78),FISHER(0.999))) -> 
D113: 21 | E113: =IF(OR($D113>SetUp!$C$3,E$93>SetUp!$C$3),"",IF(VALUE(E79)< 1,FISHER(E79),FISHER(0.999))) ->  | F113: =IF(OR($D113>SetUp!$C$3,F$93>SetUp!$C$3),"",IF(VALUE(F79)< 1,FISHER(F79),FISHER(0.999))) ->  | G113: =IF(OR($D113>SetUp!$C$3,G$93>SetUp!$C$3),"",IF(VALUE(G79)< 1,FISHER(G79),FISHER(0.999))) ->  | H113: =IF(OR($D113>SetUp!$C$3,H$93>SetUp!$C$3),"",IF(VALUE(H79)< 1,FISHER(H79),FISHER(0.999))) ->  | I113: =IF(OR($D113>SetUp!$C$3,I$93>SetUp!$C$3),"",IF(VALUE(I79)< 1,FISHER(I79),FISHER(0.999))) ->  | J113: =IF(OR($D113>SetUp!$C$3,J$93>SetUp!$C$3),"",IF(VALUE(J79)< 1,FISHER(J79),FISHER(0.999))) ->  | K113: =IF(OR($D113>SetUp!$C$3,K$93>SetUp!$C$3),"",IF(VALUE(K79)< 1,FISHER(K79),FISHER(0.999))) ->  | L113: =IF(OR($D113>SetUp!$C$3,L$93>SetUp!$C$3),"",IF(VALUE(L79)< 1,FISHER(L79),FISHER(0.999))) ->  | M113: =IF(OR($D113>SetUp!$C$3,M$93>SetUp!$C$3),"",IF(VALUE(M79)< 1,FISHER(M79),FISHER(0.999))) ->  | N113: =IF(OR($D113>SetUp!$C$3,N$93>SetUp!$C$3),"",IF(VALUE(N79)< 1,FISHER(N79),FISHER(0.999))) ->  | O113: =IF(OR($D113>SetUp!$C$3,O$93>SetUp!$C$3),"",IF(VALUE(O79)< 1,FISHER(O79),FISHER(0.999))) ->  | P113: =IF(OR($D113>SetUp!$C$3,P$93>SetUp!$C$3),"",IF(VALUE(P79)< 1,FISHER(P79),FISHER(0.999))) ->  | Q113: =IF(OR($D113>SetUp!$C$3,Q$93>SetUp!$C$3),"",IF(VALUE(Q79)< 1,FISHER(Q79),FISHER(0.999))) ->  | R113: =IF(OR($D113>SetUp!$C$3,R$93>SetUp!$C$3),"",IF(VALUE(R79)< 1,FISHER(R79),FISHER(0.999))) ->  | S113: =IF(OR($D113>SetUp!$C$3,S$93>SetUp!$C$3),"",IF(VALUE(S79)< 1,FISHER(S79),FISHER(0.999))) ->  | T113: =IF(OR($D113>SetUp!$C$3,T$93>SetUp!$C$3),"",IF(VALUE(T79)< 1,FISHER(T79),FISHER(0.999))) ->  | U113: =IF(OR($D113>SetUp!$C$3,U$93>SetUp!$C$3),"",IF(VALUE(U79)< 1,FISHER(U79),FISHER(0.999))) ->  | V113: =IF(OR($D113>SetUp!$C$3,V$93>SetUp!$C$3),"",IF(VALUE(V79)< 1,FISHER(V79),FISHER(0.999))) ->  | W113: =IF(OR($D113>SetUp!$C$3,W$93>SetUp!$C$3),"",IF(VALUE(W79)< 1,FISHER(W79),FISHER(0.999))) ->  | X113: =IF(OR($D113>SetUp!$C$3,X$93>SetUp!$C$3),"",IF(VALUE(X79)< 1,FISHER(X79),FISHER(0.999))) -> 
D114: 22 | E114: =IF(OR($D114>SetUp!$C$3,E$93>SetUp!$C$3),"",IF(VALUE(E80)< 1,FISHER(E80),FISHER(0.999))) ->  | F114: =IF(OR($D114>SetUp!$C$3,F$93>SetUp!$C$3),"",IF(VALUE(F80)< 1,FISHER(F80),FISHER(0.999))) ->  | G114: =IF(OR($D114>SetUp!$C$3,G$93>SetUp!$C$3),"",IF(VALUE(G80)< 1,FISHER(G80),FISHER(0.999))) ->  | H114: =IF(OR($D114>SetUp!$C$3,H$93>SetUp!$C$3),"",IF(VALUE(H80)< 1,FISHER(H80),FISHER(0.999))) ->  | I114: =IF(OR($D114>SetUp!$C$3,I$93>SetUp!$C$3),"",IF(VALUE(I80)< 1,FISHER(I80),FISHER(0.999))) ->  | J114: =IF(OR($D114>SetUp!$C$3,J$93>SetUp!$C$3),"",IF(VALUE(J80)< 1,FISHER(J80),FISHER(0.999))) ->  | K114: =IF(OR($D114>SetUp!$C$3,K$93>SetUp!$C$3),"",IF(VALUE(K80)< 1,FISHER(K80),FISHER(0.999))) ->  | L114: =IF(OR($D114>SetUp!$C$3,L$93>SetUp!$C$3),"",IF(VALUE(L80)< 1,FISHER(L80),FISHER(0.999))) ->  | M114: =IF(OR($D114>SetUp!$C$3,M$93>SetUp!$C$3),"",IF(VALUE(M80)< 1,FISHER(M80),FISHER(0.999))) ->  | N114: =IF(OR($D114>SetUp!$C$3,N$93>SetUp!$C$3),"",IF(VALUE(N80)< 1,FISHER(N80),FISHER(0.999))) ->  | O114: =IF(OR($D114>SetUp!$C$3,O$93>SetUp!$C$3),"",IF(VALUE(O80)< 1,FISHER(O80),FISHER(0.999))) ->  | P114: =IF(OR($D114>SetUp!$C$3,P$93>SetUp!$C$3),"",IF(VALUE(P80)< 1,FISHER(P80),FISHER(0.999))) ->  | Q114: =IF(OR($D114>SetUp!$C$3,Q$93>SetUp!$C$3),"",IF(VALUE(Q80)< 1,FISHER(Q80),FISHER(0.999))) ->  | R114: =IF(OR($D114>SetUp!$C$3,R$93>SetUp!$C$3),"",IF(VALUE(R80)< 1,FISHER(R80),FISHER(0.999))) ->  | S114: =IF(OR($D114>SetUp!$C$3,S$93>SetUp!$C$3),"",IF(VALUE(S80)< 1,FISHER(S80),FISHER(0.999))) ->  | T114: =IF(OR($D114>SetUp!$C$3,T$93>SetUp!$C$3),"",IF(VALUE(T80)< 1,FISHER(T80),FISHER(0.999))) ->  | U114: =IF(OR($D114>SetUp!$C$3,U$93>SetUp!$C$3),"",IF(VALUE(U80)< 1,FISHER(U80),FISHER(0.999))) ->  | V114: =IF(OR($D114>SetUp!$C$3,V$93>SetUp!$C$3),"",IF(VALUE(V80)< 1,FISHER(V80),FISHER(0.999))) ->  | W114: =IF(OR($D114>SetUp!$C$3,W$93>SetUp!$C$3),"",IF(VALUE(W80)< 1,FISHER(W80),FISHER(0.999))) ->  | X114: =IF(OR($D114>SetUp!$C$3,X$93>SetUp!$C$3),"",IF(VALUE(X80)< 1,FISHER(X80),FISHER(0.999))) ->  | Y114: =IF(OR($D114>SetUp!$C$3,Y$93>SetUp!$C$3),"",IF(VALUE(Y80)< 1,FISHER(Y80),FISHER(0.999))) -> 
D115: 23 | E115: =IF(OR($D115>SetUp!$C$3,E$93>SetUp!$C$3),"",IF(VALUE(E81)< 1,FISHER(E81),FISHER(0.999))) ->  | F115: =IF(OR($D115>SetUp!$C$3,F$93>SetUp!$C$3),"",IF(VALUE(F81)< 1,FISHER(F81),FISHER(0.999))) ->  | G115: =IF(OR($D115>SetUp!$C$3,G$93>SetUp!$C$3),"",IF(VALUE(G81)< 1,FISHER(G81),FISHER(0.999))) ->  | H115: =IF(OR($D115>SetUp!$C$3,H$93>SetUp!$C$3),"",IF(VALUE(H81)< 1,FISHER(H81),FISHER(0.999))) ->  | I115: =IF(OR($D115>SetUp!$C$3,I$93>SetUp!$C$3),"",IF(VALUE(I81)< 1,FISHER(I81),FISHER(0.999))) ->  | J115: =IF(OR($D115>SetUp!$C$3,J$93>SetUp!$C$3),"",IF(VALUE(J81)< 1,FISHER(J81),FISHER(0.999))) ->  | K115: =IF(OR($D115>SetUp!$C$3,K$93>SetUp!$C$3),"",IF(VALUE(K81)< 1,FISHER(K81),FISHER(0.999))) ->  | L115: =IF(OR($D115>SetUp!$C$3,L$93>SetUp!$C$3),"",IF(VALUE(L81)< 1,FISHER(L81),FISHER(0.999))) ->  | M115: =IF(OR($D115>SetUp!$C$3,M$93>SetUp!$C$3),"",IF(VALUE(M81)< 1,FISHER(M81),FISHER(0.999))) ->  | N115: =IF(OR($D115>SetUp!$C$3,N$93>SetUp!$C$3),"",IF(VALUE(N81)< 1,FISHER(N81),FISHER(0.999))) ->  | O115: =IF(OR($D115>SetUp!$C$3,O$93>SetUp!$C$3),"",IF(VALUE(O81)< 1,FISHER(O81),FISHER(0.999))) ->  | P115: =IF(OR($D115>SetUp!$C$3,P$93>SetUp!$C$3),"",IF(VALUE(P81)< 1,FISHER(P81),FISHER(0.999))) ->  | Q115: =IF(OR($D115>SetUp!$C$3,Q$93>SetUp!$C$3),"",IF(VALUE(Q81)< 1,FISHER(Q81),FISHER(0.999))) ->  | R115: =IF(OR($D115>SetUp!$C$3,R$93>SetUp!$C$3),"",IF(VALUE(R81)< 1,FISHER(R81),FISHER(0.999))) ->  | S115: =IF(OR($D115>SetUp!$C$3,S$93>SetUp!$C$3),"",IF(VALUE(S81)< 1,FISHER(S81),FISHER(0.999))) ->  | T115: =IF(OR($D115>SetUp!$C$3,T$93>SetUp!$C$3),"",IF(VALUE(T81)< 1,FISHER(T81),FISHER(0.999))) ->  | U115: =IF(OR($D115>SetUp!$C$3,U$93>SetUp!$C$3),"",IF(VALUE(U81)< 1,FISHER(U81),FISHER(0.999))) ->  | V115: =IF(OR($D115>SetUp!$C$3,V$93>SetUp!$C$3),"",IF(VALUE(V81)< 1,FISHER(V81),FISHER(0.999))) ->  | W115: =IF(OR($D115>SetUp!$C$3,W$93>SetUp!$C$3),"",IF(VALUE(W81)< 1,FISHER(W81),FISHER(0.999))) ->  | X115: =IF(OR($D115>SetUp!$C$3,X$93>SetUp!$C$3),"",IF(VALUE(X81)< 1,FISHER(X81),FISHER(0.999))) ->  | Y115: =IF(OR($D115>SetUp!$C$3,Y$93>SetUp!$C$3),"",IF(VALUE(Y81)< 1,FISHER(Y81),FISHER(0.999))) ->  | Z115: =IF(OR($D115>SetUp!$C$3,Z$93>SetUp!$C$3),"",IF(VALUE(Z81)< 1,FISHER(Z81),FISHER(0.999))) -> 
D116: 24 | E116: =IF(OR($D116>SetUp!$C$3,E$93>SetUp!$C$3),"",IF(VALUE(E82)< 1,FISHER(E82),FISHER(0.999))) ->  | F116: =IF(OR($D116>SetUp!$C$3,F$93>SetUp!$C$3),"",IF(VALUE(F82)< 1,FISHER(F82),FISHER(0.999))) ->  | G116: =IF(OR($D116>SetUp!$C$3,G$93>SetUp!$C$3),"",IF(VALUE(G82)< 1,FISHER(G82),FISHER(0.999))) ->  | H116: =IF(OR($D116>SetUp!$C$3,H$93>SetUp!$C$3),"",IF(VALUE(H82)< 1,FISHER(H82),FISHER(0.999))) ->  | I116: =IF(OR($D116>SetUp!$C$3,I$93>SetUp!$C$3),"",IF(VALUE(I82)< 1,FISHER(I82),FISHER(0.999))) ->  | J116: =IF(OR($D116>SetUp!$C$3,J$93>SetUp!$C$3),"",IF(VALUE(J82)< 1,FISHER(J82),FISHER(0.999))) ->  | K116: =IF(OR($D116>SetUp!$C$3,K$93>SetUp!$C$3),"",IF(VALUE(K82)< 1,FISHER(K82),FISHER(0.999))) ->  | L116: =IF(OR($D116>SetUp!$C$3,L$93>SetUp!$C$3),"",IF(VALUE(L82)< 1,FISHER(L82),FISHER(0.999))) ->  | M116: =IF(OR($D116>SetUp!$C$3,M$93>SetUp!$C$3),"",IF(VALUE(M82)< 1,FISHER(M82),FISHER(0.999))) ->  | N116: =IF(OR($D116>SetUp!$C$3,N$93>SetUp!$C$3),"",IF(VALUE(N82)< 1,FISHER(N82),FISHER(0.999))) ->  | O116: =IF(OR($D116>SetUp!$C$3,O$93>SetUp!$C$3),"",IF(VALUE(O82)< 1,FISHER(O82),FISHER(0.999))) ->  | P116: =IF(OR($D116>SetUp!$C$3,P$93>SetUp!$C$3),"",IF(VALUE(P82)< 1,FISHER(P82),FISHER(0.999))) ->  | Q116: =IF(OR($D116>SetUp!$C$3,Q$93>SetUp!$C$3),"",IF(VALUE(Q82)< 1,FISHER(Q82),FISHER(0.999))) ->  | R116: =IF(OR($D116>SetUp!$C$3,R$93>SetUp!$C$3),"",IF(VALUE(R82)< 1,FISHER(R82),FISHER(0.999))) ->  | S116: =IF(OR($D116>SetUp!$C$3,S$93>SetUp!$C$3),"",IF(VALUE(S82)< 1,FISHER(S82),FISHER(0.999))) ->  | T116: =IF(OR($D116>SetUp!$C$3,T$93>SetUp!$C$3),"",IF(VALUE(T82)< 1,FISHER(T82),FISHER(0.999))) ->  | U116: =IF(OR($D116>SetUp!$C$3,U$93>SetUp!$C$3),"",IF(VALUE(U82)< 1,FISHER(U82),FISHER(0.999))) ->  | V116: =IF(OR($D116>SetUp!$C$3,V$93>SetUp!$C$3),"",IF(VALUE(V82)< 1,FISHER(V82),FISHER(0.999))) ->  | W116: =IF(OR($D116>SetUp!$C$3,W$93>SetUp!$C$3),"",IF(VALUE(W82)< 1,FISHER(W82),FISHER(0.999))) ->  | X116: =IF(OR($D116>SetUp!$C$3,X$93>SetUp!$C$3),"",IF(VALUE(X82)< 1,FISHER(X82),FISHER(0.999))) ->  | Y116: =IF(OR($D116>SetUp!$C$3,Y$93>SetUp!$C$3),"",IF(VALUE(Y82)< 1,FISHER(Y82),FISHER(0.999))) ->  | Z116: =IF(OR($D116>SetUp!$C$3,Z$93>SetUp!$C$3),"",IF(VALUE(Z82)< 1,FISHER(Z82),FISHER(0.999))) ->  | AA116: =IF(OR($D116>SetUp!$C$3,AA$93>SetUp!$C$3),"",IF(VALUE(AA82)< 1,FISHER(AA82),FISHER(0.999))) -> 
D117: 25 | E117: =IF(OR($D117>SetUp!$C$3,E$93>SetUp!$C$3),"",IF(VALUE(E83)< 1,FISHER(E83),FISHER(0.999))) ->  | F117: =IF(OR($D117>SetUp!$C$3,F$93>SetUp!$C$3),"",IF(VALUE(F83)< 1,FISHER(F83),FISHER(0.999))) ->  | G117: =IF(OR($D117>SetUp!$C$3,G$93>SetUp!$C$3),"",IF(VALUE(G83)< 1,FISHER(G83),FISHER(0.999))) ->  | H117: =IF(OR($D117>SetUp!$C$3,H$93>SetUp!$C$3),"",IF(VALUE(H83)< 1,FISHER(H83),FISHER(0.999))) ->  | I117: =IF(OR($D117>SetUp!$C$3,I$93>SetUp!$C$3),"",IF(VALUE(I83)< 1,FISHER(I83),FISHER(0.999))) ->  | J117: =IF(OR($D117>SetUp!$C$3,J$93>SetUp!$C$3),"",IF(VALUE(J83)< 1,FISHER(J83),FISHER(0.999))) ->  | K117: =IF(OR($D117>SetUp!$C$3,K$93>SetUp!$C$3),"",IF(VALUE(K83)< 1,FISHER(K83),FISHER(0.999))) ->  | L117: =IF(OR($D117>SetUp!$C$3,L$93>SetUp!$C$3),"",IF(VALUE(L83)< 1,FISHER(L83),FISHER(0.999))) ->  | M117: =IF(OR($D117>SetUp!$C$3,M$93>SetUp!$C$3),"",IF(VALUE(M83)< 1,FISHER(M83),FISHER(0.999))) ->  | N117: =IF(OR($D117>SetUp!$C$3,N$93>SetUp!$C$3),"",IF(VALUE(N83)< 1,FISHER(N83),FISHER(0.999))) ->  | O117: =IF(OR($D117>SetUp!$C$3,O$93>SetUp!$C$3),"",IF(VALUE(O83)< 1,FISHER(O83),FISHER(0.999))) ->  | P117: =IF(OR($D117>SetUp!$C$3,P$93>SetUp!$C$3),"",IF(VALUE(P83)< 1,FISHER(P83),FISHER(0.999))) ->  | Q117: =IF(OR($D117>SetUp!$C$3,Q$93>SetUp!$C$3),"",IF(VALUE(Q83)< 1,FISHER(Q83),FISHER(0.999))) ->  | R117: =IF(OR($D117>SetUp!$C$3,R$93>SetUp!$C$3),"",IF(VALUE(R83)< 1,FISHER(R83),FISHER(0.999))) ->  | S117: =IF(OR($D117>SetUp!$C$3,S$93>SetUp!$C$3),"",IF(VALUE(S83)< 1,FISHER(S83),FISHER(0.999))) ->  | T117: =IF(OR($D117>SetUp!$C$3,T$93>SetUp!$C$3),"",IF(VALUE(T83)< 1,FISHER(T83),FISHER(0.999))) ->  | U117: =IF(OR($D117>SetUp!$C$3,U$93>SetUp!$C$3),"",IF(VALUE(U83)< 1,FISHER(U83),FISHER(0.999))) ->  | V117: =IF(OR($D117>SetUp!$C$3,V$93>SetUp!$C$3),"",IF(VALUE(V83)< 1,FISHER(V83),FISHER(0.999))) ->  | W117: =IF(OR($D117>SetUp!$C$3,W$93>SetUp!$C$3),"",IF(VALUE(W83)< 1,FISHER(W83),FISHER(0.999))) ->  | X117: =IF(OR($D117>SetUp!$C$3,X$93>SetUp!$C$3),"",IF(VALUE(X83)< 1,FISHER(X83),FISHER(0.999))) ->  | Y117: =IF(OR($D117>SetUp!$C$3,Y$93>SetUp!$C$3),"",IF(VALUE(Y83)< 1,FISHER(Y83),FISHER(0.999))) ->  | Z117: =IF(OR($D117>SetUp!$C$3,Z$93>SetUp!$C$3),"",IF(VALUE(Z83)< 1,FISHER(Z83),FISHER(0.999))) ->  | AA117: =IF(OR($D117>SetUp!$C$3,AA$93>SetUp!$C$3),"",IF(VALUE(AA83)< 1,FISHER(AA83),FISHER(0.999))) ->  | AB117: =IF(OR($D117>SetUp!$C$3,AB$93>SetUp!$C$3),"",IF(VALUE(AB83)< 1,FISHER(AB83),FISHER(0.999))) -> 
D118: 26 | E118: =IF(OR($D118>SetUp!$C$3,E$93>SetUp!$C$3),"",IF(VALUE(E84)< 1,FISHER(E84),FISHER(0.999))) ->  | F118: =IF(OR($D118>SetUp!$C$3,F$93>SetUp!$C$3),"",IF(VALUE(F84)< 1,FISHER(F84),FISHER(0.999))) ->  | G118: =IF(OR($D118>SetUp!$C$3,G$93>SetUp!$C$3),"",IF(VALUE(G84)< 1,FISHER(G84),FISHER(0.999))) ->  | H118: =IF(OR($D118>SetUp!$C$3,H$93>SetUp!$C$3),"",IF(VALUE(H84)< 1,FISHER(H84),FISHER(0.999))) ->  | I118: =IF(OR($D118>SetUp!$C$3,I$93>SetUp!$C$3),"",IF(VALUE(I84)< 1,FISHER(I84),FISHER(0.999))) ->  | J118: =IF(OR($D118>SetUp!$C$3,J$93>SetUp!$C$3),"",IF(VALUE(J84)< 1,FISHER(J84),FISHER(0.999))) ->  | K118: =IF(OR($D118>SetUp!$C$3,K$93>SetUp!$C$3),"",IF(VALUE(K84)< 1,FISHER(K84),FISHER(0.999))) ->  | L118: =IF(OR($D118>SetUp!$C$3,L$93>SetUp!$C$3),"",IF(VALUE(L84)< 1,FISHER(L84),FISHER(0.999))) ->  | M118: =IF(OR($D118>SetUp!$C$3,M$93>SetUp!$C$3),"",IF(VALUE(M84)< 1,FISHER(M84),FISHER(0.999))) ->  | N118: =IF(OR($D118>SetUp!$C$3,N$93>SetUp!$C$3),"",IF(VALUE(N84)< 1,FISHER(N84),FISHER(0.999))) ->  | O118: =IF(OR($D118>SetUp!$C$3,O$93>SetUp!$C$3),"",IF(VALUE(O84)< 1,FISHER(O84),FISHER(0.999))) ->  | P118: =IF(OR($D118>SetUp!$C$3,P$93>SetUp!$C$3),"",IF(VALUE(P84)< 1,FISHER(P84),FISHER(0.999))) ->  | Q118: =IF(OR($D118>SetUp!$C$3,Q$93>SetUp!$C$3),"",IF(VALUE(Q84)< 1,FISHER(Q84),FISHER(0.999))) ->  | R118: =IF(OR($D118>SetUp!$C$3,R$93>SetUp!$C$3),"",IF(VALUE(R84)< 1,FISHER(R84),FISHER(0.999))) ->  | S118: =IF(OR($D118>SetUp!$C$3,S$93>SetUp!$C$3),"",IF(VALUE(S84)< 1,FISHER(S84),FISHER(0.999))) ->  | T118: =IF(OR($D118>SetUp!$C$3,T$93>SetUp!$C$3),"",IF(VALUE(T84)< 1,FISHER(T84),FISHER(0.999))) ->  | U118: =IF(OR($D118>SetUp!$C$3,U$93>SetUp!$C$3),"",IF(VALUE(U84)< 1,FISHER(U84),FISHER(0.999))) ->  | V118: =IF(OR($D118>SetUp!$C$3,V$93>SetUp!$C$3),"",IF(VALUE(V84)< 1,FISHER(V84),FISHER(0.999))) ->  | W118: =IF(OR($D118>SetUp!$C$3,W$93>SetUp!$C$3),"",IF(VALUE(W84)< 1,FISHER(W84),FISHER(0.999))) ->  | X118: =IF(OR($D118>SetUp!$C$3,X$93>SetUp!$C$3),"",IF(VALUE(X84)< 1,FISHER(X84),FISHER(0.999))) ->  | Y118: =IF(OR($D118>SetUp!$C$3,Y$93>SetUp!$C$3),"",IF(VALUE(Y84)< 1,FISHER(Y84),FISHER(0.999))) ->  | Z118: =IF(OR($D118>SetUp!$C$3,Z$93>SetUp!$C$3),"",IF(VALUE(Z84)< 1,FISHER(Z84),FISHER(0.999))) ->  | AA118: =IF(OR($D118>SetUp!$C$3,AA$93>SetUp!$C$3),"",IF(VALUE(AA84)< 1,FISHER(AA84),FISHER(0.999))) ->  | AB118: =IF(OR($D118>SetUp!$C$3,AB$93>SetUp!$C$3),"",IF(VALUE(AB84)< 1,FISHER(AB84),FISHER(0.999))) ->  | AC118: =IF(OR($D118>SetUp!$C$3,AC$93>SetUp!$C$3),"",IF(VALUE(AC84)< 1,FISHER(AC84),FISHER(0.999))) -> 
D119: 27 | E119: =IF(OR($D119>SetUp!$C$3,E$93>SetUp!$C$3),"",IF(VALUE(E85)< 1,FISHER(E85),FISHER(0.999))) ->  | F119: =IF(OR($D119>SetUp!$C$3,F$93>SetUp!$C$3),"",IF(VALUE(F85)< 1,FISHER(F85),FISHER(0.999))) ->  | G119: =IF(OR($D119>SetUp!$C$3,G$93>SetUp!$C$3),"",IF(VALUE(G85)< 1,FISHER(G85),FISHER(0.999))) ->  | H119: =IF(OR($D119>SetUp!$C$3,H$93>SetUp!$C$3),"",IF(VALUE(H85)< 1,FISHER(H85),FISHER(0.999))) ->  | I119: =IF(OR($D119>SetUp!$C$3,I$93>SetUp!$C$3),"",IF(VALUE(I85)< 1,FISHER(I85),FISHER(0.999))) ->  | J119: =IF(OR($D119>SetUp!$C$3,J$93>SetUp!$C$3),"",IF(VALUE(J85)< 1,FISHER(J85),FISHER(0.999))) ->  | K119: =IF(OR($D119>SetUp!$C$3,K$93>SetUp!$C$3),"",IF(VALUE(K85)< 1,FISHER(K85),FISHER(0.999))) ->  | L119: =IF(OR($D119>SetUp!$C$3,L$93>SetUp!$C$3),"",IF(VALUE(L85)< 1,FISHER(L85),FISHER(0.999))) ->  | M119: =IF(OR($D119>SetUp!$C$3,M$93>SetUp!$C$3),"",IF(VALUE(M85)< 1,FISHER(M85),FISHER(0.999))) ->  | N119: =IF(OR($D119>SetUp!$C$3,N$93>SetUp!$C$3),"",IF(VALUE(N85)< 1,FISHER(N85),FISHER(0.999))) ->  | O119: =IF(OR($D119>SetUp!$C$3,O$93>SetUp!$C$3),"",IF(VALUE(O85)< 1,FISHER(O85),FISHER(0.999))) ->  | P119: =IF(OR($D119>SetUp!$C$3,P$93>SetUp!$C$3),"",IF(VALUE(P85)< 1,FISHER(P85),FISHER(0.999))) ->  | Q119: =IF(OR($D119>SetUp!$C$3,Q$93>SetUp!$C$3),"",IF(VALUE(Q85)< 1,FISHER(Q85),FISHER(0.999))) ->  | R119: =IF(OR($D119>SetUp!$C$3,R$93>SetUp!$C$3),"",IF(VALUE(R85)< 1,FISHER(R85),FISHER(0.999))) ->  | S119: =IF(OR($D119>SetUp!$C$3,S$93>SetUp!$C$3),"",IF(VALUE(S85)< 1,FISHER(S85),FISHER(0.999))) ->  | T119: =IF(OR($D119>SetUp!$C$3,T$93>SetUp!$C$3),"",IF(VALUE(T85)< 1,FISHER(T85),FISHER(0.999))) ->  | U119: =IF(OR($D119>SetUp!$C$3,U$93>SetUp!$C$3),"",IF(VALUE(U85)< 1,FISHER(U85),FISHER(0.999))) ->  | V119: =IF(OR($D119>SetUp!$C$3,V$93>SetUp!$C$3),"",IF(VALUE(V85)< 1,FISHER(V85),FISHER(0.999))) ->  | W119: =IF(OR($D119>SetUp!$C$3,W$93>SetUp!$C$3),"",IF(VALUE(W85)< 1,FISHER(W85),FISHER(0.999))) ->  | X119: =IF(OR($D119>SetUp!$C$3,X$93>SetUp!$C$3),"",IF(VALUE(X85)< 1,FISHER(X85),FISHER(0.999))) ->  | Y119: =IF(OR($D119>SetUp!$C$3,Y$93>SetUp!$C$3),"",IF(VALUE(Y85)< 1,FISHER(Y85),FISHER(0.999))) ->  | Z119: =IF(OR($D119>SetUp!$C$3,Z$93>SetUp!$C$3),"",IF(VALUE(Z85)< 1,FISHER(Z85),FISHER(0.999))) ->  | AA119: =IF(OR($D119>SetUp!$C$3,AA$93>SetUp!$C$3),"",IF(VALUE(AA85)< 1,FISHER(AA85),FISHER(0.999))) ->  | AB119: =IF(OR($D119>SetUp!$C$3,AB$93>SetUp!$C$3),"",IF(VALUE(AB85)< 1,FISHER(AB85),FISHER(0.999))) ->  | AC119: =IF(OR($D119>SetUp!$C$3,AC$93>SetUp!$C$3),"",IF(VALUE(AC85)< 1,FISHER(AC85),FISHER(0.999))) ->  | AD119: =IF(OR($D119>SetUp!$C$3,AD$93>SetUp!$C$3),"",IF(VALUE(AD85)< 1,FISHER(AD85),FISHER(0.999))) -> 
D120: 28 | E120: =IF(OR($D120>SetUp!$C$3,E$93>SetUp!$C$3),"",IF(VALUE(E86)< 1,FISHER(E86),FISHER(0.999))) ->  | F120: =IF(OR($D120>SetUp!$C$3,F$93>SetUp!$C$3),"",IF(VALUE(F86)< 1,FISHER(F86),FISHER(0.999))) ->  | G120: =IF(OR($D120>SetUp!$C$3,G$93>SetUp!$C$3),"",IF(VALUE(G86)< 1,FISHER(G86),FISHER(0.999))) ->  | H120: =IF(OR($D120>SetUp!$C$3,H$93>SetUp!$C$3),"",IF(VALUE(H86)< 1,FISHER(H86),FISHER(0.999))) ->  | I120: =IF(OR($D120>SetUp!$C$3,I$93>SetUp!$C$3),"",IF(VALUE(I86)< 1,FISHER(I86),FISHER(0.999))) ->  | J120: =IF(OR($D120>SetUp!$C$3,J$93>SetUp!$C$3),"",IF(VALUE(J86)< 1,FISHER(J86),FISHER(0.999))) ->  | K120: =IF(OR($D120>SetUp!$C$3,K$93>SetUp!$C$3),"",IF(VALUE(K86)< 1,FISHER(K86),FISHER(0.999))) ->  | L120: =IF(OR($D120>SetUp!$C$3,L$93>SetUp!$C$3),"",IF(VALUE(L86)< 1,FISHER(L86),FISHER(0.999))) ->  | M120: =IF(OR($D120>SetUp!$C$3,M$93>SetUp!$C$3),"",IF(VALUE(M86)< 1,FISHER(M86),FISHER(0.999))) ->  | N120: =IF(OR($D120>SetUp!$C$3,N$93>SetUp!$C$3),"",IF(VALUE(N86)< 1,FISHER(N86),FISHER(0.999))) ->  | O120: =IF(OR($D120>SetUp!$C$3,O$93>SetUp!$C$3),"",IF(VALUE(O86)< 1,FISHER(O86),FISHER(0.999))) ->  | P120: =IF(OR($D120>SetUp!$C$3,P$93>SetUp!$C$3),"",IF(VALUE(P86)< 1,FISHER(P86),FISHER(0.999))) ->  | Q120: =IF(OR($D120>SetUp!$C$3,Q$93>SetUp!$C$3),"",IF(VALUE(Q86)< 1,FISHER(Q86),FISHER(0.999))) ->  | R120: =IF(OR($D120>SetUp!$C$3,R$93>SetUp!$C$3),"",IF(VALUE(R86)< 1,FISHER(R86),FISHER(0.999))) ->  | S120: =IF(OR($D120>SetUp!$C$3,S$93>SetUp!$C$3),"",IF(VALUE(S86)< 1,FISHER(S86),FISHER(0.999))) ->  | T120: =IF(OR($D120>SetUp!$C$3,T$93>SetUp!$C$3),"",IF(VALUE(T86)< 1,FISHER(T86),FISHER(0.999))) ->  | U120: =IF(OR($D120>SetUp!$C$3,U$93>SetUp!$C$3),"",IF(VALUE(U86)< 1,FISHER(U86),FISHER(0.999))) ->  | V120: =IF(OR($D120>SetUp!$C$3,V$93>SetUp!$C$3),"",IF(VALUE(V86)< 1,FISHER(V86),FISHER(0.999))) ->  | W120: =IF(OR($D120>SetUp!$C$3,W$93>SetUp!$C$3),"",IF(VALUE(W86)< 1,FISHER(W86),FISHER(0.999))) ->  | X120: =IF(OR($D120>SetUp!$C$3,X$93>SetUp!$C$3),"",IF(VALUE(X86)< 1,FISHER(X86),FISHER(0.999))) ->  | Y120: =IF(OR($D120>SetUp!$C$3,Y$93>SetUp!$C$3),"",IF(VALUE(Y86)< 1,FISHER(Y86),FISHER(0.999))) ->  | Z120: =IF(OR($D120>SetUp!$C$3,Z$93>SetUp!$C$3),"",IF(VALUE(Z86)< 1,FISHER(Z86),FISHER(0.999))) ->  | AA120: =IF(OR($D120>SetUp!$C$3,AA$93>SetUp!$C$3),"",IF(VALUE(AA86)< 1,FISHER(AA86),FISHER(0.999))) ->  | AB120: =IF(OR($D120>SetUp!$C$3,AB$93>SetUp!$C$3),"",IF(VALUE(AB86)< 1,FISHER(AB86),FISHER(0.999))) ->  | AC120: =IF(OR($D120>SetUp!$C$3,AC$93>SetUp!$C$3),"",IF(VALUE(AC86)< 1,FISHER(AC86),FISHER(0.999))) ->  | AD120: =IF(OR($D120>SetUp!$C$3,AD$93>SetUp!$C$3),"",IF(VALUE(AD86)< 1,FISHER(AD86),FISHER(0.999))) ->  | AE120: =IF(OR($D120>SetUp!$C$3,AE$93>SetUp!$C$3),"",IF(VALUE(AE86)< 1,FISHER(AE86),FISHER(0.999))) -> 
D121: 29 | E121: =IF(OR($D121>SetUp!$C$3,E$93>SetUp!$C$3),"",IF(VALUE(E87)< 1,FISHER(E87),FISHER(0.999))) ->  | F121: =IF(OR($D121>SetUp!$C$3,F$93>SetUp!$C$3),"",IF(VALUE(F87)< 1,FISHER(F87),FISHER(0.999))) ->  | G121: =IF(OR($D121>SetUp!$C$3,G$93>SetUp!$C$3),"",IF(VALUE(G87)< 1,FISHER(G87),FISHER(0.999))) ->  | H121: =IF(OR($D121>SetUp!$C$3,H$93>SetUp!$C$3),"",IF(VALUE(H87)< 1,FISHER(H87),FISHER(0.999))) ->  | I121: =IF(OR($D121>SetUp!$C$3,I$93>SetUp!$C$3),"",IF(VALUE(I87)< 1,FISHER(I87),FISHER(0.999))) ->  | J121: =IF(OR($D121>SetUp!$C$3,J$93>SetUp!$C$3),"",IF(VALUE(J87)< 1,FISHER(J87),FISHER(0.999))) ->  | K121: =IF(OR($D121>SetUp!$C$3,K$93>SetUp!$C$3),"",IF(VALUE(K87)< 1,FISHER(K87),FISHER(0.999))) ->  | L121: =IF(OR($D121>SetUp!$C$3,L$93>SetUp!$C$3),"",IF(VALUE(L87)< 1,FISHER(L87),FISHER(0.999))) ->  | M121: =IF(OR($D121>SetUp!$C$3,M$93>SetUp!$C$3),"",IF(VALUE(M87)< 1,FISHER(M87),FISHER(0.999))) ->  | N121: =IF(OR($D121>SetUp!$C$3,N$93>SetUp!$C$3),"",IF(VALUE(N87)< 1,FISHER(N87),FISHER(0.999))) ->  | O121: =IF(OR($D121>SetUp!$C$3,O$93>SetUp!$C$3),"",IF(VALUE(O87)< 1,FISHER(O87),FISHER(0.999))) ->  | P121: =IF(OR($D121>SetUp!$C$3,P$93>SetUp!$C$3),"",IF(VALUE(P87)< 1,FISHER(P87),FISHER(0.999))) ->  | Q121: =IF(OR($D121>SetUp!$C$3,Q$93>SetUp!$C$3),"",IF(VALUE(Q87)< 1,FISHER(Q87),FISHER(0.999))) ->  | R121: =IF(OR($D121>SetUp!$C$3,R$93>SetUp!$C$3),"",IF(VALUE(R87)< 1,FISHER(R87),FISHER(0.999))) ->  | S121: =IF(OR($D121>SetUp!$C$3,S$93>SetUp!$C$3),"",IF(VALUE(S87)< 1,FISHER(S87),FISHER(0.999))) ->  | T121: =IF(OR($D121>SetUp!$C$3,T$93>SetUp!$C$3),"",IF(VALUE(T87)< 1,FISHER(T87),FISHER(0.999))) ->  | U121: =IF(OR($D121>SetUp!$C$3,U$93>SetUp!$C$3),"",IF(VALUE(U87)< 1,FISHER(U87),FISHER(0.999))) ->  | V121: =IF(OR($D121>SetUp!$C$3,V$93>SetUp!$C$3),"",IF(VALUE(V87)< 1,FISHER(V87),FISHER(0.999))) ->  | W121: =IF(OR($D121>SetUp!$C$3,W$93>SetUp!$C$3),"",IF(VALUE(W87)< 1,FISHER(W87),FISHER(0.999))) ->  | X121: =IF(OR($D121>SetUp!$C$3,X$93>SetUp!$C$3),"",IF(VALUE(X87)< 1,FISHER(X87),FISHER(0.999))) ->  | Y121: =IF(OR($D121>SetUp!$C$3,Y$93>SetUp!$C$3),"",IF(VALUE(Y87)< 1,FISHER(Y87),FISHER(0.999))) ->  | Z121: =IF(OR($D121>SetUp!$C$3,Z$93>SetUp!$C$3),"",IF(VALUE(Z87)< 1,FISHER(Z87),FISHER(0.999))) ->  | AA121: =IF(OR($D121>SetUp!$C$3,AA$93>SetUp!$C$3),"",IF(VALUE(AA87)< 1,FISHER(AA87),FISHER(0.999))) ->  | AB121: =IF(OR($D121>SetUp!$C$3,AB$93>SetUp!$C$3),"",IF(VALUE(AB87)< 1,FISHER(AB87),FISHER(0.999))) ->  | AC121: =IF(OR($D121>SetUp!$C$3,AC$93>SetUp!$C$3),"",IF(VALUE(AC87)< 1,FISHER(AC87),FISHER(0.999))) ->  | AD121: =IF(OR($D121>SetUp!$C$3,AD$93>SetUp!$C$3),"",IF(VALUE(AD87)< 1,FISHER(AD87),FISHER(0.999))) ->  | AE121: =IF(OR($D121>SetUp!$C$3,AE$93>SetUp!$C$3),"",IF(VALUE(AE87)< 1,FISHER(AE87),FISHER(0.999))) ->  | AF121: =IF(OR($D121>SetUp!$C$3,AF$93>SetUp!$C$3),"",IF(VALUE(AF87)< 1,FISHER(AF87),FISHER(0.999))) -> 
D122: 30 | E122: =IF(OR($D122>SetUp!$C$3,E$93>SetUp!$C$3),"",IF(VALUE(E88)< 1,FISHER(E88),FISHER(0.999))) ->  | F122: =IF(OR($D122>SetUp!$C$3,F$93>SetUp!$C$3),"",IF(VALUE(F88)< 1,FISHER(F88),FISHER(0.999))) ->  | G122: =IF(OR($D122>SetUp!$C$3,G$93>SetUp!$C$3),"",IF(VALUE(G88)< 1,FISHER(G88),FISHER(0.999))) ->  | H122: =IF(OR($D122>SetUp!$C$3,H$93>SetUp!$C$3),"",IF(VALUE(H88)< 1,FISHER(H88),FISHER(0.999))) ->  | I122: =IF(OR($D122>SetUp!$C$3,I$93>SetUp!$C$3),"",IF(VALUE(I88)< 1,FISHER(I88),FISHER(0.999))) ->  | J122: =IF(OR($D122>SetUp!$C$3,J$93>SetUp!$C$3),"",IF(VALUE(J88)< 1,FISHER(J88),FISHER(0.999))) ->  | K122: =IF(OR($D122>SetUp!$C$3,K$93>SetUp!$C$3),"",IF(VALUE(K88)< 1,FISHER(K88),FISHER(0.999))) ->  | L122: =IF(OR($D122>SetUp!$C$3,L$93>SetUp!$C$3),"",IF(VALUE(L88)< 1,FISHER(L88),FISHER(0.999))) ->  | M122: =IF(OR($D122>SetUp!$C$3,M$93>SetUp!$C$3),"",IF(VALUE(M88)< 1,FISHER(M88),FISHER(0.999))) ->  | N122: =IF(OR($D122>SetUp!$C$3,N$93>SetUp!$C$3),"",IF(VALUE(N88)< 1,FISHER(N88),FISHER(0.999))) ->  | O122: =IF(OR($D122>SetUp!$C$3,O$93>SetUp!$C$3),"",IF(VALUE(O88)< 1,FISHER(O88),FISHER(0.999))) ->  | P122: =IF(OR($D122>SetUp!$C$3,P$93>SetUp!$C$3),"",IF(VALUE(P88)< 1,FISHER(P88),FISHER(0.999))) ->  | Q122: =IF(OR($D122>SetUp!$C$3,Q$93>SetUp!$C$3),"",IF(VALUE(Q88)< 1,FISHER(Q88),FISHER(0.999))) ->  | R122: =IF(OR($D122>SetUp!$C$3,R$93>SetUp!$C$3),"",IF(VALUE(R88)< 1,FISHER(R88),FISHER(0.999))) ->  | S122: =IF(OR($D122>SetUp!$C$3,S$93>SetUp!$C$3),"",IF(VALUE(S88)< 1,FISHER(S88),FISHER(0.999))) ->  | T122: =IF(OR($D122>SetUp!$C$3,T$93>SetUp!$C$3),"",IF(VALUE(T88)< 1,FISHER(T88),FISHER(0.999))) ->  | U122: =IF(OR($D122>SetUp!$C$3,U$93>SetUp!$C$3),"",IF(VALUE(U88)< 1,FISHER(U88),FISHER(0.999))) ->  | V122: =IF(OR($D122>SetUp!$C$3,V$93>SetUp!$C$3),"",IF(VALUE(V88)< 1,FISHER(V88),FISHER(0.999))) ->  | W122: =IF(OR($D122>SetUp!$C$3,W$93>SetUp!$C$3),"",IF(VALUE(W88)< 1,FISHER(W88),FISHER(0.999))) ->  | X122: =IF(OR($D122>SetUp!$C$3,X$93>SetUp!$C$3),"",IF(VALUE(X88)< 1,FISHER(X88),FISHER(0.999))) ->  | Y122: =IF(OR($D122>SetUp!$C$3,Y$93>SetUp!$C$3),"",IF(VALUE(Y88)< 1,FISHER(Y88),FISHER(0.999))) ->  | Z122: =IF(OR($D122>SetUp!$C$3,Z$93>SetUp!$C$3),"",IF(VALUE(Z88)< 1,FISHER(Z88),FISHER(0.999))) ->  | AA122: =IF(OR($D122>SetUp!$C$3,AA$93>SetUp!$C$3),"",IF(VALUE(AA88)< 1,FISHER(AA88),FISHER(0.999))) ->  | AB122: =IF(OR($D122>SetUp!$C$3,AB$93>SetUp!$C$3),"",IF(VALUE(AB88)< 1,FISHER(AB88),FISHER(0.999))) ->  | AC122: =IF(OR($D122>SetUp!$C$3,AC$93>SetUp!$C$3),"",IF(VALUE(AC88)< 1,FISHER(AC88),FISHER(0.999))) ->  | AD122: =IF(OR($D122>SetUp!$C$3,AD$93>SetUp!$C$3),"",IF(VALUE(AD88)< 1,FISHER(AD88),FISHER(0.999))) ->  | AE122: =IF(OR($D122>SetUp!$C$3,AE$93>SetUp!$C$3),"",IF(VALUE(AE88)< 1,FISHER(AE88),FISHER(0.999))) ->  | AF122: =IF(OR($D122>SetUp!$C$3,AF$93>SetUp!$C$3),"",IF(VALUE(AF88)< 1,FISHER(AF88),FISHER(0.999))) ->  | AG122: =IF(OR($D122>SetUp!$C$3,AG$93>SetUp!$C$3),"",IF(VALUE(AG88)< 1,FISHER(AG88),FISHER(0.999))) -> 
D123: 31 | E123: =IF(OR($D123>SetUp!$C$3,E$93>SetUp!$C$3),"",IF(VALUE(E89)< 1,FISHER(E89),FISHER(0.999))) ->  | F123: =IF(OR($D123>SetUp!$C$3,F$93>SetUp!$C$3),"",IF(VALUE(F89)< 1,FISHER(F89),FISHER(0.999))) ->  | G123: =IF(OR($D123>SetUp!$C$3,G$93>SetUp!$C$3),"",IF(VALUE(G89)< 1,FISHER(G89),FISHER(0.999))) ->  | H123: =IF(OR($D123>SetUp!$C$3,H$93>SetUp!$C$3),"",IF(VALUE(H89)< 1,FISHER(H89),FISHER(0.999))) ->  | I123: =IF(OR($D123>SetUp!$C$3,I$93>SetUp!$C$3),"",IF(VALUE(I89)< 1,FISHER(I89),FISHER(0.999))) ->  | J123: =IF(OR($D123>SetUp!$C$3,J$93>SetUp!$C$3),"",IF(VALUE(J89)< 1,FISHER(J89),FISHER(0.999))) ->  | K123: =IF(OR($D123>SetUp!$C$3,K$93>SetUp!$C$3),"",IF(VALUE(K89)< 1,FISHER(K89),FISHER(0.999))) ->  | L123: =IF(OR($D123>SetUp!$C$3,L$93>SetUp!$C$3),"",IF(VALUE(L89)< 1,FISHER(L89),FISHER(0.999))) ->  | M123: =IF(OR($D123>SetUp!$C$3,M$93>SetUp!$C$3),"",IF(VALUE(M89)< 1,FISHER(M89),FISHER(0.999))) ->  | N123: =IF(OR($D123>SetUp!$C$3,N$93>SetUp!$C$3),"",IF(VALUE(N89)< 1,FISHER(N89),FISHER(0.999))) ->  | O123: =IF(OR($D123>SetUp!$C$3,O$93>SetUp!$C$3),"",IF(VALUE(O89)< 1,FISHER(O89),FISHER(0.999))) ->  | P123: =IF(OR($D123>SetUp!$C$3,P$93>SetUp!$C$3),"",IF(VALUE(P89)< 1,FISHER(P89),FISHER(0.999))) ->  | Q123: =IF(OR($D123>SetUp!$C$3,Q$93>SetUp!$C$3),"",IF(VALUE(Q89)< 1,FISHER(Q89),FISHER(0.999))) ->  | R123: =IF(OR($D123>SetUp!$C$3,R$93>SetUp!$C$3),"",IF(VALUE(R89)< 1,FISHER(R89),FISHER(0.999))) ->  | S123: =IF(OR($D123>SetUp!$C$3,S$93>SetUp!$C$3),"",IF(VALUE(S89)< 1,FISHER(S89),FISHER(0.999))) ->  | T123: =IF(OR($D123>SetUp!$C$3,T$93>SetUp!$C$3),"",IF(VALUE(T89)< 1,FISHER(T89),FISHER(0.999))) ->  | U123: =IF(OR($D123>SetUp!$C$3,U$93>SetUp!$C$3),"",IF(VALUE(U89)< 1,FISHER(U89),FISHER(0.999))) ->  | V123: =IF(OR($D123>SetUp!$C$3,V$93>SetUp!$C$3),"",IF(VALUE(V89)< 1,FISHER(V89),FISHER(0.999))) ->  | W123: =IF(OR($D123>SetUp!$C$3,W$93>SetUp!$C$3),"",IF(VALUE(W89)< 1,FISHER(W89),FISHER(0.999))) ->  | X123: =IF(OR($D123>SetUp!$C$3,X$93>SetUp!$C$3),"",IF(VALUE(X89)< 1,FISHER(X89),FISHER(0.999))) ->  | Y123: =IF(OR($D123>SetUp!$C$3,Y$93>SetUp!$C$3),"",IF(VALUE(Y89)< 1,FISHER(Y89),FISHER(0.999))) ->  | Z123: =IF(OR($D123>SetUp!$C$3,Z$93>SetUp!$C$3),"",IF(VALUE(Z89)< 1,FISHER(Z89),FISHER(0.999))) ->  | AA123: =IF(OR($D123>SetUp!$C$3,AA$93>SetUp!$C$3),"",IF(VALUE(AA89)< 1,FISHER(AA89),FISHER(0.999))) ->  | AB123: =IF(OR($D123>SetUp!$C$3,AB$93>SetUp!$C$3),"",IF(VALUE(AB89)< 1,FISHER(AB89),FISHER(0.999))) ->  | AC123: =IF(OR($D123>SetUp!$C$3,AC$93>SetUp!$C$3),"",IF(VALUE(AC89)< 1,FISHER(AC89),FISHER(0.999))) ->  | AD123: =IF(OR($D123>SetUp!$C$3,AD$93>SetUp!$C$3),"",IF(VALUE(AD89)< 1,FISHER(AD89),FISHER(0.999))) ->  | AE123: =IF(OR($D123>SetUp!$C$3,AE$93>SetUp!$C$3),"",IF(VALUE(AE89)< 1,FISHER(AE89),FISHER(0.999))) ->  | AF123: =IF(OR($D123>SetUp!$C$3,AF$93>SetUp!$C$3),"",IF(VALUE(AF89)< 1,FISHER(AF89),FISHER(0.999))) ->  | AG123: =IF(OR($D123>SetUp!$C$3,AG$93>SetUp!$C$3),"",IF(VALUE(AG89)< 1,FISHER(AG89),FISHER(0.999))) ->  | AH123: =IF(OR($D123>SetUp!$C$3,AH$93>SetUp!$C$3),"",IF(VALUE(AH89)< 1,FISHER(AH89),FISHER(0.999))) -> 
D124: 32 | E124: =IF(OR($D124>SetUp!$C$3,E$93>SetUp!$C$3),"",IF(VALUE(E90)< 1,FISHER(E90),FISHER(0.999))) ->  | F124: =IF(OR($D124>SetUp!$C$3,F$93>SetUp!$C$3),"",IF(VALUE(F90)< 1,FISHER(F90),FISHER(0.999))) ->  | G124: =IF(OR($D124>SetUp!$C$3,G$93>SetUp!$C$3),"",IF(VALUE(G90)< 1,FISHER(G90),FISHER(0.999))) ->  | H124: =IF(OR($D124>SetUp!$C$3,H$93>SetUp!$C$3),"",IF(VALUE(H90)< 1,FISHER(H90),FISHER(0.999))) ->  | I124: =IF(OR($D124>SetUp!$C$3,I$93>SetUp!$C$3),"",IF(VALUE(I90)< 1,FISHER(I90),FISHER(0.999))) ->  | J124: =IF(OR($D124>SetUp!$C$3,J$93>SetUp!$C$3),"",IF(VALUE(J90)< 1,FISHER(J90),FISHER(0.999))) ->  | K124: =IF(OR($D124>SetUp!$C$3,K$93>SetUp!$C$3),"",IF(VALUE(K90)< 1,FISHER(K90),FISHER(0.999))) ->  | L124: =IF(OR($D124>SetUp!$C$3,L$93>SetUp!$C$3),"",IF(VALUE(L90)< 1,FISHER(L90),FISHER(0.999))) ->  | M124: =IF(OR($D124>SetUp!$C$3,M$93>SetUp!$C$3),"",IF(VALUE(M90)< 1,FISHER(M90),FISHER(0.999))) ->  | N124: =IF(OR($D124>SetUp!$C$3,N$93>SetUp!$C$3),"",IF(VALUE(N90)< 1,FISHER(N90),FISHER(0.999))) ->  | O124: =IF(OR($D124>SetUp!$C$3,O$93>SetUp!$C$3),"",IF(VALUE(O90)< 1,FISHER(O90),FISHER(0.999))) ->  | P124: =IF(OR($D124>SetUp!$C$3,P$93>SetUp!$C$3),"",IF(VALUE(P90)< 1,FISHER(P90),FISHER(0.999))) ->  | Q124: =IF(OR($D124>SetUp!$C$3,Q$93>SetUp!$C$3),"",IF(VALUE(Q90)< 1,FISHER(Q90),FISHER(0.999))) ->  | R124: =IF(OR($D124>SetUp!$C$3,R$93>SetUp!$C$3),"",IF(VALUE(R90)< 1,FISHER(R90),FISHER(0.999))) ->  | S124: =IF(OR($D124>SetUp!$C$3,S$93>SetUp!$C$3),"",IF(VALUE(S90)< 1,FISHER(S90),FISHER(0.999))) ->  | T124: =IF(OR($D124>SetUp!$C$3,T$93>SetUp!$C$3),"",IF(VALUE(T90)< 1,FISHER(T90),FISHER(0.999))) ->  | U124: =IF(OR($D124>SetUp!$C$3,U$93>SetUp!$C$3),"",IF(VALUE(U90)< 1,FISHER(U90),FISHER(0.999))) ->  | V124: =IF(OR($D124>SetUp!$C$3,V$93>SetUp!$C$3),"",IF(VALUE(V90)< 1,FISHER(V90),FISHER(0.999))) ->  | W124: =IF(OR($D124>SetUp!$C$3,W$93>SetUp!$C$3),"",IF(VALUE(W90)< 1,FISHER(W90),FISHER(0.999))) ->  | X124: =IF(OR($D124>SetUp!$C$3,X$93>SetUp!$C$3),"",IF(VALUE(X90)< 1,FISHER(X90),FISHER(0.999))) ->  | Y124: =IF(OR($D124>SetUp!$C$3,Y$93>SetUp!$C$3),"",IF(VALUE(Y90)< 1,FISHER(Y90),FISHER(0.999))) ->  | Z124: =IF(OR($D124>SetUp!$C$3,Z$93>SetUp!$C$3),"",IF(VALUE(Z90)< 1,FISHER(Z90),FISHER(0.999))) ->  | AA124: =IF(OR($D124>SetUp!$C$3,AA$93>SetUp!$C$3),"",IF(VALUE(AA90)< 1,FISHER(AA90),FISHER(0.999))) ->  | AB124: =IF(OR($D124>SetUp!$C$3,AB$93>SetUp!$C$3),"",IF(VALUE(AB90)< 1,FISHER(AB90),FISHER(0.999))) ->  | AC124: =IF(OR($D124>SetUp!$C$3,AC$93>SetUp!$C$3),"",IF(VALUE(AC90)< 1,FISHER(AC90),FISHER(0.999))) ->  | AD124: =IF(OR($D124>SetUp!$C$3,AD$93>SetUp!$C$3),"",IF(VALUE(AD90)< 1,FISHER(AD90),FISHER(0.999))) ->  | AE124: =IF(OR($D124>SetUp!$C$3,AE$93>SetUp!$C$3),"",IF(VALUE(AE90)< 1,FISHER(AE90),FISHER(0.999))) ->  | AF124: =IF(OR($D124>SetUp!$C$3,AF$93>SetUp!$C$3),"",IF(VALUE(AF90)< 1,FISHER(AF90),FISHER(0.999))) ->  | AG124: =IF(OR($D124>SetUp!$C$3,AG$93>SetUp!$C$3),"",IF(VALUE(AG90)< 1,FISHER(AG90),FISHER(0.999))) ->  | AH124: =IF(OR($D124>SetUp!$C$3,AH$93>SetUp!$C$3),"",IF(VALUE(AH90)< 1,FISHER(AH90),FISHER(0.999))) ->  | AI124: =IF(OR($D124>SetUp!$C$3,AI$93>SetUp!$C$3),"",IF(VALUE(AI90)< 1,FISHER(AI90),FISHER(0.999))) -> 
D139: Question | E139: Fisher z
D140: =C20 -> 1 | E140: =IF(AND($C20=E$17,ISNUMBER(E20)),IF(VALUE(E20)=1,3,FISHER(E20)),"X") -> 0.06252038681
D141: 1 | E141: =IF(AND($C21=E$17,ISNUMBER(E21)),IF(VALUE(E21)=1,3,FISHER(E21)),"X") -> -0.1212686847
D142: 2 | E142: =IF(AND($C22=E$17,ISNUMBER(E22)),IF(VALUE(C22)=1,3,FISHER(E22)),"X") -> X
D143: 2 | E143: =IF(AND($C23=E$17,ISNUMBER(E23)),IF(VALUE(E23)=1,3,FISHER(E23)),"X") -> X
D144: 2 | E144: X
D145: 3 | E145: X
D146: 3 | E146: X
D147: 3 | E147: X
D148: 4 | E148: X
D149: 4 | E149: X
D150: 4 | E150: X
E151: X
E152: X
E153: X
E154: X
E155: X
E156: X
E157: X
E158: X
E159: X
E160: X
E161: X
E162: X
E163: X
E164: X
E165: X
E166: X
E167: X
E168: X
E169: X
E170: X
E171: X
E172: X
E173: X
E174: X
E175: X
E176: X
D177: =D141 -> 1 | E177: =IF(AND($C21=F$17,ISNUMBER(F21)),IF(VALUE(F21)=1,3,FISHER(F21)),"X") -> -0.03392050959
D178: 2 | E178: X
D179: 2 | E179: X
D180: 2 | E180: X
D181: 3 | E181: X
D182: 3 | E182: X
D183: 3 | E183: X
D184: 4 | E184: X
D185: 4 | E185: X
D186: 4 | E186: X
E187: X
E188: X
E189: X
E190: X
E191: X
E192: X
E193: X
E194: X
E195: X
E196: X
E197: X
E198: X
E199: X
E200: X
E201: X
E202: X
E203: X
E204: X
E205: X
E206: X
E207: X
E208: X
E209: X
E210: X
E211: X
E212: X
D213: =D178 -> 2 | E213: =IF(AND($C22=G$17,ISNUMBER(G22)),IF(VALUE(G22)=1,3,FISHER(G22)),"X") -> X
D214: 2 | E214: X
D215: 2 | E215: X
D216: 3 | E216: X
... 626 more rows

Sheet PPAdvImt
A1: ="Adverse Impact Analysis for " -> Adverse Impact Analysis for
A2: =PROPER(TRIM(RawScores!B1)) -> Title
A3: Passing Point Impact Analysis for Minorities | H3: Score Stats | J3: Race/Ethnicity | K3: # of Applicants | L3: Adverse Impact?
A4: Ethnic Code | B4: Pass | C4: % | D4: Fail | E4: % | H4: Average | I4: SD
A5: 1 | B5: =COUNTIF(Rollups!$K$6:$K$2005,$B$4&"M"&$A5)+COUNTIF(Rollups!$K$6:$K$2005,B$4&"F"&A5)+COUNTIF(Rollups!$K$6:$K$2005,B$4&"U"&A5) -> 0 | C5: =IF((B5+D5)>0,B5/(B5+D5),"") -> 0 | D5: =COUNTIF(Rollups!$K$6:$K$2005,D$4&"M"&$A5)+COUNTIF(Rollups!$K$6:$K$2005,D$4&"F"&A5)+COUNTIF(Rollups!$K$6:$K$2005,D$4&"U"&A5) -> 1 | E5: =IF((B5+D5)>0,D5/(B5+D5),"") -> 1 | H5: =IF(B5+D5>0,Rollups!A$3,"") -> 8 | I5: =IF(B5+D5>1,Rollups!A$4,"") ->  | J5: Black or African American | K5: =SUM(B5,D5) -> 1 | L5: =IF(COUNTBLANK(C5),"",IF(C5/$C$9<=0.8,"Yes","No")) -> Yes
A6: 2 | B6: =COUNTIF(Rollups!$K$6:$K$2005,$B$4&"M"&$A6)+COUNTIF(Rollups!$K$6:$K$2005,B$4&"F"&A6)+COUNTIF(Rollups!$K$6:$K$2005,B$4&"U"&A6) -> 0 | C6: 0 | D6: =COUNTIF(Rollups!$K$6:$K$2005,D$4&"M"&$A6)+COUNTIF(Rollups!$K$6:$K$2005,D$4&"F"&A6)+COUNTIF(Rollups!$K$6:$K$2005,D$4&"U"&A6) -> 1 | E6: 1 | H6: =IF(B6+D6>0,Rollups!B$3,"") -> 13.33333333 | I6: =IF(B6+D6>1,Rollups!B$4,"") ->  | J6: Asian | K6: 1 | L6: =IF(COUNTBLANK(C6),"",IF(C6/$C$9<=0.8,"Yes","No")) -> Yes
A7: 3 | B7: =COUNTIF(Rollups!$K$6:$K$2005,$B$4&"M"&$A7)+COUNTIF(Rollups!$K$6:$K$2005,B$4&"F"&A7)+COUNTIF(Rollups!$K$6:$K$2005,B$4&"U"&A7) -> 0 | C7: 0 | D7: =COUNTIF(Rollups!$K$6:$K$2005,D$4&"M"&$A7)+COUNTIF(Rollups!$K$6:$K$2005,D$4&"F"&A7)+COUNTIF(Rollups!$K$6:$K$2005,D$4&"U"&A7) -> 1 | E7: 1 | H7: =IF(B7+D7>0,Rollups!C$3,"") -> 8 | I7: =IF(B7+D7>1,Rollups!C$4,"") ->  | J7: American Indian or Alaska Native | K7: 1 | L7: =IF(COUNTBLANK(C7),"",IF(C7/$C$9<=0.8,"Yes","No")) -> Yes
A8: 4 | B8: =COUNTIF(Rollups!$K$6:$K$2005,$B$4&"M"&$A8)+COUNTIF(Rollups!$K$6:$K$2005,B$4&"F"&A8)+COUNTIF(Rollups!$K$6:$K$2005,B$4&"U"&A8) -> 0 | C8: 0 | D8: =COUNTIF(Rollups!$K$6:$K$2005,D$4&"M"&$A8)+COUNTIF(Rollups!$K$6:$K$2005,D$4&"F"&A8)+COUNTIF(Rollups!$K$6:$K$2005,D$4&"U"&A8) -> 1 | E8: 1 | H8: =IF(B8+D8>0,Rollups!D$3,"") -> 15.33333333 | I8: =IF(B8+D8>1,Rollups!D$4,"") ->  | J8: Hispanic or Latino | K8: 1 | L8: =IF(COUNTBLANK(C8),"",IF(C8/$C$9<=0.8,"Yes","No")) -> Yes
A9: 5 | B9: =COUNTIF(Rollups!$K$6:$K$2005,$B$4&"M"&$A9)+COUNTIF(Rollups!$K$6:$K$2005,B$4&"F"&A9)+COUNTIF(Rollups!$K$6:$K$2005,B$4&"U"&A9) -> 1 | C9: 0.3333333333 | D9: =COUNTIF(Rollups!$K$6:$K$2005,D$4&"M"&$A9)+COUNTIF(Rollups!$K$6:$K$2005,D$4&"F"&A9)+COUNTIF(Rollups!$K$6:$K$2005,D$4&"U"&A9) -> 2 | E9: 0.6666666667 | H9: =IF(B9+D9>0,Rollups!E$3,"") -> 14.44444444 | I9: =IF(B9+D9>1,Rollups!E$4,"") -> 6.930875633 | J9: White | K9: 3
A10: 6 | B10: =COUNTIF(Rollups!$K$6:$K$2005,$B$4&"M"&$A10)+COUNTIF(Rollups!$K$6:$K$2005,B$4&"F"&A10)+COUNTIF(Rollups!$K$6:$K$2005,B$4&"U"&A10) -> 0 | D10: =COUNTIF(Rollups!$K$6:$K$2005,D$4&"M"&$A10)+COUNTIF(Rollups!$K$6:$K$2005,D$4&"F"&A10)+COUNTIF(Rollups!$K$6:$K$2005,D$4&"U"&A10) -> 0 | H10: =IF(B10+D10>0,Rollups!F$3,"") ->  | I10: =IF(B10+D10>1,Rollups!F$4,"") ->  | J10: Native Hawaiian or Pacific Islander | K10: 0 | L10: =IF(COUNTBLANK(C10),"",IF(C10/$C$9<=0.8,"Yes","No")) -> 
A11: 7 | B11: =COUNTIF(Rollups!$K$6:$K$2005,$B$4&"M"&$A11)+COUNTIF(Rollups!$K$6:$K$2005,B$4&"F"&A11)+COUNTIF(Rollups!$K$6:$K$2005,B$4&"U"&A11) -> 0 | D11: =COUNTIF(Rollups!$K$6:$K$2005,D$4&"M"&$A11)+COUNTIF(Rollups!$K$6:$K$2005,D$4&"F"&A11)+COUNTIF(Rollups!$K$6:$K$2005,D$4&"U"&A11) -> 0 | H11: =IF(B11+D11>0,Rollups!G$3,"") ->  | I11: =IF(B11+D11>1,Rollups!G$4,"") ->  | J11: Two or More Races | K11: 0 | L11: =IF(COUNTBLANK(C11),"",IF(C11/$C$9<=0.8,"Yes","No")) -> 
A12: 9 | B12: =COUNTIF(Rollups!$K$6:$K$2005,$B$4&"M"&$A12)+COUNTIF(Rollups!$K$6:$K$2005,B$4&"F"&A12)+COUNTIF(Rollups!$K$6:$K$2005,B$4&"U"&A12)+COUNTIF(Rollups!$K$6:$K$2005,$B$4&"M"&0)+COUNTIF(Rollups!$K$6:$K$2005,B$4&"F"&0)+COUNTIF(Rollups!$K$6:$K$2005,B$4&"U"&0) -> 0 | D12: =COUNTIF(Rollups!$K$6:$K$2005,D$4&"M"&$A12)+COUNTIF(Rollups!$K$6:$K$2005,D$4&"F"&A12)+COUNTIF(Rollups!$K$6:$K$2005,D$4&"U"&A12)+COUNTIF(Rollups!$K$6:$K$2005,D$4&"M"&0)+COUNTIF(Rollups!$K$6:$K$2005,D$4&"F"&0)+COUNTIF(Rollups!$K$6:$K$2005,D$4&"U"&0) -> 0 | J12: Not Specified | K12: 0
A13: Total | B13: =SUM(B5:B12) -> 1 | C13: 0.1428571429 | D13: =SUM(D5:D12) -> 6 | E13: 0.8571428571 | H13: =IF(B13+D13>0,Approval!E11,"") -> 12.57142857 | I13: =IF(B13+D13>1,Approval!E12,"") -> 5.1088 | J13: Total | K13: 7
A14: All Minorities | B14: =SUM(B5:B8,B10:B11) -> 0 | C14: 0 | D14: =SUM(D5:D8,D10:D11) -> 4 | E14: 1 | H14: =IF(B14+D14>0,Rollups!H$3,"") -> 11.16666667 | I14: =IF(B14+D14>1,Rollups!H$4,"") -> 3.7466034 | J14: All Minorities | K14: 4 | L14: =IF(COUNTBLANK(C14),"",IF(C14/$C$9<=0.8,"Yes","No")) -> Yes
A15: 80% Rule | B15: =C9*0.8 -> 0.2666666667
A16: =IF(D14+B14>2,"Probability that the difference between Minority & White (5) score averages is due to chance = "&TEXT(TTEST(Rollups!E6:E2000,Rollups!H6:H2000,2,3),"0.00"),"") -> Probability that the difference between Minority & White (5) score averages is due to chance = 0.51
A17: ="Fisher's Exact Test is"&IF(FET!C2>0.05," not","")&" significant at "&TEXT(FET!C2,"0.000") -> Fisher's Exact Test is not significant at 0.429
A18: ="The Z test of the difference in passing rates is "&IF(AND(I18>-1.96,I18<1.96),"not ","")&"significant at the .05 probability level:" -> The Z test of the difference in passing rates is significant at the .05 probability level: | I18: =(C14-C9)/SQRT((C13*(1-C13))/(B13+D13)*((B14+D14)/(B13+D13))*(1-((B14+D14)/(B13+D13)))) -> -5.092811443
A19: Passing Point Impact Analysis for Females | H19: Score Stats | J19: Gender | K19: # of Applicants | L19: Adverse Impact?
A20: Gender | B20: Pass | C20: % | D20: Fail | E20: % | H20: Average | I20: SD
A21: M | B21: =COUNTIF(Rollups!$K$6:$K$2005,$B$20&"M"&1)+COUNTIF(Rollups!$K$6:$K$2005,B$20&"M"&2)+COUNTIF(Rollups!$K$6:$K$2005,B$20&"M"&3)+COUNTIF(Rollups!$K$6:$K$2005,B$20&"M"&4)+COUNTIF(Rollups!$K$6:$K$2005,B$20&"M"&5)+COUNTIF(Rollups!$K$6:$K$2005,B$20&"M"&6)+COUNTIF(Rollups!$K$6:$K$2005,B$20&"M"&7)+COUNTIF(Rollups!$K$6:$K$2005,B$20&"M"&9)+COUNTIF(Rollups!$K$6:$K$2005,B$20&"M"&0) -> 1 | C21: =IF((B21+D21)>0,B21/(B21+D21),"") -> 0.3333333333 | D21: =COUNTIF(Rollups!$K$6:$K$2005,$D$20&"M"&1)+COUNTIF(Rollups!$K$6:$K$2005,D$20&"M"&2)+COUNTIF(Rollups!$K$6:$K$2005,D$20&"M"&3)+COUNTIF(Rollups!$K$6:$K$2005,D$20&"M"&4)+COUNTIF(Rollups!$K$6:$K$2005,D$20&"M"&5)+COUNTIF(Rollups!$K$6:$K$2005,D$20&"M"&6)+COUNTIF(Rollups!$K$6:$K$2005,D$20&"M"&7)+COUNTIF(Rollups!$K$6:$K$2005,D$20&"M"&9)+COUNTIF(Rollups!$K$6:$K$2005,D$20&"M"&0) -> 2 | E21: =IF((B21+D21)>0,D21/(B21+D21),"") -> 0.6666666667 | H21: =IF(B21+D21>0,Rollups!I$3,"") -> 13.22222222 | I21: =IF(B21+D21>1,Rollups!I$4,"") -> 7.918567023 | J21: Male | K21: =SUM(B21,D21) -> 3
A22: F | B22: =COUNTIF(Rollups!$K$6:$K$2005,$B$20&"F"&1)+COUNTIF(Rollups!$K$6:$K$2005,B$20&"F"&2)+COUNTIF(Rollups!$K$6:$K$2005,B$20&"F"&3)+COUNTIF(Rollups!$K$6:$K$2005,B$20&"F"&4)+COUNTIF(Rollups!$K$6:$K$2005,B$20&"F"&5)+COUNTIF(Rollups!$K$6:$K$2005,B$20&"F"&6)+COUNTIF(Rollups!$K$6:$K$2005,B$20&"F"&7)+COUNTIF(Rollups!$K$6:$K$2005,B$20&"F"&9)+COUNTIF(Rollups!$K$6:$K$2005,B$20&"F"&0) -> 0 | C22: =IF((B22+D22)>0,B22/(B22+D22),"") -> 0 | D22: =COUNTIF(Rollups!$K$6:$K$2005,$D$20&"F"&1)+COUNTIF(Rollups!$K$6:$K$2005,D$20&"F"&2)+COUNTIF(Rollups!$K$6:$K$2005,D$20&"F"&3)+COUNTIF(Rollups!$K$6:$K$2005,D$20&"F"&4)+COUNTIF(Rollups!$K$6:$K$2005,D$20&"F"&5)+COUNTIF(Rollups!$K$6:$K$2005,D$20&"F"&6)+COUNTIF(Rollups!$K$6:$K$2005,D$20&"F"&7)+COUNTIF(Rollups!$K$6:$K$2005,D$20&"F"&9)+COUNTIF(Rollups!$K$6:$K$2005,D$20&"F"&0) -> 4 | E22: =IF((B22+D22)>0,D22/(B22+D22),"") -> 1 | H22: =IF(B22+D22>0,Rollups!J$3,"") -> 12.08333333 | I22: =IF(B22+D22>1,Rollups!J$4,"") -> 3.107636949 | J22: Female | K22: =SUM(B22,D22) -> 4 | L22: =IF(COUNTBLANK(C22),"",IF(C22/$C$21<=0.8,"Yes","No")) -> Yes
A23: U | B23: =COUNTIF(Rollups!$K$6:$K$2005,$B$20&"U"&1)+COUNTIF(Rollups!$K$6:$K$2005,B$20&"U"&2)+COUNTIF(Rollups!$K$6:$K$2005,B$20&"U"&3)+COUNTIF(Rollups!$K$6:$K$2005,B$20&"U"&4)+COUNTIF(Rollups!$K$6:$K$2005,B$20&"U"&5)+COUNTIF(Rollups!$K$6:$K$2005,B$20&"U"&6)+COUNTIF(Rollups!$K$6:$K$2005,B$20&"U"&7)+COUNTIF(Rollups!$K$6:$K$2005,B$20&"U"&9)+COUNTIF(Rollups!$K$6:$K$2005,B$20&"U"&0) -> 0 | C23: =IF((B23+D23)>0,B23/(B23+D23),"") ->  | D23: =COUNTIF(Rollups!$K$6:$K$2005,$D$20&"U"&1)+COUNTIF(Rollups!$K$6:$K$2005,D$20&"U"&2)+COUNTIF(Rollups!$K$6:$K$2005,D$20&"U"&3)+COUNTIF(Rollups!$K$6:$K$2005,D$20&"U"&4)+COUNTIF(Rollups!$K$6:$K$2005,D$20&"U"&5)+COUNTIF(Rollups!$K$6:$K$2005,D$20&"U"&6)+COUNTIF(Rollups!$K$6:$K$2005,D$20&"U"&7)+COUNTIF(Rollups!$K$6:$K$2005,D$20&"U"&9)+COUNTIF(Rollups!$K$6:$K$2005,D$20&"U"&0) -> 0 | E23: =IF((B23+D23)>0,D23/(B23+D23),"") ->  | J23: Not Specified | K23: =SUM(B23,D23) -> 0
A24: Total | B24: =SUM(B21:B23) -> 1 | C24: =IF((B24+D24)>0,B24/(B24+D24),"") -> 0.1428571429 | D24: =SUM(D21:D23) -> 6 | E24: =IF((B24+D24)>0,D24/(B24+D24),"") -> 0.8571428571 | H24: =H13 -> 12.57142857 | I24: =I13 -> 5.1088 | J24: Total | K24: =SUM(B24,D24) -> 7
A25: 80% Rule | B25: =C21*0.8 -> 0.2666666667
A26: =IF(AND(B22+D22>2,B21+D21>2),"Probability that the difference between Male & Female score averages is due to chance = "&TEXT(TTEST(Rollups!I6:I2000,Rollups!J6:J2000,2,3),"0.00"),"") -> Probability that the difference between Male & Female score averages is due to chance = 0.83
A27: ="Fisher's Exact Test is"&IF(FET!I2>0.05," not","")&" significant at "&TEXT(FET!I2,"0.000") -> Fisher's Exact Test is significant at 0.000
A28: ="The Z test of the difference in passing rates is"&IF(AND(I28>-1.96,I28<1.96)," not","")&" significant at the .05 probability level:" -> The Z test of the difference in passing rates is significant at the .05 probability level: | I28: =(C22-C21)/SQRT((C13*(1-C13))/(B13+D13)*((B22+D22)/(B13+D13))*(1-((B22+D22)/(B13+D13)))) -> -5.092811443

Sheet PassingPointRel
B1: Passing Point Reliability Calculations | P1: Values of x indicate missing raters | X1: =INDEX(SetUp!$B$14:$AO$14,1,X4) -> N | Y1: =INDEX(SetUp!$B$14:$AO$14,1,Y4) -> N | Z1: =INDEX(SetUp!$B$14:$AO$14,1,Z4) -> N | AA1: =INDEX(SetUp!$B$14:$AO$14,1,AA4) -> N | AB1: =INDEX(SetUp!$B$14:$AO$14,1,AB4) -> N
B2: Coefficient of Consensus = | C2: =SUM(F5:F1000)/Approval!$E$9 -> 0.7142857143 | P2: =Rollups!R5 -> 16 | Q2: =Rollups!S5 -> 16 | R2: =Rollups!T5 -> 16 | S2: =Rollups!U5 -> 0 | T2: =Rollups!V5 -> 0 | U2: =Rollups!W5 -> 0 | V2: =Rollups!X5 -> 0 | W2: =Rollups!Y5 -> 0 | X2: =Rollups!Z5 -> 12 | Y2: =Rollups!AA5 -> 12 | Z2: =Rollups!AB5 -> 12 | AA2: =Rollups!AC5 -> 12 | AB2: =Rollups!AD5 -> 0 | AC2: =Rollups!AE5 -> 0 | AD2: =Rollups!AF5 -> 0 | AE2: =Rollups!AG5 -> 0 | AF2: =Rollups!AH5 -> 0 | AG2: =Rollups!AI5 -> 0 | AH2: =Rollups!AJ5 -> 0 | AI2: =Rollups!AK5 -> 0 | AJ2: =Rollups!AL5 -> 0 | AK2: =Rollups!AM5 -> 0 | AL2: =Rollups!AN5 -> 0 | AM2: =Rollups!AO5 -> 0 | AN2: =Rollups!AP5 -> 0 | AO2: =Rollups!AQ5 -> 0 | AP2: =Rollups!AR5 -> 0 | AQ2: =Rollups!AS5 -> 0 | AR2: =Rollups!AT5 -> 0 | AS2: =Rollups!AU5 -> 0 | AT2: =Rollups!AV5 -> 0 | AU2: =Rollups!AW5 -> 0
B3: Adjust Passing Point Here -> | C3: =MAX(P2:W2) -> 16 | O3: Fail | P3: Raters | X3: Questions
A4: rank | B4: Name (sex, ethnic, handicap) | C4: Rank | D4: CS | E4: Raw | F4: Total PF | O4: Mand | P4: 1 | Q4: 2 | R4: 3 | S4: 4 | T4: 5 | U4: 6 | V4: 7 | W4: 8 | X4: 1 | Y4: 2 | Z4: 3 | AA4: 4 | AB4: 5 | AC4: 6 | AD4: 7 | AE4: 8 | AF4: 9 | AG4: 10 | AH4: 11 | AI4: 12 | AJ4: 13 | AK4: 14 | AL4: 15 | AM4: 16 | AN4: 17 | AO4: 18 | AP4: 19 | AQ4: 20 | AR4: 21 | AS4: 22 | AT4: 23 | AU4: 24
A5: =ROW()-4 -> 1 | B5: =IF(ROW()-4>Approval!$E$9,"",VLOOKUP($A5,PPRankTable,6,FALSE)) -> xxxxxxxx (M5) | C5: =IF(ROW()-4>Approval!$E$9,"",VLOOKUP($A5,PPRankTable,4,FALSE)) -> 1 | D5: =IF(ROW()-4>Approval!$E$9,"",VLOOKUP($A5,PPRankTable,5,FALSE)) -> 79.5 | E5: =IF(ROW()-4>Approval!$E$9,"",VLOOKUP($A5,PPRankTable,3,FALSE)) -> 22.33333333 | F5: =IF(LEN(B5)<4,0,IF(OR(SUM(G5:N5)=COUNT(G5:N5),SUM(G5:N5)=0),1,0)) -> 0 | G5: =IF(OR(SetUp!$C$4<P$4,P5="x"),"x",IF(NOT(P5<P$2),1,0)) -> 0 | H5: =IF(OR(SetUp!$C$4<Q$4,Q5="x"),"x",IF(NOT(Q5<Q$2),1,0)) -> 1 | I5: =IF(OR(SetUp!$C$4<R$4,R5="x"),"x",IF(NOT(R5<R$2),1,0)) -> 1 | J5: =IF(OR(SetUp!$C$4<S$4,S5="x"),"x",IF(NOT(S5<S$2),1,0)) -> x | K5: =IF(OR(SetUp!$C$4<T$4,T5="x"),"x",IF(NOT(T5<T$2),1,0)) -> x | L5: =IF(OR(SetUp!$C$4<U$4,U5="x"),"x",IF(NOT(U5<U$2),1,0)) -> x | M5: =IF(OR(SetUp!$C$4<V$4,V5="x"),"x",IF(NOT(V5<V$2),1,0)) -> x | N5: =IF(OR(SetUp!$C$4<W$4,W5="x"),"x",IF(NOT(W5<W$2),1,0)) -> x | O5: =IF(ROW()-4>Approval!$E$9,"",IF(D5<70,"",IF(VLOOKUP($A5,MandPF!$A$6:$B$2006,2,FALSE)="Fail","X",""))) ->  | P5: =IF(ROW()-4>Approval!$E$9,"",VLOOKUP($A5,PPRankTable,P$4+6,FALSE)) -> 14 | Q5: =IF(ROW()-4>Approval!$E$9,"",VLOOKUP($A5,PPRankTable,Q$4+6,FALSE)) -> 24 | R5: =IF(ROW()-4>Approval!$E$9,"",VLOOKUP($A5,PPRankTable,R$4+6,FALSE)) -> 29 | S5: =IF(ROW()-4>Approval!$E$9,"",VLOOKUP($A5,PPRankTable,S$4+6,FALSE)) ->  | T5: =IF(ROW()-4>Approval!$E$9,"",VLOOKUP($A5,PPRankTable,T$4+6,FALSE)) ->  | U5: =IF(ROW()-4>Approval!$E$9,"",VLOOKUP($A5,PPRankTable,U$4+6,FALSE)) ->  | V5: =IF(ROW()-4>Approval!$E$9,"",VLOOKUP($A5,PPRankTable,V$4+6,FALSE)) ->  | W5: =IF(ROW()-4>Approval!$E$9,"",VLOOKUP($A5,PPRankTable,W$4+6,FALSE)) ->  | X5: =IF(ROW()-4>Approval!$E$9,"",VLOOKUP($A5,PPRankTable,X$4+14,FALSE)) -> 13 | Y5: =IF(ROW()-4>Approval!$E$9,"",VLOOKUP($A5,PPRankTable,Y$4+14,FALSE)) -> 17 | Z5: =IF(ROW()-4>Approval!$E$9,"",VLOOKUP($A5,PPRankTable,Z$4+14,FALSE)) -> 18 | AA5: =IF(ROW()-4>Approval!$E$9,"",VLOOKUP($A5,PPRankTable,AA$4+14,FALSE)) -> 19 | AB5: =IF(ROW()-4>Approval!$E$9,"",VLOOKUP($A5,PPRankTable,AB$4+14,FALSE)) ->  | AC5: =IF(ROW()-4>Approval!$E$9,"",VLOOKUP($A5,PPRankTable,AC$4+14,FALSE)) ->  | AD5: =IF(ROW()-4>Approval!$E$9,"",VLOOKUP($A5,PPRankTable,AD$4+14,FALSE)) ->  | AE5: =IF(ROW()-4>Approval!$E$9,"",VLOOKUP($A5,PPRankTable,AE$4+14,FALSE)) ->  | AF5: =IF(ROW()-4>Approval!$E$9,"",VLOOKUP($A5,PPRankTable,AF$4+14,FALSE)) ->  | AG5: =IF(ROW()-4>Approval!$E$9,"",VLOOKUP($A5,PPRankTable,AG$4+14,FALSE)) ->  | AH5: =IF(ROW()-4>Approval!$E$9,"",VLOOKUP($A5,PPRankTable,AH$4+14,FALSE)) ->  | AI5: =IF(ROW()-4>Approval!$E$9,"",VLOOKUP($A5,PPRankTable,AI$4+14,FALSE)) ->  | AJ5: =IF(ROW()-4>Approval!$E$9,"",VLOOKUP($A5,PPRankTable,AJ$4+14,FALSE)) ->  | AK5: =IF(ROW()-4>Approval!$E$9,"",VLOOKUP($A5,PPRankTable,AK$4+14,FALSE)) ->  | AL5: =IF(ROW()-4>Approval!$E$9,"",VLOOKUP($A5,PPRankTable,AL$4+14,FALSE)) ->  | AM5: =IF(ROW()-4>Approval!$E$9,"",VLOOKUP($A5,PPRankTable,AM$4+14,FALSE)) ->  | AN5: =IF(ROW()-4>Approval!$E$9,"",VLOOKUP($A5,PPRankTable,AN$4+14,FALSE)) ->  | AO5: =IF(ROW()-4>Approval!$E$9,"",VLOOKUP($A5,PPRankTable,AO$4+14,FALSE)) ->  | AP5: =IF(ROW()-4>Approval!$E$9,"",VLOOKUP($A5,PPRankTable,AP$4+14,FALSE)) ->  | AQ5: =IF(ROW()-4>Approval!$E$9,"",VLOOKUP($A5,PPRankTable,AQ$4+14,FALSE)) ->  | AR5: =IF(ROW()-4>Approval!$E$9,"",VLOOKUP($A5,PPRankTable,AR$4+14,FALSE)) ->  | AS5: =IF(ROW()-4>Approval!$E$9,"",VLOOKUP($A5,PPRankTable,AS$4+14,FALSE)) ->  | AT5: =IF(ROW()-4>Approval!$E$9,"",VLOOKUP($A5,PPRankTable,AT$4+14,FALSE)) ->  | AU5: =IF(ROW()-4>Approval!$E$9,"",VLOOKUP($A5,PPRankTable,AU$4+14,FALSE)) ->  | AW5: =IF(OR(AND(SetUp!$C$4=2,PassingPointRel!P5-PassingPointRel!Q5>2),AND(SetUp!$C$4=2,PassingPointRel!Q5-PassingPointRel!P5>2)),1,0) -> 0 | AX5: =IF(OR(AND(SetUp!$C$4=3,PassingPointRel!P5-PassingPointRel!Q5>2),AND(SetUp!$C$4=3,PassingPointRel!P5-PassingPointRel!R5>2),AND(SetUp!$C$4=3,PassingPointRel!Q5-PassingPointRel!P5>2),AND(SetUp!$C$4=3,PassingPointRel!Q5-PassingPointRel!R5>2),AND(SetUp!$C$4=3,PassingPointRel!R5-PassingPointRel!P5>2),AND(SetUp!$C$4=3,PassingPointRel!R5-PassingPointRel!Q5>2)),1,0) -> 1 | AY5: =IF(OR(AND(SetUp!$C$2=9,SetUp!$C$4=2,PassingPointRel!D5<70,P5>3,Q5>3),AND(SetUp!$C$2=9,SetUp!$C$4=2,PassingPointRel!D5<70,P5>3,R5>3),AND(SetUp!$C$2=9,SetUp!$C$4=2,PassingPointRel!D5<70,Q5>3,R5>3),AND(SetUp!$C$2=3,SetUp!$C$4=2,PassingPointRel!D5<70,P5>1,Q5>1),AND(SetUp!$C$2=3,SetUp!$C$4=2,PassingPointRel!D5<70,P5>1,R5>1),AND(SetUp!$C$2=3,SetUp!$C$4=2,PassingPointRel!D5<70,Q5>1,R5>1)),1,0) -> 0 | AZ5: =IF(OR(AND(SetUp!$C$2=9,SetUp!$C$4=3,PassingPointRel!D5<70,P5>3,Q5>3),AND(SetUp!$C$2=9,SetUp!$C$4=3,PassingPointRel!D5<70,P5>3,R5>3),AND(SetUp!$C$2=9,SetUp!$C$4=3,PassingPointRel!D5<70,Q5>3,R5>3),AND(SetUp!$C$2=3,SetUp!$C$4=3,PassingPointRel!D5<70,P5>1,Q5>1),AND(SetUp!$C$2=3,SetUp!$C$4=3,PassingPointRel!D5<70,P5>1,R5>1),AND(SetUp!$C$2=3,SetUp!$C$4=3,PassingPointRel!D5<70,Q5>1,R5>1)),1,0) -> 0 | BA5: =IF(OR(AND(SetUp!$C$2=9,SetUp!$C$4=2,PassingPointRel!P5>6,PassingPointRel!Q5<7,AND(SetUp!$C$2=9,SetUp!$C$4=2,PassingPointRel!P5<7,PassingPointRel!Q5>6)),AND(SetUp!$C$2=9,SetUp!$C$4=2,AND(PassingPointRel!P5<7,PassingPointRel!P5>3,OR(PassingPointRel!Q5>6,PassingPointRel!Q5<4))),AND(SetUp!$C$2=9,SetUp!$C$4=2,AND(PassingPointRel!Q5<7,PassingPointRel!Q5>3,OR(PassingPointRel!P5>6,PassingPointRel!P5<4))),AND(SetUp!$C$2=9,SetUp!$C$4=2,AND(SetUp!$C$2=9,SetUp!$C$4=2,PassingPointRel!P5<4,PassingPointRel!Q5>3),AND(SetUp!$C$2=9,SetUp!$C$4=2,PassingPointRel!P5>3,PassingPointRel!Q5<4)),AND(SetUp!$C$2=3,SetUp!$C$4=2,PassingPointRel!P5>2,PassingPointRel!Q5<3),AND(SetUp!$C$2=3,SetUp!$C$4=2,PassingPointRel!P5<3,PassingPointRel!Q5>2),AND(SetUp!$C$2=3,SetUp!$C$4=2,PassingPointRel!P5=2,OR(PassingPointRel!Q5>2,PassingPointRel!Q5<2)),AND(SetUp!$C$2=3,SetUp!$C$4=2,PassingPointRel!Q5=2,OR(PassingPointRel!P5>2,PassingPointRel!P5<2)),AND(SetUp!$C$2=3,SetUp!$C$4=2,PassingPointRel!P5<2,PassingPointRel!Q5>1),AND(SetUp!$C$2=3,SetUp!$C$4=2,PassingPointRel!P5>1,PassingPointRel!Q5<2)),1,0) -> 0 | BB5: =IF(OR(AND(SetUp!$C$2=9,SetUp!$C$4=3,PassingPointRel!P5>6,PassingPointRel!Q5<7,PassingPointRel!R5<7),AND(SetUp!$C$2=9,SetUp!$C$4=3,PassingPointRel!P5<7,PassingPointRel!Q5>6,PassingPointRel!R5<7),AND(SetUp!$C$2=9,SetUp!$C$4=3,PassingPointRel!P5<7,PassingPointRel!Q5<7,PassingPointRel!R5>6),AND(SetUp!$C$2=9,SetUp!$C$4=3,AND(PassingPointRel!P5<7,PassingPointRel!P5>3,OR(PassingPointRel!Q5>6,PassingPointRel!Q5<4), OR(PassingPointRel!R5>6,PassingPointRel!R5<4))),AND(SetUp!$C$2=9,SetUp!$C$4=3,AND(PassingPointRel!Q5<7,PassingPointRel!Q5>3,OR(PassingPointRel!P5>6,PassingPointRel!P5<4), OR(PassingPointRel!R5>6,PassingPointRel!R5<4))),AND(SetUp!$C$2=9,SetUp!$C$4=3,AND(PassingPointRel!R5<7,PassingPointRel!R5>3,OR(PassingPointRel!P5>6,PassingPointRel!P5<4), OR(PassingPointRel!Q5>6,PassingPointRel!Q5<4))),AND(SetUp!$C$2=9,SetUp!$C$4=3,PassingPointRel!P5<4,PassingPointRel!Q5>3,PassingPointRel!R5>3),AND(SetUp!$C$2=9,SetUp!$C$4=3,PassingPointRel!P5>3,PassingPointRel!Q5<4,PassingPointRel!R5>3),AND(SetUp!$C$2=9,SetUp!$C$4=3,PassingPointRel!P5>3,PassingPointRel!Q5>3,PassingPointRel!R5<4),AND(SetUp!$C$2=3,SetUp!$C$4=3,PassingPointRel!P5>2,PassingPointRel!Q5<3,PassingPointRel!R5<3),AND(SetUp!$C$2=3,SetUp!$C$4=3,PassingPointRel!P5<3,PassingPointRel!Q5>2,PassingPointRel!R5<3),AND(SetUp!$C$2=3,SetUp!$C$4=3,PassingPointRel!P5<3,PassingPointRel!Q5<3,PassingPointRel!R5>2), AND(SetUp!$C$2=3,SetUp!$C$4=3,PassingPointRel!P5=2,OR(PassingPointRel!Q5>2,PassingPointRel!Q5<2),OR(PassingPointRel!R5>2,PassingPointRel!R5<2)),AND(SetUp!$C$2=3,SetUp!$C$4=3,PassingPointRel!Q5=2,OR(PassingPointRel!P5>2,PassingPointRel!P5<2),OR(PassingPointRel!R5>2,PassingPointRel!R5<2)),AND(SetUp!$C$2=3,SetUp!$C$4=3,PassingPointRel!R5=2,OR(PassingPointRel!P5>2,PassingPointRel!P5<2),OR(PassingPointRel!Q5>2,PassingPointRel!Q5<2)),AND(SetUp!$C$2=3,SetUp!$C$4=3,PassingPointRel!P5<2,PassingPointRel!Q5>1,PassingPointRel!R5>1),AND(SetUp!$C$2=3,SetUp!$C$4=3,PassingPointRel!P5>1,PassingPointRel!Q5<2,PassingPointRel!R5>1),AND(SetUp!$C$2=3,SetUp!$C$4=3,PassingPointRel!P5>1,PassingPointRel!Q5>1,PassingPointRel!R5<2)),1,0) -> 0
A6: 2 | B6: =IF(ROW()-4>Approval!$E$9,"",VLOOKUP($A6,PPRankTable,6,FALSE)) -> xxxxxxxx (F4) | C6: =IF(ROW()-4>Approval!$E$9,"",VLOOKUP($A6,PPRankTable,4,FALSE)) -> 2 | D6: =IF(ROW()-4>Approval!$E$9,"",VLOOKUP($A6,PPRankTable,5,FALSE)) -> 69 | E6: =IF(ROW()-4>Approval!$E$9,"",VLOOKUP($A6,PPRankTable,3,FALSE)) -> 15.33333333 | F6: =IF(LEN(B6)<4,0,IF(OR(SUM(G6:N6)=COUNT(G6:N6),SUM(G6:N6)=0),1,0)) -> 0 | G6: =IF(OR(SetUp!$C$4<P$4,P6="x"),"x",IF(NOT(P6<P$2),1,0)) -> 0 | H6: =IF(OR(SetUp!$C$4<Q$4,Q6="x"),"x",IF(NOT(Q6<Q$2),1,0)) -> 1 | I6: =IF(OR(SetUp!$C$4<R$4,R6="x"),"x",IF(NOT(R6<R$2),1,0)) -> 1 | J6: =IF(OR(SetUp!$C$4<S$4,S6="x"),"x",IF(NOT(S6<S$2),1,0)) -> x | K6: =IF(OR(SetUp!$C$4<T$4,T6="x"),"x",IF(NOT(T6<T$2),1,0)) -> x | L6: =IF(OR(SetUp!$C$4<U$4,U6="x"),"x",IF(NOT(U6<U$2),1,0)) -> x | M6: =IF(OR(SetUp!$C$4<V$4,V6="x"),"x",IF(NOT(V6<V$2),1,0)) -> x | N6: =IF(OR(SetUp!$C$4<W$4,W6="x"),"x",IF(NOT(W6<W$2),1,0)) -> x | O6: =IF(ROW()-4>Approval!$E$9,"",IF(D6<70,"",IF(VLOOKUP($A6,MandPF!$A$6:$B$2006,2,FALSE)="Fail","X",""))) ->  | P6: =IF(ROW()-4>Approval!$E$9,"",VLOOKUP($A6,PPRankTable,P$4+6,FALSE)) -> 4 | Q6: =IF(ROW()-4>Approval!$E$9,"",VLOOKUP($A6,PPRankTable,Q$4+6,FALSE)) -> 21 | R6: =IF(ROW()-4>Approval!$E$9,"",VLOOKUP($A6,PPRankTable,R$4+6,FALSE)) -> 21 | S6: =IF(ROW()-4>Approval!$E$9,"",VLOOKUP($A6,PPRankTable,S$4+6,FALSE)) ->  | T6: =IF(ROW()-4>Approval!$E$9,"",VLOOKUP($A6,PPRankTable,T$4+6,FALSE)) ->  | U6: =IF(ROW()-4>Approval!$E$9,"",VLOOKUP($A6,PPRankTable,U$4+6,FALSE)) ->  | V6: =IF(ROW()-4>Approval!$E$9,"",VLOOKUP($A6,PPRankTable,V$4+6,FALSE)) ->  | W6: =IF(ROW()-4>Approval!$E$9,"",VLOOKUP($A6,PPRankTable,W$4+6,FALSE)) ->  | X6: =IF(ROW()-4>Approval!$E$9,"",VLOOKUP($A6,PPRankTable,X$4+14,FALSE)) -> 10 | Y6: =IF(ROW()-4>Approval!$E$9,"",VLOOKUP($A6,PPRankTable,Y$4+14,FALSE)) -> 11 | Z6: =IF(ROW()-4>Approval!$E$9,"",VLOOKUP($A6,PPRankTable,Z$4+14,FALSE)) -> 12 | AA6: =IF(ROW()-4>Approval!$E$9,"",VLOOKUP($A6,PPRankTable,AA$4+14,FALSE)) -> 13 | AB6: =IF(ROW()-4>Approval!$E$9,"",VLOOKUP($A6,PPRankTable,AB$4+14,FALSE)) ->  | AC6: =IF(ROW()-4>Approval!$E$9,"",VLOOKUP($A6,PPRankTable,AC$4+14,FALSE)) ->  | AD6: =IF(ROW()-4>Approval!$E$9,"",VLOOKUP($A6,PPRankTable,AD$4+14,FALSE)) ->  | AE6: =IF(ROW()-4>Approval!$E$9,"",VLOOKUP($A6,PPRankTable,AE$4+14,FALSE)) ->  | AF6: =IF(ROW()-4>Approval!$E$9,"",VLOOKUP($A6,PPRankTable,AF$4+14,FALSE)) ->  | AG6: =IF(ROW()-4>Approval!$E$9,"",VLOOKUP($A6,PPRankTable,AG$4+14,FALSE)) ->  | AH6: =IF(ROW()-4>Approval!$E$9,"",VLOOKUP($A6,PPRankTable,AH$4+14,FALSE)) ->  | AI6: =IF(ROW()-4>Approval!$E$9,"",VLOOKUP($A6,PPRankTable,AI$4+14,FALSE)) ->  | AJ6: =IF(ROW()-4>Approval!$E$9,"",VLOOKUP($A6,PPRankTable,AJ$4+14,FALSE)) ->  | AK6: =IF(ROW()-4>Approval!$E$9,"",VLOOKUP($A6,PPRankTable,AK$4+14,FALSE)) ->  | AL6: =IF(ROW()-4>Approval!$E$9,"",VLOOKUP($A6,PPRankTable,AL$4+14,FALSE)) ->  | AM6: =IF(ROW()-4>Approval!$E$9,"",VLOOKUP($A6,PPRankTable,AM$4+14,FALSE)) ->  | AN6: =IF(ROW()-4>Approval!$E$9,"",VLOOKUP($A6,PPRankTable,AN$4+14,FALSE)) ->  | AO6: =IF(ROW()-4>Approval!$E$9,"",VLOOKUP($A6,PPRankTable,AO$4+14,FALSE)) ->  | AP6: =IF(ROW()-4>Approval!$E$9,"",VLOOKUP($A6,PPRankTable,AP$4+14,FALSE)) ->  | AQ6: =IF(ROW()-4>Approval!$E$9,"",VLOOKUP($A6,PPRankTable,AQ$4+14,FALSE)) ->  | AR6: =IF(ROW()-4>Approval!$E$9,"",VLOOKUP($A6,PPRankTable,AR$4+14,FALSE)) ->  | AS6: =IF(ROW()-4>Approval!$E$9,"",VLOOKUP($A6,PPRankTable,AS$4+14,FALSE)) ->  | AT6: =IF(ROW()-4>Approval!$E$9,"",VLOOKUP($A6,PPRankTable,AT$4+14,FALSE)) ->  | AU6: =IF(ROW()-4>Approval!$E$9,"",VLOOKUP($A6,PPRankTable,AU$4+14,FALSE)) ->  | AW6: =IF(OR(AND(SetUp!$C$4=2,PassingPointRel!P6-PassingPointRel!Q6>2),AND(SetUp!$C$4=2,PassingPointRel!Q6-PassingPointRel!P6>2)),1,0) -> 0 | AX6: =IF(OR(AND(SetUp!$C$4=3,PassingPointRel!P6-PassingPointRel!Q6>2),AND(SetUp!$C$4=3,PassingPointRel!P6-PassingPointRel!R6>2),AND(SetUp!$C$4=3,PassingPointRel!Q6-PassingPointRel!P6>2),AND(SetUp!$C$4=3,PassingPointRel!Q6-PassingPointRel!R6>2),AND(SetUp!$C$4=3,PassingPointRel!R6-PassingPointRel!P6>2),AND(SetUp!$C$4=3,PassingPointRel!R6-PassingPointRel!Q6>2)),1,0) -> 1 | AY6: =IF(OR(AND(SetUp!$C$2=9,SetUp!$C$4=2,PassingPointRel!D6<70,P6>3,Q6>3),AND(SetUp!$C$2=9,SetUp!$C$4=2,PassingPointRel!D6<70,P6>3,R6>3),AND(SetUp!$C$2=9,SetUp!$C$4=2,PassingPointRel!D6<70,Q6>3,R6>3),AND(SetUp!$C$2=3,SetUp!$C$4=2,PassingPointRel!D6<70,P6>1,Q6>1),AND(SetUp!$C$2=3,SetUp!$C$4=2,PassingPointRel!D6<70,P6>1,R6>1),AND(SetUp!$C$2=3,SetUp!$C$4=2,PassingPointRel!D6<70,Q6>1,R6>1)),1,0) -> 0 | AZ6: =IF(OR(AND(SetUp!$C$2=9,SetUp!$C$4=3,PassingPointRel!D6<70,P6>3,Q6>3),AND(SetUp!$C$2=9,SetUp!$C$4=3,PassingPointRel!D6<70,P6>3,R6>3),AND(SetUp!$C$2=9,SetUp!$C$4=3,PassingPointRel!D6<70,Q6>3,R6>3),AND(SetUp!$C$2=3,SetUp!$C$4=3,PassingPointRel!D6<70,P6>1,Q6>1),AND(SetUp!$C$2=3,SetUp!$C$4=3,PassingPointRel!D6<70,P6>1,R6>1),AND(SetUp!$C$2=3,SetUp!$C$4=3,PassingPointRel!D6<70,Q6>1,R6>1)),1,0) -> 1 | BA6: =IF(OR(AND(SetUp!$C$2=9,SetUp!$C$4=2,PassingPointRel!P6>6,PassingPointRel!Q6<7,AND(SetUp!$C$2=9,SetUp!$C$4=2,PassingPointRel!P6<7,PassingPointRel!Q6>6)),AND(SetUp!$C$2=9,SetUp!$C$4=2,AND(PassingPointRel!P6<7,PassingPointRel!P6>3,OR(PassingPointRel!Q6>6,PassingPointRel!Q6<4))),AND(SetUp!$C$2=9,SetUp!$C$4=2,AND(PassingPointRel!Q6<7,PassingPointRel!Q6>3,OR(PassingPointRel!P6>6,PassingPointRel!P6<4))),AND(SetUp!$C$2=9,SetUp!$C$4=2,AND(SetUp!$C$2=9,SetUp!$C$4=2,PassingPointRel!P6<4,PassingPointRel!Q6>3),AND(SetUp!$C$2=9,SetUp!$C$4=2,PassingPointRel!P6>3,PassingPointRel!Q6<4)),AND(SetUp!$C$2=3,SetUp!$C$4=2,PassingPointRel!P6>2,PassingPointRel!Q6<3),AND(SetUp!$C$2=3,SetUp!$C$4=2,PassingPointRel!P6<3,PassingPointRel!Q6>2),AND(SetUp!$C$2=3,SetUp!$C$4=2,PassingPointRel!P6=2,OR(PassingPointRel!Q6>2,PassingPointRel!Q6<2)),AND(SetUp!$C$2=3,SetUp!$C$4=2,PassingPointRel!Q6=2,OR(PassingPointRel!P6>2,PassingPointRel!P6<2)),AND(SetUp!$C$2=3,SetUp!$C$4=2,PassingPointRel!P6<2,PassingPointRel!Q6>1),AND(SetUp!$C$2=3,SetUp!$C$4=2,PassingPointRel!P6>1,PassingPointRel!Q6<2)),1,0) -> 0 | BB6: =IF(OR(AND(SetUp!$C$2=9,SetUp!$C$4=3,PassingPointRel!P6>6,PassingPointRel!Q6<7,PassingPointRel!R6<7),AND(SetUp!$C$2=9,SetUp!$C$4=3,PassingPointRel!P6<7,PassingPointRel!Q6>6,PassingPointRel!R6<7),AND(SetUp!$C$2=9,SetUp!$C$4=3,PassingPointRel!P6<7,PassingPointRel!Q6<7,PassingPointRel!R6>6),AND(SetUp!$C$2=9,SetUp!$C$4=3,AND(PassingPointRel!P6<7,PassingPointRel!P6>3,OR(PassingPointRel!Q6>6,PassingPointRel!Q6<4), OR(PassingPointRel!R6>6,PassingPointRel!R6<4))),AND(SetUp!$C$2=9,SetUp!$C$4=3,AND(PassingPointRel!Q6<7,PassingPointRel!Q6>3,OR(PassingPointRel!P6>6,PassingPointRel!P6<4), OR(PassingPointRel!R6>6,PassingPointRel!R6<4))),AND(SetUp!$C$2=9,SetUp!$C$4=3,AND(PassingPointRel!R6<7,PassingPointRel!R6>3,OR(PassingPointRel!P6>6,PassingPointRel!P6<4), OR(PassingPointRel!Q6>6,PassingPointRel!Q6<4))),AND(SetUp!$C$2=9,SetUp!$C$4=3,PassingPointRel!P6<4,PassingPointRel!Q6>3,PassingPointRel!R6>3),AND(SetUp!$C$2=9,SetUp!$C$4=3,PassingPointRel!P6>3,PassingPointRel!Q6<4,PassingPointRel!R6>3),AND(SetUp!$C$2=9,SetUp!$C$4=3,PassingPointRel!P6>3,PassingPointRel!Q6>3,PassingPointRel!R6<4),AND(SetUp!$C$2=3,SetUp!$C$4=3,PassingPointRel!P6>2,PassingPointRel!Q6<3,PassingPointRel!R6<3),AND(SetUp!$C$2=3,SetUp!$C$4=3,PassingPointRel!P6<3,PassingPointRel!Q6>2,PassingPointRel!R6<3),AND(SetUp!$C$2=3,SetUp!$C$4=3,PassingPointRel!P6<3,PassingPointRel!Q6<3,PassingPointRel!R6>2), AND(SetUp!$C$2=3,SetUp!$C$4=3,PassingPointRel!P6=2,OR(PassingPointRel!Q6>2,PassingPointRel!Q6<2),OR(PassingPointRel!R6>2,PassingPointRel!R6<2)),AND(SetUp!$C$2=3,SetUp!$C$4=3,PassingPointRel!Q6=2,OR(PassingPointRel!P6>2,PassingPointRel!P6<2),OR(PassingPointRel!R6>2,PassingPointRel!R6<2)),AND(SetUp!$C$2=3,SetUp!$C$4=3,PassingPointRel!R6=2,OR(PassingPointRel!P6>2,PassingPointRel!P6<2),OR(PassingPointRel!Q6>2,PassingPointRel!Q6<2)),AND(SetUp!$C$2=3,SetUp!$C$4=3,PassingPointRel!P6<2,PassingPointRel!Q6>1,PassingPointRel!R6>1),AND(SetUp!$C$2=3,SetUp!$C$4=3,PassingPointRel!P6>1,PassingPointRel!Q6<2,PassingPointRel!R6>1),AND(SetUp!$C$2=3,SetUp!$C$4=3,PassingPointRel!P6>1,PassingPointRel!Q6>1,PassingPointRel!R6<2)),1,0) -> 1
A7: 3 | B7: =IF(ROW()-4>Approval!$E$9,"",VLOOKUP($A7,PPRankTable,6,FALSE)) -> xxxxxxxx (F2) | C7: =IF(ROW()-4>Approval!$E$9,"",VLOOKUP($A7,PPRankTable,4,FALSE)) -> 3 | D7: =IF(ROW()-4>Approval!$E$9,"",VLOOKUP($A7,PPRankTable,5,FALSE)) -> 66 | E7: =IF(ROW()-4>Approval!$E$9,"",VLOOKUP($A7,PPRankTable,3,FALSE)) -> 13.33333333 | F7: 1 | G7: =IF(OR(SetUp!$C$4<P$4,P7="x"),"x",IF(NOT(P7<P$2),1,0)) -> 0 | H7: =IF(OR(SetUp!$C$4<Q$4,Q7="x"),"x",IF(NOT(Q7<Q$2),1,0)) -> 0 | I7: =IF(OR(SetUp!$C$4<R$4,R7="x"),"x",IF(NOT(R7<R$2),1,0)) -> 0 | J7: =IF(OR(SetUp!$C$4<S$4,S7="x"),"x",IF(NOT(S7<S$2),1,0)) -> x | K7: =IF(OR(SetUp!$C$4<T$4,T7="x"),"x",IF(NOT(T7<T$2),1,0)) -> x | L7: =IF(OR(SetUp!$C$4<U$4,U7="x"),"x",IF(NOT(U7<U$2),1,0)) -> x | M7: =IF(OR(SetUp!$C$4<V$4,V7="x"),"x",IF(NOT(V7<V$2),1,0)) -> x | N7: =IF(OR(SetUp!$C$4<W$4,W7="x"),"x",IF(NOT(W7<W$2),1,0)) -> x | O7: =IF(ROW()-4>Approval!$E$9,"",IF(D7<70,"",IF(VLOOKUP($A7,MandPF!$A$6:$B$2006,2,FALSE)="Fail","X",""))) ->  | P7: =IF(ROW()-4>Approval!$E$9,"",VLOOKUP($A7,PPRankTable,P$4+6,FALSE)) -> 14 | Q7: =IF(ROW()-4>Approval!$E$9,"",VLOOKUP($A7,PPRankTable,Q$4+6,FALSE)) -> 11 | R7: =IF(ROW()-4>Approval!$E$9,"",VLOOKUP($A7,PPRankTable,R$4+6,FALSE)) -> 15 | S7: =IF(ROW()-4>Approval!$E$9,"",VLOOKUP($A7,PPRankTable,S$4+6,FALSE)) ->  | T7: =IF(ROW()-4>Approval!$E$9,"",VLOOKUP($A7,PPRankTable,T$4+6,FALSE)) ->  | U7: =IF(ROW()-4>Approval!$E$9,"",VLOOKUP($A7,PPRankTable,U$4+6,FALSE)) ->  | V7: =IF(ROW()-4>Approval!$E$9,"",VLOOKUP($A7,PPRankTable,V$4+6,FALSE)) ->  | W7: =IF(ROW()-4>Approval!$E$9,"",VLOOKUP($A7,PPRankTable,W$4+6,FALSE)) ->  | X7: =IF(ROW()-4>Approval!$E$9,"",VLOOKUP($A7,PPRankTable,X$4+14,FALSE)) -> 10 | Y7: =IF(ROW()-4>Approval!$E$9,"",VLOOKUP($A7,PPRankTable,Y$4+14,FALSE)) -> 11 | Z7: =IF(ROW()-4>Approval!$E$9,"",VLOOKUP($A7,PPRankTable,Z$4+14,FALSE)) -> 9 | AA7: =IF(ROW()-4>Approval!$E$9,"",VLOOKUP($A7,PPRankTable,AA$4+14,FALSE)) -> 10 | AB7: =IF(ROW()-4>Approval!$E$9,"",VLOOKUP($A7,PPRankTable,AB$4+14,FALSE)) ->  | AC7: =IF(ROW()-4>Approval!$E$9,"",VLOOKUP($A7,PPRankTable,AC$4+14,FALSE)) ->  | AD7: =IF(ROW()-4>Approval!$E$9,"",VLOOKUP($A7,PPRankTable,AD$4+14,FALSE)) ->  | AE7: =IF(ROW()-4>Approval!$E$9,"",VLOOKUP($A7,PPRankTable,AE$4+14,FALSE)) ->  | AF7: =IF(ROW()-4>Approval!$E$9,"",VLOOKUP($A7,PPRankTable,AF$4+14,FALSE)) ->  | AG7: =IF(ROW()-4>Approval!$E$9,"",VLOOKUP($A7,PPRankTable,AG$4+14,FALSE)) ->  | AH7: =IF(ROW()-4>Approval!$E$9,"",VLOOKUP($A7,PPRankTable,AH$4+14,FALSE)) ->  | AI7: =IF(ROW()-4>Approval!$E$9,"",VLOOKUP($A7,PPRankTable,AI$4+14,FALSE)) ->  | AJ7: =IF(ROW()-4>Approval!$E$9,"",VLOOKUP($A7,PPRankTable,AJ$4+14,FALSE)) ->  | AK7: =IF(ROW()-4>Approval!$E$9,"",VLOOKUP($A7,PPRankTable,AK$4+14,FALSE)) ->  | AL7: =IF(ROW()-4>Approval!$E$9,"",VLOOKUP($A7,PPRankTable,AL$4+14,FALSE)) ->  | AM7: =IF(ROW()-4>Approval!$E$9,"",VLOOKUP($A7,PPRankTable,AM$4+14,FALSE)) ->  | AN7: =IF(ROW()-4>Approval!$E$9,"",VLOOKUP($A7,PPRankTable,AN$4+14,FALSE)) ->  | AO7: =IF(ROW()-4>Approval!$E$9,"",VLOOKUP($A7,PPRankTable,AO$4+14,FALSE)) ->  | AP7: =IF(ROW()-4>Approval!$E$9,"",VLOOKUP($A7,PPRankTable,AP$4+14,FALSE)) ->  | AQ7: =IF(ROW()-4>Approval!$E$9,"",VLOOKUP($A7,PPRankTable,AQ$4+14,FALSE)) ->  | AR7: =IF(ROW()-4>Approval!$E$9,"",VLOOKUP($A7,PPRankTable,AR$4+14,FALSE)) ->  | AS7: =IF(ROW()-4>Approval!$E$9,"",VLOOKUP($A7,PPRankTable,AS$4+14,FALSE)) ->  | AT7: =IF(ROW()-4>Approval!$E$9,"",VLOOKUP($A7,PPRankTable,AT$4+14,FALSE)) ->  | AU7: =IF(ROW()-4>Approval!$E$9,"",VLOOKUP($A7,PPRankTable,AU$4+14,FALSE)) ->  | AW7: =IF(OR(AND(SetUp!$C$4=2,PassingPointRel!P7-PassingPointRel!Q7>2),AND(SetUp!$C$4=2,PassingPointRel!Q7-PassingPointRel!P7>2)),1,0) -> 0 | AX7: =IF(OR(AND(SetUp!$C$4=3,PassingPointRel!P7-PassingPointRel!Q7>2),AND(SetUp!$C$4=3,PassingPointRel!P7-PassingPointRel!R7>2),AND(SetUp!$C$4=3,PassingPointRel!Q7-PassingPointRel!P7>2),AND(SetUp!$C$4=3,PassingPointRel!Q7-PassingPointRel!R7>2),AND(SetUp!$C$4=3,PassingPointRel!R7-PassingPointRel!P7>2),AND(SetUp!$C$4=3,PassingPointRel!R7-PassingPointRel!Q7>2)),1,0) -> 1 | AY7: =IF(OR(AND(SetUp!$C$2=9,SetUp!$C$4=2,PassingPointRel!D7<70,P7>3,Q7>3),AND(SetUp!$C$2=9,SetUp!$C$4=2,PassingPointRel!D7<70,P7>3,R7>3),AND(SetUp!$C$2=9,SetUp!$C$4=2,PassingPointRel!D7<70,Q7>3,R7>3),AND(SetUp!$C$2=3,SetUp!$C$4=2,PassingPointRel!D7<70,P7>1,Q7>1),AND(SetUp!$C$2=3,SetUp!$C$4=2,PassingPointRel!D7<70,P7>1,R7>1),AND(SetUp!$C$2=3,SetUp!$C$4=2,PassingPointRel!D7<70,Q7>1,R7>1)),1,0) -> 0 | AZ7: =IF(OR(AND(SetUp!$C$2=9,SetUp!$C$4=3,PassingPointRel!D7<70,P7>3,Q7>3),AND(SetUp!$C$2=9,SetUp!$C$4=3,PassingPointRel!D7<70,P7>3,R7>3),AND(SetUp!$C$2=9,SetUp!$C$4=3,PassingPointRel!D7<70,Q7>3,R7>3),AND(SetUp!$C$2=3,SetUp!$C$4=3,PassingPointRel!D7<70,P7>1,Q7>1),AND(SetUp!$C$2=3,SetUp!$C$4=3,PassingPointRel!D7<70,P7>1,R7>1),AND(SetUp!$C$2=3,SetUp!$C$4=3,PassingPointRel!D7<70,Q7>1,R7>1)),1,0) -> 1 | BA7: =IF(OR(AND(SetUp!$C$2=9,SetUp!$C$4=2,PassingPointRel!P7>6,PassingPointRel!Q7<7,AND(SetUp!$C$2=9,SetUp!$C$4=2,PassingPointRel!P7<7,PassingPointRel!Q7>6)),AND(SetUp!$C$2=9,SetUp!$C$4=2,AND(PassingPointRel!P7<7,PassingPointRel!P7>3,OR(PassingPointRel!Q7>6,PassingPointRel!Q7<4))),AND(SetUp!$C$2=9,SetUp!$C$4=2,AND(PassingPointRel!Q7<7,PassingPointRel!Q7>3,OR(PassingPointRel!P7>6,PassingPointRel!P7<4))),AND(SetUp!$C$2=9,SetUp!$C$4=2,AND(SetUp!$C$2=9,SetUp!$C$4=2,PassingPointRel!P7<4,PassingPointRel!Q7>3),AND(SetUp!$C$2=9,SetUp!$C$4=2,PassingPointRel!P7>3,PassingPointRel!Q7<4)),AND(SetUp!$C$2=3,SetUp!$C$4=2,PassingPointRel!P7>2,PassingPointRel!Q7<3),AND(SetUp!$C$2=3,SetUp!$C$4=2,PassingPointRel!P7<3,PassingPointRel!Q7>2),AND(SetUp!$C$2=3,SetUp!$C$4=2,PassingPointRel!P7=2,OR(PassingPointRel!Q7>2,PassingPointRel!Q7<2)),AND(SetUp!$C$2=3,SetUp!$C$4=2,PassingPointRel!Q7=2,OR(PassingPointRel!P7>2,PassingPointRel!P7<2)),AND(SetUp!$C$2=3,SetUp!$C$4=2,PassingPointRel!P7<2,PassingPointRel!Q7>1),AND(SetUp!$C$2=3,SetUp!$C$4=2,PassingPointRel!P7>1,PassingPointRel!Q7<2)),1,0) -> 0 | BB7: =IF(OR(AND(SetUp!$C$2=9,SetUp!$C$4=3,PassingPointRel!P7>6,PassingPointRel!Q7<7,PassingPointRel!R7<7),AND(SetUp!$C$2=9,SetUp!$C$4=3,PassingPointRel!P7<7,PassingPointRel!Q7>6,PassingPointRel!R7<7),AND(SetUp!$C$2=9,SetUp!$C$4=3,PassingPointRel!P7<7,PassingPointRel!Q7<7,PassingPointRel!R7>6),AND(SetUp!$C$2=9,SetUp!$C$4=3,AND(PassingPointRel!P7<7,PassingPointRel!P7>3,OR(PassingPointRel!Q7>6,PassingPointRel!Q7<4), OR(PassingPointRel!R7>6,PassingPointRel!R7<4))),AND(SetUp!$C$2=9,SetUp!$C$4=3,AND(PassingPointRel!Q7<7,PassingPointRel!Q7>3,OR(PassingPointRel!P7>6,PassingPointRel!P7<4), OR(PassingPointRel!R7>6,PassingPointRel!R7<4))),AND(SetUp!$C$2=9,SetUp!$C$4=3,AND(PassingPointRel!R7<7,PassingPointRel!R7>3,OR(PassingPointRel!P7>6,PassingPointRel!P7<4), OR(PassingPointRel!Q7>6,PassingPointRel!Q7<4))),AND(SetUp!$C$2=9,SetUp!$C$4=3,PassingPointRel!P7<4,PassingPointRel!Q7>3,PassingPointRel!R7>3),AND(SetUp!$C$2=9,SetUp!$C$4=3,PassingPointRel!P7>3,PassingPointRel!Q7<4,PassingPointRel!R7>3),AND(SetUp!$C$2=9,SetUp!$C$4=3,PassingPointRel!P7>3,PassingPointRel!Q7>3,PassingPointRel!R7<4),AND(SetUp!$C$2=3,SetUp!$C$4=3,PassingPointRel!P7>2,PassingPointRel!Q7<3,PassingPointRel!R7<3),AND(SetUp!$C$2=3,SetUp!$C$4=3,PassingPointRel!P7<3,PassingPointRel!Q7>2,PassingPointRel!R7<3),AND(SetUp!$C$2=3,SetUp!$C$4=3,PassingPointRel!P7<3,PassingPointRel!Q7<3,PassingPointRel!R7>2), AND(SetUp!$C$2=3,SetUp!$C$4=3,PassingPointRel!P7=2,OR(PassingPointRel!Q7>2,PassingPointRel!Q7<2),OR(PassingPointRel!R7>2,PassingPointRel!R7<2)),AND(SetUp!$C$2=3,SetUp!$C$4=3,PassingPointRel!Q7=2,OR(PassingPointRel!P7>2,PassingPointRel!P7<2),OR(PassingPointRel!R7>2,PassingPointRel!R7<2)),AND(SetUp!$C$2=3,SetUp!$C$4=3,PassingPointRel!R7=2,OR(PassingPointRel!P7>2,PassingPointRel!P7<2),OR(PassingPointRel!Q7>2,PassingPointRel!Q7<2)),AND(SetUp!$C$2=3,SetUp!$C$4=3,PassingPointRel!P7<2,PassingPointRel!Q7>1,PassingPointRel!R7>1),AND(SetUp!$C$2=3,SetUp!$C$4=3,PassingPointRel!P7>1,PassingPointRel!Q7<2,PassingPointRel!R7>1),AND(SetUp!$C$2=3,SetUp!$C$4=3,PassingPointRel!P7>1,PassingPointRel!Q7>1,PassingPointRel!R7<2)),1,0) -> 0
A8: 4 | B8: =IF(ROW()-4>Approval!$E$9,"",VLOOKUP($A8,PPRankTable,6,FALSE)) -> xxxxxxxx (F5) | C8: =IF(ROW()-4>Approval!$E$9,"",VLOOKUP($A8,PPRankTable,4,FALSE)) -> 4 | D8: =IF(ROW()-4>Approval!$E$9,"",VLOOKUP($A8,PPRankTable,5,FALSE)) -> 63.5 | E8: =IF(ROW()-4>Approval!$E$9,"",VLOOKUP($A8,PPRankTable,3,FALSE)) -> 11.66666667 | F8: 1 | G8: =IF(OR(SetUp!$C$4<P$4,P8="x"),"x",IF(NOT(P8<P$2),1,0)) -> 0 | H8: =IF(OR(SetUp!$C$4<Q$4,Q8="x"),"x",IF(NOT(Q8<Q$2),1,0)) -> 0 | I8: =IF(OR(SetUp!$C$4<R$4,R8="x"),"x",IF(NOT(R8<R$2),1,0)) -> 0 | J8: =IF(OR(SetUp!$C$4<S$4,S8="x"),"x",IF(NOT(S8<S$2),1,0)) -> x | K8: =IF(OR(SetUp!$C$4<T$4,T8="x"),"x",IF(NOT(T8<T$2),1,0)) -> x | L8: =IF(OR(SetUp!$C$4<U$4,U8="x"),"x",IF(NOT(U8<U$2),1,0)) -> x | M8: =IF(OR(SetUp!$C$4<V$4,V8="x"),"x",IF(NOT(V8<V$2),1,0)) -> x | N8: =IF(OR(SetUp!$C$4<W$4,W8="x"),"x",IF(NOT(W8<W$2),1,0)) -> x | O8: =IF(ROW()-4>Approval!$E$9,"",IF(D8<70,"",IF(VLOOKUP($A8,MandPF!$A$6:$B$2006,2,FALSE)="Fail","X",""))) ->  | P8: =IF(ROW()-4>Approval!$E$9,"",VLOOKUP($A8,PPRankTable,P$4+6,FALSE)) -> 9 | Q8: =IF(ROW()-4>Approval!$E$9,"",VLOOKUP($A8,PPRankTable,Q$4+6,FALSE)) -> 13 | R8: =IF(ROW()-4>Approval!$E$9,"",VLOOKUP($A8,PPRankTable,R$4+6,FALSE)) -> 13 | S8: =IF(ROW()-4>Approval!$E$9,"",VLOOKUP($A8,PPRankTable,S$4+6,FALSE)) ->  | T8: =IF(ROW()-4>Approval!$E$9,"",VLOOKUP($A8,PPRankTable,T$4+6,FALSE)) ->  | U8: =IF(ROW()-4>Approval!$E$9,"",VLOOKUP($A8,PPRankTable,U$4+6,FALSE)) ->  | V8: =IF(ROW()-4>Approval!$E$9,"",VLOOKUP($A8,PPRankTable,V$4+6,FALSE)) ->  | W8: =IF(ROW()-4>Approval!$E$9,"",VLOOKUP($A8,PPRankTable,W$4+6,FALSE)) ->  | X8: =IF(ROW()-4>Approval!$E$9,"",VLOOKUP($A8,PPRankTable,X$4+14,FALSE)) -> 12 | Y8: =IF(ROW()-4>Approval!$E$9,"",VLOOKUP($A8,PPRankTable,Y$4+14,FALSE)) -> 11 | Z8: =IF(ROW()-4>Approval!$E$9,"",VLOOKUP($A8,PPRankTable,Z$4+14,FALSE)) -> 7 | AA8: =IF(ROW()-4>Approval!$E$9,"",VLOOKUP($A8,PPRankTable,AA$4+14,FALSE)) -> 5 | AB8: =IF(ROW()-4>Approval!$E$9,"",VLOOKUP($A8,PPRankTable,AB$4+14,FALSE)) ->  | AC8: =IF(ROW()-4>Approval!$E$9,"",VLOOKUP($A8,PPRankTable,AC$4+14,FALSE)) ->  | AD8: =IF(ROW()-4>Approval!$E$9,"",VLOOKUP($A8,PPRankTable,AD$4+14,FALSE)) ->  | AE8: =IF(ROW()-4>Approval!$E$9,"",VLOOKUP($A8,PPRankTable,AE$4+14,FALSE)) ->  | AF8: =IF(ROW()-4>Approval!$E$9,"",VLOOKUP($A8,PPRankTable,AF$4+14,FALSE)) ->  | AG8: =IF(ROW()-4>Approval!$E$9,"",VLOOKUP($A8,PPRankTable,AG$4+14,FALSE)) ->  | AH8: =IF(ROW()-4>Approval!$E$9,"",VLOOKUP($A8,PPRankTable,AH$4+14,FALSE)) ->  | AI8: =IF(ROW()-4>Approval!$E$9,"",VLOOKUP($A8,PPRankTable,AI$4+14,FALSE)) ->  | AJ8: =IF(ROW()-4>Approval!$E$9,"",VLOOKUP($A8,PPRankTable,AJ$4+14,FALSE)) ->  | AK8: =IF(ROW()-4>Approval!$E$9,"",VLOOKUP($A8,PPRankTable,AK$4+14,FALSE)) ->  | AL8: =IF(ROW()-4>Approval!$E$9,"",VLOOKUP($A8,PPRankTable,AL$4+14,FALSE)) ->  | AM8: =IF(ROW()-4>Approval!$E$9,"",VLOOKUP($A8,PPRankTable,AM$4+14,FALSE)) ->  | AN8: =IF(ROW()-4>Approval!$E$9,"",VLOOKUP($A8,PPRankTable,AN$4+14,FALSE)) ->  | AO8: =IF(ROW()-4>Approval!$E$9,"",VLOOKUP($A8,PPRankTable,AO$4+14,FALSE)) ->  | AP8: =IF(ROW()-4>Approval!$E$9,"",VLOOKUP($A8,PPRankTable,AP$4+14,FALSE)) ->  | AQ8: =IF(ROW()-4>Approval!$E$9,"",VLOOKUP($A8,PPRankTable,AQ$4+14,FALSE)) ->  | AR8: =IF(ROW()-4>Approval!$E$9,"",VLOOKUP($A8,PPRankTable,AR$4+14,FALSE)) ->  | AS8: =IF(ROW()-4>Approval!$E$9,"",VLOOKUP($A8,PPRankTable,AS$4+14,FALSE)) ->  | AT8: =IF(ROW()-4>Approval!$E$9,"",VLOOKUP($A8,PPRankTable,AT$4+14,FALSE)) ->  | AU8: =IF(ROW()-4>Approval!$E$9,"",VLOOKUP($A8,PPRankTable,AU$4+14,FALSE)) ->  | AW8: =IF(OR(AND(SetUp!$C$4=2,PassingPointRel!P8-PassingPointRel!Q8>2),AND(SetUp!$C$4=2,PassingPointRel!Q8-PassingPointRel!P8>2)),1,0) -> 0 | AX8: =IF(OR(AND(SetUp!$C$4=3,PassingPointRel!P8-PassingPointRel!Q8>2),AND(SetUp!$C$4=3,PassingPointRel!P8-PassingPointRel!R8>2),AND(SetUp!$C$4=3,PassingPointRel!Q8-PassingPointRel!P8>2),AND(SetUp!$C$4=3,PassingPointRel!Q8-PassingPointRel!R8>2),AND(SetUp!$C$4=3,PassingPointRel!R8-PassingPointRel!P8>2),AND(SetUp!$C$4=3,PassingPointRel!R8-PassingPointRel!Q8>2)),1,0) -> 1 | AY8: =IF(OR(AND(SetUp!$C$2=9,SetUp!$C$4=2,PassingPointRel!D8<70,P8>3,Q8>3),AND(SetUp!$C$2=9,SetUp!$C$4=2,PassingPointRel!D8<70,P8>3,R8>3),AND(SetUp!$C$2=9,SetUp!$C$4=2,PassingPointRel!D8<70,Q8>3,R8>3),AND(SetUp!$C$2=3,SetUp!$C$4=2,PassingPointRel!D8<70,P8>1,Q8>1),AND(SetUp!$C$2=3,SetUp!$C$4=2,PassingPointRel!D8<70,P8>1,R8>1),AND(SetUp!$C$2=3,SetUp!$C$4=2,PassingPointRel!D8<70,Q8>1,R8>1)),1,0) -> 0 | AZ8: =IF(OR(AND(SetUp!$C$2=9,SetUp!$C$4=3,PassingPointRel!D8<70,P8>3,Q8>3),AND(SetUp!$C$2=9,SetUp!$C$4=3,PassingPointRel!D8<70,P8>3,R8>3),AND(SetUp!$C$2=9,SetUp!$C$4=3,PassingPointRel!D8<70,Q8>3,R8>3),AND(SetUp!$C$2=3,SetUp!$C$4=3,PassingPointRel!D8<70,P8>1,Q8>1),AND(SetUp!$C$2=3,SetUp!$C$4=3,PassingPointRel!D8<70,P8>1,R8>1),AND(SetUp!$C$2=3,SetUp!$C$4=3,PassingPointRel!D8<70,Q8>1,R8>1)),1,0) -> 1 | BA8: =IF(OR(AND(SetUp!$C$2=9,SetUp!$C$4=2,PassingPointRel!P8>6,PassingPointRel!Q8<7,AND(SetUp!$C$2=9,SetUp!$C$4=2,PassingPointRel!P8<7,PassingPointRel!Q8>6)),AND(SetUp!$C$2=9,SetUp!$C$4=2,AND(PassingPointRel!P8<7,PassingPointRel!P8>3,OR(PassingPointRel!Q8>6,PassingPointRel!Q8<4))),AND(SetUp!$C$2=9,SetUp!$C$4=2,AND(PassingPointRel!Q8<7,PassingPointRel!Q8>3,OR(PassingPointRel!P8>6,PassingPointRel!P8<4))),AND(SetUp!$C$2=9,SetUp!$C$4=2,AND(SetUp!$C$2=9,SetUp!$C$4=2,PassingPointRel!P8<4,PassingPointRel!Q8>3),AND(SetUp!$C$2=9,SetUp!$C$4=2,PassingPointRel!P8>3,PassingPointRel!Q8<4)),AND(SetUp!$C$2=3,SetUp!$C$4=2,PassingPointRel!P8>2,PassingPointRel!Q8<3),AND(SetUp!$C$2=3,SetUp!$C$4=2,PassingPointRel!P8<3,PassingPointRel!Q8>2),AND(SetUp!$C$2=3,SetUp!$C$4=2,PassingPointRel!P8=2,OR(PassingPointRel!Q8>2,PassingPointRel!Q8<2)),AND(SetUp!$C$2=3,SetUp!$C$4=2,PassingPointRel!Q8=2,OR(PassingPointRel!P8>2,PassingPointRel!P8<2)),AND(SetUp!$C$2=3,SetUp!$C$4=2,PassingPointRel!P8<2,PassingPointRel!Q8>1),AND(SetUp!$C$2=3,SetUp!$C$4=2,PassingPointRel!P8>1,PassingPointRel!Q8<2)),1,0) -> 0 | BB8: =IF(OR(AND(SetUp!$C$2=9,SetUp!$C$4=3,PassingPointRel!P8>6,PassingPointRel!Q8<7,PassingPointRel!R8<7),AND(SetUp!$C$2=9,SetUp!$C$4=3,PassingPointRel!P8<7,PassingPointRel!Q8>6,PassingPointRel!R8<7),AND(SetUp!$C$2=9,SetUp!$C$4=3,PassingPointRel!P8<7,PassingPointRel!Q8<7,PassingPointRel!R8>6),AND(SetUp!$C$2=9,SetUp!$C$4=3,AND(PassingPointRel!P8<7,PassingPointRel!P8>3,OR(PassingPointRel!Q8>6,PassingPointRel!Q8<4), OR(PassingPointRel!R8>6,PassingPointRel!R8<4))),AND(SetUp!$C$2=9,SetUp!$C$4=3,AND(PassingPointRel!Q8<7,PassingPointRel!Q8>3,OR(PassingPointRel!P8>6,PassingPointRel!P8<4), OR(PassingPointRel!R8>6,PassingPointRel!R8<4))),AND(SetUp!$C$2=9,SetUp!$C$4=3,AND(PassingPointRel!R8<7,PassingPointRel!R8>3,OR(PassingPointRel!P8>6,PassingPointRel!P8<4), OR(PassingPointRel!Q8>6,PassingPointRel!Q8<4))),AND(SetUp!$C$2=9,SetUp!$C$4=3,PassingPointRel!P8<4,PassingPointRel!Q8>3,PassingPointRel!R8>3),AND(SetUp!$C$2=9,SetUp!$C$4=3,PassingPointRel!P8>3,PassingPointRel!Q8<4,PassingPointRel!R8>3),AND(SetUp!$C$2=9,SetUp!$C$4=3,PassingPointRel!P8>3,PassingPointRel!Q8>3,PassingPointRel!R8<4),AND(SetUp!$C$2=3,SetUp!$C$4=3,PassingPointRel!P8>2,PassingPointRel!Q8<3,PassingPointRel!R8<3),AND(SetUp!$C$2=3,SetUp!$C$4=3,PassingPointRel!P8<3,PassingPointRel!Q8>2,PassingPointRel!R8<3),AND(SetUp!$C$2=3,SetUp!$C$4=3,PassingPointRel!P8<3,PassingPointRel!Q8<3,PassingPointRel!R8>2), AND(SetUp!$C$2=3,SetUp!$C$4=3,PassingPointRel!P8=2,OR(PassingPointRel!Q8>2,PassingPointRel!Q8<2),OR(PassingPointRel!R8>2,PassingPointRel!R8<2)),AND(SetUp!$C$2=3,SetUp!$C$4=3,PassingPointRel!Q8=2,OR(PassingPointRel!P8>2,PassingPointRel!P8<2),OR(PassingPointRel!R8>2,PassingPointRel!R8<2)),AND(SetUp!$C$2=3,SetUp!$C$4=3,PassingPointRel!R8=2,OR(PassingPointRel!P8>2,PassingPointRel!P8<2),OR(PassingPointRel!Q8>2,PassingPointRel!Q8<2)),AND(SetUp!$C$2=3,SetUp!$C$4=3,PassingPointRel!P8<2,PassingPointRel!Q8>1,PassingPointRel!R8>1),AND(SetUp!$C$2=3,SetUp!$C$4=3,PassingPointRel!P8>1,PassingPointRel!Q8<2,PassingPointRel!R8>1),AND(SetUp!$C$2=3,SetUp!$C$4=3,PassingPointRel!P8>1,PassingPointRel!Q8>1,PassingPointRel!R8<2)),1,0) -> 0
